Workbook

Sheet Параметры
A1: ="Параметры распределения дотаций на "&$D$3&" год" -> Параметры распределения дотаций на 2016 год
A3: Период | C3: 2015 | D3: =$C$3+1 -> 2016
A5: Объем дотаций на выравнивание БО поселений из республиканского бюджета
A6: Принимаемый к расчету объем ДВБОП в части городских и сельских поселений , тыс. руб. | C6: 4398.6 | D6: 4399.8
A9: Объем дотаций на выравнивание БО поселений
A10: - коэффициент роста доходов бюджета района | D10: 1
A11: - сокращение (+) / рост (-) объема налоговых доходов бюджетов поселений в рассматриваемом году по сравнению с предыдущим годом в связи с изменением налогового законодательства, а также нормативов отчислений от налогов в бюджеты поселений, тыс. руб. | D11: 0
A12: - сокращение (-) / рост (+) объема расходных обязательств поселений в рассматриваемом году по сравнению с предыдущим годом в связи с изменением перечня вопросов местного значения поселений, тыс. руб.
A13: Расчетный объем ДВБОП, тыс. руб. | D13: =C14*D10+D11+D12 -> 3000
A14: Принимаемый к расчету объем ДВБОП в части городских и сельских поселений , тыс. руб. | C14: 3000 | D14: 11328
A15: Доля нераспределяемой части дотации, % | D15: 0
A16: Распределяемый между поселениями объем ДВБОП, тыс. руб. | D16: =D14*(1-D15) -> 11328
G17: 0.35
A18: в том числе: | G18: =G16*G17 -> 0
A19: передаваемый в форме дополнительных нормативов отчислений от НДФЛ, тыс. руб. | D19: =D16-D20 -> 
A20: передаваемый в форме дотаций, тыс. руб. | D20: ='РЕЗУЛЬТАТ+1'!#REF! -> 
A22: Распределение дотаций на выравнивание БО поселений
A23: средние налоговые доходы бюджетов поселений в расчете на одного жителя, тыс. руб./чел. | D23: =('Доходы+1'!P6)/Данные!$F$11 -> 1.269242136
A24: Критерий выравнивания бюджетной обеспеченности | D24: 1
A27: Технические параметры (для отображения на диаграммах)
A28: Начало и конец интервала визуального представления результатов расчетов по поселениям на диаграммах (они расположены в порядке возрастания их расчетной бюджетной обеспеченности) | D28: 1
D29: 10

Sheet РЕЗУЛЬТАТ+1
F1: Фактические данные
C2: =Данные!C2 -> Район | E2: Результат | F2: Прогноз налоговых доходов | G2: Прогноз неналоговых доходов | H2: Первая часть дотации (за счет средств бюджета субъекта РФ) | I2: Вторая часть дотации (за счет средств бюджета района) | J2: Субсидии их бюджета района | K2: Итого доходов | L2: Расходные обязательства по собственным полномочиям | M2: Обеспеченность расходов доходами | O2: Сравнение распределения ДВБОП | P2: Утверждено | Q2: Рассчитано | R2: Отклонение | S2: Отклонение, % | U2: Сравнение ИБР, ИНП и БО | V2: ИБР | W2: Расчетный ИБР | X2: Отклонение | Y2: Отклонение, % к РРО | Z2: ИНП | AA2: Расчетный ИНП | AB2: Отклонение | AC2: Отклонение, % к РРО
F3: =Параметры!$D$3 -> 2016 | G3: =Параметры!$D$3 -> 2016 | H3: =Параметры!$D$3 -> 2016 | I3: =Параметры!$D$3 -> 2016 | J3: =Параметры!$D$3 -> 2016 | K3: =Параметры!$D$3 -> 2016 | L3: =Параметры!$D$3 -> 2016 | M3: =Параметры!$D$3 -> 2016 | P3: =Параметры!$D$3 -> 2016 | Q3: =Параметры!$D$3 -> 2016 | R3: =Параметры!$D$3 -> 2016 | S3: =Параметры!$D$3 -> 2016 | V3: =Параметры!$D$3 -> 2016 | W3: =Параметры!$D$3 -> 2016 | X3: =Параметры!$D$3 -> 2016 | Y3: =Параметры!$D$3 -> 2016 | Z3: =Параметры!$D$3 -> 2016 | AA3: =Параметры!$D$3 -> 2016 | AB3: =Параметры!$D$3 -> 2016 | AC3: =Параметры!$D$3 -> 2016
G4: =Параметры!$D$3 -> 2016
G5: =Параметры!$D$3 -> 2016
G6: =Параметры!$D$3 -> 2016
G7: =Параметры!$D$3 -> 2016
G8: =Параметры!$D$3 -> 2016
D11: Всего | F11: =SUM(F12:F21) -> 76184.99 | H11: =SUM(H12:H21) -> 4399.8 | I11: =SUM(I12:I21) -> 11328 | J11: 0 | L11: 59696 | M11: =K11/L11 ->  | P11: =SUM(P12:P21) -> 7350.9 | Q11: =SUM(Q12:Q21) -> 15727.8 | R11: =Q11-P11 -> 8376.9 | S11: =R11/P11 -> 1.139574746
A12: 1 | B12: =Данные!B12 -> 4 | C12: =Данные!C12 -> Майкопский | D12: =Данные!D12 -> Абадзехское с/п | F12: ='Доходы+1'!P12 -> 5880.5 | G12: =#REF! ->  | H12: ='ТРАНСФЕРТЫ+1'!P12 -> 475.6481108 | I12: ='ТРАНСФЕРТЫ+1'!V12 -> 1721.466688 | K12: =SUM(F12:J12) ->  | L12: ='Настройка ИБР+1'!AI12 -> 6519 | M12: =K12/L12 ->  | P12: 1630.9 | Q12: =H12+I12 -> 2197.114799 | R12: 566.2147993 | S12: 0.3471793484 | V12: ='ИБР+1'!AM12 -> 1.010143116 | W12: ='ИБР+1'!C12 -> 0.9713045611 | X12: =W12-V12 -> -0.03883855516 | Y12: =X12/V12 -> -0.03844856688 | Z12: ='Доходы+1'!N12 -> 0.7139897855 | AA12: ='ТРАНСФЕРТЫ+1'!K12 -> 0.7636989703 | AB12: =AA12-Z12 -> 0.0497091848 | AC12: =AB12/Z12 -> 0.06962170301
A13: 2 | B13: =Данные!B13 -> 4 | C13: =Данные!C13 -> Майкопский | D13: =Данные!D13 -> Даховское с/п | F13: ='Доходы+1'!P13 -> 4155.59 | G13: =#REF! ->  | H13: ='ТРАНСФЕРТЫ+1'!P13 -> 204.9487005 | I13: ='ТРАНСФЕРТЫ+1'!V13 -> 499.3398232 | L13: ='Настройка ИБР+1'!AI13 -> 2792 | P13: 0 | Q13: =H13+I13 -> 704.2885237 | R13: 704.2885237 | V13: ='ИБР+1'!AM13 -> 1.00405603 | W13: ='ИБР+1'!C13 -> 1.303771539 | X13: 0.2997155095 | Y13: 0.2985047653 | Z13: ='Доходы+1'!N13 -> 1.170984224 | AA13: ='ТРАНСФЕРТЫ+1'!K13 -> 1.164013361 | AB13: -0.006970862895 | AC13: -0.005952994715
A14: 3 | B14: =Данные!B14 -> 4 | C14: =Данные!C14 -> Майкопский | D14: =Данные!D14 -> Краснооктябрьское с/п | F14: ='Доходы+1'!P14 -> 14063.4 | G14: =#REF! ->  | H14: ='ТРАНСФЕРТЫ+1'!P14 -> 826.685066 | I14: ='ТРАНСФЕРТЫ+1'!V14 -> 0 | L14: ='Настройка ИБР+1'!AI14 -> 11004 | P14: 0 | Q14: 826.685066 | R14: 826.685066 | V14: ='ИБР+1'!AM14 -> 0.9810659282 | W14: ='ИБР+1'!C14 -> 0.8763383071 | X14: -0.1047276211 | Y14: -0.1067488108 | Z14: ='Доходы+1'!N14 -> 0.9824574669 | AA14: ='ТРАНСФЕРТЫ+1'!K14 -> 0.9993955171 | AB14: 0.01693805021 | AC14: 0.01724049211
A15: 4 | B15: =Данные!B15 -> 4 | C15: =Данные!C15 -> Майкопский | D15: =Данные!D15 -> Красноульское с/п | F15: ='Доходы+1'!P15 -> 4378.9 | G15: =#REF! ->  | H15: ='ТРАНСФЕРТЫ+1'!P15 -> 135.1664534 | I15: ='ТРАНСФЕРТЫ+1'!V15 -> 0 | L15: ='Настройка ИБР+1'!AI15 -> 1832 | P15: 0 | Q15: 135.1664534 | R15: 135.1664534 | V15: ='ИБР+1'!AM15 -> 0.9989511573 | W15: ='ИБР+1'!C15 -> 1.643076042 | X15: 0.6441248849 | Y15: 0.6448011799 | Z15: ='Доходы+1'!N15 -> 1.870939005 | AA15: ='ТРАНСФЕРТЫ+1'!K15 -> 1.907550819 | AB15: 0.03661181399 | AC15: 0.0195686839
A16: 5 | B16: =Данные!B16 -> 4 | C16: =Данные!C16 -> Майкопский | D16: =Данные!D16 -> Кужорское с/п | F16: ='Доходы+1'!P16 -> 3096.2 | G16: =#REF! ->  | H16: ='ТРАНСФЕРТЫ+1'!P16 -> 305.077429 | I16: ='ТРАНСФЕРТЫ+1'!V16 -> 2287.577633 | L16: ='Настройка ИБР+1'!AI16 -> 4161 | P16: 1691.2 | Q16: 2592.655062 | R16: 901.4550624 | S16: 0.5330268818 | V16: ='ИБР+1'!AM16 -> 1.005252916 | W16: ='ИБР+1'!C16 -> 1.108263691 | X16: 0.103010775 | Y16: 0.1024724956 | Z16: ='Доходы+1'!N16 -> 0.5861144776 | AA16: ='ТРАНСФЕРТЫ+1'!K16 -> 0.6781413893 | AB16: 0.09202691172 | AC16: 0.1570118385
A17: 6 | B17: =Данные!B17 -> 4 | C17: =Данные!C17 -> Майкопский | D17: =Данные!D17 -> Побединское с/п | F17: ='Доходы+1'!P17 -> 5207.8 | G17: =#REF! ->  | H17: ='ТРАНСФЕРТЫ+1'!P17 -> 385.634876 | I17: ='ТРАНСФЕРТЫ+1'!V17 -> 0 | L17: ='Настройка ИБР+1'!AI17 -> 5157 | P17: 495.2 | Q17: 385.634876 | R17: -109.565124 | S17: -0.2212542891 | V17: ='ИБР+1'!AM17 -> 0.9856177846 | W17: ='ИБР+1'!C17 -> 1.044381636 | X17: 0.05876385183 | Y17: 0.05962133877 | Z17: ='Доходы+1'!N17 -> 0.7799046577 | AA17: ='ТРАНСФЕРТЫ+1'!K17 -> 1.125450476 | AB17: 0.3455458181 | AC17: 0.4430616161
A18: 7 | B18: =Данные!B18 -> 4 | C18: =Данные!C18 -> Майкопский | D18: =Данные!D18 -> Тимирязевское с/п | F18: ='Доходы+1'!P18 -> 3144.1 | G18: =#REF! ->  | H18: ='ТРАНСФЕРТЫ+1'!P18 -> 282.3542183 | I18: ='ТРАНСФЕРТЫ+1'!V18 -> 2794.974118 | L18: ='Настройка ИБР+1'!AI18 -> 3831 | P18: 1609.3 | Q18: 3077.328336 | R18: 1468.028336 | S18: 0.9122154577 | V18: ='ИБР+1'!AM18 -> 1.000012838 | W18: ='ИБР+1'!C18 -> 1.15487293 | X18: 0.1548600923 | Y18: 0.1548581043 | Z18: ='Доходы+1'!N18 -> 0.6430808701 | AA18: ='ТРАНСФЕРТЫ+1'!K18 -> 0.587054208 | AB18: -0.05602666209 | AC18: -0.08712226517
A19: 8 | B19: =Данные!B19 -> 4 | C19: =Данные!C19 -> Майкопский | D19: =Данные!D19 -> Тульское г/п | F19: ='Доходы+1'!P19 -> 22493.7 | G19: =#REF! ->  | H19: ='ТРАНСФЕРТЫ+1'!P19 -> 797.144892 | I19: ='ТРАНСФЕРТЫ+1'!V19 -> 0 | L19: ='Настройка ИБР+1'!AI19 -> 11023 | P19: 0 | Q19: 797.144892 | R19: 797.144892 | V19: ='ИБР+1'!AM19 -> 1.019178477 | W19: ='ИБР+1'!C19 -> 0.8780886413 | X19: -0.1410898354 | Y19: -0.1384348656 | Z19: ='Доходы+1'!N19 -> 1.629623023 | AA19: ='ТРАНСФЕРТЫ+1'!K19 -> 1.481566071 | AB19: -0.148056952 | AC19: -0.09085349798
A20: 9 | B20: =Данные!B20 -> 4 | C20: =Данные!C20 -> Майкопский | D20: =Данные!D20 -> Каменномостское г/п | F20: ='Доходы+1'!P20 -> 9329.2 | G20: =#REF! ->  | H20: ='ТРАНСФЕРТЫ+1'!P20 -> 539.2731008 | I20: ='ТРАНСФЕРТЫ+1'!V20 -> 1424.632534 | L20: ='Настройка ИБР+1'!AI20 -> 7319 | P20: 0 | Q20: 1963.905635 | R20: 1963.905635 | V20: ='ИБР+1'!AM20 -> 1.000300977 | W20: ='ИБР+1'!C20 -> 0.9505423903 | X20: -0.04975858645 | Y20: -0.04974361478 | Z20: ='Доходы+1'!N20 -> 0.9990774717 | AA20: ='ТРАНСФЕРТЫ+1'!K20 -> 0.7990048276 | AB20: -0.2000726441 | AC20: -0.2002573872
A21: 10 | B21: =Данные!B21 -> 4 | C21: =Данные!C21 -> Майкопский | D21: =Данные!D21 -> Кировское с/п | F21: ='Доходы+1'!P21 -> 4435.6 | G21: =#REF! ->  | H21: ='ТРАНСФЕРТЫ+1'!P21 -> 447.8671531 | I21: ='ТРАНСФЕРТЫ+1'!V21 -> 2600.009203 | L21: ='Настройка ИБР+1'!AI21 -> 6058 | P21: 1924.3 | Q21: 3047.876356 | R21: 1123.576356 | S21: 0.5838883522 | V21: ='ИБР+1'!AM21 -> 0.9969371054 | W21: ='ИБР+1'!C21 -> 0.9925816191 | X21: -0.004355486374 | Y21: -0.004368867755 | Z21: ='Доходы+1'!N21 -> 0.5719613507 | AA21: ='ТРАНСФЕРТЫ+1'!K21 -> 0.6595757631 | AB21: 0.0876144124 | AC21: 0.1531824

Sheet Данные
A1: Исходные данные для расчетов | M1: Муниципальное управление | O1: Библиотеки | Q1: Дома культуры (Клубы) | S1: Музеи | U1: Физическая культура и спорт | AH1: Теплоснабжение: фиксированные показатели | AL1: Водоснабжение и водоотведение | AP1: Теплоснабжение | AS1: Электроснабжение
A2: № | B2: № района | C2: Район | D2: Поселения | E2: ДАННЫЕ ДЛЯ РАСЧЕТА ИБР | F2: Численность постоянного населения | G2: Численность городского населения | H2: Доля городского населения | I2: Доля сельского населения | J2: Численность населения, проживающего в населенных пунктах с числен. населения не более 500 чел. | K2: Численность населения, проживающего в населенных пунктах с числен. населения не более 1000 чел. | L2: Общая площадь жилых помещений | M2: Основные средства (балансовая стоимость) – иное движимое имущество учреждения (машины, оборудование, передаточные устройства и другие виды основных средств, за исключением зданий и сооружений) | N2: Основные средства (балансовая стоимость) – недвижимое имущество учреждения (здания и сооружения муниципальных учреждений) | O2: Основные средства (балансовая стоимость) – иное движимое имущество учреждения (машины, оборудование, передаточные устройства и другие виды основных средств, за исключением зданий и сооружений) | P2: Основные средства (балансовая стоимость) – недвижимое имущество учреждения (здания и сооружения муниципальных учреждений) | Q2: Основные средства (балансовая стоимость) – иное движимое имущество учреждения (машины, оборудование, передаточные устройства и другие виды основных средств, за исключением зданий и сооружений) | R2: Основные средства (балансовая стоимость) – недвижимое имущество учреждения (здания и сооружения муниципальных учреждений) | S2: Основные средства (балансовая стоимость) – иное движимое имущество учреждения (машины, оборудование, передаточные устройства и другие виды основных средств, за исключением зданий и сооружений) | T2: Основные средства (балансовая стоимость) – недвижимое имущество учреждения (здания и сооружения муниципальных учреждений) | U2: Основные средства (балансовая стоимость) – иное движимое имущество учреждения (машины, оборудование, передаточные устройства и другие виды основных средств, за исключением зданий и сооружений) | V2: Основные средства (балансовая стоимость) – недвижимое имущество учреждения (здания и сооружения муниципальных учреждений) | W2: Площадь муниципальных образований | X2: Плотность населения | Y2: Коэффициенты к заработной плате | Z2: Протяженность дорог муниципального образования вне населенных пунктов (содержание которых осуществляется органами местного самоуправления МО за счет собственных средств), в т.ч. по муниципальным районоам и городским округам | AA2: в том числе по категориям | AF2: Прожиточный минимум (стоимость минимального набора товаров и услуг) | AG2: Стоимость потребительской корзины в среднем на душу населения (руб.) | AH2: Продолжительность отопительного периода | AI2: Коэффициент продолжительности отопительного периода | AJ2: Средняя температура воздуха в течение отопительного периода | AK2: Коэффициент потребления тепловой энергии | AL2: Тарифы на холодное водоснабжение | AM2: Тарифы на водоотведение | AN2: Общие тарифы на водоснабжение и водоотведение | AO2: Коэффициент стоимости водоснабжения и водоотведения | AP2: Стоимость выработки одной гигакаллории тепловой энергии | AQ2: Коэффициент стоимости тепловой энергии | AR2: Коэффициент стоимости теплоснабжения | AS2: Тарифы на электроснабжение | AT2: Коэффициент стоимости электроснабжения | AU2: Утвержденные | AV2: ="Утвержденное распределение ДВБОП на " &Параметры!$D$3&" год" -> Утвержденное распределение ДВБОП на 2016 год | AW2: ="Утвержденное распределение ДВБОП на " &Параметры!$D$3+1&" год" -> Утвержденное распределение ДВБОП на 2017 год | AX2: ="Субсидии, перечисляемые в бюджет субъекта РФ в " & Параметры!$D$3&" году" -> Субсидии, перечисляемые в бюджет субъекта РФ в 2016 году
AA3: 1 | AB3: 2 | AC3: 3 | AD3: 4 | AE3: 5
D4: Ед. изм. | F4: чел | G4: чел | H4: % | I4: % | J4: чел. | K4: чел. | L4: тыс. кв. м | M4: тыс.руб. | N4: тыс.руб. | O4: тыс.руб. | P4: тыс.руб. | Q4: тыс.руб. | R4: тыс.руб. | S4: тыс.руб. | T4: тыс.руб. | U4: тыс.руб. | V4: тыс.руб. | W4: кв. км | Z4: км | AH4: дней | AJ4: 0C | AL4: руб./м3 | AM4: руб./м3 | AN4: руб./м3 | AP4: руб./Гкал | AS4: руб./кВт | AV4: тыс. руб. | AW4: тыс. руб.
D5: Дата | Z5: 01.01.2011 | AA5: 01.01.2011 | AB5: 01.01.2011 | AC5: 01.01.2011 | AD5: 01.01.2011 | AE5: 01.01.2011 | AL5: =Параметры!$D$3 -> 2016 | AP5: =Параметры!$D$3 -> 2016 | AS5: =Параметры!$D$3 -> 2016
D6: Параметры показателей | AJ6: 20 | AL6: 1 | AM6: 1 | AO6: 0.2 | AR6: 0.6 | AT6: =1-SUM(AO6,AR6) -> 0.2
D11: Итого | F11: =SUM(F12:F21) -> 60024 | G11: =SUM(G12:G21) -> 0 | H11: =$G$11/$F$11 -> 0 | I11: =1-H11 -> 1 | J11: =SUM(J12:J21) -> 6737 | K11: =SUM(K12:K21) -> 0 | L11: 0 | M11: 0 | N11: 0 | O11: 0 | P11: 0 | Q11: 0 | R11: 0 | S11: 0 | T11: 0 | U11: 0 | V11: 0 | W11: 228110.2 | X11: =F11/W11 -> 0.2631359755 | Z11: =SUM(Z12:Z21) -> 0 | AA11: 0 | AB11: 0 | AC11: 0 | AD11: 0 | AE11: 0 | AH11: =SUMPRODUCT(AH12:AH21,$F$12:$F$21)/$F$11 -> 180 | AI11: =AH11/AH$11 -> 1 | AJ11: =SUMPRODUCT(AJ12:AJ21,$F$12:$F$21)/$F$11 -> -1.6 | AK11: =($AJ$6-AJ11)/($AJ$6-AJ$11) -> 1 | AL11: =SUM(AL12:AL21)/10 -> 16.891 | AM11: =SUM(AM12:AM21)/10 -> 7.6 | AN11: 24.491 | AO11: =AN11/AN$11 -> 1 | AP11: =SUM(AP12:AP21)/10 -> 3087.58 | AQ11: =AP11/AP$11 -> 1 | AR11: =PRODUCT($AI11,$AK11,AQ11,$F$11)/SUMPRODUCT($AI$12:$AI$21,$AK$12:$AK$21,AQ$12:AQ$21,$F$12:$F$21) -> 1 | AS11: =SUM(AS12:AS21)/10 -> 4.346 | AT11: =AS11/AS$11 -> 1 | AV11: =SUM(AV12:AV21) -> 0 | AW11: =SUM(AW12:AW21) -> 0 | AX11: =SUM(AX12:AX21) -> 0
A12: 1 | B12: 4 | C12: Майкопский | D12: Абадзехское с/п | F12: 6489 | G12: 0 | H12: =G12/F12 -> 0 | I12: =1-H12 -> 1 | J12: 625 | W12: 38792.8 | X12: =F12/W12 -> 0.1672733084 | AH12: 180 | AI12: =AH12/AH$11 -> 1 | AJ12: -1.6 | AK12: 1 | AL12: 15.96 | AN12: =AL12+AM12 -> 15.96 | AO12: =AN12/AN$11 -> 0.6516679597 | AP12: 3087.58 | AQ12: =AP12/AP$11 -> 1 | AR12: 1 | AS12: 4.346 | AT12: =AS12/AS$11 -> 1 | AX12: 0
A13: 2 | B13: 4 | C13: Майкопский | D13: Даховское с/п | F13: 2796 | G13: 0 | H13: 0 | I13: 1 | J13: 626 | W13: 63758.8 | X13: 0.04385277013 | AH13: 180 | AI13: 1 | AJ13: -1.6 | AK13: 1 | AL13: 15.96 | AN13: =AL13+AM13 -> 15.96 | AO13: 0.6516679597 | AP13: 3087.58 | AQ13: 1 | AR13: 1 | AS13: 4.346 | AT13: 1 | AX13: 0
A14: 3 | B14: 4 | C14: Майкопский | D14: Краснооктябрьское с/п | F14: 11278 | G14: 0 | H14: 0 | I14: 1 | J14: 902 | W14: 43447.7 | X14: 0.2595764563 | AH14: 180 | AI14: 1 | AJ14: -1.6 | AK14: 1 | AL14: 15.96 | AM14: 15.2 | AN14: 31.16 | AO14: 1.272304112 | AP14: 3087.58 | AQ14: 1 | AR14: 1 | AS14: 4.346 | AT14: 1 | AX14: 0
A15: 4 | B15: 4 | C15: Майкопский | D15: Красноульское с/п | F15: 1844 | G15: 0 | H15: 0 | I15: 1 | J15: 1832 | W15: 5688.4 | X15: 0.3241684832 | AH15: 180 | AI15: 1 | AJ15: -1.6 | AK15: 1 | AL15: 22.32 | AN15: 22.32 | AO15: 0.9113551917 | AP15: 3087.58 | AQ15: 1 | AR15: 1 | AS15: 4.346 | AT15: 1 | AX15: 0
A16: 5 | B16: 4 | C16: Майкопский | D16: Кужорское с/п | F16: 4162 | G16: 0 | H16: 0 | I16: 1 | J16: 23 | W16: 23082 | X16: 0.1803136643 | AH16: 180 | AI16: 1 | AJ16: -1.6 | AK16: 1 | AL16: 18.91 | AN16: 18.91 | AO16: 0.7721203707 | AP16: 3087.58 | AQ16: 1 | AR16: 1 | AS16: 4.346 | AT16: 1 | AX16: 0
A17: 6 | B17: 4 | C17: Майкопский | D17: Побединское с/п | F17: 5261 | G17: 0 | H17: 0 | I17: 1 | J17: 794 | W17: 2449.4 | X17: 2.147872948 | AH17: 180 | AI17: 1 | AJ17: -1.6 | AK17: 1 | AL17: 15.96 | AM17: 15.2 | AN17: 31.16 | AO17: 1.272304112 | AP17: 3087.58 | AQ17: 1 | AR17: 1 | AS17: 4.346 | AT17: 1 | AX17: 0
A18: 7 | B18: 4 | C18: Майкопский | D18: Тимирязевское с/п | F18: 3852 | G18: 0 | H18: 0 | I18: 1 | J18: 366 | W18: 1933.3 | X18: 1.992448146 | AH18: 180 | AI18: 1 | AJ18: -1.6 | AK18: 1 | AL18: 15.96 | AM18: 15.2 | AN18: 31.16 | AO18: 1.272304112 | AP18: 3087.58 | AQ18: 1 | AR18: 1 | AS18: 4.346 | AT18: 1 | AX18: 0
A19: 8 | B19: 4 | C19: Майкопский | D19: Тульское г/п | F19: 10875 | G19: 0 | H19: 0 | I19: 1 | J19: 5 | W19: 23428 | X19: 0.4641881509 | AH19: 180 | AI19: 1 | AJ19: -1.6 | AK19: 1 | AL19: 15.96 | AM19: 15.2 | AN19: 31.16 | AO19: 1.272304112 | AP19: 3087.58 | AQ19: 1 | AR19: 1 | AS19: 4.346 | AT19: 1 | AX19: 0
A20: 9 | B20: 4 | C20: Майкопский | D20: Каменномостское г/п | F20: 7357 | G20: 0 | H20: 0 | I20: 1 | J20: 163 | W20: 18693.2 | X20: 0.3935655746 | AH20: 180 | AI20: 1 | AJ20: -1.6 | AK20: 1 | AL20: 15.96 | AM20: 15.2 | AN20: 31.16 | AO20: 1.272304112 | AP20: 3087.58 | AQ20: 1 | AR20: 1 | AS20: 4.346 | AT20: 1 | AX20: 0
A21: 10 | B21: 4 | C21: Майкопский | D21: Кировское с/п | F21: 6110 | G21: 0 | H21: 0 | I21: 1 | J21: 1401 | W21: 6836.6 | X21: 0.8937191001 | AH21: 180 | AI21: 1 | AJ21: -1.6 | AK21: 1 | AL21: 15.96 | AN21: 15.96 | AO21: 0.6516679597 | AP21: 3087.58 | AQ21: 1 | AR21: 1 | AS21: 4.346 | AT21: 1 | AX21: 0

Sheet Настройка ИБР+1
C1: Коэффициенты, учитывающие отдельные факторы, влияющие на величину расходных обязательств в расчете на 1 жителя | AH1: Установление параметров коэффициента структуры потребителей бюджетных услуг
B2: № | E2: 1 | F2: 2 | G2: 3 | H2: 4 | M2: 1 | N2: 2 | O2: 3 | Q2: 5 | R2: 6 | S2: 7 | T2: 8 | U2: 9 | V2: 10 | W2: 11 | X2: 12 | Y2: 13 | AA2: 15 | AB2: 16 | AC2: 17 | AD2: 18 | AE2: 19 | AF2: 20 | AH2: № | AI2: 1 | AJ2: 2 | AK2: 3 | AL2: 4 | AM2: 5 | AN2: 6 | AO2: 7 | AP2: 8 | AQ2: 9 | AR2: 10 | AS2: 11 | AT2: 12 | AU2: 13 | AV2: 14 | AW2: 15 | AX2: 16 | AY2: 17 | AZ2: 18 | BA2: 19 | BB2: 20 | BC2: 21 | BD2: 22 | BE2: 23 | BF2: 24 | BG2: 25 | BH2: 26 | BI2: 27 | BJ2: 28 | BK2: 29 | BL2: 30 | BM2: 31 | BN2: 32 | BO2: 33
B3: Поселения | D3: Коэффициент стоимости предоставления муниципальных услуг | E3: Кзп (к-т заработной платы) | F3: Кк (коэффициент компенсации по уровню финансовой устойчивости) | G3: Кку (к-т КУ) | I3: К-т заработной платы | L3: Коэффициент структуры потребителей муниципальных услуг | M3: Км (к-т масштаба) | N3: Кпл (к-т плотности населения) | O3: Кдисп (к-т дисперсности расселения) 500 | Q3: Курб (к-т урбанизации) | R3: Кжф | AF3: Кпл (к-т плотности населения) | AH3: Вопросы местного значенияпоселений | AI3: ИТОГО | AJ3: Формирование, утверждение, исполнение бюджета поселения и контроль за исполнением бюджета; муниципальное управление; распоряжение имуществом | AK3: Организация в границах поселения электро-, тепло-, газо- и водоснабжения населения, водоотведения, снабжения населения топливом; регулирование тарифов на ЖКУ | AL3: Дорожная деятельность в отношении автомобильных дорог местного значения в границах населенных пунктов поселения, а также осуществление иных полномочий в области использования автомобильных дорог и осуществления дорожной деятельности в соответствии с законодательством Российской Федерации | AM3: Обеспечение малоимущих граждан, проживающих в поселении и нуждающихся в улучшении жилищных условий, жилыми помещениями в соответствии с жилищным законодательством, организация строительства и содержания муниципального жилищного фонда, создание условий для жилищного строительства | AN3: Создание условий для предоставления транспортных услуг населению и организация транспортного обслуживания населения в границах поселения | AO3: Участие в профилактике терроризма и экстремизма, а также в минимизации и (или) ликвидации последствий проявлений терроризма и экстремизма в границах поселения | AP3: Участие в предупреждении и ликвидации последствий чрезвычайных ситуаций в границах поселения | AQ3: Обеспечение первичных мер пожарной безопасности в границах населенных пунктов поселения | AR3: Создание условий для обеспечения жителей поселения услугами связи, общественного питания, торговли и бытового обслуживания | AS3: Организация библиотечного обслуживания населения, комплектование библиотечных фондов библиотек поселения | AT3: Создание условий для организации досуга и обеспечения жителей поселения услугами организаций культуры | AU3: Сохранение, использование и популяризация объектов культурного наследия (памятников истории и культуры), находящихся в собственности поселения, охрана объектов культурного наследия (памятников истории и культуры) местного (муниципального) значения, расположенных на территории поселения | AV3: Создание условий для развития местного традиционного народного художественного творчества, участие в сохранении, возрождении и развитии народных художественных промыслов в поселении | AW3: Обеспечение условий для развития на территории поселения физической культуры и массового спорта, организация проведения официальных физкультурно-оздоровительных и спортивных мероприятий поселения | AX3: Создание условий для массового отдыха жителей поселения и организация обустройства мест массового отдыха населения | AY3: Выдача разрешений на установку рекламных конструкций на территории муниципального района, аннулирование таких разрешений, выдача предписаний о демонтаже самовольно установленных вновь рекламных конструкций на территории муниципального района, осуществляемые в соответствии с Федеральным законом от 13 марта 2006 года N 38-ФЗ "О рекламе" | AZ3: Формирование архивных фондов поселения | BA3: Организация сбора и вывоза бытовых отходов и мусора | BB3: Организация благоустройства и озеленения территории поселения, использования и охраны городских лесов, расположенных в границах населенных пунктов поселения | BC3: Утверждение генеральных планов поселения, правил землепользования и застройки, утверждение подготовленной на основе генеральных планов поселения документации по планировке территории, выдача разрешений на строительство, разрешений на ввод объектов в эксплуатацию, утверждение местных нормативов градостроительного проектирования поселений, резервирование и изъятие, в том числе путем выкупа, земельных участков в границах поселения для муниципальных нужд, осуществление земельного контроля за использованием земель поселения | BD3: Организация освещения улиц и установки указателей с названиями улиц и номерами домов | BE3: Организация ритуальных услуг и содержание мест захоронения | BF3: Организация и осуществление мероприятий по гражданской обороне, защите населения и территории поселения от ЧС природного и техногенного характера | BG3: Создание, содержание и организация деятельности аварийно-спасательных служб и (или) аварийно-спасательных формирований на территории поселения | BH3: Организация и осуществление мероприятий по мобилизационной подготовке муниципальных предприятий и учреждений, находящихся на территории поселения | BI3: Осуществление мероприятий по обеспечению безопасности людей на водных объектах, охране их жизни и здоровья | BJ3: Создание, развитие и обеспечение охраны лечебно-оздоровительных местностей и курортов местного значения на территории поселения | BK3: Расчет субсидий на оплату жилого помещения и коммунальных услуг и организация предоставления субсидий гражданам, имеющим право на их получение в соответствии с жилищным законодательством | BL3: Организация и осуществление мероприятий по работе с детьми и молодежью в поселении | BM3: Осуществление в пределах, установленных водным законодательством Российской Федерации, полномочий собственника водных объектов, информирование населения об ограничениях их использования | BN3: Создание музеев | BO3: Прочие вопросы
B4: Параметры коэф-тов | I4: 0.25 | M4: 0.6 | N4: 0.9 | O4: 1 | Q4: 1 | AH4: ="Структура расходов в " & Параметры!$D$3 & " году" -> Структура расходов в 2016 году | AI4: =SUM(AJ4:BO4) -> 1 | AJ4: 0.602 | AK4: 0.194 | AM4: 0 | AN4: 0 | AO4: 0.003 | AP4: 0.008 | AQ4: 0.002 | AR4: 0 | AS4: 0 | AT4: 0.072 | AU4: 0 | AV4: 0 | AW4: 0.007 | AX4: 0.008 | AY4: 0 | AZ4: 0 | BA4: 0.008 | BB4: 0.05 | BC4: 0 | BD4: 0.025 | BE4: 0.011 | BF4: 0 | BG4: 0 | BH4: 0 | BI4: 0 | BJ4: 0 | BK4: 0 | BL4: 0.001 | BM4: 0 | BN4: 0 | BO4: 0.009
B5: Параметры коэф-тов | M5: =Данные!$F$11/COUNTIF(Данные!$D$12:$D$21,"<>""") -> 6002.4 | AH5: ="Сравнительная структура расходов в " & Параметры!$D$3 & " году" -> Сравнительная структура расходов в 2016 году | AI5: =SUM(AJ5:BO5) -> 1 | AJ5: =IF('Настройка ИБР+1'!$AI$11=0,"",'Настройка ИБР+1'!AJ$11/'Настройка ИБР+1'!$AI$11) -> 0 | AK5: =IF('Настройка ИБР+1'!$AI$11=0,"",'Настройка ИБР+1'!AK$11/'Настройка ИБР+1'!$AI$11) -> 0 | AL5: =IF('Настройка ИБР+1'!$AI$11=0,"",'Настройка ИБР+1'!AL$11/'Настройка ИБР+1'!$AI$11) -> 0 | AM5: =IF('Настройка ИБР+1'!$AI$11=0,"",'Настройка ИБР+1'!AM$11/'Настройка ИБР+1'!$AI$11) -> 0 | AN5: =IF('Настройка ИБР+1'!$AI$11=0,"",'Настройка ИБР+1'!AN$11/'Настройка ИБР+1'!$AI$11) -> 0 | AO5: =IF('Настройка ИБР+1'!$AI$11=0,"",'Настройка ИБР+1'!AO$11/'Настройка ИБР+1'!$AI$11) -> 0 | AP5: =IF('Настройка ИБР+1'!$AI$11=0,"",'Настройка ИБР+1'!AP$11/'Настройка ИБР+1'!$AI$11) -> 0 | AQ5: =IF('Настройка ИБР+1'!$AI$11=0,"",'Настройка ИБР+1'!AQ$11/'Настройка ИБР+1'!$AI$11) -> 0 | AR5: =IF('Настройка ИБР+1'!$AI$11=0,"",'Настройка ИБР+1'!AR$11/'Настройка ИБР+1'!$AI$11) -> 0 | AS5: =IF('Настройка ИБР+1'!$AI$11=0,"",'Настройка ИБР+1'!AS$11/'Настройка ИБР+1'!$AI$11) -> 0 | AT5: =IF('Настройка ИБР+1'!$AI$11=0,"",'Настройка ИБР+1'!AT$11/'Настройка ИБР+1'!$AI$11) -> 0 | AU5: =IF('Настройка ИБР+1'!$AI$11=0,"",'Настройка ИБР+1'!AU$11/'Настройка ИБР+1'!$AI$11) -> 0 | AV5: =IF('Настройка ИБР+1'!$AI$11=0,"",'Настройка ИБР+1'!AV$11/'Настройка ИБР+1'!$AI$11) -> 0 | AW5: =IF('Настройка ИБР+1'!$AI$11=0,"",'Настройка ИБР+1'!AW$11/'Настройка ИБР+1'!$AI$11) -> 0 | AX5: =IF('Настройка ИБР+1'!$AI$11=0,"",'Настройка ИБР+1'!AX$11/'Настройка ИБР+1'!$AI$11) -> 0 | AY5: =IF('Настройка ИБР+1'!$AI$11=0,"",'Настройка ИБР+1'!AY$11/'Настройка ИБР+1'!$AI$11) -> 0 | AZ5: =IF('Настройка ИБР+1'!$AI$11=0,"",'Настройка ИБР+1'!AZ$11/'Настройка ИБР+1'!$AI$11) -> 0 | BA5: =IF('Настройка ИБР+1'!$AI$11=0,"",'Настройка ИБР+1'!BA$11/'Настройка ИБР+1'!$AI$11) -> 0 | BB5: =IF('Настройка ИБР+1'!$AI$11=0,"",'Настройка ИБР+1'!BB$11/'Настройка ИБР+1'!$AI$11) -> 0 | BC5: =IF('Настройка ИБР+1'!$AI$11=0,"",'Настройка ИБР+1'!BC$11/'Настройка ИБР+1'!$AI$11) -> 0 | BD5: =IF('Настройка ИБР+1'!$AI$11=0,"",'Настройка ИБР+1'!BD$11/'Настройка ИБР+1'!$AI$11) -> 0 | BE5: =IF('Настройка ИБР+1'!$AI$11=0,"",'Настройка ИБР+1'!BE$11/'Настройка ИБР+1'!$AI$11) -> 0 | BF5: =IF('Настройка ИБР+1'!$AI$11=0,"",'Настройка ИБР+1'!BF$11/'Настройка ИБР+1'!$AI$11) -> 0 | BG5: =IF('Настройка ИБР+1'!$AI$11=0,"",'Настройка ИБР+1'!BG$11/'Настройка ИБР+1'!$AI$11) -> 0 | BH5: =IF('Настройка ИБР+1'!$AI$11=0,"",'Настройка ИБР+1'!BH$11/'Настройка ИБР+1'!$AI$11) -> 0 | BI5: =IF('Настройка ИБР+1'!$AI$11=0,"",'Настройка ИБР+1'!BI$11/'Настройка ИБР+1'!$AI$11) -> 0 | BJ5: =IF('Настройка ИБР+1'!$AI$11=0,"",'Настройка ИБР+1'!BJ$11/'Настройка ИБР+1'!$AI$11) -> 0 | BK5: =IF('Настройка ИБР+1'!$AI$11=0,"",'Настройка ИБР+1'!BK$11/'Настройка ИБР+1'!$AI$11) -> 0 | BL5: =IF('Настройка ИБР+1'!$AI$11=0,"",'Настройка ИБР+1'!BL$11/'Настройка ИБР+1'!$AI$11) -> 0 | BM5: =IF('Настройка ИБР+1'!$AI$11=0,"",'Настройка ИБР+1'!BM$11/'Настройка ИБР+1'!$AI$11) -> 0 | BN5: =IF('Настройка ИБР+1'!$AI$11=0,"",'Настройка ИБР+1'!BN$11/'Настройка ИБР+1'!$AI$11) -> 0 | BO5: =IF('Настройка ИБР+1'!$AI$11=0,"",'Настройка ИБР+1'!BO$11/'Настройка ИБР+1'!$AI$11) -> 1
B6: Вес Кстоимости | D6: =1-SUM(E6:J6) -> 0.2 | E6: 0.4 | F6: 0.3 | G6: 0.1 | AH6: Выбор коэффициента | AJ6: Км (к-т масштаба) | AL6: Кдисп (к-т дисперсности расселения) 500 | AT6: Км (к-т масштаба) | BB6: Кдисп (к-т дисперсности расселения) 500
AH7: Выбор коэффициента
AH8: Выбор коэффициента
B11: =Данные!D11 -> Итого | AH11: Итого | AI11: =SUM(AI12:AI21) -> 59696 | AJ11: =SUM(AJ12:AJ21) -> 0 | AK11: 0 | AL11: 0 | AM11: 0 | AN11: 0 | AO11: 0 | AP11: 0 | AQ11: 0 | AR11: 0 | AS11: 0 | AT11: 0 | AU11: 0 | AV11: 0 | AW11: 0 | AX11: 0 | AY11: 0 | AZ11: 0 | BA11: 0 | BB11: 0 | BC11: 0 | BD11: 0 | BE11: 0 | BF11: 0 | BG11: 0 | BH11: 0 | BI11: 0 | BJ11: 0 | BK11: 0 | BL11: 0 | BM11: 0 | BN11: 0 | BO11: =AI11-SUM(AJ11:BN11) -> 59696
A12: =Данные!A12 -> 1 | B12: =Данные!D12 -> Абадзехское с/п | D12: =$D$6+SUMPRODUCT($E$6:$J$6,E12:J12) -> 0.9930333592 | E12: =I12*Данные!$F$11/SUMPRODUCT($I$12:$I$21,Данные!$F$12:$F$21) -> 1 | F12: 1 | G12: =SUMPRODUCT(Данные!$AO$6:$AT$6,Данные!AO12:AT12/Данные!$AO$11:$AT$11) -> 0.9303335919 | I12: =(1+$I$4*Данные!I12) -> 1.25 | M12: =$M$4+(1-$M$4)*$M$5/Данные!F12 -> 0.9700046232 | N12: =AF12*Данные!$F$11/(SUMPRODUCT($AF$12:$AF$21,Данные!$F$12:$F$21)) -> 1.307108616 | O12: =(1+$O$4*Данные!J12/Данные!$F12)/(1+$O$4*Данные!J$11/Данные!$F$11) -> 0.9856850892 | Q12: =(1+$Q$4*Данные!H12)/(1+$Q$4*Данные!$H$11) -> 1 | R12: =(Данные!L12/Данные!F12)/(Данные!$L$11/Данные!$F$11) ->  | AF12: =MAX($N$4,2-Данные!X12/Данные!$X$11) -> 1.364308479 | AI12: 6519 | BO12: 6519
A13: =Данные!A13 -> 2 | B13: =Данные!D13 -> Даховское с/п | D13: 0.9930333592 | E13: =I13*Данные!$F$11/SUMPRODUCT($I$12:$I$21,Данные!$F$12:$F$21) -> 1 | F13: 1 | G13: =SUMPRODUCT(Данные!$AO$6:$AT$6,Данные!AO13:AT13/Данные!$AO$11:$AT$11) -> 0.9303335919 | I13: =(1+$I$4*Данные!I13) -> 1.25 | M13: =$M$4+(1-$M$4)*$M$5/Данные!F13 -> 1.458712446 | N13: =AF13*Данные!$F$11/(SUMPRODUCT($AF$12:$AF$21,Данные!$F$12:$F$21)) -> 1.756480925 | O13: =(1+$O$4*Данные!J13/Данные!$F13)/(1+$O$4*Данные!J$11/Данные!$F$11) -> 1.100385701 | Q13: =(1+$Q$4*Данные!H13)/(1+$Q$4*Данные!$H$11) -> 1 | R13: =(Данные!L13/Данные!F13)/(Данные!$L$11/Данные!$F$11) ->  | AF13: =MAX($N$4,2-Данные!X13/Данные!$X$11) -> 1.833345592 | AI13: 2792 | BO13: 2792
A14: =Данные!A14 -> 3 | B14: =Данные!D14 -> Краснооктябрьское с/п | D14: 1.005446082 | E14: =I14*Данные!$F$11/SUMPRODUCT($I$12:$I$21,Данные!$F$12:$F$21) -> 1 | F14: 1 | G14: =SUMPRODUCT(Данные!$AO$6:$AT$6,Данные!AO14:AT14/Данные!$AO$11:$AT$11) -> 1.054460822 | I14: =(1+$I$4*Данные!I14) -> 1.25 | M14: =$M$4+(1-$M$4)*$M$5/Данные!F14 -> 0.8128888101 | N14: =AF14*Данные!$F$11/(SUMPRODUCT($AF$12:$AF$21,Данные!$F$12:$F$21)) -> 0.9710342535 | O14: =(1+$O$4*Данные!J14/Данные!$F14)/(1+$O$4*Данные!J$11/Данные!$F$11) -> 0.9709956811 | Q14: =(1+$Q$4*Данные!H14)/(1+$Q$4*Данные!$H$11) -> 1 | R14: =(Данные!L14/Данные!F14)/(Данные!$L$11/Данные!$F$11) ->  | AF14: =MAX($N$4,2-Данные!X14/Данные!$X$11) -> 1.0135273 | AI14: 11004 | BO14: 11004
A15: =Данные!A15 -> 4 | B15: =Данные!D15 -> Красноульское с/п | D15: 0.9982271038 | E15: =I15*Данные!$F$11/SUMPRODUCT($I$12:$I$21,Данные!$F$12:$F$21) -> 1 | F15: 1 | G15: =SUMPRODUCT(Данные!$AO$6:$AT$6,Данные!AO15:AT15/Данные!$AO$11:$AT$11) -> 0.9822710383 | I15: =(1+$I$4*Данные!I15) -> 1.25 | M15: =$M$4+(1-$M$4)*$M$5/Данные!F15 -> 1.902039046 | N15: =AF15*Данные!$F$11/(SUMPRODUCT($AF$12:$AF$21,Данные!$F$12:$F$21)) -> 0.8622666882 | O15: =(1+$O$4*Данные!J15/Данные!$F15)/(1+$O$4*Данные!J$11/Данные!$F$11) -> 1.792324685 | Q15: =(1+$Q$4*Данные!H15)/(1+$Q$4*Данные!$H$11) -> 1 | R15: =(Данные!L15/Данные!F15)/(Данные!$L$11/Данные!$F$11) ->  | AF15: =MAX($N$4,2-Данные!X15/Данные!$X$11) -> 0.9 | AI15: 1832 | BO15: 1832
A16: =Данные!A16 -> 5 | B16: =Данные!D16 -> Кужорское с/п | D16: 0.9954424074 | E16: =I16*Данные!$F$11/SUMPRODUCT($I$12:$I$21,Данные!$F$12:$F$21) -> 1 | F16: 1 | G16: =SUMPRODUCT(Данные!$AO$6:$AT$6,Данные!AO16:AT16/Данные!$AO$11:$AT$11) -> 0.9544240741 | I16: =(1+$I$4*Данные!I16) -> 1.25 | M16: =$M$4+(1-$M$4)*$M$5/Данные!F16 -> 1.176876502 | N16: =AF16*Данные!$F$11/(SUMPRODUCT($AF$12:$AF$21,Данные!$F$12:$F$21)) -> 1.259628878 | O16: =(1+$O$4*Данные!J16/Данные!$F16)/(1+$O$4*Данные!J$11/Данные!$F$11) -> 0.9040563201 | Q16: =(1+$Q$4*Данные!H16)/(1+$Q$4*Данные!$H$11) -> 1 | R16: =(Данные!L16/Данные!F16)/(Данные!$L$11/Данные!$F$11) ->  | AF16: =MAX($N$4,2-Данные!X16/Данные!$X$11) -> 1.314750999 | AI16: 4161 | BO16: 4161
A17: =Данные!A17 -> 6 | B17: =Данные!D17 -> Побединское с/п | D17: 1.005446082 | E17: =I17*Данные!$F$11/SUMPRODUCT($I$12:$I$21,Данные!$F$12:$F$21) -> 1 | F17: 1 | G17: =SUMPRODUCT(Данные!$AO$6:$AT$6,Данные!AO17:AT17/Данные!$AO$11:$AT$11) -> 1.054460822 | I17: =(1+$I$4*Данные!I17) -> 1.25 | M17: =$M$4+(1-$M$4)*$M$5/Данные!F17 -> 1.056369511 | N17: =AF17*Данные!$F$11/(SUMPRODUCT($AF$12:$AF$21,Данные!$F$12:$F$21)) -> 0.8622666882 | O17: =(1+$O$4*Данные!J17/Данные!$F17)/(1+$O$4*Данные!J$11/Данные!$F$11) -> 1.034779809 | Q17: =(1+$Q$4*Данные!H17)/(1+$Q$4*Данные!$H$11) -> 1 | R17: =(Данные!L17/Данные!F17)/(Данные!$L$11/Данные!$F$11) ->  | AF17: =MAX($N$4,2-Данные!X17/Данные!$X$11) -> 0.9 | AI17: 5157 | BO17: 5157
A18: =Данные!A18 -> 7 | B18: =Данные!D18 -> Тимирязевское с/п | D18: 1.005446082 | E18: =I18*Данные!$F$11/SUMPRODUCT($I$12:$I$21,Данные!$F$12:$F$21) -> 1 | F18: 1 | G18: =SUMPRODUCT(Данные!$AO$6:$AT$6,Данные!AO18:AT18/Данные!$AO$11:$AT$11) -> 1.054460822 | I18: =(1+$I$4*Данные!I18) -> 1.25 | M18: =$M$4+(1-$M$4)*$M$5/Данные!F18 -> 1.223302181 | N18: =AF18*Данные!$F$11/(SUMPRODUCT($AF$12:$AF$21,Данные!$F$12:$F$21)) -> 0.8622666882 | O18: =(1+$O$4*Данные!J18/Данные!$F18)/(1+$O$4*Данные!J$11/Данные!$F$11) -> 0.9845151354 | Q18: =(1+$Q$4*Данные!H18)/(1+$Q$4*Данные!$H$11) -> 1 | R18: =(Данные!L18/Данные!F18)/(Данные!$L$11/Данные!$F$11) ->  | AF18: =MAX($N$4,2-Данные!X18/Данные!$X$11) -> 0.9 | AI18: 3831 | BO18: 3831
A19: =Данные!A19 -> 8 | B19: =Данные!D19 -> Тульское г/п | D19: 1.005446082 | E19: =I19*Данные!$F$11/SUMPRODUCT($I$12:$I$21,Данные!$F$12:$F$21) -> 1 | F19: 1 | G19: =SUMPRODUCT(Данные!$AO$6:$AT$6,Данные!AO19:AT19/Данные!$AO$11:$AT$11) -> 1.054460822 | I19: =(1+$I$4*Данные!I19) -> 1.25 | M19: =$M$4+(1-$M$4)*$M$5/Данные!F19 -> 0.820777931 | N19: =AF19*Данные!$F$11/(SUMPRODUCT($AF$12:$AF$21,Данные!$F$12:$F$21)) -> 0.8622666882 | O19: =(1+$O$4*Данные!J19/Данные!$F19)/(1+$O$4*Данные!J$11/Данные!$F$11) -> 0.8995011645 | Q19: =(1+$Q$4*Данные!H19)/(1+$Q$4*Данные!$H$11) -> 1 | R19: =(Данные!L19/Данные!F19)/(Данные!$L$11/Данные!$F$11) ->  | AF19: =MAX($N$4,2-Данные!X19/Данные!$X$11) -> 0.9 | AI19: 11023 | BO19: 11023
A20: =Данные!A20 -> 9 | B20: =Данные!D20 -> Каменномостское г/п | D20: 1.005446082 | E20: =I20*Данные!$F$11/SUMPRODUCT($I$12:$I$21,Данные!$F$12:$F$21) -> 1 | F20: 1 | G20: =SUMPRODUCT(Данные!$AO$6:$AT$6,Данные!AO20:AT20/Данные!$AO$11:$AT$11) -> 1.054460822 | I20: =(1+$I$4*Данные!I20) -> 1.25 | M20: =$M$4+(1-$M$4)*$M$5/Данные!F20 -> 0.9263504146 | N20: =AF20*Данные!$F$11/(SUMPRODUCT($AF$12:$AF$21,Данные!$F$12:$F$21)) -> 0.8622666882 | O20: =(1+$O$4*Данные!J20/Данные!$F20)/(1+$O$4*Данные!J$11/Данные!$F$11) -> 0.9190077731 | Q20: =(1+$Q$4*Данные!H20)/(1+$Q$4*Данные!$H$11) -> 1 | R20: =(Данные!L20/Данные!F20)/(Данные!$L$11/Данные!$F$11) ->  | AF20: =MAX($N$4,2-Данные!X20/Данные!$X$11) -> 0.9 | AI20: 7319 | BO20: 7319
A21: =Данные!A21 -> 10 | B21: =Данные!D21 -> Кировское с/п | D21: 0.9930333592 | E21: =I21*Данные!$F$11/SUMPRODUCT($I$12:$I$21,Данные!$F$12:$F$21) -> 1 | F21: 1 | G21: =SUMPRODUCT(Данные!$AO$6:$AT$6,Данные!AO21:AT21/Данные!$AO$11:$AT$11) -> 0.9303335919 | I21: =(1+$I$4*Данные!I21) -> 1.25 | M21: =$M$4+(1-$M$4)*$M$5/Данные!F21 -> 0.9929558101 | N21: =AF21*Данные!$F$11/(SUMPRODUCT($AF$12:$AF$21,Данные!$F$12:$F$21)) -> 0.8622666882 | O21: =(1+$O$4*Данные!J21/Данные!$F21)/(1+$O$4*Данные!J$11/Данные!$F$11) -> 1.105245237 | Q21: =(1+$Q$4*Данные!H21)/(1+$Q$4*Данные!$H$11) -> 1 | R21: =(Данные!L21/Данные!F21)/(Данные!$L$11/Данные!$F$11) ->  | AF21: =MAX($N$4,2-Данные!X21/Данные!$X$11) -> 0.9 | AI21: 6058 | BO21: 6058

Sheet ИБР+1
A1: Расчет индекса бюджетных расходов
B2: ='Настройка ИБР+1'!AH2 -> № | C2: ='Настройка ИБР+1'!AI2 -> 1 | D2: ='Настройка ИБР+1'!AJ2 -> 2 | E2: ='Настройка ИБР+1'!AK2 -> 3 | F2: ='Настройка ИБР+1'!AL2 -> 4 | G2: ='Настройка ИБР+1'!AM2 -> 5 | H2: ='Настройка ИБР+1'!AN2 -> 6 | I2: ='Настройка ИБР+1'!AO2 -> 7 | J2: ='Настройка ИБР+1'!AP2 -> 8 | K2: ='Настройка ИБР+1'!AQ2 -> 9 | L2: ='Настройка ИБР+1'!AR2 -> 10 | M2: ='Настройка ИБР+1'!AS2 -> 11 | N2: ='Настройка ИБР+1'!AT2 -> 12 | O2: ='Настройка ИБР+1'!AU2 -> 13 | P2: ='Настройка ИБР+1'!AV2 -> 14 | Q2: ='Настройка ИБР+1'!AW2 -> 15 | R2: ='Настройка ИБР+1'!AX2 -> 16 | S2: ='Настройка ИБР+1'!AY2 -> 17 | T2: ='Настройка ИБР+1'!AZ2 -> 18 | U2: ='Настройка ИБР+1'!BA2 -> 19 | V2: ='Настройка ИБР+1'!BB2 -> 20 | W2: ='Настройка ИБР+1'!BC2 -> 21 | X2: ='Настройка ИБР+1'!BD2 -> 22 | Y2: ='Настройка ИБР+1'!BE2 -> 23 | Z2: ='Настройка ИБР+1'!BF2 -> 24 | AA2: ='Настройка ИБР+1'!BG2 -> 25 | AB2: ='Настройка ИБР+1'!BH2 -> 26 | AC2: ='Настройка ИБР+1'!BI2 -> 27 | AD2: ='Настройка ИБР+1'!BJ2 -> 28 | AE2: ='Настройка ИБР+1'!BK2 -> 29 | AF2: ='Настройка ИБР+1'!BL2 -> 30 | AG2: ='Настройка ИБР+1'!BM2 -> 31 | AH2: ='Настройка ИБР+1'!BN2 -> 32 | AI2: ='Настройка ИБР+1'!BO2 -> 33 | AR2: 1
B3: Вопросы местного значения поселений | C3: ='Настройка ИБР+1'!AI3 -> ИТОГО | D3: ='Настройка ИБР+1'!AJ3 -> Формирование, утверждение, исполнение бюджета поселения и контроль за исполнением бюджета; муниципальное управление; распоряжение имуществом | E3: ='Настройка ИБР+1'!AK3 -> Организация в границах поселения электро-, тепло-, газо- и водоснабжения населения, водоотведения, снабжения населения топливом; регулирование тарифов на ЖКУ | F3: ='Настройка ИБР+1'!AL3 -> Дорожная деятельность в отношении автомобильных дорог местного значения в границах населенных пунктов поселения, а также осуществление иных полномочий в области использования автомобильных дорог и осуществления дорожной деятельности в соответствии с законодательством Российской Федерации | G3: ='Настройка ИБР+1'!AM3 -> Обеспечение малоимущих граждан, проживающих в поселении и нуждающихся в улучшении жилищных условий, жилыми помещениями в соответствии с жилищным законодательством, организация строительства и содержания муниципального жилищного фонда, создание условий для жилищного строительства | H3: ='Настройка ИБР+1'!AN3 -> Создание условий для предоставления транспортных услуг населению и организация транспортного обслуживания населения в границах поселения | I3: ='Настройка ИБР+1'!AO3 -> Участие в профилактике терроризма и экстремизма, а также в минимизации и (или) ликвидации последствий проявлений терроризма и экстремизма в границах поселения | J3: ='Настройка ИБР+1'!AP3 -> Участие в предупреждении и ликвидации последствий чрезвычайных ситуаций в границах поселения | K3: ='Настройка ИБР+1'!AQ3 -> Обеспечение первичных мер пожарной безопасности в границах населенных пунктов поселения | L3: ='Настройка ИБР+1'!AR3 -> Создание условий для обеспечения жителей поселения услугами связи, общественного питания, торговли и бытового обслуживания | M3: ='Настройка ИБР+1'!AS3 -> Организация библиотечного обслуживания населения, комплектование библиотечных фондов библиотек поселения | N3: ='Настройка ИБР+1'!AT3 -> Создание условий для организации досуга и обеспечения жителей поселения услугами организаций культуры | O3: ='Настройка ИБР+1'!AU3 -> Сохранение, использование и популяризация объектов культурного наследия (памятников истории и культуры), находящихся в собственности поселения, охрана объектов культурного наследия (памятников истории и культуры) местного (муниципального) значения, расположенных на территории поселения | P3: ='Настройка ИБР+1'!AV3 -> Создание условий для развития местного традиционного народного художественного творчества, участие в сохранении, возрождении и развитии народных художественных промыслов в поселении | Q3: ='Настройка ИБР+1'!AW3 -> Обеспечение условий для развития на территории поселения физической культуры и массового спорта, организация проведения официальных физкультурно-оздоровительных и спортивных мероприятий поселения | R3: ='Настройка ИБР+1'!AX3 -> Создание условий для массового отдыха жителей поселения и организация обустройства мест массового отдыха населения | S3: ='Настройка ИБР+1'!AY3 -> Выдача разрешений на установку рекламных конструкций на территории муниципального района, аннулирование таких разрешений, выдача предписаний о демонтаже самовольно установленных вновь рекламных конструкций на территории муниципального района, осуществляемые в соответствии с Федеральным законом от 13 марта 2006 года N 38-ФЗ "О рекламе" | T3: ='Настройка ИБР+1'!AZ3 -> Формирование архивных фондов поселения | U3: ='Настройка ИБР+1'!BA3 -> Организация сбора и вывоза бытовых отходов и мусора | V3: ='Настройка ИБР+1'!BB3 -> Организация благоустройства и озеленения территории поселения, использования и охраны городских лесов, расположенных в границах населенных пунктов поселения | W3: ='Настройка ИБР+1'!BC3 -> Утверждение генеральных планов поселения, правил землепользования и застройки, утверждение подготовленной на основе генеральных планов поселения документации по планировке территории, выдача разрешений на строительство, разрешений на ввод объектов в эксплуатацию, утверждение местных нормативов градостроительного проектирования поселений, резервирование и изъятие, в том числе путем выкупа, земельных участков в границах поселения для муниципальных нужд, осуществление земельного контроля за использованием земель поселения | X3: ='Настройка ИБР+1'!BD3 -> Организация освещения улиц и установки указателей с названиями улиц и номерами домов | Y3: ='Настройка ИБР+1'!BE3 -> Организация ритуальных услуг и содержание мест захоронения | Z3: ='Настройка ИБР+1'!BF3 -> Организация и осуществление мероприятий по гражданской обороне, защите населения и территории поселения от ЧС природного и техногенного характера | AA3: ='Настройка ИБР+1'!BG3 -> Создание, содержание и организация деятельности аварийно-спасательных служб и (или) аварийно-спасательных формирований на территории поселения | AB3: ='Настройка ИБР+1'!BH3 -> Организация и осуществление мероприятий по мобилизационной подготовке муниципальных предприятий и учреждений, находящихся на территории поселения | AC3: ='Настройка ИБР+1'!BI3 -> Осуществление мероприятий по обеспечению безопасности людей на водных объектах, охране их жизни и здоровья | AD3: ='Настройка ИБР+1'!BJ3 -> Создание, развитие и обеспечение охраны лечебно-оздоровительных местностей и курортов местного значения на территории поселения | AE3: ='Настройка ИБР+1'!BK3 -> Расчет субсидий на оплату жилого помещения и коммунальных услуг и организация предоставления субсидий гражданам, имеющим право на их получение в соответствии с жилищным законодательством | AF3: ='Настройка ИБР+1'!BL3 -> Организация и осуществление мероприятий по работе с детьми и молодежью в поселении | AG3: ='Настройка ИБР+1'!BM3 -> Осуществление в пределах, установленных водным законодательством Российской Федерации, полномочий собственника водных объектов, информирование населения об ограничениях их использования | AH3: ='Настройка ИБР+1'!BN3 -> Создание музеев | AI3: ='Настройка ИБР+1'!BO3 -> Прочие вопросы | AK3: Информация для диаграмм | AL3: Расчетный ИБР | AM3: ИБР для сравнения по фактическим расходам
B8: =Параметры!$D$3 -> 2016 | AK8: 1 | AL8: =CHOOSE($AK$8,$B$8,#REF!,#REF!) -> 2016
B11: Итого | C11: =SUMPRODUCT(C12:C21,Данные!$F$12:$F$21) -> 60024 | D11: =SUMPRODUCT(D12:D21,Данные!$F$12:$F$21) -> 60072.51281 | E11: =SUMPRODUCT(E12:E21,Данные!$F$12:$F$21) -> 60104.85468 | F11: =SUMPRODUCT(F12:F21,Данные!$F$12:$F$21) -> 0 | G11: =SUMPRODUCT(G12:G21,Данные!$F$12:$F$21) -> 0 | H11: =SUMPRODUCT(H12:H21,Данные!$F$12:$F$21) -> 0 | I11: =SUMPRODUCT(I12:I21,Данные!$F$12:$F$21) -> 60104.85468 | J11: =SUMPRODUCT(J12:J21,Данные!$F$12:$F$21) -> 60104.85468 | K11: =SUMPRODUCT(K12:K21,Данные!$F$12:$F$21) -> 60104.85468 | L11: =SUMPRODUCT(L12:L21,Данные!$F$12:$F$21) -> 0 | M11: =SUMPRODUCT(M12:M21,Данные!$F$12:$F$21) -> 0 | N11: =SUMPRODUCT(N12:N21,Данные!$F$12:$F$21) -> 60072.51281 | O11: =SUMPRODUCT(O12:O21,Данные!$F$12:$F$21) -> 0 | P11: =SUMPRODUCT(P12:P21,Данные!$F$12:$F$21) -> 0 | Q11: =SUMPRODUCT(Q12:Q21,Данные!$F$12:$F$21) -> 60104.85468 | R11: =SUMPRODUCT(R12:R21,Данные!$F$12:$F$21) -> 60104.85468 | S11: =SUMPRODUCT(S12:S21,Данные!$F$12:$F$21) -> 0 | T11: =SUMPRODUCT(T12:T21,Данные!$F$12:$F$21) -> 0 | U11: =SUMPRODUCT(U12:U21,Данные!$F$12:$F$21) -> 60104.85468 | V11: =SUMPRODUCT(V12:V21,Данные!$F$12:$F$21) -> 60087.9891 | W11: =SUMPRODUCT(W12:W21,Данные!$F$12:$F$21) -> 0 | X11: =SUMPRODUCT(X12:X21,Данные!$F$12:$F$21) -> 60104.85468 | Y11: =SUMPRODUCT(Y12:Y21,Данные!$F$12:$F$21) -> 60104.85468 | Z11: =SUMPRODUCT(Z12:Z21,Данные!$F$12:$F$21) -> 0 | AA11: =SUMPRODUCT(AA12:AA21,Данные!$F$12:$F$21) -> 0 | AB11: =SUMPRODUCT(AB12:AB21,Данные!$F$12:$F$21) -> 0 | AC11: =SUMPRODUCT(AC12:AC21,Данные!$F$12:$F$21) -> 0 | AD11: =SUMPRODUCT(AD12:AD21,Данные!$F$12:$F$21) -> 0 | AE11: =SUMPRODUCT(AE12:AE21,Данные!$F$12:$F$21) -> 0 | AF11: =SUMPRODUCT(AF12:AF21,Данные!$F$12:$F$21) -> 60104.85468 | AG11: =SUMPRODUCT(AG12:AG21,Данные!$F$12:$F$21) -> 0 | AH11: =SUMPRODUCT(AH12:AH21,Данные!$F$12:$F$21) -> 0 | AI11: =SUMPRODUCT(AI12:AI21,Данные!$F$12:$F$21) -> 60104.85468 | AK11: 1 | AL11: =VLOOKUP($AK$11,Вспомогательный!$P$6:$Q$38,COLUMN(Вспомогательный!$Q:$Q)-COLUMN(Вспомогательный!$P:$P)+1,FALSE) -> 1 ИТОГО
A12: =Данные!A12 -> 1 | B12: =Данные!D12 -> Абадзехское с/п | C12: =SUMPRODUCT('Настройка ИБР+1'!$AJ$4:$BO$4,D12:AI12)*Данные!$F$11/SUMPRODUCT($D$11:$AI$11,'Настройка ИБР+1'!$AJ$4:$BO$4) -> 0.9713045611 | D12: =IF(ROUNDUP('Настройка ИБР+1'!AJ$4,0)=0,0,IF('Настройка ИБР+1'!AJ$6='Настройка ИБР+1'!$AG$3,1,HLOOKUP('Настройка ИБР+1'!AJ$6,'Настройка ИБР+1'!$M$3:$AF$21,ROW('Настройка ИБР+1'!12:12)-ROW('Настройка ИБР+1'!$3:$3)+1,FALSE))*IF('Настройка ИБР+1'!AJ$7='Настройка ИБР+1'!$AG$3,1,HLOOKUP('Настройка ИБР+1'!AJ$7,'Настройка ИБР+1'!$M$3:$AF$21,ROW('Настройка ИБР+1'!12:12)-ROW('Настройка ИБР+1'!$3:$3)+1,FALSE))*IF('Настройка ИБР+1'!AJ$8='Настройка ИБР+1'!$AG$3,1,HLOOKUP('Настройка ИБР+1'!AJ$8,'Настройка ИБР+1'!$M$3:$AF$21,ROW('Настройка ИБР+1'!12:12)-ROW('Настройка ИБР+1'!$3:$3)+1,FALSE))*'Настройка ИБР+1'!$D12) -> 0.9632469494 | E12: =IF(ROUNDUP('Настройка ИБР+1'!AK$4,0)=0,0,IF('Настройка ИБР+1'!AK$6='Настройка ИБР+1'!$AG$3,1,HLOOKUP('Настройка ИБР+1'!AK$6,'Настройка ИБР+1'!$M$3:$AF$21,ROW('Настройка ИБР+1'!12:12)-ROW('Настройка ИБР+1'!$3:$3)+1,FALSE))*IF('Настройка ИБР+1'!AK$7='Настройка ИБР+1'!$AG$3,1,HLOOKUP('Настройка ИБР+1'!AK$7,'Настройка ИБР+1'!$M$3:$AF$21,ROW('Настройка ИБР+1'!12:12)-ROW('Настройка ИБР+1'!$3:$3)+1,FALSE))*IF('Настройка ИБР+1'!AK$8='Настройка ИБР+1'!$AG$3,1,HLOOKUP('Настройка ИБР+1'!AK$8,'Настройка ИБР+1'!$M$3:$AF$21,ROW('Настройка ИБР+1'!12:12)-ROW('Настройка ИБР+1'!$3:$3)+1,FALSE))*'Настройка ИБР+1'!$D12) -> 0.9930333592 | F12: =IF(ROUNDUP('Настройка ИБР+1'!AL$4,0)=0,0,IF('Настройка ИБР+1'!AL$6='Настройка ИБР+1'!$AG$3,1,HLOOKUP('Настройка ИБР+1'!AL$6,'Настройка ИБР+1'!$M$3:$AF$21,ROW('Настройка ИБР+1'!12:12)-ROW('Настройка ИБР+1'!$3:$3)+1,FALSE))*IF('Настройка ИБР+1'!AL$7='Настройка ИБР+1'!$AG$3,1,HLOOKUP('Настройка ИБР+1'!AL$7,'Настройка ИБР+1'!$M$3:$AF$21,ROW('Настройка ИБР+1'!12:12)-ROW('Настройка ИБР+1'!$3:$3)+1,FALSE))*IF('Настройка ИБР+1'!AL$8='Настройка ИБР+1'!$AG$3,1,HLOOKUP('Настройка ИБР+1'!AL$8,'Настройка ИБР+1'!$M$3:$AF$21,ROW('Настройка ИБР+1'!12:12)-ROW('Настройка ИБР+1'!$3:$3)+1,FALSE))*'Настройка ИБР+1'!$D12) -> 0 | G12: =IF(ROUNDUP('Настройка ИБР+1'!AM$4,0)=0,0,IF('Настройка ИБР+1'!AM$6='Настройка ИБР+1'!$AG$3,1,HLOOKUP('Настройка ИБР+1'!AM$6,'Настройка ИБР+1'!$M$3:$AF$21,ROW('Настройка ИБР+1'!12:12)-ROW('Настройка ИБР+1'!$3:$3)+1,FALSE))*IF('Настройка ИБР+1'!AM$7='Настройка ИБР+1'!$AG$3,1,HLOOKUP('Настройка ИБР+1'!AM$7,'Настройка ИБР+1'!$M$3:$AF$21,ROW('Настройка ИБР+1'!12:12)-ROW('Настройка ИБР+1'!$3:$3)+1,FALSE))*IF('Настройка ИБР+1'!AM$8='Настройка ИБР+1'!$AG$3,1,HLOOKUP('Настройка ИБР+1'!AM$8,'Настройка ИБР+1'!$M$3:$AF$21,ROW('Настройка ИБР+1'!12:12)-ROW('Настройка ИБР+1'!$3:$3)+1,FALSE))*'Настройка ИБР+1'!$D12) -> 0 | H12: =IF(ROUNDUP('Настройка ИБР+1'!AN$4,0)=0,0,IF('Настройка ИБР+1'!AN$6='Настройка ИБР+1'!$AG$3,1,HLOOKUP('Настройка ИБР+1'!AN$6,'Настройка ИБР+1'!$M$3:$AF$21,ROW('Настройка ИБР+1'!12:12)-ROW('Настройка ИБР+1'!$3:$3)+1,FALSE))*IF('Настройка ИБР+1'!AN$7='Настройка ИБР+1'!$AG$3,1,HLOOKUP('Настройка ИБР+1'!AN$7,'Настройка ИБР+1'!$M$3:$AF$21,ROW('Настройка ИБР+1'!12:12)-ROW('Настройка ИБР+1'!$3:$3)+1,FALSE))*IF('Настройка ИБР+1'!AN$8='Настройка ИБР+1'!$AG$3,1,HLOOKUP('Настройка ИБР+1'!AN$8,'Настройка ИБР+1'!$M$3:$AF$21,ROW('Настройка ИБР+1'!12:12)-ROW('Настройка ИБР+1'!$3:$3)+1,FALSE))*'Настройка ИБР+1'!$D12) -> 0 | I12: =IF(ROUNDUP('Настройка ИБР+1'!AO$4,0)=0,0,IF('Настройка ИБР+1'!AO$6='Настройка ИБР+1'!$AG$3,1,HLOOKUP('Настройка ИБР+1'!AO$6,'Настройка ИБР+1'!$M$3:$AF$21,ROW('Настройка ИБР+1'!12:12)-ROW('Настройка ИБР+1'!$3:$3)+1,FALSE))*IF('Настройка ИБР+1'!AO$7='Настройка ИБР+1'!$AG$3,1,HLOOKUP('Настройка ИБР+1'!AO$7,'Настройка ИБР+1'!$M$3:$AF$21,ROW('Настройка ИБР+1'!12:12)-ROW('Настройка ИБР+1'!$3:$3)+1,FALSE))*IF('Настройка ИБР+1'!AO$8='Настройка ИБР+1'!$AG$3,1,HLOOKUP('Настройка ИБР+1'!AO$8,'Настройка ИБР+1'!$M$3:$AF$21,ROW('Настройка ИБР+1'!12:12)-ROW('Настройка ИБР+1'!$3:$3)+1,FALSE))*'Настройка ИБР+1'!$D12) -> 0.9930333592 | J12: =IF(ROUNDUP('Настройка ИБР+1'!AP$4,0)=0,0,IF('Настройка ИБР+1'!AP$6='Настройка ИБР+1'!$AG$3,1,HLOOKUP('Настройка ИБР+1'!AP$6,'Настройка ИБР+1'!$M$3:$AF$21,ROW('Настройка ИБР+1'!12:12)-ROW('Настройка ИБР+1'!$3:$3)+1,FALSE))*IF('Настройка ИБР+1'!AP$7='Настройка ИБР+1'!$AG$3,1,HLOOKUP('Настройка ИБР+1'!AP$7,'Настройка ИБР+1'!$M$3:$AF$21,ROW('Настройка ИБР+1'!12:12)-ROW('Настройка ИБР+1'!$3:$3)+1,FALSE))*IF('Настройка ИБР+1'!AP$8='Настройка ИБР+1'!$AG$3,1,HLOOKUP('Настройка ИБР+1'!AP$8,'Настройка ИБР+1'!$M$3:$AF$21,ROW('Настройка ИБР+1'!12:12)-ROW('Настройка ИБР+1'!$3:$3)+1,FALSE))*'Настройка ИБР+1'!$D12) -> 0.9930333592 | K12: =IF(ROUNDUP('Настройка ИБР+1'!AQ$4,0)=0,0,IF('Настройка ИБР+1'!AQ$6='Настройка ИБР+1'!$AG$3,1,HLOOKUP('Настройка ИБР+1'!AQ$6,'Настройка ИБР+1'!$M$3:$AF$21,ROW('Настройка ИБР+1'!12:12)-ROW('Настройка ИБР+1'!$3:$3)+1,FALSE))*IF('Настройка ИБР+1'!AQ$7='Настройка ИБР+1'!$AG$3,1,HLOOKUP('Настройка ИБР+1'!AQ$7,'Настройка ИБР+1'!$M$3:$AF$21,ROW('Настройка ИБР+1'!12:12)-ROW('Настройка ИБР+1'!$3:$3)+1,FALSE))*IF('Настройка ИБР+1'!AQ$8='Настройка ИБР+1'!$AG$3,1,HLOOKUP('Настройка ИБР+1'!AQ$8,'Настройка ИБР+1'!$M$3:$AF$21,ROW('Настройка ИБР+1'!12:12)-ROW('Настройка ИБР+1'!$3:$3)+1,FALSE))*'Настройка ИБР+1'!$D12) -> 0.9930333592 | L12: =IF(ROUNDUP('Настройка ИБР+1'!AR$4,0)=0,0,IF('Настройка ИБР+1'!AR$6='Настройка ИБР+1'!$AG$3,1,HLOOKUP('Настройка ИБР+1'!AR$6,'Настройка ИБР+1'!$M$3:$AF$21,ROW('Настройка ИБР+1'!12:12)-ROW('Настройка ИБР+1'!$3:$3)+1,FALSE))*IF('Настройка ИБР+1'!AR$7='Настройка ИБР+1'!$AG$3,1,HLOOKUP('Настройка ИБР+1'!AR$7,'Настройка ИБР+1'!$M$3:$AF$21,ROW('Настройка ИБР+1'!12:12)-ROW('Настройка ИБР+1'!$3:$3)+1,FALSE))*IF('Настройка ИБР+1'!AR$8='Настройка ИБР+1'!$AG$3,1,HLOOKUP('Настройка ИБР+1'!AR$8,'Настройка ИБР+1'!$M$3:$AF$21,ROW('Настройка ИБР+1'!12:12)-ROW('Настройка ИБР+1'!$3:$3)+1,FALSE))*'Настройка ИБР+1'!$D12) -> 0 | M12: =IF(ROUNDUP('Настройка ИБР+1'!AS$4,0)=0,0,IF('Настройка ИБР+1'!AS$6='Настройка ИБР+1'!$AG$3,1,HLOOKUP('Настройка ИБР+1'!AS$6,'Настройка ИБР+1'!$M$3:$AF$21,ROW('Настройка ИБР+1'!12:12)-ROW('Настройка ИБР+1'!$3:$3)+1,FALSE))*IF('Настройка ИБР+1'!AS$7='Настройка ИБР+1'!$AG$3,1,HLOOKUP('Настройка ИБР+1'!AS$7,'Настройка ИБР+1'!$M$3:$AF$21,ROW('Настройка ИБР+1'!12:12)-ROW('Настройка ИБР+1'!$3:$3)+1,FALSE))*IF('Настройка ИБР+1'!AS$8='Настройка ИБР+1'!$AG$3,1,HLOOKUP('Настройка ИБР+1'!AS$8,'Настройка ИБР+1'!$M$3:$AF$21,ROW('Настройка ИБР+1'!12:12)-ROW('Настройка ИБР+1'!$3:$3)+1,FALSE))*'Настройка ИБР+1'!$D12) -> 0 | N12: =IF(ROUNDUP('Настройка ИБР+1'!AT$4,0)=0,0,IF('Настройка ИБР+1'!AT$6='Настройка ИБР+1'!$AG$3,1,HLOOKUP('Настройка ИБР+1'!AT$6,'Настройка ИБР+1'!$M$3:$AF$21,ROW('Настройка ИБР+1'!12:12)-ROW('Настройка ИБР+1'!$3:$3)+1,FALSE))*IF('Настройка ИБР+1'!AT$7='Настройка ИБР+1'!$AG$3,1,HLOOKUP('Настройка ИБР+1'!AT$7,'Настройка ИБР+1'!$M$3:$AF$21,ROW('Настройка ИБР+1'!12:12)-ROW('Настройка ИБР+1'!$3:$3)+1,FALSE))*IF('Настройка ИБР+1'!AT$8='Настройка ИБР+1'!$AG$3,1,HLOOKUP('Настройка ИБР+1'!AT$8,'Настройка ИБР+1'!$M$3:$AF$21,ROW('Настройка ИБР+1'!12:12)-ROW('Настройка ИБР+1'!$3:$3)+1,FALSE))*'Настройка ИБР+1'!$D12) -> 0.9632469494 | O12: =IF(ROUNDUP('Настройка ИБР+1'!AU$4,0)=0,0,IF('Настройка ИБР+1'!AU$6='Настройка ИБР+1'!$AG$3,1,HLOOKUP('Настройка ИБР+1'!AU$6,'Настройка ИБР+1'!$M$3:$AF$21,ROW('Настройка ИБР+1'!12:12)-ROW('Настройка ИБР+1'!$3:$3)+1,FALSE))*IF('Настройка ИБР+1'!AU$7='Настройка ИБР+1'!$AG$3,1,HLOOKUP('Настройка ИБР+1'!AU$7,'Настройка ИБР+1'!$M$3:$AF$21,ROW('Настройка ИБР+1'!12:12)-ROW('Настройка ИБР+1'!$3:$3)+1,FALSE))*IF('Настройка ИБР+1'!AU$8='Настройка ИБР+1'!$AG$3,1,HLOOKUP('Настройка ИБР+1'!AU$8,'Настройка ИБР+1'!$M$3:$AF$21,ROW('Настройка ИБР+1'!12:12)-ROW('Настройка ИБР+1'!$3:$3)+1,FALSE))*'Настройка ИБР+1'!$D12) -> 0 | P12: =IF(ROUNDUP('Настройка ИБР+1'!AV$4,0)=0,0,IF('Настройка ИБР+1'!AV$6='Настройка ИБР+1'!$AG$3,1,HLOOKUP('Настройка ИБР+1'!AV$6,'Настройка ИБР+1'!$M$3:$AF$21,ROW('Настройка ИБР+1'!12:12)-ROW('Настройка ИБР+1'!$3:$3)+1,FALSE))*IF('Настройка ИБР+1'!AV$7='Настройка ИБР+1'!$AG$3,1,HLOOKUP('Настройка ИБР+1'!AV$7,'Настройка ИБР+1'!$M$3:$AF$21,ROW('Настройка ИБР+1'!12:12)-ROW('Настройка ИБР+1'!$3:$3)+1,FALSE))*IF('Настройка ИБР+1'!AV$8='Настройка ИБР+1'!$AG$3,1,HLOOKUP('Настройка ИБР+1'!AV$8,'Настройка ИБР+1'!$M$3:$AF$21,ROW('Настройка ИБР+1'!12:12)-ROW('Настройка ИБР+1'!$3:$3)+1,FALSE))*'Настройка ИБР+1'!$D12) -> 0 | Q12: =IF(ROUNDUP('Настройка ИБР+1'!AW$4,0)=0,0,IF('Настройка ИБР+1'!AW$6='Настройка ИБР+1'!$AG$3,1,HLOOKUP('Настройка ИБР+1'!AW$6,'Настройка ИБР+1'!$M$3:$AF$21,ROW('Настройка ИБР+1'!12:12)-ROW('Настройка ИБР+1'!$3:$3)+1,FALSE))*IF('Настройка ИБР+1'!AW$7='Настройка ИБР+1'!$AG$3,1,HLOOKUP('Настройка ИБР+1'!AW$7,'Настройка ИБР+1'!$M$3:$AF$21,ROW('Настройка ИБР+1'!12:12)-ROW('Настройка ИБР+1'!$3:$3)+1,FALSE))*IF('Настройка ИБР+1'!AW$8='Настройка ИБР+1'!$AG$3,1,HLOOKUP('Настройка ИБР+1'!AW$8,'Настройка ИБР+1'!$M$3:$AF$21,ROW('Настройка ИБР+1'!12:12)-ROW('Настройка ИБР+1'!$3:$3)+1,FALSE))*'Настройка ИБР+1'!$D12) -> 0.9930333592 | R12: =IF(ROUNDUP('Настройка ИБР+1'!AX$4,0)=0,0,IF('Настройка ИБР+1'!AX$6='Настройка ИБР+1'!$AG$3,1,HLOOKUP('Настройка ИБР+1'!AX$6,'Настройка ИБР+1'!$M$3:$AF$21,ROW('Настройка ИБР+1'!12:12)-ROW('Настройка ИБР+1'!$3:$3)+1,FALSE))*IF('Настройка ИБР+1'!AX$7='Настройка ИБР+1'!$AG$3,1,HLOOKUP('Настройка ИБР+1'!AX$7,'Настройка ИБР+1'!$M$3:$AF$21,ROW('Настройка ИБР+1'!12:12)-ROW('Настройка ИБР+1'!$3:$3)+1,FALSE))*IF('Настройка ИБР+1'!AX$8='Настройка ИБР+1'!$AG$3,1,HLOOKUP('Настройка ИБР+1'!AX$8,'Настройка ИБР+1'!$M$3:$AF$21,ROW('Настройка ИБР+1'!12:12)-ROW('Настройка ИБР+1'!$3:$3)+1,FALSE))*'Настройка ИБР+1'!$D12) -> 0.9930333592 | S12: =IF(ROUNDUP('Настройка ИБР+1'!AY$4,0)=0,0,IF('Настройка ИБР+1'!AY$6='Настройка ИБР+1'!$AG$3,1,HLOOKUP('Настройка ИБР+1'!AY$6,'Настройка ИБР+1'!$M$3:$AF$21,ROW('Настройка ИБР+1'!12:12)-ROW('Настройка ИБР+1'!$3:$3)+1,FALSE))*IF('Настройка ИБР+1'!AY$7='Настройка ИБР+1'!$AG$3,1,HLOOKUP('Настройка ИБР+1'!AY$7,'Настройка ИБР+1'!$M$3:$AF$21,ROW('Настройка ИБР+1'!12:12)-ROW('Настройка ИБР+1'!$3:$3)+1,FALSE))*IF('Настройка ИБР+1'!AY$8='Настройка ИБР+1'!$AG$3,1,HLOOKUP('Настройка ИБР+1'!AY$8,'Настройка ИБР+1'!$M$3:$AF$21,ROW('Настройка ИБР+1'!12:12)-ROW('Настройка ИБР+1'!$3:$3)+1,FALSE))*'Настройка ИБР+1'!$D12) -> 0 | T12: =IF(ROUNDUP('Настройка ИБР+1'!AZ$4,0)=0,0,IF('Настройка ИБР+1'!AZ$6='Настройка ИБР+1'!$AG$3,1,HLOOKUP('Настройка ИБР+1'!AZ$6,'Настройка ИБР+1'!$M$3:$AF$21,ROW('Настройка ИБР+1'!12:12)-ROW('Настройка ИБР+1'!$3:$3)+1,FALSE))*IF('Настройка ИБР+1'!AZ$7='Настройка ИБР+1'!$AG$3,1,HLOOKUP('Настройка ИБР+1'!AZ$7,'Настройка ИБР+1'!$M$3:$AF$21,ROW('Настройка ИБР+1'!12:12)-ROW('Настройка ИБР+1'!$3:$3)+1,FALSE))*IF('Настройка ИБР+1'!AZ$8='Настройка ИБР+1'!$AG$3,1,HLOOKUP('Настройка ИБР+1'!AZ$8,'Настройка ИБР+1'!$M$3:$AF$21,ROW('Настройка ИБР+1'!12:12)-ROW('Настройка ИБР+1'!$3:$3)+1,FALSE))*'Настройка ИБР+1'!$D12) -> 0 | U12: =IF(ROUNDUP('Настройка ИБР+1'!BA$4,0)=0,0,IF('Настройка ИБР+1'!BA$6='Настройка ИБР+1'!$AG$3,1,HLOOKUP('Настройка ИБР+1'!BA$6,'Настройка ИБР+1'!$M$3:$AF$21,ROW('Настройка ИБР+1'!12:12)-ROW('Настройка ИБР+1'!$3:$3)+1,FALSE))*IF('Настройка ИБР+1'!BA$7='Настройка ИБР+1'!$AG$3,1,HLOOKUP('Настройка ИБР+1'!BA$7,'Настройка ИБР+1'!$M$3:$AF$21,ROW('Настройка ИБР+1'!12:12)-ROW('Настройка ИБР+1'!$3:$3)+1,FALSE))*IF('Настройка ИБР+1'!BA$8='Настройка ИБР+1'!$AG$3,1,HLOOKUP('Настройка ИБР+1'!BA$8,'Настройка ИБР+1'!$M$3:$AF$21,ROW('Настройка ИБР+1'!12:12)-ROW('Настройка ИБР+1'!$3:$3)+1,FALSE))*'Настройка ИБР+1'!$D12) -> 0.9930333592 | V12: =IF(ROUNDUP('Настройка ИБР+1'!BB$4,0)=0,0,IF('Настройка ИБР+1'!BB$6='Настройка ИБР+1'!$AG$3,1,HLOOKUP('Настройка ИБР+1'!BB$6,'Настройка ИБР+1'!$M$3:$AF$21,ROW('Настройка ИБР+1'!12:12)-ROW('Настройка ИБР+1'!$3:$3)+1,FALSE))*IF('Настройка ИБР+1'!BB$7='Настройка ИБР+1'!$AG$3,1,HLOOKUP('Настройка ИБР+1'!BB$7,'Настройка ИБР+1'!$M$3:$AF$21,ROW('Настройка ИБР+1'!12:12)-ROW('Настройка ИБР+1'!$3:$3)+1,FALSE))*IF('Настройка ИБР+1'!BB$8='Настройка ИБР+1'!$AG$3,1,HLOOKUP('Настройка ИБР+1'!BB$8,'Настройка ИБР+1'!$M$3:$AF$21,ROW('Настройка ИБР+1'!12:12)-ROW('Настройка ИБР+1'!$3:$3)+1,FALSE))*'Настройка ИБР+1'!$D12) -> 0.9788181752 | W12: =IF(ROUNDUP('Настройка ИБР+1'!BC$4,0)=0,0,IF('Настройка ИБР+1'!BC$6='Настройка ИБР+1'!$AG$3,1,HLOOKUP('Настройка ИБР+1'!BC$6,'Настройка ИБР+1'!$M$3:$AF$21,ROW('Настройка ИБР+1'!12:12)-ROW('Настройка ИБР+1'!$3:$3)+1,FALSE))*IF('Настройка ИБР+1'!BC$7='Настройка ИБР+1'!$AG$3,1,HLOOKUP('Настройка ИБР+1'!BC$7,'Настройка ИБР+1'!$M$3:$AF$21,ROW('Настройка ИБР+1'!12:12)-ROW('Настройка ИБР+1'!$3:$3)+1,FALSE))*IF('Настройка ИБР+1'!BC$8='Настройка ИБР+1'!$AG$3,1,HLOOKUP('Настройка ИБР+1'!BC$8,'Настройка ИБР+1'!$M$3:$AF$21,ROW('Настройка ИБР+1'!12:12)-ROW('Настройка ИБР+1'!$3:$3)+1,FALSE))*'Настройка ИБР+1'!$D12) -> 0 | X12: =IF(ROUNDUP('Настройка ИБР+1'!BD$4,0)=0,0,IF('Настройка ИБР+1'!BD$6='Настройка ИБР+1'!$AG$3,1,HLOOKUP('Настройка ИБР+1'!BD$6,'Настройка ИБР+1'!$M$3:$AF$21,ROW('Настройка ИБР+1'!12:12)-ROW('Настройка ИБР+1'!$3:$3)+1,FALSE))*IF('Настройка ИБР+1'!BD$7='Настройка ИБР+1'!$AG$3,1,HLOOKUP('Настройка ИБР+1'!BD$7,'Настройка ИБР+1'!$M$3:$AF$21,ROW('Настройка ИБР+1'!12:12)-ROW('Настройка ИБР+1'!$3:$3)+1,FALSE))*IF('Настройка ИБР+1'!BD$8='Настройка ИБР+1'!$AG$3,1,HLOOKUP('Настройка ИБР+1'!BD$8,'Настройка ИБР+1'!$M$3:$AF$21,ROW('Настройка ИБР+1'!12:12)-ROW('Настройка ИБР+1'!$3:$3)+1,FALSE))*'Настройка ИБР+1'!$D12) -> 0.9930333592 | Y12: =IF(ROUNDUP('Настройка ИБР+1'!BE$4,0)=0,0,IF('Настройка ИБР+1'!BE$6='Настройка ИБР+1'!$AG$3,1,HLOOKUP('Настройка ИБР+1'!BE$6,'Настройка ИБР+1'!$M$3:$AF$21,ROW('Настройка ИБР+1'!12:12)-ROW('Настройка ИБР+1'!$3:$3)+1,FALSE))*IF('Настройка ИБР+1'!BE$7='Настройка ИБР+1'!$AG$3,1,HLOOKUP('Настройка ИБР+1'!BE$7,'Настройка ИБР+1'!$M$3:$AF$21,ROW('Настройка ИБР+1'!12:12)-ROW('Настройка ИБР+1'!$3:$3)+1,FALSE))*IF('Настройка ИБР+1'!BE$8='Настройка ИБР+1'!$AG$3,1,HLOOKUP('Настройка ИБР+1'!BE$8,'Настройка ИБР+1'!$M$3:$AF$21,ROW('Настройка ИБР+1'!12:12)-ROW('Настройка ИБР+1'!$3:$3)+1,FALSE))*'Настройка ИБР+1'!$D12) -> 0.9930333592 | Z12: =IF(ROUNDUP('Настройка ИБР+1'!BF$4,0)=0,0,IF('Настройка ИБР+1'!BF$6='Настройка ИБР+1'!$AG$3,1,HLOOKUP('Настройка ИБР+1'!BF$6,'Настройка ИБР+1'!$M$3:$AF$21,ROW('Настройка ИБР+1'!12:12)-ROW('Настройка ИБР+1'!$3:$3)+1,FALSE))*IF('Настройка ИБР+1'!BF$7='Настройка ИБР+1'!$AG$3,1,HLOOKUP('Настройка ИБР+1'!BF$7,'Настройка ИБР+1'!$M$3:$AF$21,ROW('Настройка ИБР+1'!12:12)-ROW('Настройка ИБР+1'!$3:$3)+1,FALSE))*IF('Настройка ИБР+1'!BF$8='Настройка ИБР+1'!$AG$3,1,HLOOKUP('Настройка ИБР+1'!BF$8,'Настройка ИБР+1'!$M$3:$AF$21,ROW('Настройка ИБР+1'!12:12)-ROW('Настройка ИБР+1'!$3:$3)+1,FALSE))*'Настройка ИБР+1'!$D12) -> 0 | AA12: =IF(ROUNDUP('Настройка ИБР+1'!BG$4,0)=0,0,IF('Настройка ИБР+1'!BG$6='Настройка ИБР+1'!$AG$3,1,HLOOKUP('Настройка ИБР+1'!BG$6,'Настройка ИБР+1'!$M$3:$AF$21,ROW('Настройка ИБР+1'!12:12)-ROW('Настройка ИБР+1'!$3:$3)+1,FALSE))*IF('Настройка ИБР+1'!BG$7='Настройка ИБР+1'!$AG$3,1,HLOOKUP('Настройка ИБР+1'!BG$7,'Настройка ИБР+1'!$M$3:$AF$21,ROW('Настройка ИБР+1'!12:12)-ROW('Настройка ИБР+1'!$3:$3)+1,FALSE))*IF('Настройка ИБР+1'!BG$8='Настройка ИБР+1'!$AG$3,1,HLOOKUP('Настройка ИБР+1'!BG$8,'Настройка ИБР+1'!$M$3:$AF$21,ROW('Настройка ИБР+1'!12:12)-ROW('Настройка ИБР+1'!$3:$3)+1,FALSE))*'Настройка ИБР+1'!$D12) -> 0 | AB12: =IF(ROUNDUP('Настройка ИБР+1'!BH$4,0)=0,0,IF('Настройка ИБР+1'!BH$6='Настройка ИБР+1'!$AG$3,1,HLOOKUP('Настройка ИБР+1'!BH$6,'Настройка ИБР+1'!$M$3:$AF$21,ROW('Настройка ИБР+1'!12:12)-ROW('Настройка ИБР+1'!$3:$3)+1,FALSE))*IF('Настройка ИБР+1'!BH$7='Настройка ИБР+1'!$AG$3,1,HLOOKUP('Настройка ИБР+1'!BH$7,'Настройка ИБР+1'!$M$3:$AF$21,ROW('Настройка ИБР+1'!12:12)-ROW('Настройка ИБР+1'!$3:$3)+1,FALSE))*IF('Настройка ИБР+1'!BH$8='Настройка ИБР+1'!$AG$3,1,HLOOKUP('Настройка ИБР+1'!BH$8,'Настройка ИБР+1'!$M$3:$AF$21,ROW('Настройка ИБР+1'!12:12)-ROW('Настройка ИБР+1'!$3:$3)+1,FALSE))*'Настройка ИБР+1'!$D12) -> 0 | AC12: =IF(ROUNDUP('Настройка ИБР+1'!BI$4,0)=0,0,IF('Настройка ИБР+1'!BI$6='Настройка ИБР+1'!$AG$3,1,HLOOKUP('Настройка ИБР+1'!BI$6,'Настройка ИБР+1'!$M$3:$AF$21,ROW('Настройка ИБР+1'!12:12)-ROW('Настройка ИБР+1'!$3:$3)+1,FALSE))*IF('Настройка ИБР+1'!BI$7='Настройка ИБР+1'!$AG$3,1,HLOOKUP('Настройка ИБР+1'!BI$7,'Настройка ИБР+1'!$M$3:$AF$21,ROW('Настройка ИБР+1'!12:12)-ROW('Настройка ИБР+1'!$3:$3)+1,FALSE))*IF('Настройка ИБР+1'!BI$8='Настройка ИБР+1'!$AG$3,1,HLOOKUP('Настройка ИБР+1'!BI$8,'Настройка ИБР+1'!$M$3:$AF$21,ROW('Настройка ИБР+1'!12:12)-ROW('Настройка ИБР+1'!$3:$3)+1,FALSE))*'Настройка ИБР+1'!$D12) -> 0 | AD12: =IF(ROUNDUP('Настройка ИБР+1'!BJ$4,0)=0,0,IF('Настройка ИБР+1'!BJ$6='Настройка ИБР+1'!$AG$3,1,HLOOKUP('Настройка ИБР+1'!BJ$6,'Настройка ИБР+1'!$M$3:$AF$21,ROW('Настройка ИБР+1'!12:12)-ROW('Настройка ИБР+1'!$3:$3)+1,FALSE))*IF('Настройка ИБР+1'!BJ$7='Настройка ИБР+1'!$AG$3,1,HLOOKUP('Настройка ИБР+1'!BJ$7,'Настройка ИБР+1'!$M$3:$AF$21,ROW('Настройка ИБР+1'!12:12)-ROW('Настройка ИБР+1'!$3:$3)+1,FALSE))*IF('Настройка ИБР+1'!BJ$8='Настройка ИБР+1'!$AG$3,1,HLOOKUP('Настройка ИБР+1'!BJ$8,'Настройка ИБР+1'!$M$3:$AF$21,ROW('Настройка ИБР+1'!12:12)-ROW('Настройка ИБР+1'!$3:$3)+1,FALSE))*'Настройка ИБР+1'!$D12) -> 0 | AE12: =IF(ROUNDUP('Настройка ИБР+1'!BK$4,0)=0,0,IF('Настройка ИБР+1'!BK$6='Настройка ИБР+1'!$AG$3,1,HLOOKUP('Настройка ИБР+1'!BK$6,'Настройка ИБР+1'!$M$3:$AF$21,ROW('Настройка ИБР+1'!12:12)-ROW('Настройка ИБР+1'!$3:$3)+1,FALSE))*IF('Настройка ИБР+1'!BK$7='Настройка ИБР+1'!$AG$3,1,HLOOKUP('Настройка ИБР+1'!BK$7,'Настройка ИБР+1'!$M$3:$AF$21,ROW('Настройка ИБР+1'!12:12)-ROW('Настройка ИБР+1'!$3:$3)+1,FALSE))*IF('Настройка ИБР+1'!BK$8='Настройка ИБР+1'!$AG$3,1,HLOOKUP('Настройка ИБР+1'!BK$8,'Настройка ИБР+1'!$M$3:$AF$21,ROW('Настройка ИБР+1'!12:12)-ROW('Настройка ИБР+1'!$3:$3)+1,FALSE))*'Настройка ИБР+1'!$D12) -> 0 | AF12: =IF(ROUNDUP('Настройка ИБР+1'!BL$4,0)=0,0,IF('Настройка ИБР+1'!BL$6='Настройка ИБР+1'!$AG$3,1,HLOOKUP('Настройка ИБР+1'!BL$6,'Настройка ИБР+1'!$M$3:$AF$21,ROW('Настройка ИБР+1'!12:12)-ROW('Настройка ИБР+1'!$3:$3)+1,FALSE))*IF('Настройка ИБР+1'!BL$7='Настройка ИБР+1'!$AG$3,1,HLOOKUP('Настройка ИБР+1'!BL$7,'Настройка ИБР+1'!$M$3:$AF$21,ROW('Настройка ИБР+1'!12:12)-ROW('Настройка ИБР+1'!$3:$3)+1,FALSE))*IF('Настройка ИБР+1'!BL$8='Настройка ИБР+1'!$AG$3,1,HLOOKUP('Настройка ИБР+1'!BL$8,'Настройка ИБР+1'!$M$3:$AF$21,ROW('Настройка ИБР+1'!12:12)-ROW('Настройка ИБР+1'!$3:$3)+1,FALSE))*'Настройка ИБР+1'!$D12) -> 0.9930333592 | AG12: =IF(ROUNDUP('Настройка ИБР+1'!BM$4,0)=0,0,IF('Настройка ИБР+1'!BM$6='Настройка ИБР+1'!$AG$3,1,HLOOKUP('Настройка ИБР+1'!BM$6,'Настройка ИБР+1'!$M$3:$AF$21,ROW('Настройка ИБР+1'!12:12)-ROW('Настройка ИБР+1'!$3:$3)+1,FALSE))*IF('Настройка ИБР+1'!BM$7='Настройка ИБР+1'!$AG$3,1,HLOOKUP('Настройка ИБР+1'!BM$7,'Настройка ИБР+1'!$M$3:$AF$21,ROW('Настройка ИБР+1'!12:12)-ROW('Настройка ИБР+1'!$3:$3)+1,FALSE))*IF('Настройка ИБР+1'!BM$8='Настройка ИБР+1'!$AG$3,1,HLOOKUP('Настройка ИБР+1'!BM$8,'Настройка ИБР+1'!$M$3:$AF$21,ROW('Настройка ИБР+1'!12:12)-ROW('Настройка ИБР+1'!$3:$3)+1,FALSE))*'Настройка ИБР+1'!$D12) -> 0 | AH12: =IF(ROUNDUP('Настройка ИБР+1'!BN$4,0)=0,0,IF('Настройка ИБР+1'!BN$6='Настройка ИБР+1'!$AG$3,1,HLOOKUP('Настройка ИБР+1'!BN$6,'Настройка ИБР+1'!$M$3:$AF$21,ROW('Настройка ИБР+1'!12:12)-ROW('Настройка ИБР+1'!$3:$3)+1,FALSE))*IF('Настройка ИБР+1'!BN$7='Настройка ИБР+1'!$AG$3,1,HLOOKUP('Настройка ИБР+1'!BN$7,'Настройка ИБР+1'!$M$3:$AF$21,ROW('Настройка ИБР+1'!12:12)-ROW('Настройка ИБР+1'!$3:$3)+1,FALSE))*IF('Настройка ИБР+1'!BN$8='Настройка ИБР+1'!$AG$3,1,HLOOKUP('Настройка ИБР+1'!BN$8,'Настройка ИБР+1'!$M$3:$AF$21,ROW('Настройка ИБР+1'!12:12)-ROW('Настройка ИБР+1'!$3:$3)+1,FALSE))*'Настройка ИБР+1'!$D12) -> 0 | AI12: =IF(ROUNDUP('Настройка ИБР+1'!BO$4,0)=0,0,IF('Настройка ИБР+1'!BO$6='Настройка ИБР+1'!$AG$3,1,HLOOKUP('Настройка ИБР+1'!BO$6,'Настройка ИБР+1'!$M$3:$AF$21,ROW('Настройка ИБР+1'!12:12)-ROW('Настройка ИБР+1'!$3:$3)+1,FALSE))*IF('Настройка ИБР+1'!BO$7='Настройка ИБР+1'!$AG$3,1,HLOOKUP('Настройка ИБР+1'!BO$7,'Настройка ИБР+1'!$M$3:$AF$21,ROW('Настройка ИБР+1'!12:12)-ROW('Настройка ИБР+1'!$3:$3)+1,FALSE))*IF('Настройка ИБР+1'!BO$8='Настройка ИБР+1'!$AG$3,1,HLOOKUP('Настройка ИБР+1'!BO$8,'Настройка ИБР+1'!$M$3:$AF$21,ROW('Настройка ИБР+1'!12:12)-ROW('Настройка ИБР+1'!$3:$3)+1,FALSE))*'Настройка ИБР+1'!$D12) -> 0.9930333592 | AL12: =CHOOSE($AK$11,HLOOKUP($AK$11,$C$2:$AI$21,ROW(12:12)-ROW($2:$2)+1,FALSE)*Данные!$F$11/HLOOKUP($AK$11,$C$2:$AI$21,ROW($11:$11)-ROW($2:$2)+1,FALSE),HLOOKUP($AK$11,#REF!,ROW(#REF!)-ROW(#REF!)+1,FALSE)*Данные!$F$11/HLOOKUP($AK$11,#REF!,ROW(#REF!)-ROW(#REF!)+1,FALSE),HLOOKUP($AK$11,#REF!,ROW(#REF!)-ROW(#REF!)+1,FALSE)*Данные!$F$11/HLOOKUP($AK$11,#REF!,ROW(#REF!)-ROW(#REF!)+1,FALSE)) -> 0.9713045611 | AM12: =CHOOSE($AK$11,HLOOKUP($AK$11,'Настройка ИБР+1'!$AI$2:$BO$21,ROW('Настройка ИБР+1'!12:12)-ROW('Настройка ИБР+1'!$2:$2)+1,FALSE)/Данные!$F12/(HLOOKUP($AK$11,'Настройка ИБР+1'!$AI$2:$BO$21,ROW(Данные!$11:$11)-ROW('Настройка ИБР+1'!$2:$2)+1,FALSE)/Данные!$F$11),HLOOKUP($AK$11,#REF!,ROW(#REF!)-ROW(#REF!)+1,FALSE)/Данные!$F12/(HLOOKUP($AK$11,#REF!,ROW(Данные!$11:$11)-ROW(#REF!)+1,FALSE)/Данные!$F$11),HLOOKUP($AK$11,#REF!,ROW(#REF!)-ROW(#REF!)+1,FALSE)/Данные!$F12/(HLOOKUP($AK$11,#REF!,ROW(Данные!$11:$11)-ROW(#REF!)+1,FALSE)/Данные!$F$11)) -> 1.010143116
A13: =Данные!A13 -> 2 | B13: =Данные!D13 -> Даховское с/п | C13: =SUMPRODUCT('Настройка ИБР+1'!$AJ$4:$BO$4,D13:AI13)*Данные!$F$11/SUMPRODUCT($D$11:$AI$11,'Настройка ИБР+1'!$AJ$4:$BO$4) -> 1.303771539 | D13: =IF(ROUNDUP('Настройка ИБР+1'!AJ$4,0)=0,0,IF('Настройка ИБР+1'!AJ$6='Настройка ИБР+1'!$AG$3,1,HLOOKUP('Настройка ИБР+1'!AJ$6,'Настройка ИБР+1'!$M$3:$AF$21,ROW('Настройка ИБР+1'!13:13)-ROW('Настройка ИБР+1'!$3:$3)+1,FALSE))*IF('Настройка ИБР+1'!AJ$7='Настройка ИБР+1'!$AG$3,1,HLOOKUP('Настройка ИБР+1'!AJ$7,'Настройка ИБР+1'!$M$3:$AF$21,ROW('Настройка ИБР+1'!13:13)-ROW('Настройка ИБР+1'!$3:$3)+1,FALSE))*IF('Настройка ИБР+1'!AJ$8='Настройка ИБР+1'!$AG$3,1,HLOOKUP('Настройка ИБР+1'!AJ$8,'Настройка ИБР+1'!$M$3:$AF$21,ROW('Настройка ИБР+1'!13:13)-ROW('Настройка ИБР+1'!$3:$3)+1,FALSE))*'Настройка ИБР+1'!$D13) -> 1.448550121 | E13: =IF(ROUNDUP('Настройка ИБР+1'!AK$4,0)=0,0,IF('Настройка ИБР+1'!AK$6='Настройка ИБР+1'!$AG$3,1,HLOOKUP('Настройка ИБР+1'!AK$6,'Настройка ИБР+1'!$M$3:$AF$21,ROW('Настройка ИБР+1'!13:13)-ROW('Настройка ИБР+1'!$3:$3)+1,FALSE))*IF('Настройка ИБР+1'!AK$7='Настройка ИБР+1'!$AG$3,1,HLOOKUP('Настройка ИБР+1'!AK$7,'Настройка ИБР+1'!$M$3:$AF$21,ROW('Настройка ИБР+1'!13:13)-ROW('Настройка ИБР+1'!$3:$3)+1,FALSE))*IF('Настройка ИБР+1'!AK$8='Настройка ИБР+1'!$AG$3,1,HLOOKUP('Настройка ИБР+1'!AK$8,'Настройка ИБР+1'!$M$3:$AF$21,ROW('Настройка ИБР+1'!13:13)-ROW('Настройка ИБР+1'!$3:$3)+1,FALSE))*'Настройка ИБР+1'!$D13) -> 0.9930333592 | F13: =IF(ROUNDUP('Настройка ИБР+1'!AL$4,0)=0,0,IF('Настройка ИБР+1'!AL$6='Настройка ИБР+1'!$AG$3,1,HLOOKUP('Настройка ИБР+1'!AL$6,'Настройка ИБР+1'!$M$3:$AF$21,ROW('Настройка ИБР+1'!13:13)-ROW('Настройка ИБР+1'!$3:$3)+1,FALSE))*IF('Настройка ИБР+1'!AL$7='Настройка ИБР+1'!$AG$3,1,HLOOKUP('Настройка ИБР+1'!AL$7,'Настройка ИБР+1'!$M$3:$AF$21,ROW('Настройка ИБР+1'!13:13)-ROW('Настройка ИБР+1'!$3:$3)+1,FALSE))*IF('Настройка ИБР+1'!AL$8='Настройка ИБР+1'!$AG$3,1,HLOOKUP('Настройка ИБР+1'!AL$8,'Настройка ИБР+1'!$M$3:$AF$21,ROW('Настройка ИБР+1'!13:13)-ROW('Настройка ИБР+1'!$3:$3)+1,FALSE))*'Настройка ИБР+1'!$D13) -> 0 | G13: =IF(ROUNDUP('Настройка ИБР+1'!AM$4,0)=0,0,IF('Настройка ИБР+1'!AM$6='Настройка ИБР+1'!$AG$3,1,HLOOKUP('Настройка ИБР+1'!AM$6,'Настройка ИБР+1'!$M$3:$AF$21,ROW('Настройка ИБР+1'!13:13)-ROW('Настройка ИБР+1'!$3:$3)+1,FALSE))*IF('Настройка ИБР+1'!AM$7='Настройка ИБР+1'!$AG$3,1,HLOOKUP('Настройка ИБР+1'!AM$7,'Настройка ИБР+1'!$M$3:$AF$21,ROW('Настройка ИБР+1'!13:13)-ROW('Настройка ИБР+1'!$3:$3)+1,FALSE))*IF('Настройка ИБР+1'!AM$8='Настройка ИБР+1'!$AG$3,1,HLOOKUP('Настройка ИБР+1'!AM$8,'Настройка ИБР+1'!$M$3:$AF$21,ROW('Настройка ИБР+1'!13:13)-ROW('Настройка ИБР+1'!$3:$3)+1,FALSE))*'Настройка ИБР+1'!$D13) -> 0 | H13: =IF(ROUNDUP('Настройка ИБР+1'!AN$4,0)=0,0,IF('Настройка ИБР+1'!AN$6='Настройка ИБР+1'!$AG$3,1,HLOOKUP('Настройка ИБР+1'!AN$6,'Настройка ИБР+1'!$M$3:$AF$21,ROW('Настройка ИБР+1'!13:13)-ROW('Настройка ИБР+1'!$3:$3)+1,FALSE))*IF('Настройка ИБР+1'!AN$7='Настройка ИБР+1'!$AG$3,1,HLOOKUP('Настройка ИБР+1'!AN$7,'Настройка ИБР+1'!$M$3:$AF$21,ROW('Настройка ИБР+1'!13:13)-ROW('Настройка ИБР+1'!$3:$3)+1,FALSE))*IF('Настройка ИБР+1'!AN$8='Настройка ИБР+1'!$AG$3,1,HLOOKUP('Настройка ИБР+1'!AN$8,'Настройка ИБР+1'!$M$3:$AF$21,ROW('Настройка ИБР+1'!13:13)-ROW('Настройка ИБР+1'!$3:$3)+1,FALSE))*'Настройка ИБР+1'!$D13) -> 0 | I13: =IF(ROUNDUP('Настройка ИБР+1'!AO$4,0)=0,0,IF('Настройка ИБР+1'!AO$6='Настройка ИБР+1'!$AG$3,1,HLOOKUP('Настройка ИБР+1'!AO$6,'Настройка ИБР+1'!$M$3:$AF$21,ROW('Настройка ИБР+1'!13:13)-ROW('Настройка ИБР+1'!$3:$3)+1,FALSE))*IF('Настройка ИБР+1'!AO$7='Настройка ИБР+1'!$AG$3,1,HLOOKUP('Настройка ИБР+1'!AO$7,'Настройка ИБР+1'!$M$3:$AF$21,ROW('Настройка ИБР+1'!13:13)-ROW('Настройка ИБР+1'!$3:$3)+1,FALSE))*IF('Настройка ИБР+1'!AO$8='Настройка ИБР+1'!$AG$3,1,HLOOKUP('Настройка ИБР+1'!AO$8,'Настройка ИБР+1'!$M$3:$AF$21,ROW('Настройка ИБР+1'!13:13)-ROW('Настройка ИБР+1'!$3:$3)+1,FALSE))*'Настройка ИБР+1'!$D13) -> 0.9930333592 | J13: =IF(ROUNDUP('Настройка ИБР+1'!AP$4,0)=0,0,IF('Настройка ИБР+1'!AP$6='Настройка ИБР+1'!$AG$3,1,HLOOKUP('Настройка ИБР+1'!AP$6,'Настройка ИБР+1'!$M$3:$AF$21,ROW('Настройка ИБР+1'!13:13)-ROW('Настройка ИБР+1'!$3:$3)+1,FALSE))*IF('Настройка ИБР+1'!AP$7='Настройка ИБР+1'!$AG$3,1,HLOOKUP('Настройка ИБР+1'!AP$7,'Настройка ИБР+1'!$M$3:$AF$21,ROW('Настройка ИБР+1'!13:13)-ROW('Настройка ИБР+1'!$3:$3)+1,FALSE))*IF('Настройка ИБР+1'!AP$8='Настройка ИБР+1'!$AG$3,1,HLOOKUP('Настройка ИБР+1'!AP$8,'Настройка ИБР+1'!$M$3:$AF$21,ROW('Настройка ИБР+1'!13:13)-ROW('Настройка ИБР+1'!$3:$3)+1,FALSE))*'Настройка ИБР+1'!$D13) -> 0.9930333592 | K13: =IF(ROUNDUP('Настройка ИБР+1'!AQ$4,0)=0,0,IF('Настройка ИБР+1'!AQ$6='Настройка ИБР+1'!$AG$3,1,HLOOKUP('Настройка ИБР+1'!AQ$6,'Настройка ИБР+1'!$M$3:$AF$21,ROW('Настройка ИБР+1'!13:13)-ROW('Настройка ИБР+1'!$3:$3)+1,FALSE))*IF('Настройка ИБР+1'!AQ$7='Настройка ИБР+1'!$AG$3,1,HLOOKUP('Настройка ИБР+1'!AQ$7,'Настройка ИБР+1'!$M$3:$AF$21,ROW('Настройка ИБР+1'!13:13)-ROW('Настройка ИБР+1'!$3:$3)+1,FALSE))*IF('Настройка ИБР+1'!AQ$8='Настройка ИБР+1'!$AG$3,1,HLOOKUP('Настройка ИБР+1'!AQ$8,'Настройка ИБР+1'!$M$3:$AF$21,ROW('Настройка ИБР+1'!13:13)-ROW('Настройка ИБР+1'!$3:$3)+1,FALSE))*'Настройка ИБР+1'!$D13) -> 0.9930333592 | L13: =IF(ROUNDUP('Настройка ИБР+1'!AR$4,0)=0,0,IF('Настройка ИБР+1'!AR$6='Настройка ИБР+1'!$AG$3,1,HLOOKUP('Настройка ИБР+1'!AR$6,'Настройка ИБР+1'!$M$3:$AF$21,ROW('Настройка ИБР+1'!13:13)-ROW('Настройка ИБР+1'!$3:$3)+1,FALSE))*IF('Настройка ИБР+1'!AR$7='Настройка ИБР+1'!$AG$3,1,HLOOKUP('Настройка ИБР+1'!AR$7,'Настройка ИБР+1'!$M$3:$AF$21,ROW('Настройка ИБР+1'!13:13)-ROW('Настройка ИБР+1'!$3:$3)+1,FALSE))*IF('Настройка ИБР+1'!AR$8='Настройка ИБР+1'!$AG$3,1,HLOOKUP('Настройка ИБР+1'!AR$8,'Настройка ИБР+1'!$M$3:$AF$21,ROW('Настройка ИБР+1'!13:13)-ROW('Настройка ИБР+1'!$3:$3)+1,FALSE))*'Настройка ИБР+1'!$D13) -> 0 | M13: =IF(ROUNDUP('Настройка ИБР+1'!AS$4,0)=0,0,IF('Настройка ИБР+1'!AS$6='Настройка ИБР+1'!$AG$3,1,HLOOKUP('Настройка ИБР+1'!AS$6,'Настройка ИБР+1'!$M$3:$AF$21,ROW('Настройка ИБР+1'!13:13)-ROW('Настройка ИБР+1'!$3:$3)+1,FALSE))*IF('Настройка ИБР+1'!AS$7='Настройка ИБР+1'!$AG$3,1,HLOOKUP('Настройка ИБР+1'!AS$7,'Настройка ИБР+1'!$M$3:$AF$21,ROW('Настройка ИБР+1'!13:13)-ROW('Настройка ИБР+1'!$3:$3)+1,FALSE))*IF('Настройка ИБР+1'!AS$8='Настройка ИБР+1'!$AG$3,1,HLOOKUP('Настройка ИБР+1'!AS$8,'Настройка ИБР+1'!$M$3:$AF$21,ROW('Настройка ИБР+1'!13:13)-ROW('Настройка ИБР+1'!$3:$3)+1,FALSE))*'Настройка ИБР+1'!$D13) -> 0 | N13: =IF(ROUNDUP('Настройка ИБР+1'!AT$4,0)=0,0,IF('Настройка ИБР+1'!AT$6='Настройка ИБР+1'!$AG$3,1,HLOOKUP('Настройка ИБР+1'!AT$6,'Настройка ИБР+1'!$M$3:$AF$21,ROW('Настройка ИБР+1'!13:13)-ROW('Настройка ИБР+1'!$3:$3)+1,FALSE))*IF('Настройка ИБР+1'!AT$7='Настройка ИБР+1'!$AG$3,1,HLOOKUP('Настройка ИБР+1'!AT$7,'Настройка ИБР+1'!$M$3:$AF$21,ROW('Настройка ИБР+1'!13:13)-ROW('Настройка ИБР+1'!$3:$3)+1,FALSE))*IF('Настройка ИБР+1'!AT$8='Настройка ИБР+1'!$AG$3,1,HLOOKUP('Настройка ИБР+1'!AT$8,'Настройка ИБР+1'!$M$3:$AF$21,ROW('Настройка ИБР+1'!13:13)-ROW('Настройка ИБР+1'!$3:$3)+1,FALSE))*'Настройка ИБР+1'!$D13) -> 1.448550121 | O13: =IF(ROUNDUP('Настройка ИБР+1'!AU$4,0)=0,0,IF('Настройка ИБР+1'!AU$6='Настройка ИБР+1'!$AG$3,1,HLOOKUP('Настройка ИБР+1'!AU$6,'Настройка ИБР+1'!$M$3:$AF$21,ROW('Настройка ИБР+1'!13:13)-ROW('Настройка ИБР+1'!$3:$3)+1,FALSE))*IF('Настройка ИБР+1'!AU$7='Настройка ИБР+1'!$AG$3,1,HLOOKUP('Настройка ИБР+1'!AU$7,'Настройка ИБР+1'!$M$3:$AF$21,ROW('Настройка ИБР+1'!13:13)-ROW('Настройка ИБР+1'!$3:$3)+1,FALSE))*IF('Настройка ИБР+1'!AU$8='Настройка ИБР+1'!$AG$3,1,HLOOKUP('Настройка ИБР+1'!AU$8,'Настройка ИБР+1'!$M$3:$AF$21,ROW('Настройка ИБР+1'!13:13)-ROW('Настройка ИБР+1'!$3:$3)+1,FALSE))*'Настройка ИБР+1'!$D13) -> 0 | P13: =IF(ROUNDUP('Настройка ИБР+1'!AV$4,0)=0,0,IF('Настройка ИБР+1'!AV$6='Настройка ИБР+1'!$AG$3,1,HLOOKUP('Настройка ИБР+1'!AV$6,'Настройка ИБР+1'!$M$3:$AF$21,ROW('Настройка ИБР+1'!13:13)-ROW('Настройка ИБР+1'!$3:$3)+1,FALSE))*IF('Настройка ИБР+1'!AV$7='Настройка ИБР+1'!$AG$3,1,HLOOKUP('Настройка ИБР+1'!AV$7,'Настройка ИБР+1'!$M$3:$AF$21,ROW('Настройка ИБР+1'!13:13)-ROW('Настройка ИБР+1'!$3:$3)+1,FALSE))*IF('Настройка ИБР+1'!AV$8='Настройка ИБР+1'!$AG$3,1,HLOOKUP('Настройка ИБР+1'!AV$8,'Настройка ИБР+1'!$M$3:$AF$21,ROW('Настройка ИБР+1'!13:13)-ROW('Настройка ИБР+1'!$3:$3)+1,FALSE))*'Настройка ИБР+1'!$D13) -> 0 | Q13: =IF(ROUNDUP('Настройка ИБР+1'!AW$4,0)=0,0,IF('Настройка ИБР+1'!AW$6='Настройка ИБР+1'!$AG$3,1,HLOOKUP('Настройка ИБР+1'!AW$6,'Настройка ИБР+1'!$M$3:$AF$21,ROW('Настройка ИБР+1'!13:13)-ROW('Настройка ИБР+1'!$3:$3)+1,FALSE))*IF('Настройка ИБР+1'!AW$7='Настройка ИБР+1'!$AG$3,1,HLOOKUP('Настройка ИБР+1'!AW$7,'Настройка ИБР+1'!$M$3:$AF$21,ROW('Настройка ИБР+1'!13:13)-ROW('Настройка ИБР+1'!$3:$3)+1,FALSE))*IF('Настройка ИБР+1'!AW$8='Настройка ИБР+1'!$AG$3,1,HLOOKUP('Настройка ИБР+1'!AW$8,'Настройка ИБР+1'!$M$3:$AF$21,ROW('Настройка ИБР+1'!13:13)-ROW('Настройка ИБР+1'!$3:$3)+1,FALSE))*'Настройка ИБР+1'!$D13) -> 0.9930333592 | R13: =IF(ROUNDUP('Настройка ИБР+1'!AX$4,0)=0,0,IF('Настройка ИБР+1'!AX$6='Настройка ИБР+1'!$AG$3,1,HLOOKUP('Настройка ИБР+1'!AX$6,'Настройка ИБР+1'!$M$3:$AF$21,ROW('Настройка ИБР+1'!13:13)-ROW('Настройка ИБР+1'!$3:$3)+1,FALSE))*IF('Настройка ИБР+1'!AX$7='Настройка ИБР+1'!$AG$3,1,HLOOKUP('Настройка ИБР+1'!AX$7,'Настройка ИБР+1'!$M$3:$AF$21,ROW('Настройка ИБР+1'!13:13)-ROW('Настройка ИБР+1'!$3:$3)+1,FALSE))*IF('Настройка ИБР+1'!AX$8='Настройка ИБР+1'!$AG$3,1,HLOOKUP('Настройка ИБР+1'!AX$8,'Настройка ИБР+1'!$M$3:$AF$21,ROW('Настройка ИБР+1'!13:13)-ROW('Настройка ИБР+1'!$3:$3)+1,FALSE))*'Настройка ИБР+1'!$D13) -> 0.9930333592 | S13: =IF(ROUNDUP('Настройка ИБР+1'!AY$4,0)=0,0,IF('Настройка ИБР+1'!AY$6='Настройка ИБР+1'!$AG$3,1,HLOOKUP('Настройка ИБР+1'!AY$6,'Настройка ИБР+1'!$M$3:$AF$21,ROW('Настройка ИБР+1'!13:13)-ROW('Настройка ИБР+1'!$3:$3)+1,FALSE))*IF('Настройка ИБР+1'!AY$7='Настройка ИБР+1'!$AG$3,1,HLOOKUP('Настройка ИБР+1'!AY$7,'Настройка ИБР+1'!$M$3:$AF$21,ROW('Настройка ИБР+1'!13:13)-ROW('Настройка ИБР+1'!$3:$3)+1,FALSE))*IF('Настройка ИБР+1'!AY$8='Настройка ИБР+1'!$AG$3,1,HLOOKUP('Настройка ИБР+1'!AY$8,'Настройка ИБР+1'!$M$3:$AF$21,ROW('Настройка ИБР+1'!13:13)-ROW('Настройка ИБР+1'!$3:$3)+1,FALSE))*'Настройка ИБР+1'!$D13) -> 0 | T13: =IF(ROUNDUP('Настройка ИБР+1'!AZ$4,0)=0,0,IF('Настройка ИБР+1'!AZ$6='Настройка ИБР+1'!$AG$3,1,HLOOKUP('Настройка ИБР+1'!AZ$6,'Настройка ИБР+1'!$M$3:$AF$21,ROW('Настройка ИБР+1'!13:13)-ROW('Настройка ИБР+1'!$3:$3)+1,FALSE))*IF('Настройка ИБР+1'!AZ$7='Настройка ИБР+1'!$AG$3,1,HLOOKUP('Настройка ИБР+1'!AZ$7,'Настройка ИБР+1'!$M$3:$AF$21,ROW('Настройка ИБР+1'!13:13)-ROW('Настройка ИБР+1'!$3:$3)+1,FALSE))*IF('Настройка ИБР+1'!AZ$8='Настройка ИБР+1'!$AG$3,1,HLOOKUP('Настройка ИБР+1'!AZ$8,'Настройка ИБР+1'!$M$3:$AF$21,ROW('Настройка ИБР+1'!13:13)-ROW('Настройка ИБР+1'!$3:$3)+1,FALSE))*'Настройка ИБР+1'!$D13) -> 0 | U13: =IF(ROUNDUP('Настройка ИБР+1'!BA$4,0)=0,0,IF('Настройка ИБР+1'!BA$6='Настройка ИБР+1'!$AG$3,1,HLOOKUP('Настройка ИБР+1'!BA$6,'Настройка ИБР+1'!$M$3:$AF$21,ROW('Настройка ИБР+1'!13:13)-ROW('Настройка ИБР+1'!$3:$3)+1,FALSE))*IF('Настройка ИБР+1'!BA$7='Настройка ИБР+1'!$AG$3,1,HLOOKUP('Настройка ИБР+1'!BA$7,'Настройка ИБР+1'!$M$3:$AF$21,ROW('Настройка ИБР+1'!13:13)-ROW('Настройка ИБР+1'!$3:$3)+1,FALSE))*IF('Настройка ИБР+1'!BA$8='Настройка ИБР+1'!$AG$3,1,HLOOKUP('Настройка ИБР+1'!BA$8,'Настройка ИБР+1'!$M$3:$AF$21,ROW('Настройка ИБР+1'!13:13)-ROW('Настройка ИБР+1'!$3:$3)+1,FALSE))*'Настройка ИБР+1'!$D13) -> 0.9930333592 | V13: =IF(ROUNDUP('Настройка ИБР+1'!BB$4,0)=0,0,IF('Настройка ИБР+1'!BB$6='Настройка ИБР+1'!$AG$3,1,HLOOKUP('Настройка ИБР+1'!BB$6,'Настройка ИБР+1'!$M$3:$AF$21,ROW('Настройка ИБР+1'!13:13)-ROW('Настройка ИБР+1'!$3:$3)+1,FALSE))*IF('Настройка ИБР+1'!BB$7='Настройка ИБР+1'!$AG$3,1,HLOOKUP('Настройка ИБР+1'!BB$7,'Настройка ИБР+1'!$M$3:$AF$21,ROW('Настройка ИБР+1'!13:13)-ROW('Настройка ИБР+1'!$3:$3)+1,FALSE))*IF('Настройка ИБР+1'!BB$8='Настройка ИБР+1'!$AG$3,1,HLOOKUP('Настройка ИБР+1'!BB$8,'Настройка ИБР+1'!$M$3:$AF$21,ROW('Настройка ИБР+1'!13:13)-ROW('Настройка ИБР+1'!$3:$3)+1,FALSE))*'Настройка ИБР+1'!$D13) -> 1.092719709 | W13: =IF(ROUNDUP('Настройка ИБР+1'!BC$4,0)=0,0,IF('Настройка ИБР+1'!BC$6='Настройка ИБР+1'!$AG$3,1,HLOOKUP('Настройка ИБР+1'!BC$6,'Настройка ИБР+1'!$M$3:$AF$21,ROW('Настройка ИБР+1'!13:13)-ROW('Настройка ИБР+1'!$3:$3)+1,FALSE))*IF('Настройка ИБР+1'!BC$7='Настройка ИБР+1'!$AG$3,1,HLOOKUP('Настройка ИБР+1'!BC$7,'Настройка ИБР+1'!$M$3:$AF$21,ROW('Настройка ИБР+1'!13:13)-ROW('Настройка ИБР+1'!$3:$3)+1,FALSE))*IF('Настройка ИБР+1'!BC$8='Настройка ИБР+1'!$AG$3,1,HLOOKUP('Настройка ИБР+1'!BC$8,'Настройка ИБР+1'!$M$3:$AF$21,ROW('Настройка ИБР+1'!13:13)-ROW('Настройка ИБР+1'!$3:$3)+1,FALSE))*'Настройка ИБР+1'!$D13) -> 0 | X13: =IF(ROUNDUP('Настройка ИБР+1'!BD$4,0)=0,0,IF('Настройка ИБР+1'!BD$6='Настройка ИБР+1'!$AG$3,1,HLOOKUP('Настройка ИБР+1'!BD$6,'Настройка ИБР+1'!$M$3:$AF$21,ROW('Настройка ИБР+1'!13:13)-ROW('Настройка ИБР+1'!$3:$3)+1,FALSE))*IF('Настройка ИБР+1'!BD$7='Настройка ИБР+1'!$AG$3,1,HLOOKUP('Настройка ИБР+1'!BD$7,'Настройка ИБР+1'!$M$3:$AF$21,ROW('Настройка ИБР+1'!13:13)-ROW('Настройка ИБР+1'!$3:$3)+1,FALSE))*IF('Настройка ИБР+1'!BD$8='Настройка ИБР+1'!$AG$3,1,HLOOKUP('Настройка ИБР+1'!BD$8,'Настройка ИБР+1'!$M$3:$AF$21,ROW('Настройка ИБР+1'!13:13)-ROW('Настройка ИБР+1'!$3:$3)+1,FALSE))*'Настройка ИБР+1'!$D13) -> 0.9930333592 | Y13: =IF(ROUNDUP('Настройка ИБР+1'!BE$4,0)=0,0,IF('Настройка ИБР+1'!BE$6='Настройка ИБР+1'!$AG$3,1,HLOOKUP('Настройка ИБР+1'!BE$6,'Настройка ИБР+1'!$M$3:$AF$21,ROW('Настройка ИБР+1'!13:13)-ROW('Настройка ИБР+1'!$3:$3)+1,FALSE))*IF('Настройка ИБР+1'!BE$7='Настройка ИБР+1'!$AG$3,1,HLOOKUP('Настройка ИБР+1'!BE$7,'Настройка ИБР+1'!$M$3:$AF$21,ROW('Настройка ИБР+1'!13:13)-ROW('Настройка ИБР+1'!$3:$3)+1,FALSE))*IF('Настройка ИБР+1'!BE$8='Настройка ИБР+1'!$AG$3,1,HLOOKUP('Настройка ИБР+1'!BE$8,'Настройка ИБР+1'!$M$3:$AF$21,ROW('Настройка ИБР+1'!13:13)-ROW('Настройка ИБР+1'!$3:$3)+1,FALSE))*'Настройка ИБР+1'!$D13) -> 0.9930333592 | Z13: =IF(ROUNDUP('Настройка ИБР+1'!BF$4,0)=0,0,IF('Настройка ИБР+1'!BF$6='Настройка ИБР+1'!$AG$3,1,HLOOKUP('Настройка ИБР+1'!BF$6,'Настройка ИБР+1'!$M$3:$AF$21,ROW('Настройка ИБР+1'!13:13)-ROW('Настройка ИБР+1'!$3:$3)+1,FALSE))*IF('Настройка ИБР+1'!BF$7='Настройка ИБР+1'!$AG$3,1,HLOOKUP('Настройка ИБР+1'!BF$7,'Настройка ИБР+1'!$M$3:$AF$21,ROW('Настройка ИБР+1'!13:13)-ROW('Настройка ИБР+1'!$3:$3)+1,FALSE))*IF('Настройка ИБР+1'!BF$8='Настройка ИБР+1'!$AG$3,1,HLOOKUP('Настройка ИБР+1'!BF$8,'Настройка ИБР+1'!$M$3:$AF$21,ROW('Настройка ИБР+1'!13:13)-ROW('Настройка ИБР+1'!$3:$3)+1,FALSE))*'Настройка ИБР+1'!$D13) -> 0 | AA13: =IF(ROUNDUP('Настройка ИБР+1'!BG$4,0)=0,0,IF('Настройка ИБР+1'!BG$6='Настройка ИБР+1'!$AG$3,1,HLOOKUP('Настройка ИБР+1'!BG$6,'Настройка ИБР+1'!$M$3:$AF$21,ROW('Настройка ИБР+1'!13:13)-ROW('Настройка ИБР+1'!$3:$3)+1,FALSE))*IF('Настройка ИБР+1'!BG$7='Настройка ИБР+1'!$AG$3,1,HLOOKUP('Настройка ИБР+1'!BG$7,'Настройка ИБР+1'!$M$3:$AF$21,ROW('Настройка ИБР+1'!13:13)-ROW('Настройка ИБР+1'!$3:$3)+1,FALSE))*IF('Настройка ИБР+1'!BG$8='Настройка ИБР+1'!$AG$3,1,HLOOKUP('Настройка ИБР+1'!BG$8,'Настройка ИБР+1'!$M$3:$AF$21,ROW('Настройка ИБР+1'!13:13)-ROW('Настройка ИБР+1'!$3:$3)+1,FALSE))*'Настройка ИБР+1'!$D13) -> 0 | AB13: =IF(ROUNDUP('Настройка ИБР+1'!BH$4,0)=0,0,IF('Настройка ИБР+1'!BH$6='Настройка ИБР+1'!$AG$3,1,HLOOKUP('Настройка ИБР+1'!BH$6,'Настройка ИБР+1'!$M$3:$AF$21,ROW('Настройка ИБР+1'!13:13)-ROW('Настройка ИБР+1'!$3:$3)+1,FALSE))*IF('Настройка ИБР+1'!BH$7='Настройка ИБР+1'!$AG$3,1,HLOOKUP('Настройка ИБР+1'!BH$7,'Настройка ИБР+1'!$M$3:$AF$21,ROW('Настройка ИБР+1'!13:13)-ROW('Настройка ИБР+1'!$3:$3)+1,FALSE))*IF('Настройка ИБР+1'!BH$8='Настройка ИБР+1'!$AG$3,1,HLOOKUP('Настройка ИБР+1'!BH$8,'Настройка ИБР+1'!$M$3:$AF$21,ROW('Настройка ИБР+1'!13:13)-ROW('Настройка ИБР+1'!$3:$3)+1,FALSE))*'Настройка ИБР+1'!$D13) -> 0 | AC13: =IF(ROUNDUP('Настройка ИБР+1'!BI$4,0)=0,0,IF('Настройка ИБР+1'!BI$6='Настройка ИБР+1'!$AG$3,1,HLOOKUP('Настройка ИБР+1'!BI$6,'Настройка ИБР+1'!$M$3:$AF$21,ROW('Настройка ИБР+1'!13:13)-ROW('Настройка ИБР+1'!$3:$3)+1,FALSE))*IF('Настройка ИБР+1'!BI$7='Настройка ИБР+1'!$AG$3,1,HLOOKUP('Настройка ИБР+1'!BI$7,'Настройка ИБР+1'!$M$3:$AF$21,ROW('Настройка ИБР+1'!13:13)-ROW('Настройка ИБР+1'!$3:$3)+1,FALSE))*IF('Настройка ИБР+1'!BI$8='Настройка ИБР+1'!$AG$3,1,HLOOKUP('Настройка ИБР+1'!BI$8,'Настройка ИБР+1'!$M$3:$AF$21,ROW('Настройка ИБР+1'!13:13)-ROW('Настройка ИБР+1'!$3:$3)+1,FALSE))*'Настройка ИБР+1'!$D13) -> 0 | AD13: =IF(ROUNDUP('Настройка ИБР+1'!BJ$4,0)=0,0,IF('Настройка ИБР+1'!BJ$6='Настройка ИБР+1'!$AG$3,1,HLOOKUP('Настройка ИБР+1'!BJ$6,'Настройка ИБР+1'!$M$3:$AF$21,ROW('Настройка ИБР+1'!13:13)-ROW('Настройка ИБР+1'!$3:$3)+1,FALSE))*IF('Настройка ИБР+1'!BJ$7='Настройка ИБР+1'!$AG$3,1,HLOOKUP('Настройка ИБР+1'!BJ$7,'Настройка ИБР+1'!$M$3:$AF$21,ROW('Настройка ИБР+1'!13:13)-ROW('Настройка ИБР+1'!$3:$3)+1,FALSE))*IF('Настройка ИБР+1'!BJ$8='Настройка ИБР+1'!$AG$3,1,HLOOKUP('Настройка ИБР+1'!BJ$8,'Настройка ИБР+1'!$M$3:$AF$21,ROW('Настройка ИБР+1'!13:13)-ROW('Настройка ИБР+1'!$3:$3)+1,FALSE))*'Настройка ИБР+1'!$D13) -> 0 | AE13: =IF(ROUNDUP('Настройка ИБР+1'!BK$4,0)=0,0,IF('Настройка ИБР+1'!BK$6='Настройка ИБР+1'!$AG$3,1,HLOOKUP('Настройка ИБР+1'!BK$6,'Настройка ИБР+1'!$M$3:$AF$21,ROW('Настройка ИБР+1'!13:13)-ROW('Настройка ИБР+1'!$3:$3)+1,FALSE))*IF('Настройка ИБР+1'!BK$7='Настройка ИБР+1'!$AG$3,1,HLOOKUP('Настройка ИБР+1'!BK$7,'Настройка ИБР+1'!$M$3:$AF$21,ROW('Настройка ИБР+1'!13:13)-ROW('Настройка ИБР+1'!$3:$3)+1,FALSE))*IF('Настройка ИБР+1'!BK$8='Настройка ИБР+1'!$AG$3,1,HLOOKUP('Настройка ИБР+1'!BK$8,'Настройка ИБР+1'!$M$3:$AF$21,ROW('Настройка ИБР+1'!13:13)-ROW('Настройка ИБР+1'!$3:$3)+1,FALSE))*'Настройка ИБР+1'!$D13) -> 0 | AF13: =IF(ROUNDUP('Настройка ИБР+1'!BL$4,0)=0,0,IF('Настройка ИБР+1'!BL$6='Настройка ИБР+1'!$AG$3,1,HLOOKUP('Настройка ИБР+1'!BL$6,'Настройка ИБР+1'!$M$3:$AF$21,ROW('Настройка ИБР+1'!13:13)-ROW('Настройка ИБР+1'!$3:$3)+1,FALSE))*IF('Настройка ИБР+1'!BL$7='Настройка ИБР+1'!$AG$3,1,HLOOKUP('Настройка ИБР+1'!BL$7,'Настройка ИБР+1'!$M$3:$AF$21,ROW('Настройка ИБР+1'!13:13)-ROW('Настройка ИБР+1'!$3:$3)+1,FALSE))*IF('Настройка ИБР+1'!BL$8='Настройка ИБР+1'!$AG$3,1,HLOOKUP('Настройка ИБР+1'!BL$8,'Настройка ИБР+1'!$M$3:$AF$21,ROW('Настройка ИБР+1'!13:13)-ROW('Настройка ИБР+1'!$3:$3)+1,FALSE))*'Настройка ИБР+1'!$D13) -> 0.9930333592 | AG13: =IF(ROUNDUP('Настройка ИБР+1'!BM$4,0)=0,0,IF('Настройка ИБР+1'!BM$6='Настройка ИБР+1'!$AG$3,1,HLOOKUP('Настройка ИБР+1'!BM$6,'Настройка ИБР+1'!$M$3:$AF$21,ROW('Настройка ИБР+1'!13:13)-ROW('Настройка ИБР+1'!$3:$3)+1,FALSE))*IF('Настройка ИБР+1'!BM$7='Настройка ИБР+1'!$AG$3,1,HLOOKUP('Настройка ИБР+1'!BM$7,'Настройка ИБР+1'!$M$3:$AF$21,ROW('Настройка ИБР+1'!13:13)-ROW('Настройка ИБР+1'!$3:$3)+1,FALSE))*IF('Настройка ИБР+1'!BM$8='Настройка ИБР+1'!$AG$3,1,HLOOKUP('Настройка ИБР+1'!BM$8,'Настройка ИБР+1'!$M$3:$AF$21,ROW('Настройка ИБР+1'!13:13)-ROW('Настройка ИБР+1'!$3:$3)+1,FALSE))*'Настройка ИБР+1'!$D13) -> 0 | AH13: =IF(ROUNDUP('Настройка ИБР+1'!BN$4,0)=0,0,IF('Настройка ИБР+1'!BN$6='Настройка ИБР+1'!$AG$3,1,HLOOKUP('Настройка ИБР+1'!BN$6,'Настройка ИБР+1'!$M$3:$AF$21,ROW('Настройка ИБР+1'!13:13)-ROW('Настройка ИБР+1'!$3:$3)+1,FALSE))*IF('Настройка ИБР+1'!BN$7='Настройка ИБР+1'!$AG$3,1,HLOOKUP('Настройка ИБР+1'!BN$7,'Настройка ИБР+1'!$M$3:$AF$21,ROW('Настройка ИБР+1'!13:13)-ROW('Настройка ИБР+1'!$3:$3)+1,FALSE))*IF('Настройка ИБР+1'!BN$8='Настройка ИБР+1'!$AG$3,1,HLOOKUP('Настройка ИБР+1'!BN$8,'Настройка ИБР+1'!$M$3:$AF$21,ROW('Настройка ИБР+1'!13:13)-ROW('Настройка ИБР+1'!$3:$3)+1,FALSE))*'Настройка ИБР+1'!$D13) -> 0 | AI13: =IF(ROUNDUP('Настройка ИБР+1'!BO$4,0)=0,0,IF('Настройка ИБР+1'!BO$6='Настройка ИБР+1'!$AG$3,1,HLOOKUP('Настройка ИБР+1'!BO$6,'Настройка ИБР+1'!$M$3:$AF$21,ROW('Настройка ИБР+1'!13:13)-ROW('Настройка ИБР+1'!$3:$3)+1,FALSE))*IF('Настройка ИБР+1'!BO$7='Настройка ИБР+1'!$AG$3,1,HLOOKUP('Настройка ИБР+1'!BO$7,'Настройка ИБР+1'!$M$3:$AF$21,ROW('Настройка ИБР+1'!13:13)-ROW('Настройка ИБР+1'!$3:$3)+1,FALSE))*IF('Настройка ИБР+1'!BO$8='Настройка ИБР+1'!$AG$3,1,HLOOKUP('Настройка ИБР+1'!BO$8,'Настройка ИБР+1'!$M$3:$AF$21,ROW('Настройка ИБР+1'!13:13)-ROW('Настройка ИБР+1'!$3:$3)+1,FALSE))*'Настройка ИБР+1'!$D13) -> 0.9930333592 | AL13: =CHOOSE($AK$11,HLOOKUP($AK$11,$C$2:$AI$21,ROW(13:13)-ROW($2:$2)+1,FALSE)*Данные!$F$11/HLOOKUP($AK$11,$C$2:$AI$21,ROW($11:$11)-ROW($2:$2)+1,FALSE),HLOOKUP($AK$11,#REF!,ROW(#REF!)-ROW(#REF!)+1,FALSE)*Данные!$F$11/HLOOKUP($AK$11,#REF!,ROW(#REF!)-ROW(#REF!)+1,FALSE),HLOOKUP($AK$11,#REF!,ROW(#REF!)-ROW(#REF!)+1,FALSE)*Данные!$F$11/HLOOKUP($AK$11,#REF!,ROW(#REF!)-ROW(#REF!)+1,FALSE)) -> 1.303771539 | AM13: =CHOOSE($AK$11,HLOOKUP($AK$11,'Настройка ИБР+1'!$AI$2:$BO$21,ROW('Настройка ИБР+1'!13:13)-ROW('Настройка ИБР+1'!$2:$2)+1,FALSE)/Данные!$F13/(HLOOKUP($AK$11,'Настройка ИБР+1'!$AI$2:$BO$21,ROW(Данные!$11:$11)-ROW('Настройка ИБР+1'!$2:$2)+1,FALSE)/Данные!$F$11),HLOOKUP($AK$11,#REF!,ROW(#REF!)-ROW(#REF!)+1,FALSE)/Данные!$F13/(HLOOKUP($AK$11,#REF!,ROW(Данные!$11:$11)-ROW(#REF!)+1,FALSE)/Данные!$F$11),HLOOKUP($AK$11,#REF!,ROW(#REF!)-ROW(#REF!)+1,FALSE)/Данные!$F13/(HLOOKUP($AK$11,#REF!,ROW(Данные!$11:$11)-ROW(#REF!)+1,FALSE)/Данные!$F$11)) -> 1.00405603
A14: =Данные!A14 -> 3 | B14: =Данные!D14 -> Краснооктябрьское с/п | C14: =SUMPRODUCT('Настройка ИБР+1'!$AJ$4:$BO$4,D14:AI14)*Данные!$F$11/SUMPRODUCT($D$11:$AI$11,'Настройка ИБР+1'!$AJ$4:$BO$4) -> 0.8763383071 | D14: =IF(ROUNDUP('Настройка ИБР+1'!AJ$4,0)=0,0,IF('Настройка ИБР+1'!AJ$6='Настройка ИБР+1'!$AG$3,1,HLOOKUP('Настройка ИБР+1'!AJ$6,'Настройка ИБР+1'!$M$3:$AF$21,ROW('Настройка ИБР+1'!14:14)-ROW('Настройка ИБР+1'!$3:$3)+1,FALSE))*IF('Настройка ИБР+1'!AJ$7='Настройка ИБР+1'!$AG$3,1,HLOOKUP('Настройка ИБР+1'!AJ$7,'Настройка ИБР+1'!$M$3:$AF$21,ROW('Настройка ИБР+1'!14:14)-ROW('Настройка ИБР+1'!$3:$3)+1,FALSE))*IF('Настройка ИБР+1'!AJ$8='Настройка ИБР+1'!$AG$3,1,HLOOKUP('Настройка ИБР+1'!AJ$8,'Настройка ИБР+1'!$M$3:$AF$21,ROW('Настройка ИБР+1'!14:14)-ROW('Настройка ИБР+1'!$3:$3)+1,FALSE))*'Настройка ИБР+1'!$D14) -> 0.8173158694 | E14: =IF(ROUNDUP('Настройка ИБР+1'!AK$4,0)=0,0,IF('Настройка ИБР+1'!AK$6='Настройка ИБР+1'!$AG$3,1,HLOOKUP('Настройка ИБР+1'!AK$6,'Настройка ИБР+1'!$M$3:$AF$21,ROW('Настройка ИБР+1'!14:14)-ROW('Настройка ИБР+1'!$3:$3)+1,FALSE))*IF('Настройка ИБР+1'!AK$7='Настройка ИБР+1'!$AG$3,1,HLOOKUP('Настройка ИБР+1'!AK$7,'Настройка ИБР+1'!$M$3:$AF$21,ROW('Настройка ИБР+1'!14:14)-ROW('Настройка ИБР+1'!$3:$3)+1,FALSE))*IF('Настройка ИБР+1'!AK$8='Настройка ИБР+1'!$AG$3,1,HLOOKUP('Настройка ИБР+1'!AK$8,'Настройка ИБР+1'!$M$3:$AF$21,ROW('Настройка ИБР+1'!14:14)-ROW('Настройка ИБР+1'!$3:$3)+1,FALSE))*'Настройка ИБР+1'!$D14) -> 1.005446082 | F14: =IF(ROUNDUP('Настройка ИБР+1'!AL$4,0)=0,0,IF('Настройка ИБР+1'!AL$6='Настройка ИБР+1'!$AG$3,1,HLOOKUP('Настройка ИБР+1'!AL$6,'Настройка ИБР+1'!$M$3:$AF$21,ROW('Настройка ИБР+1'!14:14)-ROW('Настройка ИБР+1'!$3:$3)+1,FALSE))*IF('Настройка ИБР+1'!AL$7='Настройка ИБР+1'!$AG$3,1,HLOOKUP('Настройка ИБР+1'!AL$7,'Настройка ИБР+1'!$M$3:$AF$21,ROW('Настройка ИБР+1'!14:14)-ROW('Настройка ИБР+1'!$3:$3)+1,FALSE))*IF('Настройка ИБР+1'!AL$8='Настройка ИБР+1'!$AG$3,1,HLOOKUP('Настройка ИБР+1'!AL$8,'Настройка ИБР+1'!$M$3:$AF$21,ROW('Настройка ИБР+1'!14:14)-ROW('Настройка ИБР+1'!$3:$3)+1,FALSE))*'Настройка ИБР+1'!$D14) -> 0 | G14: =IF(ROUNDUP('Настройка ИБР+1'!AM$4,0)=0,0,IF('Настройка ИБР+1'!AM$6='Настройка ИБР+1'!$AG$3,1,HLOOKUP('Настройка ИБР+1'!AM$6,'Настройка ИБР+1'!$M$3:$AF$21,ROW('Настройка ИБР+1'!14:14)-ROW('Настройка ИБР+1'!$3:$3)+1,FALSE))*IF('Настройка ИБР+1'!AM$7='Настройка ИБР+1'!$AG$3,1,HLOOKUP('Настройка ИБР+1'!AM$7,'Настройка ИБР+1'!$M$3:$AF$21,ROW('Настройка ИБР+1'!14:14)-ROW('Настройка ИБР+1'!$3:$3)+1,FALSE))*IF('Настройка ИБР+1'!AM$8='Настройка ИБР+1'!$AG$3,1,HLOOKUP('Настройка ИБР+1'!AM$8,'Настройка ИБР+1'!$M$3:$AF$21,ROW('Настройка ИБР+1'!14:14)-ROW('Настройка ИБР+1'!$3:$3)+1,FALSE))*'Настройка ИБР+1'!$D14) -> 0 | H14: =IF(ROUNDUP('Настройка ИБР+1'!AN$4,0)=0,0,IF('Настройка ИБР+1'!AN$6='Настройка ИБР+1'!$AG$3,1,HLOOKUP('Настройка ИБР+1'!AN$6,'Настройка ИБР+1'!$M$3:$AF$21,ROW('Настройка ИБР+1'!14:14)-ROW('Настройка ИБР+1'!$3:$3)+1,FALSE))*IF('Настройка ИБР+1'!AN$7='Настройка ИБР+1'!$AG$3,1,HLOOKUP('Настройка ИБР+1'!AN$7,'Настройка ИБР+1'!$M$3:$AF$21,ROW('Настройка ИБР+1'!14:14)-ROW('Настройка ИБР+1'!$3:$3)+1,FALSE))*IF('Настройка ИБР+1'!AN$8='Настройка ИБР+1'!$AG$3,1,HLOOKUP('Настройка ИБР+1'!AN$8,'Настройка ИБР+1'!$M$3:$AF$21,ROW('Настройка ИБР+1'!14:14)-ROW('Настройка ИБР+1'!$3:$3)+1,FALSE))*'Настройка ИБР+1'!$D14) -> 0 | I14: =IF(ROUNDUP('Настройка ИБР+1'!AO$4,0)=0,0,IF('Настройка ИБР+1'!AO$6='Настройка ИБР+1'!$AG$3,1,HLOOKUP('Настройка ИБР+1'!AO$6,'Настройка ИБР+1'!$M$3:$AF$21,ROW('Настройка ИБР+1'!14:14)-ROW('Настройка ИБР+1'!$3:$3)+1,FALSE))*IF('Настройка ИБР+1'!AO$7='Настройка ИБР+1'!$AG$3,1,HLOOKUP('Настройка ИБР+1'!AO$7,'Настройка ИБР+1'!$M$3:$AF$21,ROW('Настройка ИБР+1'!14:14)-ROW('Настройка ИБР+1'!$3:$3)+1,FALSE))*IF('Настройка ИБР+1'!AO$8='Настройка ИБР+1'!$AG$3,1,HLOOKUP('Настройка ИБР+1'!AO$8,'Настройка ИБР+1'!$M$3:$AF$21,ROW('Настройка ИБР+1'!14:14)-ROW('Настройка ИБР+1'!$3:$3)+1,FALSE))*'Настройка ИБР+1'!$D14) -> 1.005446082 | J14: =IF(ROUNDUP('Настройка ИБР+1'!AP$4,0)=0,0,IF('Настройка ИБР+1'!AP$6='Настройка ИБР+1'!$AG$3,1,HLOOKUP('Настройка ИБР+1'!AP$6,'Настройка ИБР+1'!$M$3:$AF$21,ROW('Настройка ИБР+1'!14:14)-ROW('Настройка ИБР+1'!$3:$3)+1,FALSE))*IF('Настройка ИБР+1'!AP$7='Настройка ИБР+1'!$AG$3,1,HLOOKUP('Настройка ИБР+1'!AP$7,'Настройка ИБР+1'!$M$3:$AF$21,ROW('Настройка ИБР+1'!14:14)-ROW('Настройка ИБР+1'!$3:$3)+1,FALSE))*IF('Настройка ИБР+1'!AP$8='Настройка ИБР+1'!$AG$3,1,HLOOKUP('Настройка ИБР+1'!AP$8,'Настройка ИБР+1'!$M$3:$AF$21,ROW('Настройка ИБР+1'!14:14)-ROW('Настройка ИБР+1'!$3:$3)+1,FALSE))*'Настройка ИБР+1'!$D14) -> 1.005446082 | K14: =IF(ROUNDUP('Настройка ИБР+1'!AQ$4,0)=0,0,IF('Настройка ИБР+1'!AQ$6='Настройка ИБР+1'!$AG$3,1,HLOOKUP('Настройка ИБР+1'!AQ$6,'Настройка ИБР+1'!$M$3:$AF$21,ROW('Настройка ИБР+1'!14:14)-ROW('Настройка ИБР+1'!$3:$3)+1,FALSE))*IF('Настройка ИБР+1'!AQ$7='Настройка ИБР+1'!$AG$3,1,HLOOKUP('Настройка ИБР+1'!AQ$7,'Настройка ИБР+1'!$M$3:$AF$21,ROW('Настройка ИБР+1'!14:14)-ROW('Настройка ИБР+1'!$3:$3)+1,FALSE))*IF('Настройка ИБР+1'!AQ$8='Настройка ИБР+1'!$AG$3,1,HLOOKUP('Настройка ИБР+1'!AQ$8,'Настройка ИБР+1'!$M$3:$AF$21,ROW('Настройка ИБР+1'!14:14)-ROW('Настройка ИБР+1'!$3:$3)+1,FALSE))*'Настройка ИБР+1'!$D14) -> 1.005446082 | L14: =IF(ROUNDUP('Настройка ИБР+1'!AR$4,0)=0,0,IF('Настройка ИБР+1'!AR$6='Настройка ИБР+1'!$AG$3,1,HLOOKUP('Настройка ИБР+1'!AR$6,'Настройка ИБР+1'!$M$3:$AF$21,ROW('Настройка ИБР+1'!14:14)-ROW('Настройка ИБР+1'!$3:$3)+1,FALSE))*IF('Настройка ИБР+1'!AR$7='Настройка ИБР+1'!$AG$3,1,HLOOKUP('Настройка ИБР+1'!AR$7,'Настройка ИБР+1'!$M$3:$AF$21,ROW('Настройка ИБР+1'!14:14)-ROW('Настройка ИБР+1'!$3:$3)+1,FALSE))*IF('Настройка ИБР+1'!AR$8='Настройка ИБР+1'!$AG$3,1,HLOOKUP('Настройка ИБР+1'!AR$8,'Настройка ИБР+1'!$M$3:$AF$21,ROW('Настройка ИБР+1'!14:14)-ROW('Настройка ИБР+1'!$3:$3)+1,FALSE))*'Настройка ИБР+1'!$D14) -> 0 | M14: =IF(ROUNDUP('Настройка ИБР+1'!AS$4,0)=0,0,IF('Настройка ИБР+1'!AS$6='Настройка ИБР+1'!$AG$3,1,HLOOKUP('Настройка ИБР+1'!AS$6,'Настройка ИБР+1'!$M$3:$AF$21,ROW('Настройка ИБР+1'!14:14)-ROW('Настройка ИБР+1'!$3:$3)+1,FALSE))*IF('Настройка ИБР+1'!AS$7='Настройка ИБР+1'!$AG$3,1,HLOOKUP('Настройка ИБР+1'!AS$7,'Настройка ИБР+1'!$M$3:$AF$21,ROW('Настройка ИБР+1'!14:14)-ROW('Настройка ИБР+1'!$3:$3)+1,FALSE))*IF('Настройка ИБР+1'!AS$8='Настройка ИБР+1'!$AG$3,1,HLOOKUP('Настройка ИБР+1'!AS$8,'Настройка ИБР+1'!$M$3:$AF$21,ROW('Настройка ИБР+1'!14:14)-ROW('Настройка ИБР+1'!$3:$3)+1,FALSE))*'Настройка ИБР+1'!$D14) -> 0 | N14: =IF(ROUNDUP('Настройка ИБР+1'!AT$4,0)=0,0,IF('Настройка ИБР+1'!AT$6='Настройка ИБР+1'!$AG$3,1,HLOOKUP('Настройка ИБР+1'!AT$6,'Настройка ИБР+1'!$M$3:$AF$21,ROW('Настройка ИБР+1'!14:14)-ROW('Настройка ИБР+1'!$3:$3)+1,FALSE))*IF('Настройка ИБР+1'!AT$7='Настройка ИБР+1'!$AG$3,1,HLOOKUP('Настройка ИБР+1'!AT$7,'Настройка ИБР+1'!$M$3:$AF$21,ROW('Настройка ИБР+1'!14:14)-ROW('Настройка ИБР+1'!$3:$3)+1,FALSE))*IF('Настройка ИБР+1'!AT$8='Настройка ИБР+1'!$AG$3,1,HLOOKUP('Настройка ИБР+1'!AT$8,'Настройка ИБР+1'!$M$3:$AF$21,ROW('Настройка ИБР+1'!14:14)-ROW('Настройка ИБР+1'!$3:$3)+1,FALSE))*'Настройка ИБР+1'!$D14) -> 0.8173158694 | O14: =IF(ROUNDUP('Настройка ИБР+1'!AU$4,0)=0,0,IF('Настройка ИБР+1'!AU$6='Настройка ИБР+1'!$AG$3,1,HLOOKUP('Настройка ИБР+1'!AU$6,'Настройка ИБР+1'!$M$3:$AF$21,ROW('Настройка ИБР+1'!14:14)-ROW('Настройка ИБР+1'!$3:$3)+1,FALSE))*IF('Настройка ИБР+1'!AU$7='Настройка ИБР+1'!$AG$3,1,HLOOKUP('Настройка ИБР+1'!AU$7,'Настройка ИБР+1'!$M$3:$AF$21,ROW('Настройка ИБР+1'!14:14)-ROW('Настройка ИБР+1'!$3:$3)+1,FALSE))*IF('Настройка ИБР+1'!AU$8='Настройка ИБР+1'!$AG$3,1,HLOOKUP('Настройка ИБР+1'!AU$8,'Настройка ИБР+1'!$M$3:$AF$21,ROW('Настройка ИБР+1'!14:14)-ROW('Настройка ИБР+1'!$3:$3)+1,FALSE))*'Настройка ИБР+1'!$D14) -> 0 | P14: =IF(ROUNDUP('Настройка ИБР+1'!AV$4,0)=0,0,IF('Настройка ИБР+1'!AV$6='Настройка ИБР+1'!$AG$3,1,HLOOKUP('Настройка ИБР+1'!AV$6,'Настройка ИБР+1'!$M$3:$AF$21,ROW('Настройка ИБР+1'!14:14)-ROW('Настройка ИБР+1'!$3:$3)+1,FALSE))*IF('Настройка ИБР+1'!AV$7='Настройка ИБР+1'!$AG$3,1,HLOOKUP('Настройка ИБР+1'!AV$7,'Настройка ИБР+1'!$M$3:$AF$21,ROW('Настройка ИБР+1'!14:14)-ROW('Настройка ИБР+1'!$3:$3)+1,FALSE))*IF('Настройка ИБР+1'!AV$8='Настройка ИБР+1'!$AG$3,1,HLOOKUP('Настройка ИБР+1'!AV$8,'Настройка ИБР+1'!$M$3:$AF$21,ROW('Настройка ИБР+1'!14:14)-ROW('Настройка ИБР+1'!$3:$3)+1,FALSE))*'Настройка ИБР+1'!$D14) -> 0 | Q14: =IF(ROUNDUP('Настройка ИБР+1'!AW$4,0)=0,0,IF('Настройка ИБР+1'!AW$6='Настройка ИБР+1'!$AG$3,1,HLOOKUP('Настройка ИБР+1'!AW$6,'Настройка ИБР+1'!$M$3:$AF$21,ROW('Настройка ИБР+1'!14:14)-ROW('Настройка ИБР+1'!$3:$3)+1,FALSE))*IF('Настройка ИБР+1'!AW$7='Настройка ИБР+1'!$AG$3,1,HLOOKUP('Настройка ИБР+1'!AW$7,'Настройка ИБР+1'!$M$3:$AF$21,ROW('Настройка ИБР+1'!14:14)-ROW('Настройка ИБР+1'!$3:$3)+1,FALSE))*IF('Настройка ИБР+1'!AW$8='Настройка ИБР+1'!$AG$3,1,HLOOKUP('Настройка ИБР+1'!AW$8,'Настройка ИБР+1'!$M$3:$AF$21,ROW('Настройка ИБР+1'!14:14)-ROW('Настройка ИБР+1'!$3:$3)+1,FALSE))*'Настройка ИБР+1'!$D14) -> 1.005446082 | R14: =IF(ROUNDUP('Настройка ИБР+1'!AX$4,0)=0,0,IF('Настройка ИБР+1'!AX$6='Настройка ИБР+1'!$AG$3,1,HLOOKUP('Настройка ИБР+1'!AX$6,'Настройка ИБР+1'!$M$3:$AF$21,ROW('Настройка ИБР+1'!14:14)-ROW('Настройка ИБР+1'!$3:$3)+1,FALSE))*IF('Настройка ИБР+1'!AX$7='Настройка ИБР+1'!$AG$3,1,HLOOKUP('Настройка ИБР+1'!AX$7,'Настройка ИБР+1'!$M$3:$AF$21,ROW('Настройка ИБР+1'!14:14)-ROW('Настройка ИБР+1'!$3:$3)+1,FALSE))*IF('Настройка ИБР+1'!AX$8='Настройка ИБР+1'!$AG$3,1,HLOOKUP('Настройка ИБР+1'!AX$8,'Настройка ИБР+1'!$M$3:$AF$21,ROW('Настройка ИБР+1'!14:14)-ROW('Настройка ИБР+1'!$3:$3)+1,FALSE))*'Настройка ИБР+1'!$D14) -> 1.005446082 | S14: =IF(ROUNDUP('Настройка ИБР+1'!AY$4,0)=0,0,IF('Настройка ИБР+1'!AY$6='Настройка ИБР+1'!$AG$3,1,HLOOKUP('Настройка ИБР+1'!AY$6,'Настройка ИБР+1'!$M$3:$AF$21,ROW('Настройка ИБР+1'!14:14)-ROW('Настройка ИБР+1'!$3:$3)+1,FALSE))*IF('Настройка ИБР+1'!AY$7='Настройка ИБР+1'!$AG$3,1,HLOOKUP('Настройка ИБР+1'!AY$7,'Настройка ИБР+1'!$M$3:$AF$21,ROW('Настройка ИБР+1'!14:14)-ROW('Настройка ИБР+1'!$3:$3)+1,FALSE))*IF('Настройка ИБР+1'!AY$8='Настройка ИБР+1'!$AG$3,1,HLOOKUP('Настройка ИБР+1'!AY$8,'Настройка ИБР+1'!$M$3:$AF$21,ROW('Настройка ИБР+1'!14:14)-ROW('Настройка ИБР+1'!$3:$3)+1,FALSE))*'Настройка ИБР+1'!$D14) -> 0 | T14: =IF(ROUNDUP('Настройка ИБР+1'!AZ$4,0)=0,0,IF('Настройка ИБР+1'!AZ$6='Настройка ИБР+1'!$AG$3,1,HLOOKUP('Настройка ИБР+1'!AZ$6,'Настройка ИБР+1'!$M$3:$AF$21,ROW('Настройка ИБР+1'!14:14)-ROW('Настройка ИБР+1'!$3:$3)+1,FALSE))*IF('Настройка ИБР+1'!AZ$7='Настройка ИБР+1'!$AG$3,1,HLOOKUP('Настройка ИБР+1'!AZ$7,'Настройка ИБР+1'!$M$3:$AF$21,ROW('Настройка ИБР+1'!14:14)-ROW('Настройка ИБР+1'!$3:$3)+1,FALSE))*IF('Настройка ИБР+1'!AZ$8='Настройка ИБР+1'!$AG$3,1,HLOOKUP('Настройка ИБР+1'!AZ$8,'Настройка ИБР+1'!$M$3:$AF$21,ROW('Настройка ИБР+1'!14:14)-ROW('Настройка ИБР+1'!$3:$3)+1,FALSE))*'Настройка ИБР+1'!$D14) -> 0 | U14: =IF(ROUNDUP('Настройка ИБР+1'!BA$4,0)=0,0,IF('Настройка ИБР+1'!BA$6='Настройка ИБР+1'!$AG$3,1,HLOOKUP('Настройка ИБР+1'!BA$6,'Настройка ИБР+1'!$M$3:$AF$21,ROW('Настройка ИБР+1'!14:14)-ROW('Настройка ИБР+1'!$3:$3)+1,FALSE))*IF('Настройка ИБР+1'!BA$7='Настройка ИБР+1'!$AG$3,1,HLOOKUP('Настройка ИБР+1'!BA$7,'Настройка ИБР+1'!$M$3:$AF$21,ROW('Настройка ИБР+1'!14:14)-ROW('Настройка ИБР+1'!$3:$3)+1,FALSE))*IF('Настройка ИБР+1'!BA$8='Настройка ИБР+1'!$AG$3,1,HLOOKUP('Настройка ИБР+1'!BA$8,'Настройка ИБР+1'!$M$3:$AF$21,ROW('Настройка ИБР+1'!14:14)-ROW('Настройка ИБР+1'!$3:$3)+1,FALSE))*'Настройка ИБР+1'!$D14) -> 1.005446082 | V14: =IF(ROUNDUP('Настройка ИБР+1'!BB$4,0)=0,0,IF('Настройка ИБР+1'!BB$6='Настройка ИБР+1'!$AG$3,1,HLOOKUP('Настройка ИБР+1'!BB$6,'Настройка ИБР+1'!$M$3:$AF$21,ROW('Настройка ИБР+1'!14:14)-ROW('Настройка ИБР+1'!$3:$3)+1,FALSE))*IF('Настройка ИБР+1'!BB$7='Настройка ИБР+1'!$AG$3,1,HLOOKUP('Настройка ИБР+1'!BB$7,'Настройка ИБР+1'!$M$3:$AF$21,ROW('Настройка ИБР+1'!14:14)-ROW('Настройка ИБР+1'!$3:$3)+1,FALSE))*IF('Настройка ИБР+1'!BB$8='Настройка ИБР+1'!$AG$3,1,HLOOKUP('Настройка ИБР+1'!BB$8,'Настройка ИБР+1'!$M$3:$AF$21,ROW('Настройка ИБР+1'!14:14)-ROW('Настройка ИБР+1'!$3:$3)+1,FALSE))*'Настройка ИБР+1'!$D14) -> 0.9762838034 | W14: =IF(ROUNDUP('Настройка ИБР+1'!BC$4,0)=0,0,IF('Настройка ИБР+1'!BC$6='Настройка ИБР+1'!$AG$3,1,HLOOKUP('Настройка ИБР+1'!BC$6,'Настройка ИБР+1'!$M$3:$AF$21,ROW('Настройка ИБР+1'!14:14)-ROW('Настройка ИБР+1'!$3:$3)+1,FALSE))*IF('Настройка ИБР+1'!BC$7='Настройка ИБР+1'!$AG$3,1,HLOOKUP('Настройка ИБР+1'!BC$7,'Настройка ИБР+1'!$M$3:$AF$21,ROW('Настройка ИБР+1'!14:14)-ROW('Настройка ИБР+1'!$3:$3)+1,FALSE))*IF('Настройка ИБР+1'!BC$8='Настройка ИБР+1'!$AG$3,1,HLOOKUP('Настройка ИБР+1'!BC$8,'Настройка ИБР+1'!$M$3:$AF$21,ROW('Настройка ИБР+1'!14:14)-ROW('Настройка ИБР+1'!$3:$3)+1,FALSE))*'Настройка ИБР+1'!$D14) -> 0 | X14: =IF(ROUNDUP('Настройка ИБР+1'!BD$4,0)=0,0,IF('Настройка ИБР+1'!BD$6='Настройка ИБР+1'!$AG$3,1,HLOOKUP('Настройка ИБР+1'!BD$6,'Настройка ИБР+1'!$M$3:$AF$21,ROW('Настройка ИБР+1'!14:14)-ROW('Настройка ИБР+1'!$3:$3)+1,FALSE))*IF('Настройка ИБР+1'!BD$7='Настройка ИБР+1'!$AG$3,1,HLOOKUP('Настройка ИБР+1'!BD$7,'Настройка ИБР+1'!$M$3:$AF$21,ROW('Настройка ИБР+1'!14:14)-ROW('Настройка ИБР+1'!$3:$3)+1,FALSE))*IF('Настройка ИБР+1'!BD$8='Настройка ИБР+1'!$AG$3,1,HLOOKUP('Настройка ИБР+1'!BD$8,'Настройка ИБР+1'!$M$3:$AF$21,ROW('Настройка ИБР+1'!14:14)-ROW('Настройка ИБР+1'!$3:$3)+1,FALSE))*'Настройка ИБР+1'!$D14) -> 1.005446082 | Y14: =IF(ROUNDUP('Настройка ИБР+1'!BE$4,0)=0,0,IF('Настройка ИБР+1'!BE$6='Настройка ИБР+1'!$AG$3,1,HLOOKUP('Настройка ИБР+1'!BE$6,'Настройка ИБР+1'!$M$3:$AF$21,ROW('Настройка ИБР+1'!14:14)-ROW('Настройка ИБР+1'!$3:$3)+1,FALSE))*IF('Настройка ИБР+1'!BE$7='Настройка ИБР+1'!$AG$3,1,HLOOKUP('Настройка ИБР+1'!BE$7,'Настройка ИБР+1'!$M$3:$AF$21,ROW('Настройка ИБР+1'!14:14)-ROW('Настройка ИБР+1'!$3:$3)+1,FALSE))*IF('Настройка ИБР+1'!BE$8='Настройка ИБР+1'!$AG$3,1,HLOOKUP('Настройка ИБР+1'!BE$8,'Настройка ИБР+1'!$M$3:$AF$21,ROW('Настройка ИБР+1'!14:14)-ROW('Настройка ИБР+1'!$3:$3)+1,FALSE))*'Настройка ИБР+1'!$D14) -> 1.005446082 | Z14: =IF(ROUNDUP('Настройка ИБР+1'!BF$4,0)=0,0,IF('Настройка ИБР+1'!BF$6='Настройка ИБР+1'!$AG$3,1,HLOOKUP('Настройка ИБР+1'!BF$6,'Настройка ИБР+1'!$M$3:$AF$21,ROW('Настройка ИБР+1'!14:14)-ROW('Настройка ИБР+1'!$3:$3)+1,FALSE))*IF('Настройка ИБР+1'!BF$7='Настройка ИБР+1'!$AG$3,1,HLOOKUP('Настройка ИБР+1'!BF$7,'Настройка ИБР+1'!$M$3:$AF$21,ROW('Настройка ИБР+1'!14:14)-ROW('Настройка ИБР+1'!$3:$3)+1,FALSE))*IF('Настройка ИБР+1'!BF$8='Настройка ИБР+1'!$AG$3,1,HLOOKUP('Настройка ИБР+1'!BF$8,'Настройка ИБР+1'!$M$3:$AF$21,ROW('Настройка ИБР+1'!14:14)-ROW('Настройка ИБР+1'!$3:$3)+1,FALSE))*'Настройка ИБР+1'!$D14) -> 0 | AA14: =IF(ROUNDUP('Настройка ИБР+1'!BG$4,0)=0,0,IF('Настройка ИБР+1'!BG$6='Настройка ИБР+1'!$AG$3,1,HLOOKUP('Настройка ИБР+1'!BG$6,'Настройка ИБР+1'!$M$3:$AF$21,ROW('Настройка ИБР+1'!14:14)-ROW('Настройка ИБР+1'!$3:$3)+1,FALSE))*IF('Настройка ИБР+1'!BG$7='Настройка ИБР+1'!$AG$3,1,HLOOKUP('Настройка ИБР+1'!BG$7,'Настройка ИБР+1'!$M$3:$AF$21,ROW('Настройка ИБР+1'!14:14)-ROW('Настройка ИБР+1'!$3:$3)+1,FALSE))*IF('Настройка ИБР+1'!BG$8='Настройка ИБР+1'!$AG$3,1,HLOOKUP('Настройка ИБР+1'!BG$8,'Настройка ИБР+1'!$M$3:$AF$21,ROW('Настройка ИБР+1'!14:14)-ROW('Настройка ИБР+1'!$3:$3)+1,FALSE))*'Настройка ИБР+1'!$D14) -> 0 | AB14: =IF(ROUNDUP('Настройка ИБР+1'!BH$4,0)=0,0,IF('Настройка ИБР+1'!BH$6='Настройка ИБР+1'!$AG$3,1,HLOOKUP('Настройка ИБР+1'!BH$6,'Настройка ИБР+1'!$M$3:$AF$21,ROW('Настройка ИБР+1'!14:14)-ROW('Настройка ИБР+1'!$3:$3)+1,FALSE))*IF('Настройка ИБР+1'!BH$7='Настройка ИБР+1'!$AG$3,1,HLOOKUP('Настройка ИБР+1'!BH$7,'Настройка ИБР+1'!$M$3:$AF$21,ROW('Настройка ИБР+1'!14:14)-ROW('Настройка ИБР+1'!$3:$3)+1,FALSE))*IF('Настройка ИБР+1'!BH$8='Настройка ИБР+1'!$AG$3,1,HLOOKUP('Настройка ИБР+1'!BH$8,'Настройка ИБР+1'!$M$3:$AF$21,ROW('Настройка ИБР+1'!14:14)-ROW('Настройка ИБР+1'!$3:$3)+1,FALSE))*'Настройка ИБР+1'!$D14) -> 0 | AC14: =IF(ROUNDUP('Настройка ИБР+1'!BI$4,0)=0,0,IF('Настройка ИБР+1'!BI$6='Настройка ИБР+1'!$AG$3,1,HLOOKUP('Настройка ИБР+1'!BI$6,'Настройка ИБР+1'!$M$3:$AF$21,ROW('Настройка ИБР+1'!14:14)-ROW('Настройка ИБР+1'!$3:$3)+1,FALSE))*IF('Настройка ИБР+1'!BI$7='Настройка ИБР+1'!$AG$3,1,HLOOKUP('Настройка ИБР+1'!BI$7,'Настройка ИБР+1'!$M$3:$AF$21,ROW('Настройка ИБР+1'!14:14)-ROW('Настройка ИБР+1'!$3:$3)+1,FALSE))*IF('Настройка ИБР+1'!BI$8='Настройка ИБР+1'!$AG$3,1,HLOOKUP('Настройка ИБР+1'!BI$8,'Настройка ИБР+1'!$M$3:$AF$21,ROW('Настройка ИБР+1'!14:14)-ROW('Настройка ИБР+1'!$3:$3)+1,FALSE))*'Настройка ИБР+1'!$D14) -> 0 | AD14: =IF(ROUNDUP('Настройка ИБР+1'!BJ$4,0)=0,0,IF('Настройка ИБР+1'!BJ$6='Настройка ИБР+1'!$AG$3,1,HLOOKUP('Настройка ИБР+1'!BJ$6,'Настройка ИБР+1'!$M$3:$AF$21,ROW('Настройка ИБР+1'!14:14)-ROW('Настройка ИБР+1'!$3:$3)+1,FALSE))*IF('Настройка ИБР+1'!BJ$7='Настройка ИБР+1'!$AG$3,1,HLOOKUP('Настройка ИБР+1'!BJ$7,'Настройка ИБР+1'!$M$3:$AF$21,ROW('Настройка ИБР+1'!14:14)-ROW('Настройка ИБР+1'!$3:$3)+1,FALSE))*IF('Настройка ИБР+1'!BJ$8='Настройка ИБР+1'!$AG$3,1,HLOOKUP('Настройка ИБР+1'!BJ$8,'Настройка ИБР+1'!$M$3:$AF$21,ROW('Настройка ИБР+1'!14:14)-ROW('Настройка ИБР+1'!$3:$3)+1,FALSE))*'Настройка ИБР+1'!$D14) -> 0 | AE14: =IF(ROUNDUP('Настройка ИБР+1'!BK$4,0)=0,0,IF('Настройка ИБР+1'!BK$6='Настройка ИБР+1'!$AG$3,1,HLOOKUP('Настройка ИБР+1'!BK$6,'Настройка ИБР+1'!$M$3:$AF$21,ROW('Настройка ИБР+1'!14:14)-ROW('Настройка ИБР+1'!$3:$3)+1,FALSE))*IF('Настройка ИБР+1'!BK$7='Настройка ИБР+1'!$AG$3,1,HLOOKUP('Настройка ИБР+1'!BK$7,'Настройка ИБР+1'!$M$3:$AF$21,ROW('Настройка ИБР+1'!14:14)-ROW('Настройка ИБР+1'!$3:$3)+1,FALSE))*IF('Настройка ИБР+1'!BK$8='Настройка ИБР+1'!$AG$3,1,HLOOKUP('Настройка ИБР+1'!BK$8,'Настройка ИБР+1'!$M$3:$AF$21,ROW('Настройка ИБР+1'!14:14)-ROW('Настройка ИБР+1'!$3:$3)+1,FALSE))*'Настройка ИБР+1'!$D14) -> 0 | AF14: =IF(ROUNDUP('Настройка ИБР+1'!BL$4,0)=0,0,IF('Настройка ИБР+1'!BL$6='Настройка ИБР+1'!$AG$3,1,HLOOKUP('Настройка ИБР+1'!BL$6,'Настройка ИБР+1'!$M$3:$AF$21,ROW('Настройка ИБР+1'!14:14)-ROW('Настройка ИБР+1'!$3:$3)+1,FALSE))*IF('Настройка ИБР+1'!BL$7='Настройка ИБР+1'!$AG$3,1,HLOOKUP('Настройка ИБР+1'!BL$7,'Настройка ИБР+1'!$M$3:$AF$21,ROW('Настройка ИБР+1'!14:14)-ROW('Настройка ИБР+1'!$3:$3)+1,FALSE))*IF('Настройка ИБР+1'!BL$8='Настройка ИБР+1'!$AG$3,1,HLOOKUP('Настройка ИБР+1'!BL$8,'Настройка ИБР+1'!$M$3:$AF$21,ROW('Настройка ИБР+1'!14:14)-ROW('Настройка ИБР+1'!$3:$3)+1,FALSE))*'Настройка ИБР+1'!$D14) -> 1.005446082 | AG14: =IF(ROUNDUP('Настройка ИБР+1'!BM$4,0)=0,0,IF('Настройка ИБР+1'!BM$6='Настройка ИБР+1'!$AG$3,1,HLOOKUP('Настройка ИБР+1'!BM$6,'Настройка ИБР+1'!$M$3:$AF$21,ROW('Настройка ИБР+1'!14:14)-ROW('Настройка ИБР+1'!$3:$3)+1,FALSE))*IF('Настройка ИБР+1'!BM$7='Настройка ИБР+1'!$AG$3,1,HLOOKUP('Настройка ИБР+1'!BM$7,'Настройка ИБР+1'!$M$3:$AF$21,ROW('Настройка ИБР+1'!14:14)-ROW('Настройка ИБР+1'!$3:$3)+1,FALSE))*IF('Настройка ИБР+1'!BM$8='Настройка ИБР+1'!$AG$3,1,HLOOKUP('Настройка ИБР+1'!BM$8,'Настройка ИБР+1'!$M$3:$AF$21,ROW('Настройка ИБР+1'!14:14)-ROW('Настройка ИБР+1'!$3:$3)+1,FALSE))*'Настройка ИБР+1'!$D14) -> 0 | AH14: =IF(ROUNDUP('Настройка ИБР+1'!BN$4,0)=0,0,IF('Настройка ИБР+1'!BN$6='Настройка ИБР+1'!$AG$3,1,HLOOKUP('Настройка ИБР+1'!BN$6,'Настройка ИБР+1'!$M$3:$AF$21,ROW('Настройка ИБР+1'!14:14)-ROW('Настройка ИБР+1'!$3:$3)+1,FALSE))*IF('Настройка ИБР+1'!BN$7='Настройка ИБР+1'!$AG$3,1,HLOOKUP('Настройка ИБР+1'!BN$7,'Настройка ИБР+1'!$M$3:$AF$21,ROW('Настройка ИБР+1'!14:14)-ROW('Настройка ИБР+1'!$3:$3)+1,FALSE))*IF('Настройка ИБР+1'!BN$8='Настройка ИБР+1'!$AG$3,1,HLOOKUP('Настройка ИБР+1'!BN$8,'Настройка ИБР+1'!$M$3:$AF$21,ROW('Настройка ИБР+1'!14:14)-ROW('Настройка ИБР+1'!$3:$3)+1,FALSE))*'Настройка ИБР+1'!$D14) -> 0 | AI14: =IF(ROUNDUP('Настройка ИБР+1'!BO$4,0)=0,0,IF('Настройка ИБР+1'!BO$6='Настройка ИБР+1'!$AG$3,1,HLOOKUP('Настройка ИБР+1'!BO$6,'Настройка ИБР+1'!$M$3:$AF$21,ROW('Настройка ИБР+1'!14:14)-ROW('Настройка ИБР+1'!$3:$3)+1,FALSE))*IF('Настройка ИБР+1'!BO$7='Настройка ИБР+1'!$AG$3,1,HLOOKUP('Настройка ИБР+1'!BO$7,'Настройка ИБР+1'!$M$3:$AF$21,ROW('Настройка ИБР+1'!14:14)-ROW('Настройка ИБР+1'!$3:$3)+1,FALSE))*IF('Настройка ИБР+1'!BO$8='Настройка ИБР+1'!$AG$3,1,HLOOKUP('Настройка ИБР+1'!BO$8,'Настройка ИБР+1'!$M$3:$AF$21,ROW('Настройка ИБР+1'!14:14)-ROW('Настройка ИБР+1'!$3:$3)+1,FALSE))*'Настройка ИБР+1'!$D14) -> 1.005446082 | AL14: =CHOOSE($AK$11,HLOOKUP($AK$11,$C$2:$AI$21,ROW(14:14)-ROW($2:$2)+1,FALSE)*Данные!$F$11/HLOOKUP($AK$11,$C$2:$AI$21,ROW($11:$11)-ROW($2:$2)+1,FALSE),HLOOKUP($AK$11,#REF!,ROW(#REF!)-ROW(#REF!)+1,FALSE)*Данные!$F$11/HLOOKUP($AK$11,#REF!,ROW(#REF!)-ROW(#REF!)+1,FALSE),HLOOKUP($AK$11,#REF!,ROW(#REF!)-ROW(#REF!)+1,FALSE)*Данные!$F$11/HLOOKUP($AK$11,#REF!,ROW(#REF!)-ROW(#REF!)+1,FALSE)) -> 0.8763383071 | AM14: =CHOOSE($AK$11,HLOOKUP($AK$11,'Настройка ИБР+1'!$AI$2:$BO$21,ROW('Настройка ИБР+1'!14:14)-ROW('Настройка ИБР+1'!$2:$2)+1,FALSE)/Данные!$F14/(HLOOKUP($AK$11,'Настройка ИБР+1'!$AI$2:$BO$21,ROW(Данные!$11:$11)-ROW('Настройка ИБР+1'!$2:$2)+1,FALSE)/Данные!$F$11),HLOOKUP($AK$11,#REF!,ROW(#REF!)-ROW(#REF!)+1,FALSE)/Данные!$F14/(HLOOKUP($AK$11,#REF!,ROW(Данные!$11:$11)-ROW(#REF!)+1,FALSE)/Данные!$F$11),HLOOKUP($AK$11,#REF!,ROW(#REF!)-ROW(#REF!)+1,FALSE)/Данные!$F14/(HLOOKUP($AK$11,#REF!,ROW(Данные!$11:$11)-ROW(#REF!)+1,FALSE)/Данные!$F$11)) -> 0.9810659282
A15: =Данные!A15 -> 4 | B15: =Данные!D15 -> Красноульское с/п | C15: =SUMPRODUCT('Настройка ИБР+1'!$AJ$4:$BO$4,D15:AI15)*Данные!$F$11/SUMPRODUCT($D$11:$AI$11,'Настройка ИБР+1'!$AJ$4:$BO$4) -> 1.643076042 | D15: =IF(ROUNDUP('Настройка ИБР+1'!AJ$4,0)=0,0,IF('Настройка ИБР+1'!AJ$6='Настройка ИБР+1'!$AG$3,1,HLOOKUP('Настройка ИБР+1'!AJ$6,'Настройка ИБР+1'!$M$3:$AF$21,ROW('Настройка ИБР+1'!15:15)-ROW('Настройка ИБР+1'!$3:$3)+1,FALSE))*IF('Настройка ИБР+1'!AJ$7='Настройка ИБР+1'!$AG$3,1,HLOOKUP('Настройка ИБР+1'!AJ$7,'Настройка ИБР+1'!$M$3:$AF$21,ROW('Настройка ИБР+1'!15:15)-ROW('Настройка ИБР+1'!$3:$3)+1,FALSE))*IF('Настройка ИБР+1'!AJ$8='Настройка ИБР+1'!$AG$3,1,HLOOKUP('Настройка ИБР+1'!AJ$8,'Настройка ИБР+1'!$M$3:$AF$21,ROW('Настройка ИБР+1'!15:15)-ROW('Настройка ИБР+1'!$3:$3)+1,FALSE))*'Настройка ИБР+1'!$D15) -> 1.898666928 | E15: =IF(ROUNDUP('Настройка ИБР+1'!AK$4,0)=0,0,IF('Настройка ИБР+1'!AK$6='Настройка ИБР+1'!$AG$3,1,HLOOKUP('Настройка ИБР+1'!AK$6,'Настройка ИБР+1'!$M$3:$AF$21,ROW('Настройка ИБР+1'!15:15)-ROW('Настройка ИБР+1'!$3:$3)+1,FALSE))*IF('Настройка ИБР+1'!AK$7='Настройка ИБР+1'!$AG$3,1,HLOOKUP('Настройка ИБР+1'!AK$7,'Настройка ИБР+1'!$M$3:$AF$21,ROW('Настройка ИБР+1'!15:15)-ROW('Настройка ИБР+1'!$3:$3)+1,FALSE))*IF('Настройка ИБР+1'!AK$8='Настройка ИБР+1'!$AG$3,1,HLOOKUP('Настройка ИБР+1'!AK$8,'Настройка ИБР+1'!$M$3:$AF$21,ROW('Настройка ИБР+1'!15:15)-ROW('Настройка ИБР+1'!$3:$3)+1,FALSE))*'Настройка ИБР+1'!$D15) -> 0.9982271038 | F15: =IF(ROUNDUP('Настройка ИБР+1'!AL$4,0)=0,0,IF('Настройка ИБР+1'!AL$6='Настройка ИБР+1'!$AG$3,1,HLOOKUP('Настройка ИБР+1'!AL$6,'Настройка ИБР+1'!$M$3:$AF$21,ROW('Настройка ИБР+1'!15:15)-ROW('Настройка ИБР+1'!$3:$3)+1,FALSE))*IF('Настройка ИБР+1'!AL$7='Настройка ИБР+1'!$AG$3,1,HLOOKUP('Настройка ИБР+1'!AL$7,'Настройка ИБР+1'!$M$3:$AF$21,ROW('Настройка ИБР+1'!15:15)-ROW('Настройка ИБР+1'!$3:$3)+1,FALSE))*IF('Настройка ИБР+1'!AL$8='Настройка ИБР+1'!$AG$3,1,HLOOKUP('Настройка ИБР+1'!AL$8,'Настройка ИБР+1'!$M$3:$AF$21,ROW('Настройка ИБР+1'!15:15)-ROW('Настройка ИБР+1'!$3:$3)+1,FALSE))*'Настройка ИБР+1'!$D15) -> 0 | G15: =IF(ROUNDUP('Настройка ИБР+1'!AM$4,0)=0,0,IF('Настройка ИБР+1'!AM$6='Настройка ИБР+1'!$AG$3,1,HLOOKUP('Настройка ИБР+1'!AM$6,'Настройка ИБР+1'!$M$3:$AF$21,ROW('Настройка ИБР+1'!15:15)-ROW('Настройка ИБР+1'!$3:$3)+1,FALSE))*IF('Настройка ИБР+1'!AM$7='Настройка ИБР+1'!$AG$3,1,HLOOKUP('Настройка ИБР+1'!AM$7,'Настройка ИБР+1'!$M$3:$AF$21,ROW('Настройка ИБР+1'!15:15)-ROW('Настройка ИБР+1'!$3:$3)+1,FALSE))*IF('Настройка ИБР+1'!AM$8='Настройка ИБР+1'!$AG$3,1,HLOOKUP('Настройка ИБР+1'!AM$8,'Настройка ИБР+1'!$M$3:$AF$21,ROW('Настройка ИБР+1'!15:15)-ROW('Настройка ИБР+1'!$3:$3)+1,FALSE))*'Настройка ИБР+1'!$D15) -> 0 | H15: =IF(ROUNDUP('Настройка ИБР+1'!AN$4,0)=0,0,IF('Настройка ИБР+1'!AN$6='Настройка ИБР+1'!$AG$3,1,HLOOKUP('Настройка ИБР+1'!AN$6,'Настройка ИБР+1'!$M$3:$AF$21,ROW('Настройка ИБР+1'!15:15)-ROW('Настройка ИБР+1'!$3:$3)+1,FALSE))*IF('Настройка ИБР+1'!AN$7='Настройка ИБР+1'!$AG$3,1,HLOOKUP('Настройка ИБР+1'!AN$7,'Настройка ИБР+1'!$M$3:$AF$21,ROW('Настройка ИБР+1'!15:15)-ROW('Настройка ИБР+1'!$3:$3)+1,FALSE))*IF('Настройка ИБР+1'!AN$8='Настройка ИБР+1'!$AG$3,1,HLOOKUP('Настройка ИБР+1'!AN$8,'Настройка ИБР+1'!$M$3:$AF$21,ROW('Настройка ИБР+1'!15:15)-ROW('Настройка ИБР+1'!$3:$3)+1,FALSE))*'Настройка ИБР+1'!$D15) -> 0 | I15: =IF(ROUNDUP('Настройка ИБР+1'!AO$4,0)=0,0,IF('Настройка ИБР+1'!AO$6='Настройка ИБР+1'!$AG$3,1,HLOOKUP('Настройка ИБР+1'!AO$6,'Настройка ИБР+1'!$M$3:$AF$21,ROW('Настройка ИБР+1'!15:15)-ROW('Настройка ИБР+1'!$3:$3)+1,FALSE))*IF('Настройка ИБР+1'!AO$7='Настройка ИБР+1'!$AG$3,1,HLOOKUP('Настройка ИБР+1'!AO$7,'Настройка ИБР+1'!$M$3:$AF$21,ROW('Настройка ИБР+1'!15:15)-ROW('Настройка ИБР+1'!$3:$3)+1,FALSE))*IF('Настройка ИБР+1'!AO$8='Настройка ИБР+1'!$AG$3,1,HLOOKUP('Настройка ИБР+1'!AO$8,'Настройка ИБР+1'!$M$3:$AF$21,ROW('Настройка ИБР+1'!15:15)-ROW('Настройка ИБР+1'!$3:$3)+1,FALSE))*'Настройка ИБР+1'!$D15) -> 0.9982271038 | J15: =IF(ROUNDUP('Настройка ИБР+1'!AP$4,0)=0,0,IF('Настройка ИБР+1'!AP$6='Настройка ИБР+1'!$AG$3,1,HLOOKUP('Настройка ИБР+1'!AP$6,'Настройка ИБР+1'!$M$3:$AF$21,ROW('Настройка ИБР+1'!15:15)-ROW('Настройка ИБР+1'!$3:$3)+1,FALSE))*IF('Настройка ИБР+1'!AP$7='Настройка ИБР+1'!$AG$3,1,HLOOKUP('Настройка ИБР+1'!AP$7,'Настройка ИБР+1'!$M$3:$AF$21,ROW('Настройка ИБР+1'!15:15)-ROW('Настройка ИБР+1'!$3:$3)+1,FALSE))*IF('Настройка ИБР+1'!AP$8='Настройка ИБР+1'!$AG$3,1,HLOOKUP('Настройка ИБР+1'!AP$8,'Настройка ИБР+1'!$M$3:$AF$21,ROW('Настройка ИБР+1'!15:15)-ROW('Настройка ИБР+1'!$3:$3)+1,FALSE))*'Настройка ИБР+1'!$D15) -> 0.9982271038 | K15: =IF(ROUNDUP('Настройка ИБР+1'!AQ$4,0)=0,0,IF('Настройка ИБР+1'!AQ$6='Настройка ИБР+1'!$AG$3,1,HLOOKUP('Настройка ИБР+1'!AQ$6,'Настройка ИБР+1'!$M$3:$AF$21,ROW('Настройка ИБР+1'!15:15)-ROW('Настройка ИБР+1'!$3:$3)+1,FALSE))*IF('Настройка ИБР+1'!AQ$7='Настройка ИБР+1'!$AG$3,1,HLOOKUP('Настройка ИБР+1'!AQ$7,'Настройка ИБР+1'!$M$3:$AF$21,ROW('Настройка ИБР+1'!15:15)-ROW('Настройка ИБР+1'!$3:$3)+1,FALSE))*IF('Настройка ИБР+1'!AQ$8='Настройка ИБР+1'!$AG$3,1,HLOOKUP('Настройка ИБР+1'!AQ$8,'Настройка ИБР+1'!$M$3:$AF$21,ROW('Настройка ИБР+1'!15:15)-ROW('Настройка ИБР+1'!$3:$3)+1,FALSE))*'Настройка ИБР+1'!$D15) -> 0.9982271038 | L15: =IF(ROUNDUP('Настройка ИБР+1'!AR$4,0)=0,0,IF('Настройка ИБР+1'!AR$6='Настройка ИБР+1'!$AG$3,1,HLOOKUP('Настройка ИБР+1'!AR$6,'Настройка ИБР+1'!$M$3:$AF$21,ROW('Настройка ИБР+1'!15:15)-ROW('Настройка ИБР+1'!$3:$3)+1,FALSE))*IF('Настройка ИБР+1'!AR$7='Настройка ИБР+1'!$AG$3,1,HLOOKUP('Настройка ИБР+1'!AR$7,'Настройка ИБР+1'!$M$3:$AF$21,ROW('Настройка ИБР+1'!15:15)-ROW('Настройка ИБР+1'!$3:$3)+1,FALSE))*IF('Настройка ИБР+1'!AR$8='Настройка ИБР+1'!$AG$3,1,HLOOKUP('Настройка ИБР+1'!AR$8,'Настройка ИБР+1'!$M$3:$AF$21,ROW('Настройка ИБР+1'!15:15)-ROW('Настройка ИБР+1'!$3:$3)+1,FALSE))*'Настройка ИБР+1'!$D15) -> 0 | M15: =IF(ROUNDUP('Настройка ИБР+1'!AS$4,0)=0,0,IF('Настройка ИБР+1'!AS$6='Настройка ИБР+1'!$AG$3,1,HLOOKUP('Настройка ИБР+1'!AS$6,'Настройка ИБР+1'!$M$3:$AF$21,ROW('Настройка ИБР+1'!15:15)-ROW('Настройка ИБР+1'!$3:$3)+1,FALSE))*IF('Настройка ИБР+1'!AS$7='Настройка ИБР+1'!$AG$3,1,HLOOKUP('Настройка ИБР+1'!AS$7,'Настройка ИБР+1'!$M$3:$AF$21,ROW('Настройка ИБР+1'!15:15)-ROW('Настройка ИБР+1'!$3:$3)+1,FALSE))*IF('Настройка ИБР+1'!AS$8='Настройка ИБР+1'!$AG$3,1,HLOOKUP('Настройка ИБР+1'!AS$8,'Настройка ИБР+1'!$M$3:$AF$21,ROW('Настройка ИБР+1'!15:15)-ROW('Настройка ИБР+1'!$3:$3)+1,FALSE))*'Настройка ИБР+1'!$D15) -> 0 | N15: =IF(ROUNDUP('Настройка ИБР+1'!AT$4,0)=0,0,IF('Настройка ИБР+1'!AT$6='Настройка ИБР+1'!$AG$3,1,HLOOKUP('Настройка ИБР+1'!AT$6,'Настройка ИБР+1'!$M$3:$AF$21,ROW('Настройка ИБР+1'!15:15)-ROW('Настройка ИБР+1'!$3:$3)+1,FALSE))*IF('Настройка ИБР+1'!AT$7='Настройка ИБР+1'!$AG$3,1,HLOOKUP('Настройка ИБР+1'!AT$7,'Настройка ИБР+1'!$M$3:$AF$21,ROW('Настройка ИБР+1'!15:15)-ROW('Настройка ИБР+1'!$3:$3)+1,FALSE))*IF('Настройка ИБР+1'!AT$8='Настройка ИБР+1'!$AG$3,1,HLOOKUP('Настройка ИБР+1'!AT$8,'Настройка ИБР+1'!$M$3:$AF$21,ROW('Настройка ИБР+1'!15:15)-ROW('Настройка ИБР+1'!$3:$3)+1,FALSE))*'Настройка ИБР+1'!$D15) -> 1.898666928 | O15: =IF(ROUNDUP('Настройка ИБР+1'!AU$4,0)=0,0,IF('Настройка ИБР+1'!AU$6='Настройка ИБР+1'!$AG$3,1,HLOOKUP('Настройка ИБР+1'!AU$6,'Настройка ИБР+1'!$M$3:$AF$21,ROW('Настройка ИБР+1'!15:15)-ROW('Настройка ИБР+1'!$3:$3)+1,FALSE))*IF('Настройка ИБР+1'!AU$7='Настройка ИБР+1'!$AG$3,1,HLOOKUP('Настройка ИБР+1'!AU$7,'Настройка ИБР+1'!$M$3:$AF$21,ROW('Настройка ИБР+1'!15:15)-ROW('Настройка ИБР+1'!$3:$3)+1,FALSE))*IF('Настройка ИБР+1'!AU$8='Настройка ИБР+1'!$AG$3,1,HLOOKUP('Настройка ИБР+1'!AU$8,'Настройка ИБР+1'!$M$3:$AF$21,ROW('Настройка ИБР+1'!15:15)-ROW('Настройка ИБР+1'!$3:$3)+1,FALSE))*'Настройка ИБР+1'!$D15) -> 0 | P15: =IF(ROUNDUP('Настройка ИБР+1'!AV$4,0)=0,0,IF('Настройка ИБР+1'!AV$6='Настройка ИБР+1'!$AG$3,1,HLOOKUP('Настройка ИБР+1'!AV$6,'Настройка ИБР+1'!$M$3:$AF$21,ROW('Настройка ИБР+1'!15:15)-ROW('Настройка ИБР+1'!$3:$3)+1,FALSE))*IF('Настройка ИБР+1'!AV$7='Настройка ИБР+1'!$AG$3,1,HLOOKUP('Настройка ИБР+1'!AV$7,'Настройка ИБР+1'!$M$3:$AF$21,ROW('Настройка ИБР+1'!15:15)-ROW('Настройка ИБР+1'!$3:$3)+1,FALSE))*IF('Настройка ИБР+1'!AV$8='Настройка ИБР+1'!$AG$3,1,HLOOKUP('Настройка ИБР+1'!AV$8,'Настройка ИБР+1'!$M$3:$AF$21,ROW('Настройка ИБР+1'!15:15)-ROW('Настройка ИБР+1'!$3:$3)+1,FALSE))*'Настройка ИБР+1'!$D15) -> 0 | Q15: =IF(ROUNDUP('Настройка ИБР+1'!AW$4,0)=0,0,IF('Настройка ИБР+1'!AW$6='Настройка ИБР+1'!$AG$3,1,HLOOKUP('Настройка ИБР+1'!AW$6,'Настройка ИБР+1'!$M$3:$AF$21,ROW('Настройка ИБР+1'!15:15)-ROW('Настройка ИБР+1'!$3:$3)+1,FALSE))*IF('Настройка ИБР+1'!AW$7='Настройка ИБР+1'!$AG$3,1,HLOOKUP('Настройка ИБР+1'!AW$7,'Настройка ИБР+1'!$M$3:$AF$21,ROW('Настройка ИБР+1'!15:15)-ROW('Настройка ИБР+1'!$3:$3)+1,FALSE))*IF('Настройка ИБР+1'!AW$8='Настройка ИБР+1'!$AG$3,1,HLOOKUP('Настройка ИБР+1'!AW$8,'Настройка ИБР+1'!$M$3:$AF$21,ROW('Настройка ИБР+1'!15:15)-ROW('Настройка ИБР+1'!$3:$3)+1,FALSE))*'Настройка ИБР+1'!$D15) -> 0.9982271038 | R15: =IF(ROUNDUP('Настройка ИБР+1'!AX$4,0)=0,0,IF('Настройка ИБР+1'!AX$6='Настройка ИБР+1'!$AG$3,1,HLOOKUP('Настройка ИБР+1'!AX$6,'Настройка ИБР+1'!$M$3:$AF$21,ROW('Настройка ИБР+1'!15:15)-ROW('Настройка ИБР+1'!$3:$3)+1,FALSE))*IF('Настройка ИБР+1'!AX$7='Настройка ИБР+1'!$AG$3,1,HLOOKUP('Настройка ИБР+1'!AX$7,'Настройка ИБР+1'!$M$3:$AF$21,ROW('Настройка ИБР+1'!15:15)-ROW('Настройка ИБР+1'!$3:$3)+1,FALSE))*IF('Настройка ИБР+1'!AX$8='Настройка ИБР+1'!$AG$3,1,HLOOKUP('Настройка ИБР+1'!AX$8,'Настройка ИБР+1'!$M$3:$AF$21,ROW('Настройка ИБР+1'!15:15)-ROW('Настройка ИБР+1'!$3:$3)+1,FALSE))*'Настройка ИБР+1'!$D15) -> 0.9982271038 | S15: =IF(ROUNDUP('Настройка ИБР+1'!AY$4,0)=0,0,IF('Настройка ИБР+1'!AY$6='Настройка ИБР+1'!$AG$3,1,HLOOKUP('Настройка ИБР+1'!AY$6,'Настройка ИБР+1'!$M$3:$AF$21,ROW('Настройка ИБР+1'!15:15)-ROW('Настройка ИБР+1'!$3:$3)+1,FALSE))*IF('Настройка ИБР+1'!AY$7='Настройка ИБР+1'!$AG$3,1,HLOOKUP('Настройка ИБР+1'!AY$7,'Настройка ИБР+1'!$M$3:$AF$21,ROW('Настройка ИБР+1'!15:15)-ROW('Настройка ИБР+1'!$3:$3)+1,FALSE))*IF('Настройка ИБР+1'!AY$8='Настройка ИБР+1'!$AG$3,1,HLOOKUP('Настройка ИБР+1'!AY$8,'Настройка ИБР+1'!$M$3:$AF$21,ROW('Настройка ИБР+1'!15:15)-ROW('Настройка ИБР+1'!$3:$3)+1,FALSE))*'Настройка ИБР+1'!$D15) -> 0 | T15: =IF(ROUNDUP('Настройка ИБР+1'!AZ$4,0)=0,0,IF('Настройка ИБР+1'!AZ$6='Настройка ИБР+1'!$AG$3,1,HLOOKUP('Настройка ИБР+1'!AZ$6,'Настройка ИБР+1'!$M$3:$AF$21,ROW('Настройка ИБР+1'!15:15)-ROW('Настройка ИБР+1'!$3:$3)+1,FALSE))*IF('Настройка ИБР+1'!AZ$7='Настройка ИБР+1'!$AG$3,1,HLOOKUP('Настройка ИБР+1'!AZ$7,'Настройка ИБР+1'!$M$3:$AF$21,ROW('Настройка ИБР+1'!15:15)-ROW('Настройка ИБР+1'!$3:$3)+1,FALSE))*IF('Настройка ИБР+1'!AZ$8='Настройка ИБР+1'!$AG$3,1,HLOOKUP('Настройка ИБР+1'!AZ$8,'Настройка ИБР+1'!$M$3:$AF$21,ROW('Настройка ИБР+1'!15:15)-ROW('Настройка ИБР+1'!$3:$3)+1,FALSE))*'Настройка ИБР+1'!$D15) -> 0 | U15: =IF(ROUNDUP('Настройка ИБР+1'!BA$4,0)=0,0,IF('Настройка ИБР+1'!BA$6='Настройка ИБР+1'!$AG$3,1,HLOOKUP('Настройка ИБР+1'!BA$6,'Настройка ИБР+1'!$M$3:$AF$21,ROW('Настройка ИБР+1'!15:15)-ROW('Настройка ИБР+1'!$3:$3)+1,FALSE))*IF('Настройка ИБР+1'!BA$7='Настройка ИБР+1'!$AG$3,1,HLOOKUP('Настройка ИБР+1'!BA$7,'Настройка ИБР+1'!$M$3:$AF$21,ROW('Настройка ИБР+1'!15:15)-ROW('Настройка ИБР+1'!$3:$3)+1,FALSE))*IF('Настройка ИБР+1'!BA$8='Настройка ИБР+1'!$AG$3,1,HLOOKUP('Настройка ИБР+1'!BA$8,'Настройка ИБР+1'!$M$3:$AF$21,ROW('Настройка ИБР+1'!15:15)-ROW('Настройка ИБР+1'!$3:$3)+1,FALSE))*'Настройка ИБР+1'!$D15) -> 0.9982271038 | V15: =IF(ROUNDUP('Настройка ИБР+1'!BB$4,0)=0,0,IF('Настройка ИБР+1'!BB$6='Настройка ИБР+1'!$AG$3,1,HLOOKUP('Настройка ИБР+1'!BB$6,'Настройка ИБР+1'!$M$3:$AF$21,ROW('Настройка ИБР+1'!15:15)-ROW('Настройка ИБР+1'!$3:$3)+1,FALSE))*IF('Настройка ИБР+1'!BB$7='Настройка ИБР+1'!$AG$3,1,HLOOKUP('Настройка ИБР+1'!BB$7,'Настройка ИБР+1'!$M$3:$AF$21,ROW('Настройка ИБР+1'!15:15)-ROW('Настройка ИБР+1'!$3:$3)+1,FALSE))*IF('Настройка ИБР+1'!BB$8='Настройка ИБР+1'!$AG$3,1,HLOOKUP('Настройка ИБР+1'!BB$8,'Настройка ИБР+1'!$M$3:$AF$21,ROW('Настройка ИБР+1'!15:15)-ROW('Настройка ИБР+1'!$3:$3)+1,FALSE))*'Настройка ИБР+1'!$D15) -> 1.789147079 | W15: =IF(ROUNDUP('Настройка ИБР+1'!BC$4,0)=0,0,IF('Настройка ИБР+1'!BC$6='Настройка ИБР+1'!$AG$3,1,HLOOKUP('Настройка ИБР+1'!BC$6,'Настройка ИБР+1'!$M$3:$AF$21,ROW('Настройка ИБР+1'!15:15)-ROW('Настройка ИБР+1'!$3:$3)+1,FALSE))*IF('Настройка ИБР+1'!BC$7='Настройка ИБР+1'!$AG$3,1,HLOOKUP('Настройка ИБР+1'!BC$7,'Настройка ИБР+1'!$M$3:$AF$21,ROW('Настройка ИБР+1'!15:15)-ROW('Настройка ИБР+1'!$3:$3)+1,FALSE))*IF('Настройка ИБР+1'!BC$8='Настройка ИБР+1'!$AG$3,1,HLOOKUP('Настройка ИБР+1'!BC$8,'Настройка ИБР+1'!$M$3:$AF$21,ROW('Настройка ИБР+1'!15:15)-ROW('Настройка ИБР+1'!$3:$3)+1,FALSE))*'Настройка ИБР+1'!$D15) -> 0 | X15: =IF(ROUNDUP('Настройка ИБР+1'!BD$4,0)=0,0,IF('Настройка ИБР+1'!BD$6='Настройка ИБР+1'!$AG$3,1,HLOOKUP('Настройка ИБР+1'!BD$6,'Настройка ИБР+1'!$M$3:$AF$21,ROW('Настройка ИБР+1'!15:15)-ROW('Настройка ИБР+1'!$3:$3)+1,FALSE))*IF('Настройка ИБР+1'!BD$7='Настройка ИБР+1'!$AG$3,1,HLOOKUP('Настройка ИБР+1'!BD$7,'Настройка ИБР+1'!$M$3:$AF$21,ROW('Настройка ИБР+1'!15:15)-ROW('Настройка ИБР+1'!$3:$3)+1,FALSE))*IF('Настройка ИБР+1'!BD$8='Настройка ИБР+1'!$AG$3,1,HLOOKUP('Настройка ИБР+1'!BD$8,'Настройка ИБР+1'!$M$3:$AF$21,ROW('Настройка ИБР+1'!15:15)-ROW('Настройка ИБР+1'!$3:$3)+1,FALSE))*'Настройка ИБР+1'!$D15) -> 0.9982271038 | Y15: =IF(ROUNDUP('Настройка ИБР+1'!BE$4,0)=0,0,IF('Настройка ИБР+1'!BE$6='Настройка ИБР+1'!$AG$3,1,HLOOKUP('Настройка ИБР+1'!BE$6,'Настройка ИБР+1'!$M$3:$AF$21,ROW('Настройка ИБР+1'!15:15)-ROW('Настройка ИБР+1'!$3:$3)+1,FALSE))*IF('Настройка ИБР+1'!BE$7='Настройка ИБР+1'!$AG$3,1,HLOOKUP('Настройка ИБР+1'!BE$7,'Настройка ИБР+1'!$M$3:$AF$21,ROW('Настройка ИБР+1'!15:15)-ROW('Настройка ИБР+1'!$3:$3)+1,FALSE))*IF('Настройка ИБР+1'!BE$8='Настройка ИБР+1'!$AG$3,1,HLOOKUP('Настройка ИБР+1'!BE$8,'Настройка ИБР+1'!$M$3:$AF$21,ROW('Настройка ИБР+1'!15:15)-ROW('Настройка ИБР+1'!$3:$3)+1,FALSE))*'Настройка ИБР+1'!$D15) -> 0.9982271038 | Z15: =IF(ROUNDUP('Настройка ИБР+1'!BF$4,0)=0,0,IF('Настройка ИБР+1'!BF$6='Настройка ИБР+1'!$AG$3,1,HLOOKUP('Настройка ИБР+1'!BF$6,'Настройка ИБР+1'!$M$3:$AF$21,ROW('Настройка ИБР+1'!15:15)-ROW('Настройка ИБР+1'!$3:$3)+1,FALSE))*IF('Настройка ИБР+1'!BF$7='Настройка ИБР+1'!$AG$3,1,HLOOKUP('Настройка ИБР+1'!BF$7,'Настройка ИБР+1'!$M$3:$AF$21,ROW('Настройка ИБР+1'!15:15)-ROW('Настройка ИБР+1'!$3:$3)+1,FALSE))*IF('Настройка ИБР+1'!BF$8='Настройка ИБР+1'!$AG$3,1,HLOOKUP('Настройка ИБР+1'!BF$8,'Настройка ИБР+1'!$M$3:$AF$21,ROW('Настройка ИБР+1'!15:15)-ROW('Настройка ИБР+1'!$3:$3)+1,FALSE))*'Настройка ИБР+1'!$D15) -> 0 | AA15: =IF(ROUNDUP('Настройка ИБР+1'!BG$4,0)=0,0,IF('Настройка ИБР+1'!BG$6='Настройка ИБР+1'!$AG$3,1,HLOOKUP('Настройка ИБР+1'!BG$6,'Настройка ИБР+1'!$M$3:$AF$21,ROW('Настройка ИБР+1'!15:15)-ROW('Настройка ИБР+1'!$3:$3)+1,FALSE))*IF('Настройка ИБР+1'!BG$7='Настройка ИБР+1'!$AG$3,1,HLOOKUP('Настройка ИБР+1'!BG$7,'Настройка ИБР+1'!$M$3:$AF$21,ROW('Настройка ИБР+1'!15:15)-ROW('Настройка ИБР+1'!$3:$3)+1,FALSE))*IF('Настройка ИБР+1'!BG$8='Настройка ИБР+1'!$AG$3,1,HLOOKUP('Настройка ИБР+1'!BG$8,'Настройка ИБР+1'!$M$3:$AF$21,ROW('Настройка ИБР+1'!15:15)-ROW('Настройка ИБР+1'!$3:$3)+1,FALSE))*'Настройка ИБР+1'!$D15) -> 0 | AB15: =IF(ROUNDUP('Настройка ИБР+1'!BH$4,0)=0,0,IF('Настройка ИБР+1'!BH$6='Настройка ИБР+1'!$AG$3,1,HLOOKUP('Настройка ИБР+1'!BH$6,'Настройка ИБР+1'!$M$3:$AF$21,ROW('Настройка ИБР+1'!15:15)-ROW('Настройка ИБР+1'!$3:$3)+1,FALSE))*IF('Настройка ИБР+1'!BH$7='Настройка ИБР+1'!$AG$3,1,HLOOKUP('Настройка ИБР+1'!BH$7,'Настройка ИБР+1'!$M$3:$AF$21,ROW('Настройка ИБР+1'!15:15)-ROW('Настройка ИБР+1'!$3:$3)+1,FALSE))*IF('Настройка ИБР+1'!BH$8='Настройка ИБР+1'!$AG$3,1,HLOOKUP('Настройка ИБР+1'!BH$8,'Настройка ИБР+1'!$M$3:$AF$21,ROW('Настройка ИБР+1'!15:15)-ROW('Настройка ИБР+1'!$3:$3)+1,FALSE))*'Настройка ИБР+1'!$D15) -> 0 | AC15: =IF(ROUNDUP('Настройка ИБР+1'!BI$4,0)=0,0,IF('Настройка ИБР+1'!BI$6='Настройка ИБР+1'!$AG$3,1,HLOOKUP('Настройка ИБР+1'!BI$6,'Настройка ИБР+1'!$M$3:$AF$21,ROW('Настройка ИБР+1'!15:15)-ROW('Настройка ИБР+1'!$3:$3)+1,FALSE))*IF('Настройка ИБР+1'!BI$7='Настройка ИБР+1'!$AG$3,1,HLOOKUP('Настройка ИБР+1'!BI$7,'Настройка ИБР+1'!$M$3:$AF$21,ROW('Настройка ИБР+1'!15:15)-ROW('Настройка ИБР+1'!$3:$3)+1,FALSE))*IF('Настройка ИБР+1'!BI$8='Настройка ИБР+1'!$AG$3,1,HLOOKUP('Настройка ИБР+1'!BI$8,'Настройка ИБР+1'!$M$3:$AF$21,ROW('Настройка ИБР+1'!15:15)-ROW('Настройка ИБР+1'!$3:$3)+1,FALSE))*'Настройка ИБР+1'!$D15) -> 0 | AD15: =IF(ROUNDUP('Настройка ИБР+1'!BJ$4,0)=0,0,IF('Настройка ИБР+1'!BJ$6='Настройка ИБР+1'!$AG$3,1,HLOOKUP('Настройка ИБР+1'!BJ$6,'Настройка ИБР+1'!$M$3:$AF$21,ROW('Настройка ИБР+1'!15:15)-ROW('Настройка ИБР+1'!$3:$3)+1,FALSE))*IF('Настройка ИБР+1'!BJ$7='Настройка ИБР+1'!$AG$3,1,HLOOKUP('Настройка ИБР+1'!BJ$7,'Настройка ИБР+1'!$M$3:$AF$21,ROW('Настройка ИБР+1'!15:15)-ROW('Настройка ИБР+1'!$3:$3)+1,FALSE))*IF('Настройка ИБР+1'!BJ$8='Настройка ИБР+1'!$AG$3,1,HLOOKUP('Настройка ИБР+1'!BJ$8,'Настройка ИБР+1'!$M$3:$AF$21,ROW('Настройка ИБР+1'!15:15)-ROW('Настройка ИБР+1'!$3:$3)+1,FALSE))*'Настройка ИБР+1'!$D15) -> 0 | AE15: =IF(ROUNDUP('Настройка ИБР+1'!BK$4,0)=0,0,IF('Настройка ИБР+1'!BK$6='Настройка ИБР+1'!$AG$3,1,HLOOKUP('Настройка ИБР+1'!BK$6,'Настройка ИБР+1'!$M$3:$AF$21,ROW('Настройка ИБР+1'!15:15)-ROW('Настройка ИБР+1'!$3:$3)+1,FALSE))*IF('Настройка ИБР+1'!BK$7='Настройка ИБР+1'!$AG$3,1,HLOOKUP('Настройка ИБР+1'!BK$7,'Настройка ИБР+1'!$M$3:$AF$21,ROW('Настройка ИБР+1'!15:15)-ROW('Настройка ИБР+1'!$3:$3)+1,FALSE))*IF('Настройка ИБР+1'!BK$8='Настройка ИБР+1'!$AG$3,1,HLOOKUP('Настройка ИБР+1'!BK$8,'Настройка ИБР+1'!$M$3:$AF$21,ROW('Настройка ИБР+1'!15:15)-ROW('Настройка ИБР+1'!$3:$3)+1,FALSE))*'Настройка ИБР+1'!$D15) -> 0 | AF15: =IF(ROUNDUP('Настройка ИБР+1'!BL$4,0)=0,0,IF('Настройка ИБР+1'!BL$6='Настройка ИБР+1'!$AG$3,1,HLOOKUP('Настройка ИБР+1'!BL$6,'Настройка ИБР+1'!$M$3:$AF$21,ROW('Настройка ИБР+1'!15:15)-ROW('Настройка ИБР+1'!$3:$3)+1,FALSE))*IF('Настройка ИБР+1'!BL$7='Настройка ИБР+1'!$AG$3,1,HLOOKUP('Настройка ИБР+1'!BL$7,'Настройка ИБР+1'!$M$3:$AF$21,ROW('Настройка ИБР+1'!15:15)-ROW('Настройка ИБР+1'!$3:$3)+1,FALSE))*IF('Настройка ИБР+1'!BL$8='Настройка ИБР+1'!$AG$3,1,HLOOKUP('Настройка ИБР+1'!BL$8,'Настройка ИБР+1'!$M$3:$AF$21,ROW('Настройка ИБР+1'!15:15)-ROW('Настройка ИБР+1'!$3:$3)+1,FALSE))*'Настройка ИБР+1'!$D15) -> 0.9982271038 | AG15: =IF(ROUNDUP('Настройка ИБР+1'!BM$4,0)=0,0,IF('Настройка ИБР+1'!BM$6='Настройка ИБР+1'!$AG$3,1,HLOOKUP('Настройка ИБР+1'!BM$6,'Настройка ИБР+1'!$M$3:$AF$21,ROW('Настройка ИБР+1'!15:15)-ROW('Настройка ИБР+1'!$3:$3)+1,FALSE))*IF('Настройка ИБР+1'!BM$7='Настройка ИБР+1'!$AG$3,1,HLOOKUP('Настройка ИБР+1'!BM$7,'Настройка ИБР+1'!$M$3:$AF$21,ROW('Настройка ИБР+1'!15:15)-ROW('Настройка ИБР+1'!$3:$3)+1,FALSE))*IF('Настройка ИБР+1'!BM$8='Настройка ИБР+1'!$AG$3,1,HLOOKUP('Настройка ИБР+1'!BM$8,'Настройка ИБР+1'!$M$3:$AF$21,ROW('Настройка ИБР+1'!15:15)-ROW('Настройка ИБР+1'!$3:$3)+1,FALSE))*'Настройка ИБР+1'!$D15) -> 0 | AH15: =IF(ROUNDUP('Настройка ИБР+1'!BN$4,0)=0,0,IF('Настройка ИБР+1'!BN$6='Настройка ИБР+1'!$AG$3,1,HLOOKUP('Настройка ИБР+1'!BN$6,'Настройка ИБР+1'!$M$3:$AF$21,ROW('Настройка ИБР+1'!15:15)-ROW('Настройка ИБР+1'!$3:$3)+1,FALSE))*IF('Настройка ИБР+1'!BN$7='Настройка ИБР+1'!$AG$3,1,HLOOKUP('Настройка ИБР+1'!BN$7,'Настройка ИБР+1'!$M$3:$AF$21,ROW('Настройка ИБР+1'!15:15)-ROW('Настройка ИБР+1'!$3:$3)+1,FALSE))*IF('Настройка ИБР+1'!BN$8='Настройка ИБР+1'!$AG$3,1,HLOOKUP('Настройка ИБР+1'!BN$8,'Настройка ИБР+1'!$M$3:$AF$21,ROW('Настройка ИБР+1'!15:15)-ROW('Настройка ИБР+1'!$3:$3)+1,FALSE))*'Настройка ИБР+1'!$D15) -> 0 | AI15: =IF(ROUNDUP('Настройка ИБР+1'!BO$4,0)=0,0,IF('Настройка ИБР+1'!BO$6='Настройка ИБР+1'!$AG$3,1,HLOOKUP('Настройка ИБР+1'!BO$6,'Настройка ИБР+1'!$M$3:$AF$21,ROW('Настройка ИБР+1'!15:15)-ROW('Настройка ИБР+1'!$3:$3)+1,FALSE))*IF('Настройка ИБР+1'!BO$7='Настройка ИБР+1'!$AG$3,1,HLOOKUP('Настройка ИБР+1'!BO$7,'Настройка ИБР+1'!$M$3:$AF$21,ROW('Настройка ИБР+1'!15:15)-ROW('Настройка ИБР+1'!$3:$3)+1,FALSE))*IF('Настройка ИБР+1'!BO$8='Настройка ИБР+1'!$AG$3,1,HLOOKUP('Настройка ИБР+1'!BO$8,'Настройка ИБР+1'!$M$3:$AF$21,ROW('Настройка ИБР+1'!15:15)-ROW('Настройка ИБР+1'!$3:$3)+1,FALSE))*'Настройка ИБР+1'!$D15) -> 0.9982271038 | AL15: =CHOOSE($AK$11,HLOOKUP($AK$11,$C$2:$AI$21,ROW(15:15)-ROW($2:$2)+1,FALSE)*Данные!$F$11/HLOOKUP($AK$11,$C$2:$AI$21,ROW($11:$11)-ROW($2:$2)+1,FALSE),HLOOKUP($AK$11,#REF!,ROW(#REF!)-ROW(#REF!)+1,FALSE)*Данные!$F$11/HLOOKUP($AK$11,#REF!,ROW(#REF!)-ROW(#REF!)+1,FALSE),HLOOKUP($AK$11,#REF!,ROW(#REF!)-ROW(#REF!)+1,FALSE)*Данные!$F$11/HLOOKUP($AK$11,#REF!,ROW(#REF!)-ROW(#REF!)+1,FALSE)) -> 1.643076042 | AM15: =CHOOSE($AK$11,HLOOKUP($AK$11,'Настройка ИБР+1'!$AI$2:$BO$21,ROW('Настройка ИБР+1'!15:15)-ROW('Настройка ИБР+1'!$2:$2)+1,FALSE)/Данные!$F15/(HLOOKUP($AK$11,'Настройка ИБР+1'!$AI$2:$BO$21,ROW(Данные!$11:$11)-ROW('Настройка ИБР+1'!$2:$2)+1,FALSE)/Данные!$F$11),HLOOKUP($AK$11,#REF!,ROW(#REF!)-ROW(#REF!)+1,FALSE)/Данные!$F15/(HLOOKUP($AK$11,#REF!,ROW(Данные!$11:$11)-ROW(#REF!)+1,FALSE)/Данные!$F$11),HLOOKUP($AK$11,#REF!,ROW(#REF!)-ROW(#REF!)+1,FALSE)/Данные!$F15/(HLOOKUP($AK$11,#REF!,ROW(Данные!$11:$11)-ROW(#REF!)+1,FALSE)/Данные!$F$11)) -> 0.9989511573
A16: =Данные!A16 -> 5 | B16: =Данные!D16 -> Кужорское с/п | C16: =SUMPRODUCT('Настройка ИБР+1'!$AJ$4:$BO$4,D16:AI16)*Данные!$F$11/SUMPRODUCT($D$11:$AI$11,'Настройка ИБР+1'!$AJ$4:$BO$4) -> 1.108263691 | D16: =IF(ROUNDUP('Настройка ИБР+1'!AJ$4,0)=0,0,IF('Настройка ИБР+1'!AJ$6='Настройка ИБР+1'!$AG$3,1,HLOOKUP('Настройка ИБР+1'!AJ$6,'Настройка ИБР+1'!$M$3:$AF$21,ROW('Настройка ИБР+1'!16:16)-ROW('Настройка ИБР+1'!$3:$3)+1,FALSE))*IF('Настройка ИБР+1'!AJ$7='Настройка ИБР+1'!$AG$3,1,HLOOKUP('Настройка ИБР+1'!AJ$7,'Настройка ИБР+1'!$M$3:$AF$21,ROW('Настройка ИБР+1'!16:16)-ROW('Настройка ИБР+1'!$3:$3)+1,FALSE))*IF('Настройка ИБР+1'!AJ$8='Настройка ИБР+1'!$AG$3,1,HLOOKUP('Настройка ИБР+1'!AJ$8,'Настройка ИБР+1'!$M$3:$AF$21,ROW('Настройка ИБР+1'!16:16)-ROW('Настройка ИБР+1'!$3:$3)+1,FALSE))*'Настройка ИБР+1'!$D16) -> 1.171512778 | E16: =IF(ROUNDUP('Настройка ИБР+1'!AK$4,0)=0,0,IF('Настройка ИБР+1'!AK$6='Настройка ИБР+1'!$AG$3,1,HLOOKUP('Настройка ИБР+1'!AK$6,'Настройка ИБР+1'!$M$3:$AF$21,ROW('Настройка ИБР+1'!16:16)-ROW('Настройка ИБР+1'!$3:$3)+1,FALSE))*IF('Настройка ИБР+1'!AK$7='Настройка ИБР+1'!$AG$3,1,HLOOKUP('Настройка ИБР+1'!AK$7,'Настройка ИБР+1'!$M$3:$AF$21,ROW('Настройка ИБР+1'!16:16)-ROW('Настройка ИБР+1'!$3:$3)+1,FALSE))*IF('Настройка ИБР+1'!AK$8='Настройка ИБР+1'!$AG$3,1,HLOOKUP('Настройка ИБР+1'!AK$8,'Настройка ИБР+1'!$M$3:$AF$21,ROW('Настройка ИБР+1'!16:16)-ROW('Настройка ИБР+1'!$3:$3)+1,FALSE))*'Настройка ИБР+1'!$D16) -> 0.9954424074 | F16: =IF(ROUNDUP('Настройка ИБР+1'!AL$4,0)=0,0,IF('Настройка ИБР+1'!AL$6='Настройка ИБР+1'!$AG$3,1,HLOOKUP('Настройка ИБР+1'!AL$6,'Настройка ИБР+1'!$M$3:$AF$21,ROW('Настройка ИБР+1'!16:16)-ROW('Настройка ИБР+1'!$3:$3)+1,FALSE))*IF('Настройка ИБР+1'!AL$7='Настройка ИБР+1'!$AG$3,1,HLOOKUP('Настройка ИБР+1'!AL$7,'Настройка ИБР+1'!$M$3:$AF$21,ROW('Настройка ИБР+1'!16:16)-ROW('Настройка ИБР+1'!$3:$3)+1,FALSE))*IF('Настройка ИБР+1'!AL$8='Настройка ИБР+1'!$AG$3,1,HLOOKUP('Настройка ИБР+1'!AL$8,'Настройка ИБР+1'!$M$3:$AF$21,ROW('Настройка ИБР+1'!16:16)-ROW('Настройка ИБР+1'!$3:$3)+1,FALSE))*'Настройка ИБР+1'!$D16) -> 0 | G16: =IF(ROUNDUP('Настройка ИБР+1'!AM$4,0)=0,0,IF('Настройка ИБР+1'!AM$6='Настройка ИБР+1'!$AG$3,1,HLOOKUP('Настройка ИБР+1'!AM$6,'Настройка ИБР+1'!$M$3:$AF$21,ROW('Настройка ИБР+1'!16:16)-ROW('Настройка ИБР+1'!$3:$3)+1,FALSE))*IF('Настройка ИБР+1'!AM$7='Настройка ИБР+1'!$AG$3,1,HLOOKUP('Настройка ИБР+1'!AM$7,'Настройка ИБР+1'!$M$3:$AF$21,ROW('Настройка ИБР+1'!16:16)-ROW('Настройка ИБР+1'!$3:$3)+1,FALSE))*IF('Настройка ИБР+1'!AM$8='Настройка ИБР+1'!$AG$3,1,HLOOKUP('Настройка ИБР+1'!AM$8,'Настройка ИБР+1'!$M$3:$AF$21,ROW('Настройка ИБР+1'!16:16)-ROW('Настройка ИБР+1'!$3:$3)+1,FALSE))*'Настройка ИБР+1'!$D16) -> 0 | H16: =IF(ROUNDUP('Настройка ИБР+1'!AN$4,0)=0,0,IF('Настройка ИБР+1'!AN$6='Настройка ИБР+1'!$AG$3,1,HLOOKUP('Настройка ИБР+1'!AN$6,'Настройка ИБР+1'!$M$3:$AF$21,ROW('Настройка ИБР+1'!16:16)-ROW('Настройка ИБР+1'!$3:$3)+1,FALSE))*IF('Настройка ИБР+1'!AN$7='Настройка ИБР+1'!$AG$3,1,HLOOKUP('Настройка ИБР+1'!AN$7,'Настройка ИБР+1'!$M$3:$AF$21,ROW('Настройка ИБР+1'!16:16)-ROW('Настройка ИБР+1'!$3:$3)+1,FALSE))*IF('Настройка ИБР+1'!AN$8='Настройка ИБР+1'!$AG$3,1,HLOOKUP('Настройка ИБР+1'!AN$8,'Настройка ИБР+1'!$M$3:$AF$21,ROW('Настройка ИБР+1'!16:16)-ROW('Настройка ИБР+1'!$3:$3)+1,FALSE))*'Настройка ИБР+1'!$D16) -> 0 | I16: =IF(ROUNDUP('Настройка ИБР+1'!AO$4,0)=0,0,IF('Настройка ИБР+1'!AO$6='Настройка ИБР+1'!$AG$3,1,HLOOKUP('Настройка ИБР+1'!AO$6,'Настройка ИБР+1'!$M$3:$AF$21,ROW('Настройка ИБР+1'!16:16)-ROW('Настройка ИБР+1'!$3:$3)+1,FALSE))*IF('Настройка ИБР+1'!AO$7='Настройка ИБР+1'!$AG$3,1,HLOOKUP('Настройка ИБР+1'!AO$7,'Настройка ИБР+1'!$M$3:$AF$21,ROW('Настройка ИБР+1'!16:16)-ROW('Настройка ИБР+1'!$3:$3)+1,FALSE))*IF('Настройка ИБР+1'!AO$8='Настройка ИБР+1'!$AG$3,1,HLOOKUP('Настройка ИБР+1'!AO$8,'Настройка ИБР+1'!$M$3:$AF$21,ROW('Настройка ИБР+1'!16:16)-ROW('Настройка ИБР+1'!$3:$3)+1,FALSE))*'Настройка ИБР+1'!$D16) -> 0.9954424074 | J16: =IF(ROUNDUP('Настройка ИБР+1'!AP$4,0)=0,0,IF('Настройка ИБР+1'!AP$6='Настройка ИБР+1'!$AG$3,1,HLOOKUP('Настройка ИБР+1'!AP$6,'Настройка ИБР+1'!$M$3:$AF$21,ROW('Настройка ИБР+1'!16:16)-ROW('Настройка ИБР+1'!$3:$3)+1,FALSE))*IF('Настройка ИБР+1'!AP$7='Настройка ИБР+1'!$AG$3,1,HLOOKUP('Настройка ИБР+1'!AP$7,'Настройка ИБР+1'!$M$3:$AF$21,ROW('Настройка ИБР+1'!16:16)-ROW('Настройка ИБР+1'!$3:$3)+1,FALSE))*IF('Настройка ИБР+1'!AP$8='Настройка ИБР+1'!$AG$3,1,HLOOKUP('Настройка ИБР+1'!AP$8,'Настройка ИБР+1'!$M$3:$AF$21,ROW('Настройка ИБР+1'!16:16)-ROW('Настройка ИБР+1'!$3:$3)+1,FALSE))*'Настройка ИБР+1'!$D16) -> 0.9954424074 | K16: =IF(ROUNDUP('Настройка ИБР+1'!AQ$4,0)=0,0,IF('Настройка ИБР+1'!AQ$6='Настройка ИБР+1'!$AG$3,1,HLOOKUP('Настройка ИБР+1'!AQ$6,'Настройка ИБР+1'!$M$3:$AF$21,ROW('Настройка ИБР+1'!16:16)-ROW('Настройка ИБР+1'!$3:$3)+1,FALSE))*IF('Настройка ИБР+1'!AQ$7='Настройка ИБР+1'!$AG$3,1,HLOOKUP('Настройка ИБР+1'!AQ$7,'Настройка ИБР+1'!$M$3:$AF$21,ROW('Настройка ИБР+1'!16:16)-ROW('Настройка ИБР+1'!$3:$3)+1,FALSE))*IF('Настройка ИБР+1'!AQ$8='Настройка ИБР+1'!$AG$3,1,HLOOKUP('Настройка ИБР+1'!AQ$8,'Настройка ИБР+1'!$M$3:$AF$21,ROW('Настройка ИБР+1'!16:16)-ROW('Настройка ИБР+1'!$3:$3)+1,FALSE))*'Настройка ИБР+1'!$D16) -> 0.9954424074 | L16: =IF(ROUNDUP('Настройка ИБР+1'!AR$4,0)=0,0,IF('Настройка ИБР+1'!AR$6='Настройка ИБР+1'!$AG$3,1,HLOOKUP('Настройка ИБР+1'!AR$6,'Настройка ИБР+1'!$M$3:$AF$21,ROW('Настройка ИБР+1'!16:16)-ROW('Настройка ИБР+1'!$3:$3)+1,FALSE))*IF('Настройка ИБР+1'!AR$7='Настройка ИБР+1'!$AG$3,1,HLOOKUP('Настройка ИБР+1'!AR$7,'Настройка ИБР+1'!$M$3:$AF$21,ROW('Настройка ИБР+1'!16:16)-ROW('Настройка ИБР+1'!$3:$3)+1,FALSE))*IF('Настройка ИБР+1'!AR$8='Настройка ИБР+1'!$AG$3,1,HLOOKUP('Настройка ИБР+1'!AR$8,'Настройка ИБР+1'!$M$3:$AF$21,ROW('Настройка ИБР+1'!16:16)-ROW('Настройка ИБР+1'!$3:$3)+1,FALSE))*'Настройка ИБР+1'!$D16) -> 0 | M16: =IF(ROUNDUP('Настройка ИБР+1'!AS$4,0)=0,0,IF('Настройка ИБР+1'!AS$6='Настройка ИБР+1'!$AG$3,1,HLOOKUP('Настройка ИБР+1'!AS$6,'Настройка ИБР+1'!$M$3:$AF$21,ROW('Настройка ИБР+1'!16:16)-ROW('Настройка ИБР+1'!$3:$3)+1,FALSE))*IF('Настройка ИБР+1'!AS$7='Настройка ИБР+1'!$AG$3,1,HLOOKUP('Настройка ИБР+1'!AS$7,'Настройка ИБР+1'!$M$3:$AF$21,ROW('Настройка ИБР+1'!16:16)-ROW('Настройка ИБР+1'!$3:$3)+1,FALSE))*IF('Настройка ИБР+1'!AS$8='Настройка ИБР+1'!$AG$3,1,HLOOKUP('Настройка ИБР+1'!AS$8,'Настройка ИБР+1'!$M$3:$AF$21,ROW('Настройка ИБР+1'!16:16)-ROW('Настройка ИБР+1'!$3:$3)+1,FALSE))*'Настройка ИБР+1'!$D16) -> 0 | N16: =IF(ROUNDUP('Настройка ИБР+1'!AT$4,0)=0,0,IF('Настройка ИБР+1'!AT$6='Настройка ИБР+1'!$AG$3,1,HLOOKUP('Настройка ИБР+1'!AT$6,'Настройка ИБР+1'!$M$3:$AF$21,ROW('Настройка ИБР+1'!16:16)-ROW('Настройка ИБР+1'!$3:$3)+1,FALSE))*IF('Настройка ИБР+1'!AT$7='Настройка ИБР+1'!$AG$3,1,HLOOKUP('Настройка ИБР+1'!AT$7,'Настройка ИБР+1'!$M$3:$AF$21,ROW('Настройка ИБР+1'!16:16)-ROW('Настройка ИБР+1'!$3:$3)+1,FALSE))*IF('Настройка ИБР+1'!AT$8='Настройка ИБР+1'!$AG$3,1,HLOOKUP('Настройка ИБР+1'!AT$8,'Настройка ИБР+1'!$M$3:$AF$21,ROW('Настройка ИБР+1'!16:16)-ROW('Настройка ИБР+1'!$3:$3)+1,FALSE))*'Настройка ИБР+1'!$D16) -> 1.171512778 | O16: =IF(ROUNDUP('Настройка ИБР+1'!AU$4,0)=0,0,IF('Настройка ИБР+1'!AU$6='Настройка ИБР+1'!$AG$3,1,HLOOKUP('Настройка ИБР+1'!AU$6,'Настройка ИБР+1'!$M$3:$AF$21,ROW('Настройка ИБР+1'!16:16)-ROW('Настройка ИБР+1'!$3:$3)+1,FALSE))*IF('Настройка ИБР+1'!AU$7='Настройка ИБР+1'!$AG$3,1,HLOOKUP('Настройка ИБР+1'!AU$7,'Настройка ИБР+1'!$M$3:$AF$21,ROW('Настройка ИБР+1'!16:16)-ROW('Настройка ИБР+1'!$3:$3)+1,FALSE))*IF('Настройка ИБР+1'!AU$8='Настройка ИБР+1'!$AG$3,1,HLOOKUP('Настройка ИБР+1'!AU$8,'Настройка ИБР+1'!$M$3:$AF$21,ROW('Настройка ИБР+1'!16:16)-ROW('Настройка ИБР+1'!$3:$3)+1,FALSE))*'Настройка ИБР+1'!$D16) -> 0 | P16: =IF(ROUNDUP('Настройка ИБР+1'!AV$4,0)=0,0,IF('Настройка ИБР+1'!AV$6='Настройка ИБР+1'!$AG$3,1,HLOOKUP('Настройка ИБР+1'!AV$6,'Настройка ИБР+1'!$M$3:$AF$21,ROW('Настройка ИБР+1'!16:16)-ROW('Настройка ИБР+1'!$3:$3)+1,FALSE))*IF('Настройка ИБР+1'!AV$7='Настройка ИБР+1'!$AG$3,1,HLOOKUP('Настройка ИБР+1'!AV$7,'Настройка ИБР+1'!$M$3:$AF$21,ROW('Настройка ИБР+1'!16:16)-ROW('Настройка ИБР+1'!$3:$3)+1,FALSE))*IF('Настройка ИБР+1'!AV$8='Настройка ИБР+1'!$AG$3,1,HLOOKUP('Настройка ИБР+1'!AV$8,'Настройка ИБР+1'!$M$3:$AF$21,ROW('Настройка ИБР+1'!16:16)-ROW('Настройка ИБР+1'!$3:$3)+1,FALSE))*'Настройка ИБР+1'!$D16) -> 0 | Q16: =IF(ROUNDUP('Настройка ИБР+1'!AW$4,0)=0,0,IF('Настройка ИБР+1'!AW$6='Настройка ИБР+1'!$AG$3,1,HLOOKUP('Настройка ИБР+1'!AW$6,'Настройка ИБР+1'!$M$3:$AF$21,ROW('Настройка ИБР+1'!16:16)-ROW('Настройка ИБР+1'!$3:$3)+1,FALSE))*IF('Настройка ИБР+1'!AW$7='Настройка ИБР+1'!$AG$3,1,HLOOKUP('Настройка ИБР+1'!AW$7,'Настройка ИБР+1'!$M$3:$AF$21,ROW('Настройка ИБР+1'!16:16)-ROW('Настройка ИБР+1'!$3:$3)+1,FALSE))*IF('Настройка ИБР+1'!AW$8='Настройка ИБР+1'!$AG$3,1,HLOOKUP('Настройка ИБР+1'!AW$8,'Настройка ИБР+1'!$M$3:$AF$21,ROW('Настройка ИБР+1'!16:16)-ROW('Настройка ИБР+1'!$3:$3)+1,FALSE))*'Настройка ИБР+1'!$D16) -> 0.9954424074 | R16: =IF(ROUNDUP('Настройка ИБР+1'!AX$4,0)=0,0,IF('Настройка ИБР+1'!AX$6='Настройка ИБР+1'!$AG$3,1,HLOOKUP('Настройка ИБР+1'!AX$6,'Настройка ИБР+1'!$M$3:$AF$21,ROW('Настройка ИБР+1'!16:16)-ROW('Настройка ИБР+1'!$3:$3)+1,FALSE))*IF('Настройка ИБР+1'!AX$7='Настройка ИБР+1'!$AG$3,1,HLOOKUP('Настройка ИБР+1'!AX$7,'Настройка ИБР+1'!$M$3:$AF$21,ROW('Настройка ИБР+1'!16:16)-ROW('Настройка ИБР+1'!$3:$3)+1,FALSE))*IF('Настройка ИБР+1'!AX$8='Настройка ИБР+1'!$AG$3,1,HLOOKUP('Настройка ИБР+1'!AX$8,'Настройка ИБР+1'!$M$3:$AF$21,ROW('Настройка ИБР+1'!16:16)-ROW('Настройка ИБР+1'!$3:$3)+1,FALSE))*'Настройка ИБР+1'!$D16) -> 0.9954424074 | S16: =IF(ROUNDUP('Настройка ИБР+1'!AY$4,0)=0,0,IF('Настройка ИБР+1'!AY$6='Настройка ИБР+1'!$AG$3,1,HLOOKUP('Настройка ИБР+1'!AY$6,'Настройка ИБР+1'!$M$3:$AF$21,ROW('Настройка ИБР+1'!16:16)-ROW('Настройка ИБР+1'!$3:$3)+1,FALSE))*IF('Настройка ИБР+1'!AY$7='Настройка ИБР+1'!$AG$3,1,HLOOKUP('Настройка ИБР+1'!AY$7,'Настройка ИБР+1'!$M$3:$AF$21,ROW('Настройка ИБР+1'!16:16)-ROW('Настройка ИБР+1'!$3:$3)+1,FALSE))*IF('Настройка ИБР+1'!AY$8='Настройка ИБР+1'!$AG$3,1,HLOOKUP('Настройка ИБР+1'!AY$8,'Настройка ИБР+1'!$M$3:$AF$21,ROW('Настройка ИБР+1'!16:16)-ROW('Настройка ИБР+1'!$3:$3)+1,FALSE))*'Настройка ИБР+1'!$D16) -> 0 | T16: =IF(ROUNDUP('Настройка ИБР+1'!AZ$4,0)=0,0,IF('Настройка ИБР+1'!AZ$6='Настройка ИБР+1'!$AG$3,1,HLOOKUP('Настройка ИБР+1'!AZ$6,'Настройка ИБР+1'!$M$3:$AF$21,ROW('Настройка ИБР+1'!16:16)-ROW('Настройка ИБР+1'!$3:$3)+1,FALSE))*IF('Настройка ИБР+1'!AZ$7='Настройка ИБР+1'!$AG$3,1,HLOOKUP('Настройка ИБР+1'!AZ$7,'Настройка ИБР+1'!$M$3:$AF$21,ROW('Настройка ИБР+1'!16:16)-ROW('Настройка ИБР+1'!$3:$3)+1,FALSE))*IF('Настройка ИБР+1'!AZ$8='Настройка ИБР+1'!$AG$3,1,HLOOKUP('Настройка ИБР+1'!AZ$8,'Настройка ИБР+1'!$M$3:$AF$21,ROW('Настройка ИБР+1'!16:16)-ROW('Настройка ИБР+1'!$3:$3)+1,FALSE))*'Настройка ИБР+1'!$D16) -> 0 | U16: =IF(ROUNDUP('Настройка ИБР+1'!BA$4,0)=0,0,IF('Настройка ИБР+1'!BA$6='Настройка ИБР+1'!$AG$3,1,HLOOKUP('Настройка ИБР+1'!BA$6,'Настройка ИБР+1'!$M$3:$AF$21,ROW('Настройка ИБР+1'!16:16)-ROW('Настройка ИБР+1'!$3:$3)+1,FALSE))*IF('Настройка ИБР+1'!BA$7='Настройка ИБР+1'!$AG$3,1,HLOOKUP('Настройка ИБР+1'!BA$7,'Настройка ИБР+1'!$M$3:$AF$21,ROW('Настройка ИБР+1'!16:16)-ROW('Настройка ИБР+1'!$3:$3)+1,FALSE))*IF('Настройка ИБР+1'!BA$8='Настройка ИБР+1'!$AG$3,1,HLOOKUP('Настройка ИБР+1'!BA$8,'Настройка ИБР+1'!$M$3:$AF$21,ROW('Настройка ИБР+1'!16:16)-ROW('Настройка ИБР+1'!$3:$3)+1,FALSE))*'Настройка ИБР+1'!$D16) -> 0.9954424074 | V16: =IF(ROUNDUP('Настройка ИБР+1'!BB$4,0)=0,0,IF('Настройка ИБР+1'!BB$6='Настройка ИБР+1'!$AG$3,1,HLOOKUP('Настройка ИБР+1'!BB$6,'Настройка ИБР+1'!$M$3:$AF$21,ROW('Настройка ИБР+1'!16:16)-ROW('Настройка ИБР+1'!$3:$3)+1,FALSE))*IF('Настройка ИБР+1'!BB$7='Настройка ИБР+1'!$AG$3,1,HLOOKUP('Настройка ИБР+1'!BB$7,'Настройка ИБР+1'!$M$3:$AF$21,ROW('Настройка ИБР+1'!16:16)-ROW('Настройка ИБР+1'!$3:$3)+1,FALSE))*IF('Настройка ИБР+1'!BB$8='Настройка ИБР+1'!$AG$3,1,HLOOKUP('Настройка ИБР+1'!BB$8,'Настройка ИБР+1'!$M$3:$AF$21,ROW('Настройка ИБР+1'!16:16)-ROW('Настройка ИБР+1'!$3:$3)+1,FALSE))*'Настройка ИБР+1'!$D16) -> 0.8999359998 | W16: =IF(ROUNDUP('Настройка ИБР+1'!BC$4,0)=0,0,IF('Настройка ИБР+1'!BC$6='Настройка ИБР+1'!$AG$3,1,HLOOKUP('Настройка ИБР+1'!BC$6,'Настройка ИБР+1'!$M$3:$AF$21,ROW('Настройка ИБР+1'!16:16)-ROW('Настройка ИБР+1'!$3:$3)+1,FALSE))*IF('Настройка ИБР+1'!BC$7='Настройка ИБР+1'!$AG$3,1,HLOOKUP('Настройка ИБР+1'!BC$7,'Настройка ИБР+1'!$M$3:$AF$21,ROW('Настройка ИБР+1'!16:16)-ROW('Настройка ИБР+1'!$3:$3)+1,FALSE))*IF('Настройка ИБР+1'!BC$8='Настройка ИБР+1'!$AG$3,1,HLOOKUP('Настройка ИБР+1'!BC$8,'Настройка ИБР+1'!$M$3:$AF$21,ROW('Настройка ИБР+1'!16:16)-ROW('Настройка ИБР+1'!$3:$3)+1,FALSE))*'Настройка ИБР+1'!$D16) -> 0 | X16: =IF(ROUNDUP('Настройка ИБР+1'!BD$4,0)=0,0,IF('Настройка ИБР+1'!BD$6='Настройка ИБР+1'!$AG$3,1,HLOOKUP('Настройка ИБР+1'!BD$6,'Настройка ИБР+1'!$M$3:$AF$21,ROW('Настройка ИБР+1'!16:16)-ROW('Настройка ИБР+1'!$3:$3)+1,FALSE))*IF('Настройка ИБР+1'!BD$7='Настройка ИБР+1'!$AG$3,1,HLOOKUP('Настройка ИБР+1'!BD$7,'Настройка ИБР+1'!$M$3:$AF$21,ROW('Настройка ИБР+1'!16:16)-ROW('Настройка ИБР+1'!$3:$3)+1,FALSE))*IF('Настройка ИБР+1'!BD$8='Настройка ИБР+1'!$AG$3,1,HLOOKUP('Настройка ИБР+1'!BD$8,'Настройка ИБР+1'!$M$3:$AF$21,ROW('Настройка ИБР+1'!16:16)-ROW('Настройка ИБР+1'!$3:$3)+1,FALSE))*'Настройка ИБР+1'!$D16) -> 0.9954424074 | Y16: =IF(ROUNDUP('Настройка ИБР+1'!BE$4,0)=0,0,IF('Настройка ИБР+1'!BE$6='Настройка ИБР+1'!$AG$3,1,HLOOKUP('Настройка ИБР+1'!BE$6,'Настройка ИБР+1'!$M$3:$AF$21,ROW('Настройка ИБР+1'!16:16)-ROW('Настройка ИБР+1'!$3:$3)+1,FALSE))*IF('Настройка ИБР+1'!BE$7='Настройка ИБР+1'!$AG$3,1,HLOOKUP('Настройка ИБР+1'!BE$7,'Настройка ИБР+1'!$M$3:$AF$21,ROW('Настройка ИБР+1'!16:16)-ROW('Настройка ИБР+1'!$3:$3)+1,FALSE))*IF('Настройка ИБР+1'!BE$8='Настройка ИБР+1'!$AG$3,1,HLOOKUP('Настройка ИБР+1'!BE$8,'Настройка ИБР+1'!$M$3:$AF$21,ROW('Настройка ИБР+1'!16:16)-ROW('Настройка ИБР+1'!$3:$3)+1,FALSE))*'Настройка ИБР+1'!$D16) -> 0.9954424074 | Z16: =IF(ROUNDUP('Настройка ИБР+1'!BF$4,0)=0,0,IF('Настройка ИБР+1'!BF$6='Настройка ИБР+1'!$AG$3,1,HLOOKUP('Настройка ИБР+1'!BF$6,'Настройка ИБР+1'!$M$3:$AF$21,ROW('Настройка ИБР+1'!16:16)-ROW('Настройка ИБР+1'!$3:$3)+1,FALSE))*IF('Настройка ИБР+1'!BF$7='Настройка ИБР+1'!$AG$3,1,HLOOKUP('Настройка ИБР+1'!BF$7,'Настройка ИБР+1'!$M$3:$AF$21,ROW('Настройка ИБР+1'!16:16)-ROW('Настройка ИБР+1'!$3:$3)+1,FALSE))*IF('Настройка ИБР+1'!BF$8='Настройка ИБР+1'!$AG$3,1,HLOOKUP('Настройка ИБР+1'!BF$8,'Настройка ИБР+1'!$M$3:$AF$21,ROW('Настройка ИБР+1'!16:16)-ROW('Настройка ИБР+1'!$3:$3)+1,FALSE))*'Настройка ИБР+1'!$D16) -> 0 | AA16: =IF(ROUNDUP('Настройка ИБР+1'!BG$4,0)=0,0,IF('Настройка ИБР+1'!BG$6='Настройка ИБР+1'!$AG$3,1,HLOOKUP('Настройка ИБР+1'!BG$6,'Настройка ИБР+1'!$M$3:$AF$21,ROW('Настройка ИБР+1'!16:16)-ROW('Настройка ИБР+1'!$3:$3)+1,FALSE))*IF('Настройка ИБР+1'!BG$7='Настройка ИБР+1'!$AG$3,1,HLOOKUP('Настройка ИБР+1'!BG$7,'Настройка ИБР+1'!$M$3:$AF$21,ROW('Настройка ИБР+1'!16:16)-ROW('Настройка ИБР+1'!$3:$3)+1,FALSE))*IF('Настройка ИБР+1'!BG$8='Настройка ИБР+1'!$AG$3,1,HLOOKUP('Настройка ИБР+1'!BG$8,'Настройка ИБР+1'!$M$3:$AF$21,ROW('Настройка ИБР+1'!16:16)-ROW('Настройка ИБР+1'!$3:$3)+1,FALSE))*'Настройка ИБР+1'!$D16) -> 0 | AB16: =IF(ROUNDUP('Настройка ИБР+1'!BH$4,0)=0,0,IF('Настройка ИБР+1'!BH$6='Настройка ИБР+1'!$AG$3,1,HLOOKUP('Настройка ИБР+1'!BH$6,'Настройка ИБР+1'!$M$3:$AF$21,ROW('Настройка ИБР+1'!16:16)-ROW('Настройка ИБР+1'!$3:$3)+1,FALSE))*IF('Настройка ИБР+1'!BH$7='Настройка ИБР+1'!$AG$3,1,HLOOKUP('Настройка ИБР+1'!BH$7,'Настройка ИБР+1'!$M$3:$AF$21,ROW('Настройка ИБР+1'!16:16)-ROW('Настройка ИБР+1'!$3:$3)+1,FALSE))*IF('Настройка ИБР+1'!BH$8='Настройка ИБР+1'!$AG$3,1,HLOOKUP('Настройка ИБР+1'!BH$8,'Настройка ИБР+1'!$M$3:$AF$21,ROW('Настройка ИБР+1'!16:16)-ROW('Настройка ИБР+1'!$3:$3)+1,FALSE))*'Настройка ИБР+1'!$D16) -> 0 | AC16: =IF(ROUNDUP('Настройка ИБР+1'!BI$4,0)=0,0,IF('Настройка ИБР+1'!BI$6='Настройка ИБР+1'!$AG$3,1,HLOOKUP('Настройка ИБР+1'!BI$6,'Настройка ИБР+1'!$M$3:$AF$21,ROW('Настройка ИБР+1'!16:16)-ROW('Настройка ИБР+1'!$3:$3)+1,FALSE))*IF('Настройка ИБР+1'!BI$7='Настройка ИБР+1'!$AG$3,1,HLOOKUP('Настройка ИБР+1'!BI$7,'Настройка ИБР+1'!$M$3:$AF$21,ROW('Настройка ИБР+1'!16:16)-ROW('Настройка ИБР+1'!$3:$3)+1,FALSE))*IF('Настройка ИБР+1'!BI$8='Настройка ИБР+1'!$AG$3,1,HLOOKUP('Настройка ИБР+1'!BI$8,'Настройка ИБР+1'!$M$3:$AF$21,ROW('Настройка ИБР+1'!16:16)-ROW('Настройка ИБР+1'!$3:$3)+1,FALSE))*'Настройка ИБР+1'!$D16) -> 0 | AD16: =IF(ROUNDUP('Настройка ИБР+1'!BJ$4,0)=0,0,IF('Настройка ИБР+1'!BJ$6='Настройка ИБР+1'!$AG$3,1,HLOOKUP('Настройка ИБР+1'!BJ$6,'Настройка ИБР+1'!$M$3:$AF$21,ROW('Настройка ИБР+1'!16:16)-ROW('Настройка ИБР+1'!$3:$3)+1,FALSE))*IF('Настройка ИБР+1'!BJ$7='Настройка ИБР+1'!$AG$3,1,HLOOKUP('Настройка ИБР+1'!BJ$7,'Настройка ИБР+1'!$M$3:$AF$21,ROW('Настройка ИБР+1'!16:16)-ROW('Настройка ИБР+1'!$3:$3)+1,FALSE))*IF('Настройка ИБР+1'!BJ$8='Настройка ИБР+1'!$AG$3,1,HLOOKUP('Настройка ИБР+1'!BJ$8,'Настройка ИБР+1'!$M$3:$AF$21,ROW('Настройка ИБР+1'!16:16)-ROW('Настройка ИБР+1'!$3:$3)+1,FALSE))*'Настройка ИБР+1'!$D16) -> 0 | AE16: =IF(ROUNDUP('Настройка ИБР+1'!BK$4,0)=0,0,IF('Настройка ИБР+1'!BK$6='Настройка ИБР+1'!$AG$3,1,HLOOKUP('Настройка ИБР+1'!BK$6,'Настройка ИБР+1'!$M$3:$AF$21,ROW('Настройка ИБР+1'!16:16)-ROW('Настройка ИБР+1'!$3:$3)+1,FALSE))*IF('Настройка ИБР+1'!BK$7='Настройка ИБР+1'!$AG$3,1,HLOOKUP('Настройка ИБР+1'!BK$7,'Настройка ИБР+1'!$M$3:$AF$21,ROW('Настройка ИБР+1'!16:16)-ROW('Настройка ИБР+1'!$3:$3)+1,FALSE))*IF('Настройка ИБР+1'!BK$8='Настройка ИБР+1'!$AG$3,1,HLOOKUP('Настройка ИБР+1'!BK$8,'Настройка ИБР+1'!$M$3:$AF$21,ROW('Настройка ИБР+1'!16:16)-ROW('Настройка ИБР+1'!$3:$3)+1,FALSE))*'Настройка ИБР+1'!$D16) -> 0 | AF16: =IF(ROUNDUP('Настройка ИБР+1'!BL$4,0)=0,0,IF('Настройка ИБР+1'!BL$6='Настройка ИБР+1'!$AG$3,1,HLOOKUP('Настройка ИБР+1'!BL$6,'Настройка ИБР+1'!$M$3:$AF$21,ROW('Настройка ИБР+1'!16:16)-ROW('Настройка ИБР+1'!$3:$3)+1,FALSE))*IF('Настройка ИБР+1'!BL$7='Настройка ИБР+1'!$AG$3,1,HLOOKUP('Настройка ИБР+1'!BL$7,'Настройка ИБР+1'!$M$3:$AF$21,ROW('Настройка ИБР+1'!16:16)-ROW('Настройка ИБР+1'!$3:$3)+1,FALSE))*IF('Настройка ИБР+1'!BL$8='Настройка ИБР+1'!$AG$3,1,HLOOKUP('Настройка ИБР+1'!BL$8,'Настройка ИБР+1'!$M$3:$AF$21,ROW('Настройка ИБР+1'!16:16)-ROW('Настройка ИБР+1'!$3:$3)+1,FALSE))*'Настройка ИБР+1'!$D16) -> 0.9954424074 | AG16: =IF(ROUNDUP('Настройка ИБР+1'!BM$4,0)=0,0,IF('Настройка ИБР+1'!BM$6='Настройка ИБР+1'!$AG$3,1,HLOOKUP('Настройка ИБР+1'!BM$6,'Настройка ИБР+1'!$M$3:$AF$21,ROW('Настройка ИБР+1'!16:16)-ROW('Настройка ИБР+1'!$3:$3)+1,FALSE))*IF('Настройка ИБР+1'!BM$7='Настройка ИБР+1'!$AG$3,1,HLOOKUP('Настройка ИБР+1'!BM$7,'Настройка ИБР+1'!$M$3:$AF$21,ROW('Настройка ИБР+1'!16:16)-ROW('Настройка ИБР+1'!$3:$3)+1,FALSE))*IF('Настройка ИБР+1'!BM$8='Настройка ИБР+1'!$AG$3,1,HLOOKUP('Настройка ИБР+1'!BM$8,'Настройка ИБР+1'!$M$3:$AF$21,ROW('Настройка ИБР+1'!16:16)-ROW('Настройка ИБР+1'!$3:$3)+1,FALSE))*'Настройка ИБР+1'!$D16) -> 0 | AH16: =IF(ROUNDUP('Настройка ИБР+1'!BN$4,0)=0,0,IF('Настройка ИБР+1'!BN$6='Настройка ИБР+1'!$AG$3,1,HLOOKUP('Настройка ИБР+1'!BN$6,'Настройка ИБР+1'!$M$3:$AF$21,ROW('Настройка ИБР+1'!16:16)-ROW('Настройка ИБР+1'!$3:$3)+1,FALSE))*IF('Настройка ИБР+1'!BN$7='Настройка ИБР+1'!$AG$3,1,HLOOKUP('Настройка ИБР+1'!BN$7,'Настройка ИБР+1'!$M$3:$AF$21,ROW('Настройка ИБР+1'!16:16)-ROW('Настройка ИБР+1'!$3:$3)+1,FALSE))*IF('Настройка ИБР+1'!BN$8='Настройка ИБР+1'!$AG$3,1,HLOOKUP('Настройка ИБР+1'!BN$8,'Настройка ИБР+1'!$M$3:$AF$21,ROW('Настройка ИБР+1'!16:16)-ROW('Настройка ИБР+1'!$3:$3)+1,FALSE))*'Настройка ИБР+1'!$D16) -> 0 | AI16: =IF(ROUNDUP('Настройка ИБР+1'!BO$4,0)=0,0,IF('Настройка ИБР+1'!BO$6='Настройка ИБР+1'!$AG$3,1,HLOOKUP('Настройка ИБР+1'!BO$6,'Настройка ИБР+1'!$M$3:$AF$21,ROW('Настройка ИБР+1'!16:16)-ROW('Настройка ИБР+1'!$3:$3)+1,FALSE))*IF('Настройка ИБР+1'!BO$7='Настройка ИБР+1'!$AG$3,1,HLOOKUP('Настройка ИБР+1'!BO$7,'Настройка ИБР+1'!$M$3:$AF$21,ROW('Настройка ИБР+1'!16:16)-ROW('Настройка ИБР+1'!$3:$3)+1,FALSE))*IF('Настройка ИБР+1'!BO$8='Настройка ИБР+1'!$AG$3,1,HLOOKUP('Настройка ИБР+1'!BO$8,'Настройка ИБР+1'!$M$3:$AF$21,ROW('Настройка ИБР+1'!16:16)-ROW('Настройка ИБР+1'!$3:$3)+1,FALSE))*'Настройка ИБР+1'!$D16) -> 0.9954424074 | AL16: =CHOOSE($AK$11,HLOOKUP($AK$11,$C$2:$AI$21,ROW(16:16)-ROW($2:$2)+1,FALSE)*Данные!$F$11/HLOOKUP($AK$11,$C$2:$AI$21,ROW($11:$11)-ROW($2:$2)+1,FALSE),HLOOKUP($AK$11,#REF!,ROW(#REF!)-ROW(#REF!)+1,FALSE)*Данные!$F$11/HLOOKUP($AK$11,#REF!,ROW(#REF!)-ROW(#REF!)+1,FALSE),HLOOKUP($AK$11,#REF!,ROW(#REF!)-ROW(#REF!)+1,FALSE)*Данные!$F$11/HLOOKUP($AK$11,#REF!,ROW(#REF!)-ROW(#REF!)+1,FALSE)) -> 1.108263691 | AM16: =CHOOSE($AK$11,HLOOKUP($AK$11,'Настройка ИБР+1'!$AI$2:$BO$21,ROW('Настройка ИБР+1'!16:16)-ROW('Настройка ИБР+1'!$2:$2)+1,FALSE)/Данные!$F16/(HLOOKUP($AK$11,'Настройка ИБР+1'!$AI$2:$BO$21,ROW(Данные!$11:$11)-ROW('Настройка ИБР+1'!$2:$2)+1,FALSE)/Данные!$F$11),HLOOKUP($AK$11,#REF!,ROW(#REF!)-ROW(#REF!)+1,FALSE)/Данные!$F16/(HLOOKUP($AK$11,#REF!,ROW(Данные!$11:$11)-ROW(#REF!)+1,FALSE)/Данные!$F$11),HLOOKUP($AK$11,#REF!,ROW(#REF!)-ROW(#REF!)+1,FALSE)/Данные!$F16/(HLOOKUP($AK$11,#REF!,ROW(Данные!$11:$11)-ROW(#REF!)+1,FALSE)/Данные!$F$11)) -> 1.005252916
A17: =Данные!A17 -> 6 | B17: =Данные!D17 -> Побединское с/п | C17: =SUMPRODUCT('Настройка ИБР+1'!$AJ$4:$BO$4,D17:AI17)*Данные!$F$11/SUMPRODUCT($D$11:$AI$11,'Настройка ИБР+1'!$AJ$4:$BO$4) -> 1.044381636 | D17: =IF(ROUNDUP('Настройка ИБР+1'!AJ$4,0)=0,0,IF('Настройка ИБР+1'!AJ$6='Настройка ИБР+1'!$AG$3,1,HLOOKUP('Настройка ИБР+1'!AJ$6,'Настройка ИБР+1'!$M$3:$AF$21,ROW('Настройка ИБР+1'!17:17)-ROW('Настройка ИБР+1'!$3:$3)+1,FALSE))*IF('Настройка ИБР+1'!AJ$7='Настройка ИБР+1'!$AG$3,1,HLOOKUP('Настройка ИБР+1'!AJ$7,'Настройка ИБР+1'!$M$3:$AF$21,ROW('Настройка ИБР+1'!17:17)-ROW('Настройка ИБР+1'!$3:$3)+1,FALSE))*IF('Настройка ИБР+1'!AJ$8='Настройка ИБР+1'!$AG$3,1,HLOOKUP('Настройка ИБР+1'!AJ$8,'Настройка ИБР+1'!$M$3:$AF$21,ROW('Настройка ИБР+1'!17:17)-ROW('Настройка ИБР+1'!$3:$3)+1,FALSE))*'Настройка ИБР+1'!$D17) -> 1.062122587 | E17: =IF(ROUNDUP('Настройка ИБР+1'!AK$4,0)=0,0,IF('Настройка ИБР+1'!AK$6='Настройка ИБР+1'!$AG$3,1,HLOOKUP('Настройка ИБР+1'!AK$6,'Настройка ИБР+1'!$M$3:$AF$21,ROW('Настройка ИБР+1'!17:17)-ROW('Настройка ИБР+1'!$3:$3)+1,FALSE))*IF('Настройка ИБР+1'!AK$7='Настройка ИБР+1'!$AG$3,1,HLOOKUP('Настройка ИБР+1'!AK$7,'Настройка ИБР+1'!$M$3:$AF$21,ROW('Настройка ИБР+1'!17:17)-ROW('Настройка ИБР+1'!$3:$3)+1,FALSE))*IF('Настройка ИБР+1'!AK$8='Настройка ИБР+1'!$AG$3,1,HLOOKUP('Настройка ИБР+1'!AK$8,'Настройка ИБР+1'!$M$3:$AF$21,ROW('Настройка ИБР+1'!17:17)-ROW('Настройка ИБР+1'!$3:$3)+1,FALSE))*'Настройка ИБР+1'!$D17) -> 1.005446082 | F17: =IF(ROUNDUP('Настройка ИБР+1'!AL$4,0)=0,0,IF('Настройка ИБР+1'!AL$6='Настройка ИБР+1'!$AG$3,1,HLOOKUP('Настройка ИБР+1'!AL$6,'Настройка ИБР+1'!$M$3:$AF$21,ROW('Настройка ИБР+1'!17:17)-ROW('Настройка ИБР+1'!$3:$3)+1,FALSE))*IF('Настройка ИБР+1'!AL$7='Настройка ИБР+1'!$AG$3,1,HLOOKUP('Настройка ИБР+1'!AL$7,'Настройка ИБР+1'!$M$3:$AF$21,ROW('Настройка ИБР+1'!17:17)-ROW('Настройка ИБР+1'!$3:$3)+1,FALSE))*IF('Настройка ИБР+1'!AL$8='Настройка ИБР+1'!$AG$3,1,HLOOKUP('Настройка ИБР+1'!AL$8,'Настройка ИБР+1'!$M$3:$AF$21,ROW('Настройка ИБР+1'!17:17)-ROW('Настройка ИБР+1'!$3:$3)+1,FALSE))*'Настройка ИБР+1'!$D17) -> 0 | G17: =IF(ROUNDUP('Настройка ИБР+1'!AM$4,0)=0,0,IF('Настройка ИБР+1'!AM$6='Настройка ИБР+1'!$AG$3,1,HLOOKUP('Настройка ИБР+1'!AM$6,'Настройка ИБР+1'!$M$3:$AF$21,ROW('Настройка ИБР+1'!17:17)-ROW('Настройка ИБР+1'!$3:$3)+1,FALSE))*IF('Настройка ИБР+1'!AM$7='Настройка ИБР+1'!$AG$3,1,HLOOKUP('Настройка ИБР+1'!AM$7,'Настройка ИБР+1'!$M$3:$AF$21,ROW('Настройка ИБР+1'!17:17)-ROW('Настройка ИБР+1'!$3:$3)+1,FALSE))*IF('Настройка ИБР+1'!AM$8='Настройка ИБР+1'!$AG$3,1,HLOOKUP('Настройка ИБР+1'!AM$8,'Настройка ИБР+1'!$M$3:$AF$21,ROW('Настройка ИБР+1'!17:17)-ROW('Настройка ИБР+1'!$3:$3)+1,FALSE))*'Настройка ИБР+1'!$D17) -> 0 | H17: =IF(ROUNDUP('Настройка ИБР+1'!AN$4,0)=0,0,IF('Настройка ИБР+1'!AN$6='Настройка ИБР+1'!$AG$3,1,HLOOKUP('Настройка ИБР+1'!AN$6,'Настройка ИБР+1'!$M$3:$AF$21,ROW('Настройка ИБР+1'!17:17)-ROW('Настройка ИБР+1'!$3:$3)+1,FALSE))*IF('Настройка ИБР+1'!AN$7='Настройка ИБР+1'!$AG$3,1,HLOOKUP('Настройка ИБР+1'!AN$7,'Настройка ИБР+1'!$M$3:$AF$21,ROW('Настройка ИБР+1'!17:17)-ROW('Настройка ИБР+1'!$3:$3)+1,FALSE))*IF('Настройка ИБР+1'!AN$8='Настройка ИБР+1'!$AG$3,1,HLOOKUP('Настройка ИБР+1'!AN$8,'Настройка ИБР+1'!$M$3:$AF$21,ROW('Настройка ИБР+1'!17:17)-ROW('Настройка ИБР+1'!$3:$3)+1,FALSE))*'Настройка ИБР+1'!$D17) -> 0 | I17: =IF(ROUNDUP('Настройка ИБР+1'!AO$4,0)=0,0,IF('Настройка ИБР+1'!AO$6='Настройка ИБР+1'!$AG$3,1,HLOOKUP('Настройка ИБР+1'!AO$6,'Настройка ИБР+1'!$M$3:$AF$21,ROW('Настройка ИБР+1'!17:17)-ROW('Настройка ИБР+1'!$3:$3)+1,FALSE))*IF('Настройка ИБР+1'!AO$7='Настройка ИБР+1'!$AG$3,1,HLOOKUP('Настройка ИБР+1'!AO$7,'Настройка ИБР+1'!$M$3:$AF$21,ROW('Настройка ИБР+1'!17:17)-ROW('Настройка ИБР+1'!$3:$3)+1,FALSE))*IF('Настройка ИБР+1'!AO$8='Настройка ИБР+1'!$AG$3,1,HLOOKUP('Настройка ИБР+1'!AO$8,'Настройка ИБР+1'!$M$3:$AF$21,ROW('Настройка ИБР+1'!17:17)-ROW('Настройка ИБР+1'!$3:$3)+1,FALSE))*'Настройка ИБР+1'!$D17) -> 1.005446082 | J17: =IF(ROUNDUP('Настройка ИБР+1'!AP$4,0)=0,0,IF('Настройка ИБР+1'!AP$6='Настройка ИБР+1'!$AG$3,1,HLOOKUP('Настройка ИБР+1'!AP$6,'Настройка ИБР+1'!$M$3:$AF$21,ROW('Настройка ИБР+1'!17:17)-ROW('Настройка ИБР+1'!$3:$3)+1,FALSE))*IF('Настройка ИБР+1'!AP$7='Настройка ИБР+1'!$AG$3,1,HLOOKUP('Настройка ИБР+1'!AP$7,'Настройка ИБР+1'!$M$3:$AF$21,ROW('Настройка ИБР+1'!17:17)-ROW('Настройка ИБР+1'!$3:$3)+1,FALSE))*IF('Настройка ИБР+1'!AP$8='Настройка ИБР+1'!$AG$3,1,HLOOKUP('Настройка ИБР+1'!AP$8,'Настройка ИБР+1'!$M$3:$AF$21,ROW('Настройка ИБР+1'!17:17)-ROW('Настройка ИБР+1'!$3:$3)+1,FALSE))*'Настройка ИБР+1'!$D17) -> 1.005446082 | K17: =IF(ROUNDUP('Настройка ИБР+1'!AQ$4,0)=0,0,IF('Настройка ИБР+1'!AQ$6='Настройка ИБР+1'!$AG$3,1,HLOOKUP('Настройка ИБР+1'!AQ$6,'Настройка ИБР+1'!$M$3:$AF$21,ROW('Настройка ИБР+1'!17:17)-ROW('Настройка ИБР+1'!$3:$3)+1,FALSE))*IF('Настройка ИБР+1'!AQ$7='Настройка ИБР+1'!$AG$3,1,HLOOKUP('Настройка ИБР+1'!AQ$7,'Настройка ИБР+1'!$M$3:$AF$21,ROW('Настройка ИБР+1'!17:17)-ROW('Настройка ИБР+1'!$3:$3)+1,FALSE))*IF('Настройка ИБР+1'!AQ$8='Настройка ИБР+1'!$AG$3,1,HLOOKUP('Настройка ИБР+1'!AQ$8,'Настройка ИБР+1'!$M$3:$AF$21,ROW('Настройка ИБР+1'!17:17)-ROW('Настройка ИБР+1'!$3:$3)+1,FALSE))*'Настройка ИБР+1'!$D17) -> 1.005446082 | L17: =IF(ROUNDUP('Настройка ИБР+1'!AR$4,0)=0,0,IF('Настройка ИБР+1'!AR$6='Настройка ИБР+1'!$AG$3,1,HLOOKUP('Настройка ИБР+1'!AR$6,'Настройка ИБР+1'!$M$3:$AF$21,ROW('Настройка ИБР+1'!17:17)-ROW('Настройка ИБР+1'!$3:$3)+1,FALSE))*IF('Настройка ИБР+1'!AR$7='Настройка ИБР+1'!$AG$3,1,HLOOKUP('Настройка ИБР+1'!AR$7,'Настройка ИБР+1'!$M$3:$AF$21,ROW('Настройка ИБР+1'!17:17)-ROW('Настройка ИБР+1'!$3:$3)+1,FALSE))*IF('Настройка ИБР+1'!AR$8='Настройка ИБР+1'!$AG$3,1,HLOOKUP('Настройка ИБР+1'!AR$8,'Настройка ИБР+1'!$M$3:$AF$21,ROW('Настройка ИБР+1'!17:17)-ROW('Настройка ИБР+1'!$3:$3)+1,FALSE))*'Настройка ИБР+1'!$D17) -> 0 | M17: =IF(ROUNDUP('Настройка ИБР+1'!AS$4,0)=0,0,IF('Настройка ИБР+1'!AS$6='Настройка ИБР+1'!$AG$3,1,HLOOKUP('Настройка ИБР+1'!AS$6,'Настройка ИБР+1'!$M$3:$AF$21,ROW('Настройка ИБР+1'!17:17)-ROW('Настройка ИБР+1'!$3:$3)+1,FALSE))*IF('Настройка ИБР+1'!AS$7='Настройка ИБР+1'!$AG$3,1,HLOOKUP('Настройка ИБР+1'!AS$7,'Настройка ИБР+1'!$M$3:$AF$21,ROW('Настройка ИБР+1'!17:17)-ROW('Настройка ИБР+1'!$3:$3)+1,FALSE))*IF('Настройка ИБР+1'!AS$8='Настройка ИБР+1'!$AG$3,1,HLOOKUP('Настройка ИБР+1'!AS$8,'Настройка ИБР+1'!$M$3:$AF$21,ROW('Настройка ИБР+1'!17:17)-ROW('Настройка ИБР+1'!$3:$3)+1,FALSE))*'Настройка ИБР+1'!$D17) -> 0 | N17: =IF(ROUNDUP('Настройка ИБР+1'!AT$4,0)=0,0,IF('Настройка ИБР+1'!AT$6='Настройка ИБР+1'!$AG$3,1,HLOOKUP('Настройка ИБР+1'!AT$6,'Настройка ИБР+1'!$M$3:$AF$21,ROW('Настройка ИБР+1'!17:17)-ROW('Настройка ИБР+1'!$3:$3)+1,FALSE))*IF('Настройка ИБР+1'!AT$7='Настройка ИБР+1'!$AG$3,1,HLOOKUP('Настройка ИБР+1'!AT$7,'Настройка ИБР+1'!$M$3:$AF$21,ROW('Настройка ИБР+1'!17:17)-ROW('Настройка ИБР+1'!$3:$3)+1,FALSE))*IF('Настройка ИБР+1'!AT$8='Настройка ИБР+1'!$AG$3,1,HLOOKUP('Настройка ИБР+1'!AT$8,'Настройка ИБР+1'!$M$3:$AF$21,ROW('Настройка ИБР+1'!17:17)-ROW('Настройка ИБР+1'!$3:$3)+1,FALSE))*'Настройка ИБР+1'!$D17) -> 1.062122587 | O17: =IF(ROUNDUP('Настройка ИБР+1'!AU$4,0)=0,0,IF('Настройка ИБР+1'!AU$6='Настройка ИБР+1'!$AG$3,1,HLOOKUP('Настройка ИБР+1'!AU$6,'Настройка ИБР+1'!$M$3:$AF$21,ROW('Настройка ИБР+1'!17:17)-ROW('Настройка ИБР+1'!$3:$3)+1,FALSE))*IF('Настройка ИБР+1'!AU$7='Настройка ИБР+1'!$AG$3,1,HLOOKUP('Настройка ИБР+1'!AU$7,'Настройка ИБР+1'!$M$3:$AF$21,ROW('Настройка ИБР+1'!17:17)-ROW('Настройка ИБР+1'!$3:$3)+1,FALSE))*IF('Настройка ИБР+1'!AU$8='Настройка ИБР+1'!$AG$3,1,HLOOKUP('Настройка ИБР+1'!AU$8,'Настройка ИБР+1'!$M$3:$AF$21,ROW('Настройка ИБР+1'!17:17)-ROW('Настройка ИБР+1'!$3:$3)+1,FALSE))*'Настройка ИБР+1'!$D17) -> 0 | P17: =IF(ROUNDUP('Настройка ИБР+1'!AV$4,0)=0,0,IF('Настройка ИБР+1'!AV$6='Настройка ИБР+1'!$AG$3,1,HLOOKUP('Настройка ИБР+1'!AV$6,'Настройка ИБР+1'!$M$3:$AF$21,ROW('Настройка ИБР+1'!17:17)-ROW('Настройка ИБР+1'!$3:$3)+1,FALSE))*IF('Настройка ИБР+1'!AV$7='Настройка ИБР+1'!$AG$3,1,HLOOKUP('Настройка ИБР+1'!AV$7,'Настройка ИБР+1'!$M$3:$AF$21,ROW('Настройка ИБР+1'!17:17)-ROW('Настройка ИБР+1'!$3:$3)+1,FALSE))*IF('Настройка ИБР+1'!AV$8='Настройка ИБР+1'!$AG$3,1,HLOOKUP('Настройка ИБР+1'!AV$8,'Настройка ИБР+1'!$M$3:$AF$21,ROW('Настройка ИБР+1'!17:17)-ROW('Настройка ИБР+1'!$3:$3)+1,FALSE))*'Настройка ИБР+1'!$D17) -> 0 | Q17: =IF(ROUNDUP('Настройка ИБР+1'!AW$4,0)=0,0,IF('Настройка ИБР+1'!AW$6='Настройка ИБР+1'!$AG$3,1,HLOOKUP('Настройка ИБР+1'!AW$6,'Настройка ИБР+1'!$M$3:$AF$21,ROW('Настройка ИБР+1'!17:17)-ROW('Настройка ИБР+1'!$3:$3)+1,FALSE))*IF('Настройка ИБР+1'!AW$7='Настройка ИБР+1'!$AG$3,1,HLOOKUP('Настройка ИБР+1'!AW$7,'Настройка ИБР+1'!$M$3:$AF$21,ROW('Настройка ИБР+1'!17:17)-ROW('Настройка ИБР+1'!$3:$3)+1,FALSE))*IF('Настройка ИБР+1'!AW$8='Настройка ИБР+1'!$AG$3,1,HLOOKUP('Настройка ИБР+1'!AW$8,'Настройка ИБР+1'!$M$3:$AF$21,ROW('Настройка ИБР+1'!17:17)-ROW('Настройка ИБР+1'!$3:$3)+1,FALSE))*'Настройка ИБР+1'!$D17) -> 1.005446082 | R17: =IF(ROUNDUP('Настройка ИБР+1'!AX$4,0)=0,0,IF('Настройка ИБР+1'!AX$6='Настройка ИБР+1'!$AG$3,1,HLOOKUP('Настройка ИБР+1'!AX$6,'Настройка ИБР+1'!$M$3:$AF$21,ROW('Настройка ИБР+1'!17:17)-ROW('Настройка ИБР+1'!$3:$3)+1,FALSE))*IF('Настройка ИБР+1'!AX$7='Настройка ИБР+1'!$AG$3,1,HLOOKUP('Настройка ИБР+1'!AX$7,'Настройка ИБР+1'!$M$3:$AF$21,ROW('Настройка ИБР+1'!17:17)-ROW('Настройка ИБР+1'!$3:$3)+1,FALSE))*IF('Настройка ИБР+1'!AX$8='Настройка ИБР+1'!$AG$3,1,HLOOKUP('Настройка ИБР+1'!AX$8,'Настройка ИБР+1'!$M$3:$AF$21,ROW('Настройка ИБР+1'!17:17)-ROW('Настройка ИБР+1'!$3:$3)+1,FALSE))*'Настройка ИБР+1'!$D17) -> 1.005446082 | S17: =IF(ROUNDUP('Настройка ИБР+1'!AY$4,0)=0,0,IF('Настройка ИБР+1'!AY$6='Настройка ИБР+1'!$AG$3,1,HLOOKUP('Настройка ИБР+1'!AY$6,'Настройка ИБР+1'!$M$3:$AF$21,ROW('Настройка ИБР+1'!17:17)-ROW('Настройка ИБР+1'!$3:$3)+1,FALSE))*IF('Настройка ИБР+1'!AY$7='Настройка ИБР+1'!$AG$3,1,HLOOKUP('Настройка ИБР+1'!AY$7,'Настройка ИБР+1'!$M$3:$AF$21,ROW('Настройка ИБР+1'!17:17)-ROW('Настройка ИБР+1'!$3:$3)+1,FALSE))*IF('Настройка ИБР+1'!AY$8='Настройка ИБР+1'!$AG$3,1,HLOOKUP('Настройка ИБР+1'!AY$8,'Настройка ИБР+1'!$M$3:$AF$21,ROW('Настройка ИБР+1'!17:17)-ROW('Настройка ИБР+1'!$3:$3)+1,FALSE))*'Настройка ИБР+1'!$D17) -> 0 | T17: =IF(ROUNDUP('Настройка ИБР+1'!AZ$4,0)=0,0,IF('Настройка ИБР+1'!AZ$6='Настройка ИБР+1'!$AG$3,1,HLOOKUP('Настройка ИБР+1'!AZ$6,'Настройка ИБР+1'!$M$3:$AF$21,ROW('Настройка ИБР+1'!17:17)-ROW('Настройка ИБР+1'!$3:$3)+1,FALSE))*IF('Настройка ИБР+1'!AZ$7='Настройка ИБР+1'!$AG$3,1,HLOOKUP('Настройка ИБР+1'!AZ$7,'Настройка ИБР+1'!$M$3:$AF$21,ROW('Настройка ИБР+1'!17:17)-ROW('Настройка ИБР+1'!$3:$3)+1,FALSE))*IF('Настройка ИБР+1'!AZ$8='Настройка ИБР+1'!$AG$3,1,HLOOKUP('Настройка ИБР+1'!AZ$8,'Настройка ИБР+1'!$M$3:$AF$21,ROW('Настройка ИБР+1'!17:17)-ROW('Настройка ИБР+1'!$3:$3)+1,FALSE))*'Настройка ИБР+1'!$D17) -> 0 | U17: =IF(ROUNDUP('Настройка ИБР+1'!BA$4,0)=0,0,IF('Настройка ИБР+1'!BA$6='Настройка ИБР+1'!$AG$3,1,HLOOKUP('Настройка ИБР+1'!BA$6,'Настройка ИБР+1'!$M$3:$AF$21,ROW('Настройка ИБР+1'!17:17)-ROW('Настройка ИБР+1'!$3:$3)+1,FALSE))*IF('Настройка ИБР+1'!BA$7='Настройка ИБР+1'!$AG$3,1,HLOOKUP('Настройка ИБР+1'!BA$7,'Настройка ИБР+1'!$M$3:$AF$21,ROW('Настройка ИБР+1'!17:17)-ROW('Настройка ИБР+1'!$3:$3)+1,FALSE))*IF('Настройка ИБР+1'!BA$8='Настройка ИБР+1'!$AG$3,1,HLOOKUP('Настройка ИБР+1'!BA$8,'Настройка ИБР+1'!$M$3:$AF$21,ROW('Настройка ИБР+1'!17:17)-ROW('Настройка ИБР+1'!$3:$3)+1,FALSE))*'Настройка ИБР+1'!$D17) -> 1.005446082 | V17: =IF(ROUNDUP('Настройка ИБР+1'!BB$4,0)=0,0,IF('Настройка ИБР+1'!BB$6='Настройка ИБР+1'!$AG$3,1,HLOOKUP('Настройка ИБР+1'!BB$6,'Настройка ИБР+1'!$M$3:$AF$21,ROW('Настройка ИБР+1'!17:17)-ROW('Настройка ИБР+1'!$3:$3)+1,FALSE))*IF('Настройка ИБР+1'!BB$7='Настройка ИБР+1'!$AG$3,1,HLOOKUP('Настройка ИБР+1'!BB$7,'Настройка ИБР+1'!$M$3:$AF$21,ROW('Настройка ИБР+1'!17:17)-ROW('Настройка ИБР+1'!$3:$3)+1,FALSE))*IF('Настройка ИБР+1'!BB$8='Настройка ИБР+1'!$AG$3,1,HLOOKUP('Настройка ИБР+1'!BB$8,'Настройка ИБР+1'!$M$3:$AF$21,ROW('Настройка ИБР+1'!17:17)-ROW('Настройка ИБР+1'!$3:$3)+1,FALSE))*'Настройка ИБР+1'!$D17) -> 1.040415305 | W17: =IF(ROUNDUP('Настройка ИБР+1'!BC$4,0)=0,0,IF('Настройка ИБР+1'!BC$6='Настройка ИБР+1'!$AG$3,1,HLOOKUP('Настройка ИБР+1'!BC$6,'Настройка ИБР+1'!$M$3:$AF$21,ROW('Настройка ИБР+1'!17:17)-ROW('Настройка ИБР+1'!$3:$3)+1,FALSE))*IF('Настройка ИБР+1'!BC$7='Настройка ИБР+1'!$AG$3,1,HLOOKUP('Настройка ИБР+1'!BC$7,'Настройка ИБР+1'!$M$3:$AF$21,ROW('Настройка ИБР+1'!17:17)-ROW('Настройка ИБР+1'!$3:$3)+1,FALSE))*IF('Настройка ИБР+1'!BC$8='Настройка ИБР+1'!$AG$3,1,HLOOKUP('Настройка ИБР+1'!BC$8,'Настройка ИБР+1'!$M$3:$AF$21,ROW('Настройка ИБР+1'!17:17)-ROW('Настройка ИБР+1'!$3:$3)+1,FALSE))*'Настройка ИБР+1'!$D17) -> 0 | X17: =IF(ROUNDUP('Настройка ИБР+1'!BD$4,0)=0,0,IF('Настройка ИБР+1'!BD$6='Настройка ИБР+1'!$AG$3,1,HLOOKUP('Настройка ИБР+1'!BD$6,'Настройка ИБР+1'!$M$3:$AF$21,ROW('Настройка ИБР+1'!17:17)-ROW('Настройка ИБР+1'!$3:$3)+1,FALSE))*IF('Настройка ИБР+1'!BD$7='Настройка ИБР+1'!$AG$3,1,HLOOKUP('Настройка ИБР+1'!BD$7,'Настройка ИБР+1'!$M$3:$AF$21,ROW('Настройка ИБР+1'!17:17)-ROW('Настройка ИБР+1'!$3:$3)+1,FALSE))*IF('Настройка ИБР+1'!BD$8='Настройка ИБР+1'!$AG$3,1,HLOOKUP('Настройка ИБР+1'!BD$8,'Настройка ИБР+1'!$M$3:$AF$21,ROW('Настройка ИБР+1'!17:17)-ROW('Настройка ИБР+1'!$3:$3)+1,FALSE))*'Настройка ИБР+1'!$D17) -> 1.005446082 | Y17: =IF(ROUNDUP('Настройка ИБР+1'!BE$4,0)=0,0,IF('Настройка ИБР+1'!BE$6='Настройка ИБР+1'!$AG$3,1,HLOOKUP('Настройка ИБР+1'!BE$6,'Настройка ИБР+1'!$M$3:$AF$21,ROW('Настройка ИБР+1'!17:17)-ROW('Настройка ИБР+1'!$3:$3)+1,FALSE))*IF('Настройка ИБР+1'!BE$7='Настройка ИБР+1'!$AG$3,1,HLOOKUP('Настройка ИБР+1'!BE$7,'Настройка ИБР+1'!$M$3:$AF$21,ROW('Настройка ИБР+1'!17:17)-ROW('Настройка ИБР+1'!$3:$3)+1,FALSE))*IF('Настройка ИБР+1'!BE$8='Настройка ИБР+1'!$AG$3,1,HLOOKUP('Настройка ИБР+1'!BE$8,'Настройка ИБР+1'!$M$3:$AF$21,ROW('Настройка ИБР+1'!17:17)-ROW('Настройка ИБР+1'!$3:$3)+1,FALSE))*'Настройка ИБР+1'!$D17) -> 1.005446082 | Z17: =IF(ROUNDUP('Настройка ИБР+1'!BF$4,0)=0,0,IF('Настройка ИБР+1'!BF$6='Настройка ИБР+1'!$AG$3,1,HLOOKUP('Настройка ИБР+1'!BF$6,'Настройка ИБР+1'!$M$3:$AF$21,ROW('Настройка ИБР+1'!17:17)-ROW('Настройка ИБР+1'!$3:$3)+1,FALSE))*IF('Настройка ИБР+1'!BF$7='Настройка ИБР+1'!$AG$3,1,HLOOKUP('Настройка ИБР+1'!BF$7,'Настройка ИБР+1'!$M$3:$AF$21,ROW('Настройка ИБР+1'!17:17)-ROW('Настройка ИБР+1'!$3:$3)+1,FALSE))*IF('Настройка ИБР+1'!BF$8='Настройка ИБР+1'!$AG$3,1,HLOOKUP('Настройка ИБР+1'!BF$8,'Настройка ИБР+1'!$M$3:$AF$21,ROW('Настройка ИБР+1'!17:17)-ROW('Настройка ИБР+1'!$3:$3)+1,FALSE))*'Настройка ИБР+1'!$D17) -> 0 | AA17: =IF(ROUNDUP('Настройка ИБР+1'!BG$4,0)=0,0,IF('Настройка ИБР+1'!BG$6='Настройка ИБР+1'!$AG$3,1,HLOOKUP('Настройка ИБР+1'!BG$6,'Настройка ИБР+1'!$M$3:$AF$21,ROW('Настройка ИБР+1'!17:17)-ROW('Настройка ИБР+1'!$3:$3)+1,FALSE))*IF('Настройка ИБР+1'!BG$7='Настройка ИБР+1'!$AG$3,1,HLOOKUP('Настройка ИБР+1'!BG$7,'Настройка ИБР+1'!$M$3:$AF$21,ROW('Настройка ИБР+1'!17:17)-ROW('Настройка ИБР+1'!$3:$3)+1,FALSE))*IF('Настройка ИБР+1'!BG$8='Настройка ИБР+1'!$AG$3,1,HLOOKUP('Настройка ИБР+1'!BG$8,'Настройка ИБР+1'!$M$3:$AF$21,ROW('Настройка ИБР+1'!17:17)-ROW('Настройка ИБР+1'!$3:$3)+1,FALSE))*'Настройка ИБР+1'!$D17) -> 0 | AB17: =IF(ROUNDUP('Настройка ИБР+1'!BH$4,0)=0,0,IF('Настройка ИБР+1'!BH$6='Настройка ИБР+1'!$AG$3,1,HLOOKUP('Настройка ИБР+1'!BH$6,'Настройка ИБР+1'!$M$3:$AF$21,ROW('Настройка ИБР+1'!17:17)-ROW('Настройка ИБР+1'!$3:$3)+1,FALSE))*IF('Настройка ИБР+1'!BH$7='Настройка ИБР+1'!$AG$3,1,HLOOKUP('Настройка ИБР+1'!BH$7,'Настройка ИБР+1'!$M$3:$AF$21,ROW('Настройка ИБР+1'!17:17)-ROW('Настройка ИБР+1'!$3:$3)+1,FALSE))*IF('Настройка ИБР+1'!BH$8='Настройка ИБР+1'!$AG$3,1,HLOOKUP('Настройка ИБР+1'!BH$8,'Настройка ИБР+1'!$M$3:$AF$21,ROW('Настройка ИБР+1'!17:17)-ROW('Настройка ИБР+1'!$3:$3)+1,FALSE))*'Настройка ИБР+1'!$D17) -> 0 | AC17: =IF(ROUNDUP('Настройка ИБР+1'!BI$4,0)=0,0,IF('Настройка ИБР+1'!BI$6='Настройка ИБР+1'!$AG$3,1,HLOOKUP('Настройка ИБР+1'!BI$6,'Настройка ИБР+1'!$M$3:$AF$21,ROW('Настройка ИБР+1'!17:17)-ROW('Настройка ИБР+1'!$3:$3)+1,FALSE))*IF('Настройка ИБР+1'!BI$7='Настройка ИБР+1'!$AG$3,1,HLOOKUP('Настройка ИБР+1'!BI$7,'Настройка ИБР+1'!$M$3:$AF$21,ROW('Настройка ИБР+1'!17:17)-ROW('Настройка ИБР+1'!$3:$3)+1,FALSE))*IF('Настройка ИБР+1'!BI$8='Настройка ИБР+1'!$AG$3,1,HLOOKUP('Настройка ИБР+1'!BI$8,'Настройка ИБР+1'!$M$3:$AF$21,ROW('Настройка ИБР+1'!17:17)-ROW('Настройка ИБР+1'!$3:$3)+1,FALSE))*'Настройка ИБР+1'!$D17) -> 0 | AD17: =IF(ROUNDUP('Настройка ИБР+1'!BJ$4,0)=0,0,IF('Настройка ИБР+1'!BJ$6='Настройка ИБР+1'!$AG$3,1,HLOOKUP('Настройка ИБР+1'!BJ$6,'Настройка ИБР+1'!$M$3:$AF$21,ROW('Настройка ИБР+1'!17:17)-ROW('Настройка ИБР+1'!$3:$3)+1,FALSE))*IF('Настройка ИБР+1'!BJ$7='Настройка ИБР+1'!$AG$3,1,HLOOKUP('Настройка ИБР+1'!BJ$7,'Настройка ИБР+1'!$M$3:$AF$21,ROW('Настройка ИБР+1'!17:17)-ROW('Настройка ИБР+1'!$3:$3)+1,FALSE))*IF('Настройка ИБР+1'!BJ$8='Настройка ИБР+1'!$AG$3,1,HLOOKUP('Настройка ИБР+1'!BJ$8,'Настройка ИБР+1'!$M$3:$AF$21,ROW('Настройка ИБР+1'!17:17)-ROW('Настройка ИБР+1'!$3:$3)+1,FALSE))*'Настройка ИБР+1'!$D17) -> 0 | AE17: =IF(ROUNDUP('Настройка ИБР+1'!BK$4,0)=0,0,IF('Настройка ИБР+1'!BK$6='Настройка ИБР+1'!$AG$3,1,HLOOKUP('Настройка ИБР+1'!BK$6,'Настройка ИБР+1'!$M$3:$AF$21,ROW('Настройка ИБР+1'!17:17)-ROW('Настройка ИБР+1'!$3:$3)+1,FALSE))*IF('Настройка ИБР+1'!BK$7='Настройка ИБР+1'!$AG$3,1,HLOOKUP('Настройка ИБР+1'!BK$7,'Настройка ИБР+1'!$M$3:$AF$21,ROW('Настройка ИБР+1'!17:17)-ROW('Настройка ИБР+1'!$3:$3)+1,FALSE))*IF('Настройка ИБР+1'!BK$8='Настройка ИБР+1'!$AG$3,1,HLOOKUP('Настройка ИБР+1'!BK$8,'Настройка ИБР+1'!$M$3:$AF$21,ROW('Настройка ИБР+1'!17:17)-ROW('Настройка ИБР+1'!$3:$3)+1,FALSE))*'Настройка ИБР+1'!$D17) -> 0 | AF17: =IF(ROUNDUP('Настройка ИБР+1'!BL$4,0)=0,0,IF('Настройка ИБР+1'!BL$6='Настройка ИБР+1'!$AG$3,1,HLOOKUP('Настройка ИБР+1'!BL$6,'Настройка ИБР+1'!$M$3:$AF$21,ROW('Настройка ИБР+1'!17:17)-ROW('Настройка ИБР+1'!$3:$3)+1,FALSE))*IF('Настройка ИБР+1'!BL$7='Настройка ИБР+1'!$AG$3,1,HLOOKUP('Настройка ИБР+1'!BL$7,'Настройка ИБР+1'!$M$3:$AF$21,ROW('Настройка ИБР+1'!17:17)-ROW('Настройка ИБР+1'!$3:$3)+1,FALSE))*IF('Настройка ИБР+1'!BL$8='Настройка ИБР+1'!$AG$3,1,HLOOKUP('Настройка ИБР+1'!BL$8,'Настройка ИБР+1'!$M$3:$AF$21,ROW('Настройка ИБР+1'!17:17)-ROW('Настройка ИБР+1'!$3:$3)+1,FALSE))*'Настройка ИБР+1'!$D17) -> 1.005446082 | AG17: =IF(ROUNDUP('Настройка ИБР+1'!BM$4,0)=0,0,IF('Настройка ИБР+1'!BM$6='Настройка ИБР+1'!$AG$3,1,HLOOKUP('Настройка ИБР+1'!BM$6,'Настройка ИБР+1'!$M$3:$AF$21,ROW('Настройка ИБР+1'!17:17)-ROW('Настройка ИБР+1'!$3:$3)+1,FALSE))*IF('Настройка ИБР+1'!BM$7='Настройка ИБР+1'!$AG$3,1,HLOOKUP('Настройка ИБР+1'!BM$7,'Настройка ИБР+1'!$M$3:$AF$21,ROW('Настройка ИБР+1'!17:17)-ROW('Настройка ИБР+1'!$3:$3)+1,FALSE))*IF('Настройка ИБР+1'!BM$8='Настройка ИБР+1'!$AG$3,1,HLOOKUP('Настройка ИБР+1'!BM$8,'Настройка ИБР+1'!$M$3:$AF$21,ROW('Настройка ИБР+1'!17:17)-ROW('Настройка ИБР+1'!$3:$3)+1,FALSE))*'Настройка ИБР+1'!$D17) -> 0 | AH17: =IF(ROUNDUP('Настройка ИБР+1'!BN$4,0)=0,0,IF('Настройка ИБР+1'!BN$6='Настройка ИБР+1'!$AG$3,1,HLOOKUP('Настройка ИБР+1'!BN$6,'Настройка ИБР+1'!$M$3:$AF$21,ROW('Настройка ИБР+1'!17:17)-ROW('Настройка ИБР+1'!$3:$3)+1,FALSE))*IF('Настройка ИБР+1'!BN$7='Настройка ИБР+1'!$AG$3,1,HLOOKUP('Настройка ИБР+1'!BN$7,'Настройка ИБР+1'!$M$3:$AF$21,ROW('Настройка ИБР+1'!17:17)-ROW('Настройка ИБР+1'!$3:$3)+1,FALSE))*IF('Настройка ИБР+1'!BN$8='Настройка ИБР+1'!$AG$3,1,HLOOKUP('Настройка ИБР+1'!BN$8,'Настройка ИБР+1'!$M$3:$AF$21,ROW('Настройка ИБР+1'!17:17)-ROW('Настройка ИБР+1'!$3:$3)+1,FALSE))*'Настройка ИБР+1'!$D17) -> 0 | AI17: =IF(ROUNDUP('Настройка ИБР+1'!BO$4,0)=0,0,IF('Настройка ИБР+1'!BO$6='Настройка ИБР+1'!$AG$3,1,HLOOKUP('Настройка ИБР+1'!BO$6,'Настройка ИБР+1'!$M$3:$AF$21,ROW('Настройка ИБР+1'!17:17)-ROW('Настройка ИБР+1'!$3:$3)+1,FALSE))*IF('Настройка ИБР+1'!BO$7='Настройка ИБР+1'!$AG$3,1,HLOOKUP('Настройка ИБР+1'!BO$7,'Настройка ИБР+1'!$M$3:$AF$21,ROW('Настройка ИБР+1'!17:17)-ROW('Настройка ИБР+1'!$3:$3)+1,FALSE))*IF('Настройка ИБР+1'!BO$8='Настройка ИБР+1'!$AG$3,1,HLOOKUP('Настройка ИБР+1'!BO$8,'Настройка ИБР+1'!$M$3:$AF$21,ROW('Настройка ИБР+1'!17:17)-ROW('Настройка ИБР+1'!$3:$3)+1,FALSE))*'Настройка ИБР+1'!$D17) -> 1.005446082 | AL17: =CHOOSE($AK$11,HLOOKUP($AK$11,$C$2:$AI$21,ROW(17:17)-ROW($2:$2)+1,FALSE)*Данные!$F$11/HLOOKUP($AK$11,$C$2:$AI$21,ROW($11:$11)-ROW($2:$2)+1,FALSE),HLOOKUP($AK$11,#REF!,ROW(#REF!)-ROW(#REF!)+1,FALSE)*Данные!$F$11/HLOOKUP($AK$11,#REF!,ROW(#REF!)-ROW(#REF!)+1,FALSE),HLOOKUP($AK$11,#REF!,ROW(#REF!)-ROW(#REF!)+1,FALSE)*Данные!$F$11/HLOOKUP($AK$11,#REF!,ROW(#REF!)-ROW(#REF!)+1,FALSE)) -> 1.044381636 | AM17: =CHOOSE($AK$11,HLOOKUP($AK$11,'Настройка ИБР+1'!$AI$2:$BO$21,ROW('Настройка ИБР+1'!17:17)-ROW('Настройка ИБР+1'!$2:$2)+1,FALSE)/Данные!$F17/(HLOOKUP($AK$11,'Настройка ИБР+1'!$AI$2:$BO$21,ROW(Данные!$11:$11)-ROW('Настройка ИБР+1'!$2:$2)+1,FALSE)/Данные!$F$11),HLOOKUP($AK$11,#REF!,ROW(#REF!)-ROW(#REF!)+1,FALSE)/Данные!$F17/(HLOOKUP($AK$11,#REF!,ROW(Данные!$11:$11)-ROW(#REF!)+1,FALSE)/Данные!$F$11),HLOOKUP($AK$11,#REF!,ROW(#REF!)-ROW(#REF!)+1,FALSE)/Данные!$F17/(HLOOKUP($AK$11,#REF!,ROW(Данные!$11:$11)-ROW(#REF!)+1,FALSE)/Данные!$F$11)) -> 0.9856177846
A18: =Данные!A18 -> 7 | B18: =Данные!D18 -> Тимирязевское с/п | C18: =SUMPRODUCT('Настройка ИБР+1'!$AJ$4:$BO$4,D18:AI18)*Данные!$F$11/SUMPRODUCT($D$11:$AI$11,'Настройка ИБР+1'!$AJ$4:$BO$4) -> 1.15487293 | D18: =IF(ROUNDUP('Настройка ИБР+1'!AJ$4,0)=0,0,IF('Настройка ИБР+1'!AJ$6='Настройка ИБР+1'!$AG$3,1,HLOOKUP('Настройка ИБР+1'!AJ$6,'Настройка ИБР+1'!$M$3:$AF$21,ROW('Настройка ИБР+1'!18:18)-ROW('Настройка ИБР+1'!$3:$3)+1,FALSE))*IF('Настройка ИБР+1'!AJ$7='Настройка ИБР+1'!$AG$3,1,HLOOKUP('Настройка ИБР+1'!AJ$7,'Настройка ИБР+1'!$M$3:$AF$21,ROW('Настройка ИБР+1'!18:18)-ROW('Настройка ИБР+1'!$3:$3)+1,FALSE))*IF('Настройка ИБР+1'!AJ$8='Настройка ИБР+1'!$AG$3,1,HLOOKUP('Настройка ИБР+1'!AJ$8,'Настройка ИБР+1'!$M$3:$AF$21,ROW('Настройка ИБР+1'!18:18)-ROW('Настройка ИБР+1'!$3:$3)+1,FALSE))*'Настройка ИБР+1'!$D18) -> 1.229964385 | E18: =IF(ROUNDUP('Настройка ИБР+1'!AK$4,0)=0,0,IF('Настройка ИБР+1'!AK$6='Настройка ИБР+1'!$AG$3,1,HLOOKUP('Настройка ИБР+1'!AK$6,'Настройка ИБР+1'!$M$3:$AF$21,ROW('Настройка ИБР+1'!18:18)-ROW('Настройка ИБР+1'!$3:$3)+1,FALSE))*IF('Настройка ИБР+1'!AK$7='Настройка ИБР+1'!$AG$3,1,HLOOKUP('Настройка ИБР+1'!AK$7,'Настройка ИБР+1'!$M$3:$AF$21,ROW('Настройка ИБР+1'!18:18)-ROW('Настройка ИБР+1'!$3:$3)+1,FALSE))*IF('Настройка ИБР+1'!AK$8='Настройка ИБР+1'!$AG$3,1,HLOOKUP('Настройка ИБР+1'!AK$8,'Настройка ИБР+1'!$M$3:$AF$21,ROW('Настройка ИБР+1'!18:18)-ROW('Настройка ИБР+1'!$3:$3)+1,FALSE))*'Настройка ИБР+1'!$D18) -> 1.005446082 | F18: =IF(ROUNDUP('Настройка ИБР+1'!AL$4,0)=0,0,IF('Настройка ИБР+1'!AL$6='Настройка ИБР+1'!$AG$3,1,HLOOKUP('Настройка ИБР+1'!AL$6,'Настройка ИБР+1'!$M$3:$AF$21,ROW('Настройка ИБР+1'!18:18)-ROW('Настройка ИБР+1'!$3:$3)+1,FALSE))*IF('Настройка ИБР+1'!AL$7='Настройка ИБР+1'!$AG$3,1,HLOOKUP('Настройка ИБР+1'!AL$7,'Настройка ИБР+1'!$M$3:$AF$21,ROW('Настройка ИБР+1'!18:18)-ROW('Настройка ИБР+1'!$3:$3)+1,FALSE))*IF('Настройка ИБР+1'!AL$8='Настройка ИБР+1'!$AG$3,1,HLOOKUP('Настройка ИБР+1'!AL$8,'Настройка ИБР+1'!$M$3:$AF$21,ROW('Настройка ИБР+1'!18:18)-ROW('Настройка ИБР+1'!$3:$3)+1,FALSE))*'Настройка ИБР+1'!$D18) -> 0 | G18: =IF(ROUNDUP('Настройка ИБР+1'!AM$4,0)=0,0,IF('Настройка ИБР+1'!AM$6='Настройка ИБР+1'!$AG$3,1,HLOOKUP('Настройка ИБР+1'!AM$6,'Настройка ИБР+1'!$M$3:$AF$21,ROW('Настройка ИБР+1'!18:18)-ROW('Настройка ИБР+1'!$3:$3)+1,FALSE))*IF('Настройка ИБР+1'!AM$7='Настройка ИБР+1'!$AG$3,1,HLOOKUP('Настройка ИБР+1'!AM$7,'Настройка ИБР+1'!$M$3:$AF$21,ROW('Настройка ИБР+1'!18:18)-ROW('Настройка ИБР+1'!$3:$3)+1,FALSE))*IF('Настройка ИБР+1'!AM$8='Настройка ИБР+1'!$AG$3,1,HLOOKUP('Настройка ИБР+1'!AM$8,'Настройка ИБР+1'!$M$3:$AF$21,ROW('Настройка ИБР+1'!18:18)-ROW('Настройка ИБР+1'!$3:$3)+1,FALSE))*'Настройка ИБР+1'!$D18) -> 0 | H18: =IF(ROUNDUP('Настройка ИБР+1'!AN$4,0)=0,0,IF('Настройка ИБР+1'!AN$6='Настройка ИБР+1'!$AG$3,1,HLOOKUP('Настройка ИБР+1'!AN$6,'Настройка ИБР+1'!$M$3:$AF$21,ROW('Настройка ИБР+1'!18:18)-ROW('Настройка ИБР+1'!$3:$3)+1,FALSE))*IF('Настройка ИБР+1'!AN$7='Настройка ИБР+1'!$AG$3,1,HLOOKUP('Настройка ИБР+1'!AN$7,'Настройка ИБР+1'!$M$3:$AF$21,ROW('Настройка ИБР+1'!18:18)-ROW('Настройка ИБР+1'!$3:$3)+1,FALSE))*IF('Настройка ИБР+1'!AN$8='Настройка ИБР+1'!$AG$3,1,HLOOKUP('Настройка ИБР+1'!AN$8,'Настройка ИБР+1'!$M$3:$AF$21,ROW('Настройка ИБР+1'!18:18)-ROW('Настройка ИБР+1'!$3:$3)+1,FALSE))*'Настройка ИБР+1'!$D18) -> 0 | I18: =IF(ROUNDUP('Настройка ИБР+1'!AO$4,0)=0,0,IF('Настройка ИБР+1'!AO$6='Настройка ИБР+1'!$AG$3,1,HLOOKUP('Настройка ИБР+1'!AO$6,'Настройка ИБР+1'!$M$3:$AF$21,ROW('Настройка ИБР+1'!18:18)-ROW('Настройка ИБР+1'!$3:$3)+1,FALSE))*IF('Настройка ИБР+1'!AO$7='Настройка ИБР+1'!$AG$3,1,HLOOKUP('Настройка ИБР+1'!AO$7,'Настройка ИБР+1'!$M$3:$AF$21,ROW('Настройка ИБР+1'!18:18)-ROW('Настройка ИБР+1'!$3:$3)+1,FALSE))*IF('Настройка ИБР+1'!AO$8='Настройка ИБР+1'!$AG$3,1,HLOOKUP('Настройка ИБР+1'!AO$8,'Настройка ИБР+1'!$M$3:$AF$21,ROW('Настройка ИБР+1'!18:18)-ROW('Настройка ИБР+1'!$3:$3)+1,FALSE))*'Настройка ИБР+1'!$D18) -> 1.005446082 | J18: =IF(ROUNDUP('Настройка ИБР+1'!AP$4,0)=0,0,IF('Настройка ИБР+1'!AP$6='Настройка ИБР+1'!$AG$3,1,HLOOKUP('Настройка ИБР+1'!AP$6,'Настройка ИБР+1'!$M$3:$AF$21,ROW('Настройка ИБР+1'!18:18)-ROW('Настройка ИБР+1'!$3:$3)+1,FALSE))*IF('Настройка ИБР+1'!AP$7='Настройка ИБР+1'!$AG$3,1,HLOOKUP('Настройка ИБР+1'!AP$7,'Настройка ИБР+1'!$M$3:$AF$21,ROW('Настройка ИБР+1'!18:18)-ROW('Настройка ИБР+1'!$3:$3)+1,FALSE))*IF('Настройка ИБР+1'!AP$8='Настройка ИБР+1'!$AG$3,1,HLOOKUP('Настройка ИБР+1'!AP$8,'Настройка ИБР+1'!$M$3:$AF$21,ROW('Настройка ИБР+1'!18:18)-ROW('Настройка ИБР+1'!$3:$3)+1,FALSE))*'Настройка ИБР+1'!$D18) -> 1.005446082 | K18: =IF(ROUNDUP('Настройка ИБР+1'!AQ$4,0)=0,0,IF('Настройка ИБР+1'!AQ$6='Настройка ИБР+1'!$AG$3,1,HLOOKUP('Настройка ИБР+1'!AQ$6,'Настройка ИБР+1'!$M$3:$AF$21,ROW('Настройка ИБР+1'!18:18)-ROW('Настройка ИБР+1'!$3:$3)+1,FALSE))*IF('Настройка ИБР+1'!AQ$7='Настройка ИБР+1'!$AG$3,1,HLOOKUP('Настройка ИБР+1'!AQ$7,'Настройка ИБР+1'!$M$3:$AF$21,ROW('Настройка ИБР+1'!18:18)-ROW('Настройка ИБР+1'!$3:$3)+1,FALSE))*IF('Настройка ИБР+1'!AQ$8='Настройка ИБР+1'!$AG$3,1,HLOOKUP('Настройка ИБР+1'!AQ$8,'Настройка ИБР+1'!$M$3:$AF$21,ROW('Настройка ИБР+1'!18:18)-ROW('Настройка ИБР+1'!$3:$3)+1,FALSE))*'Настройка ИБР+1'!$D18) -> 1.005446082 | L18: =IF(ROUNDUP('Настройка ИБР+1'!AR$4,0)=0,0,IF('Настройка ИБР+1'!AR$6='Настройка ИБР+1'!$AG$3,1,HLOOKUP('Настройка ИБР+1'!AR$6,'Настройка ИБР+1'!$M$3:$AF$21,ROW('Настройка ИБР+1'!18:18)-ROW('Настройка ИБР+1'!$3:$3)+1,FALSE))*IF('Настройка ИБР+1'!AR$7='Настройка ИБР+1'!$AG$3,1,HLOOKUP('Настройка ИБР+1'!AR$7,'Настройка ИБР+1'!$M$3:$AF$21,ROW('Настройка ИБР+1'!18:18)-ROW('Настройка ИБР+1'!$3:$3)+1,FALSE))*IF('Настройка ИБР+1'!AR$8='Настройка ИБР+1'!$AG$3,1,HLOOKUP('Настройка ИБР+1'!AR$8,'Настройка ИБР+1'!$M$3:$AF$21,ROW('Настройка ИБР+1'!18:18)-ROW('Настройка ИБР+1'!$3:$3)+1,FALSE))*'Настройка ИБР+1'!$D18) -> 0 | M18: =IF(ROUNDUP('Настройка ИБР+1'!AS$4,0)=0,0,IF('Настройка ИБР+1'!AS$6='Настройка ИБР+1'!$AG$3,1,HLOOKUP('Настройка ИБР+1'!AS$6,'Настройка ИБР+1'!$M$3:$AF$21,ROW('Настройка ИБР+1'!18:18)-ROW('Настройка ИБР+1'!$3:$3)+1,FALSE))*IF('Настройка ИБР+1'!AS$7='Настройка ИБР+1'!$AG$3,1,HLOOKUP('Настройка ИБР+1'!AS$7,'Настройка ИБР+1'!$M$3:$AF$21,ROW('Настройка ИБР+1'!18:18)-ROW('Настройка ИБР+1'!$3:$3)+1,FALSE))*IF('Настройка ИБР+1'!AS$8='Настройка ИБР+1'!$AG$3,1,HLOOKUP('Настройка ИБР+1'!AS$8,'Настройка ИБР+1'!$M$3:$AF$21,ROW('Настройка ИБР+1'!18:18)-ROW('Настройка ИБР+1'!$3:$3)+1,FALSE))*'Настройка ИБР+1'!$D18) -> 0 | N18: =IF(ROUNDUP('Настройка ИБР+1'!AT$4,0)=0,0,IF('Настройка ИБР+1'!AT$6='Настройка ИБР+1'!$AG$3,1,HLOOKUP('Настройка ИБР+1'!AT$6,'Настройка ИБР+1'!$M$3:$AF$21,ROW('Настройка ИБР+1'!18:18)-ROW('Настройка ИБР+1'!$3:$3)+1,FALSE))*IF('Настройка ИБР+1'!AT$7='Настройка ИБР+1'!$AG$3,1,HLOOKUP('Настройка ИБР+1'!AT$7,'Настройка ИБР+1'!$M$3:$AF$21,ROW('Настройка ИБР+1'!18:18)-ROW('Настройка ИБР+1'!$3:$3)+1,FALSE))*IF('Настройка ИБР+1'!AT$8='Настройка ИБР+1'!$AG$3,1,HLOOKUP('Настройка ИБР+1'!AT$8,'Настройка ИБР+1'!$M$3:$AF$21,ROW('Настройка ИБР+1'!18:18)-ROW('Настройка ИБР+1'!$3:$3)+1,FALSE))*'Настройка ИБР+1'!$D18) -> 1.229964385 | O18: =IF(ROUNDUP('Настройка ИБР+1'!AU$4,0)=0,0,IF('Настройка ИБР+1'!AU$6='Настройка ИБР+1'!$AG$3,1,HLOOKUP('Настройка ИБР+1'!AU$6,'Настройка ИБР+1'!$M$3:$AF$21,ROW('Настройка ИБР+1'!18:18)-ROW('Настройка ИБР+1'!$3:$3)+1,FALSE))*IF('Настройка ИБР+1'!AU$7='Настройка ИБР+1'!$AG$3,1,HLOOKUP('Настройка ИБР+1'!AU$7,'Настройка ИБР+1'!$M$3:$AF$21,ROW('Настройка ИБР+1'!18:18)-ROW('Настройка ИБР+1'!$3:$3)+1,FALSE))*IF('Настройка ИБР+1'!AU$8='Настройка ИБР+1'!$AG$3,1,HLOOKUP('Настройка ИБР+1'!AU$8,'Настройка ИБР+1'!$M$3:$AF$21,ROW('Настройка ИБР+1'!18:18)-ROW('Настройка ИБР+1'!$3:$3)+1,FALSE))*'Настройка ИБР+1'!$D18) -> 0 | P18: =IF(ROUNDUP('Настройка ИБР+1'!AV$4,0)=0,0,IF('Настройка ИБР+1'!AV$6='Настройка ИБР+1'!$AG$3,1,HLOOKUP('Настройка ИБР+1'!AV$6,'Настройка ИБР+1'!$M$3:$AF$21,ROW('Настройка ИБР+1'!18:18)-ROW('Настройка ИБР+1'!$3:$3)+1,FALSE))*IF('Настройка ИБР+1'!AV$7='Настройка ИБР+1'!$AG$3,1,HLOOKUP('Настройка ИБР+1'!AV$7,'Настройка ИБР+1'!$M$3:$AF$21,ROW('Настройка ИБР+1'!18:18)-ROW('Настройка ИБР+1'!$3:$3)+1,FALSE))*IF('Настройка ИБР+1'!AV$8='Настройка ИБР+1'!$AG$3,1,HLOOKUP('Настройка ИБР+1'!AV$8,'Настройка ИБР+1'!$M$3:$AF$21,ROW('Настройка ИБР+1'!18:18)-ROW('Настройка ИБР+1'!$3:$3)+1,FALSE))*'Настройка ИБР+1'!$D18) -> 0 | Q18: =IF(ROUNDUP('Настройка ИБР+1'!AW$4,0)=0,0,IF('Настройка ИБР+1'!AW$6='Настройка ИБР+1'!$AG$3,1,HLOOKUP('Настройка ИБР+1'!AW$6,'Настройка ИБР+1'!$M$3:$AF$21,ROW('Настройка ИБР+1'!18:18)-ROW('Настройка ИБР+1'!$3:$3)+1,FALSE))*IF('Настройка ИБР+1'!AW$7='Настройка ИБР+1'!$AG$3,1,HLOOKUP('Настройка ИБР+1'!AW$7,'Настройка ИБР+1'!$M$3:$AF$21,ROW('Настройка ИБР+1'!18:18)-ROW('Настройка ИБР+1'!$3:$3)+1,FALSE))*IF('Настройка ИБР+1'!AW$8='Настройка ИБР+1'!$AG$3,1,HLOOKUP('Настройка ИБР+1'!AW$8,'Настройка ИБР+1'!$M$3:$AF$21,ROW('Настройка ИБР+1'!18:18)-ROW('Настройка ИБР+1'!$3:$3)+1,FALSE))*'Настройка ИБР+1'!$D18) -> 1.005446082 | R18: =IF(ROUNDUP('Настройка ИБР+1'!AX$4,0)=0,0,IF('Настройка ИБР+1'!AX$6='Настройка ИБР+1'!$AG$3,1,HLOOKUP('Настройка ИБР+1'!AX$6,'Настройка ИБР+1'!$M$3:$AF$21,ROW('Настройка ИБР+1'!18:18)-ROW('Настройка ИБР+1'!$3:$3)+1,FALSE))*IF('Настройка ИБР+1'!AX$7='Настройка ИБР+1'!$AG$3,1,HLOOKUP('Настройка ИБР+1'!AX$7,'Настройка ИБР+1'!$M$3:$AF$21,ROW('Настройка ИБР+1'!18:18)-ROW('Настройка ИБР+1'!$3:$3)+1,FALSE))*IF('Настройка ИБР+1'!AX$8='Настройка ИБР+1'!$AG$3,1,HLOOKUP('Настройка ИБР+1'!AX$8,'Настройка ИБР+1'!$M$3:$AF$21,ROW('Настройка ИБР+1'!18:18)-ROW('Настройка ИБР+1'!$3:$3)+1,FALSE))*'Настройка ИБР+1'!$D18) -> 1.005446082 | S18: =IF(ROUNDUP('Настройка ИБР+1'!AY$4,0)=0,0,IF('Настройка ИБР+1'!AY$6='Настройка ИБР+1'!$AG$3,1,HLOOKUP('Настройка ИБР+1'!AY$6,'Настройка ИБР+1'!$M$3:$AF$21,ROW('Настройка ИБР+1'!18:18)-ROW('Настройка ИБР+1'!$3:$3)+1,FALSE))*IF('Настройка ИБР+1'!AY$7='Настройка ИБР+1'!$AG$3,1,HLOOKUP('Настройка ИБР+1'!AY$7,'Настройка ИБР+1'!$M$3:$AF$21,ROW('Настройка ИБР+1'!18:18)-ROW('Настройка ИБР+1'!$3:$3)+1,FALSE))*IF('Настройка ИБР+1'!AY$8='Настройка ИБР+1'!$AG$3,1,HLOOKUP('Настройка ИБР+1'!AY$8,'Настройка ИБР+1'!$M$3:$AF$21,ROW('Настройка ИБР+1'!18:18)-ROW('Настройка ИБР+1'!$3:$3)+1,FALSE))*'Настройка ИБР+1'!$D18) -> 0 | T18: =IF(ROUNDUP('Настройка ИБР+1'!AZ$4,0)=0,0,IF('Настройка ИБР+1'!AZ$6='Настройка ИБР+1'!$AG$3,1,HLOOKUP('Настройка ИБР+1'!AZ$6,'Настройка ИБР+1'!$M$3:$AF$21,ROW('Настройка ИБР+1'!18:18)-ROW('Настройка ИБР+1'!$3:$3)+1,FALSE))*IF('Настройка ИБР+1'!AZ$7='Настройка ИБР+1'!$AG$3,1,HLOOKUP('Настройка ИБР+1'!AZ$7,'Настройка ИБР+1'!$M$3:$AF$21,ROW('Настройка ИБР+1'!18:18)-ROW('Настройка ИБР+1'!$3:$3)+1,FALSE))*IF('Настройка ИБР+1'!AZ$8='Настройка ИБР+1'!$AG$3,1,HLOOKUP('Настройка ИБР+1'!AZ$8,'Настройка ИБР+1'!$M$3:$AF$21,ROW('Настройка ИБР+1'!18:18)-ROW('Настройка ИБР+1'!$3:$3)+1,FALSE))*'Настройка ИБР+1'!$D18) -> 0 | U18: =IF(ROUNDUP('Настройка ИБР+1'!BA$4,0)=0,0,IF('Настройка ИБР+1'!BA$6='Настройка ИБР+1'!$AG$3,1,HLOOKUP('Настройка ИБР+1'!BA$6,'Настройка ИБР+1'!$M$3:$AF$21,ROW('Настройка ИБР+1'!18:18)-ROW('Настройка ИБР+1'!$3:$3)+1,FALSE))*IF('Настройка ИБР+1'!BA$7='Настройка ИБР+1'!$AG$3,1,HLOOKUP('Настройка ИБР+1'!BA$7,'Настройка ИБР+1'!$M$3:$AF$21,ROW('Настройка ИБР+1'!18:18)-ROW('Настройка ИБР+1'!$3:$3)+1,FALSE))*IF('Настройка ИБР+1'!BA$8='Настройка ИБР+1'!$AG$3,1,HLOOKUP('Настройка ИБР+1'!BA$8,'Настройка ИБР+1'!$M$3:$AF$21,ROW('Настройка ИБР+1'!18:18)-ROW('Настройка ИБР+1'!$3:$3)+1,FALSE))*'Настройка ИБР+1'!$D18) -> 1.005446082 | V18: =IF(ROUNDUP('Настройка ИБР+1'!BB$4,0)=0,0,IF('Настройка ИБР+1'!BB$6='Настройка ИБР+1'!$AG$3,1,HLOOKUP('Настройка ИБР+1'!BB$6,'Настройка ИБР+1'!$M$3:$AF$21,ROW('Настройка ИБР+1'!18:18)-ROW('Настройка ИБР+1'!$3:$3)+1,FALSE))*IF('Настройка ИБР+1'!BB$7='Настройка ИБР+1'!$AG$3,1,HLOOKUP('Настройка ИБР+1'!BB$7,'Настройка ИБР+1'!$M$3:$AF$21,ROW('Настройка ИБР+1'!18:18)-ROW('Настройка ИБР+1'!$3:$3)+1,FALSE))*IF('Настройка ИБР+1'!BB$8='Настройка ИБР+1'!$AG$3,1,HLOOKUP('Настройка ИБР+1'!BB$8,'Настройка ИБР+1'!$M$3:$AF$21,ROW('Настройка ИБР+1'!18:18)-ROW('Настройка ИБР+1'!$3:$3)+1,FALSE))*'Настройка ИБР+1'!$D18) -> 0.9898768858 | W18: =IF(ROUNDUP('Настройка ИБР+1'!BC$4,0)=0,0,IF('Настройка ИБР+1'!BC$6='Настройка ИБР+1'!$AG$3,1,HLOOKUP('Настройка ИБР+1'!BC$6,'Настройка ИБР+1'!$M$3:$AF$21,ROW('Настройка ИБР+1'!18:18)-ROW('Настройка ИБР+1'!$3:$3)+1,FALSE))*IF('Настройка ИБР+1'!BC$7='Настройка ИБР+1'!$AG$3,1,HLOOKUP('Настройка ИБР+1'!BC$7,'Настройка ИБР+1'!$M$3:$AF$21,ROW('Настройка ИБР+1'!18:18)-ROW('Настройка ИБР+1'!$3:$3)+1,FALSE))*IF('Настройка ИБР+1'!BC$8='Настройка ИБР+1'!$AG$3,1,HLOOKUP('Настройка ИБР+1'!BC$8,'Настройка ИБР+1'!$M$3:$AF$21,ROW('Настройка ИБР+1'!18:18)-ROW('Настройка ИБР+1'!$3:$3)+1,FALSE))*'Настройка ИБР+1'!$D18) -> 0 | X18: =IF(ROUNDUP('Настройка ИБР+1'!BD$4,0)=0,0,IF('Настройка ИБР+1'!BD$6='Настройка ИБР+1'!$AG$3,1,HLOOKUP('Настройка ИБР+1'!BD$6,'Настройка ИБР+1'!$M$3:$AF$21,ROW('Настройка ИБР+1'!18:18)-ROW('Настройка ИБР+1'!$3:$3)+1,FALSE))*IF('Настройка ИБР+1'!BD$7='Настройка ИБР+1'!$AG$3,1,HLOOKUP('Настройка ИБР+1'!BD$7,'Настройка ИБР+1'!$M$3:$AF$21,ROW('Настройка ИБР+1'!18:18)-ROW('Настройка ИБР+1'!$3:$3)+1,FALSE))*IF('Настройка ИБР+1'!BD$8='Настройка ИБР+1'!$AG$3,1,HLOOKUP('Настройка ИБР+1'!BD$8,'Настройка ИБР+1'!$M$3:$AF$21,ROW('Настройка ИБР+1'!18:18)-ROW('Настройка ИБР+1'!$3:$3)+1,FALSE))*'Настройка ИБР+1'!$D18) -> 1.005446082 | Y18: =IF(ROUNDUP('Настройка ИБР+1'!BE$4,0)=0,0,IF('Настройка ИБР+1'!BE$6='Настройка ИБР+1'!$AG$3,1,HLOOKUP('Настройка ИБР+1'!BE$6,'Настройка ИБР+1'!$M$3:$AF$21,ROW('Настройка ИБР+1'!18:18)-ROW('Настройка ИБР+1'!$3:$3)+1,FALSE))*IF('Настройка ИБР+1'!BE$7='Настройка ИБР+1'!$AG$3,1,HLOOKUP('Настройка ИБР+1'!BE$7,'Настройка ИБР+1'!$M$3:$AF$21,ROW('Настройка ИБР+1'!18:18)-ROW('Настройка ИБР+1'!$3:$3)+1,FALSE))*IF('Настройка ИБР+1'!BE$8='Настройка ИБР+1'!$AG$3,1,HLOOKUP('Настройка ИБР+1'!BE$8,'Настройка ИБР+1'!$M$3:$AF$21,ROW('Настройка ИБР+1'!18:18)-ROW('Настройка ИБР+1'!$3:$3)+1,FALSE))*'Настройка ИБР+1'!$D18) -> 1.005446082 | Z18: =IF(ROUNDUP('Настройка ИБР+1'!BF$4,0)=0,0,IF('Настройка ИБР+1'!BF$6='Настройка ИБР+1'!$AG$3,1,HLOOKUP('Настройка ИБР+1'!BF$6,'Настройка ИБР+1'!$M$3:$AF$21,ROW('Настройка ИБР+1'!18:18)-ROW('Настройка ИБР+1'!$3:$3)+1,FALSE))*IF('Настройка ИБР+1'!BF$7='Настройка ИБР+1'!$AG$3,1,HLOOKUP('Настройка ИБР+1'!BF$7,'Настройка ИБР+1'!$M$3:$AF$21,ROW('Настройка ИБР+1'!18:18)-ROW('Настройка ИБР+1'!$3:$3)+1,FALSE))*IF('Настройка ИБР+1'!BF$8='Настройка ИБР+1'!$AG$3,1,HLOOKUP('Настройка ИБР+1'!BF$8,'Настройка ИБР+1'!$M$3:$AF$21,ROW('Настройка ИБР+1'!18:18)-ROW('Настройка ИБР+1'!$3:$3)+1,FALSE))*'Настройка ИБР+1'!$D18) -> 0 | AA18: =IF(ROUNDUP('Настройка ИБР+1'!BG$4,0)=0,0,IF('Настройка ИБР+1'!BG$6='Настройка ИБР+1'!$AG$3,1,HLOOKUP('Настройка ИБР+1'!BG$6,'Настройка ИБР+1'!$M$3:$AF$21,ROW('Настройка ИБР+1'!18:18)-ROW('Настройка ИБР+1'!$3:$3)+1,FALSE))*IF('Настройка ИБР+1'!BG$7='Настройка ИБР+1'!$AG$3,1,HLOOKUP('Настройка ИБР+1'!BG$7,'Настройка ИБР+1'!$M$3:$AF$21,ROW('Настройка ИБР+1'!18:18)-ROW('Настройка ИБР+1'!$3:$3)+1,FALSE))*IF('Настройка ИБР+1'!BG$8='Настройка ИБР+1'!$AG$3,1,HLOOKUP('Настройка ИБР+1'!BG$8,'Настройка ИБР+1'!$M$3:$AF$21,ROW('Настройка ИБР+1'!18:18)-ROW('Настройка ИБР+1'!$3:$3)+1,FALSE))*'Настройка ИБР+1'!$D18) -> 0 | AB18: =IF(ROUNDUP('Настройка ИБР+1'!BH$4,0)=0,0,IF('Настройка ИБР+1'!BH$6='Настройка ИБР+1'!$AG$3,1,HLOOKUP('Настройка ИБР+1'!BH$6,'Настройка ИБР+1'!$M$3:$AF$21,ROW('Настройка ИБР+1'!18:18)-ROW('Настройка ИБР+1'!$3:$3)+1,FALSE))*IF('Настройка ИБР+1'!BH$7='Настройка ИБР+1'!$AG$3,1,HLOOKUP('Настройка ИБР+1'!BH$7,'Настройка ИБР+1'!$M$3:$AF$21,ROW('Настройка ИБР+1'!18:18)-ROW('Настройка ИБР+1'!$3:$3)+1,FALSE))*IF('Настройка ИБР+1'!BH$8='Настройка ИБР+1'!$AG$3,1,HLOOKUP('Настройка ИБР+1'!BH$8,'Настройка ИБР+1'!$M$3:$AF$21,ROW('Настройка ИБР+1'!18:18)-ROW('Настройка ИБР+1'!$3:$3)+1,FALSE))*'Настройка ИБР+1'!$D18) -> 0 | AC18: =IF(ROUNDUP('Настройка ИБР+1'!BI$4,0)=0,0,IF('Настройка ИБР+1'!BI$6='Настройка ИБР+1'!$AG$3,1,HLOOKUP('Настройка ИБР+1'!BI$6,'Настройка ИБР+1'!$M$3:$AF$21,ROW('Настройка ИБР+1'!18:18)-ROW('Настройка ИБР+1'!$3:$3)+1,FALSE))*IF('Настройка ИБР+1'!BI$7='Настройка ИБР+1'!$AG$3,1,HLOOKUP('Настройка ИБР+1'!BI$7,'Настройка ИБР+1'!$M$3:$AF$21,ROW('Настройка ИБР+1'!18:18)-ROW('Настройка ИБР+1'!$3:$3)+1,FALSE))*IF('Настройка ИБР+1'!BI$8='Настройка ИБР+1'!$AG$3,1,HLOOKUP('Настройка ИБР+1'!BI$8,'Настройка ИБР+1'!$M$3:$AF$21,ROW('Настройка ИБР+1'!18:18)-ROW('Настройка ИБР+1'!$3:$3)+1,FALSE))*'Настройка ИБР+1'!$D18) -> 0 | AD18: =IF(ROUNDUP('Настройка ИБР+1'!BJ$4,0)=0,0,IF('Настройка ИБР+1'!BJ$6='Настройка ИБР+1'!$AG$3,1,HLOOKUP('Настройка ИБР+1'!BJ$6,'Настройка ИБР+1'!$M$3:$AF$21,ROW('Настройка ИБР+1'!18:18)-ROW('Настройка ИБР+1'!$3:$3)+1,FALSE))*IF('Настройка ИБР+1'!BJ$7='Настройка ИБР+1'!$AG$3,1,HLOOKUP('Настройка ИБР+1'!BJ$7,'Настройка ИБР+1'!$M$3:$AF$21,ROW('Настройка ИБР+1'!18:18)-ROW('Настройка ИБР+1'!$3:$3)+1,FALSE))*IF('Настройка ИБР+1'!BJ$8='Настройка ИБР+1'!$AG$3,1,HLOOKUP('Настройка ИБР+1'!BJ$8,'Настройка ИБР+1'!$M$3:$AF$21,ROW('Настройка ИБР+1'!18:18)-ROW('Настройка ИБР+1'!$3:$3)+1,FALSE))*'Настройка ИБР+1'!$D18) -> 0 | AE18: =IF(ROUNDUP('Настройка ИБР+1'!BK$4,0)=0,0,IF('Настройка ИБР+1'!BK$6='Настройка ИБР+1'!$AG$3,1,HLOOKUP('Настройка ИБР+1'!BK$6,'Настройка ИБР+1'!$M$3:$AF$21,ROW('Настройка ИБР+1'!18:18)-ROW('Настройка ИБР+1'!$3:$3)+1,FALSE))*IF('Настройка ИБР+1'!BK$7='Настройка ИБР+1'!$AG$3,1,HLOOKUP('Настройка ИБР+1'!BK$7,'Настройка ИБР+1'!$M$3:$AF$21,ROW('Настройка ИБР+1'!18:18)-ROW('Настройка ИБР+1'!$3:$3)+1,FALSE))*IF('Настройка ИБР+1'!BK$8='Настройка ИБР+1'!$AG$3,1,HLOOKUP('Настройка ИБР+1'!BK$8,'Настройка ИБР+1'!$M$3:$AF$21,ROW('Настройка ИБР+1'!18:18)-ROW('Настройка ИБР+1'!$3:$3)+1,FALSE))*'Настройка ИБР+1'!$D18) -> 0 | AF18: =IF(ROUNDUP('Настройка ИБР+1'!BL$4,0)=0,0,IF('Настройка ИБР+1'!BL$6='Настройка ИБР+1'!$AG$3,1,HLOOKUP('Настройка ИБР+1'!BL$6,'Настройка ИБР+1'!$M$3:$AF$21,ROW('Настройка ИБР+1'!18:18)-ROW('Настройка ИБР+1'!$3:$3)+1,FALSE))*IF('Настройка ИБР+1'!BL$7='Настройка ИБР+1'!$AG$3,1,HLOOKUP('Настройка ИБР+1'!BL$7,'Настройка ИБР+1'!$M$3:$AF$21,ROW('Настройка ИБР+1'!18:18)-ROW('Настройка ИБР+1'!$3:$3)+1,FALSE))*IF('Настройка ИБР+1'!BL$8='Настройка ИБР+1'!$AG$3,1,HLOOKUP('Настройка ИБР+1'!BL$8,'Настройка ИБР+1'!$M$3:$AF$21,ROW('Настройка ИБР+1'!18:18)-ROW('Настройка ИБР+1'!$3:$3)+1,FALSE))*'Настройка ИБР+1'!$D18) -> 1.005446082 | AG18: =IF(ROUNDUP('Настройка ИБР+1'!BM$4,0)=0,0,IF('Настройка ИБР+1'!BM$6='Настройка ИБР+1'!$AG$3,1,HLOOKUP('Настройка ИБР+1'!BM$6,'Настройка ИБР+1'!$M$3:$AF$21,ROW('Настройка ИБР+1'!18:18)-ROW('Настройка ИБР+1'!$3:$3)+1,FALSE))*IF('Настройка ИБР+1'!BM$7='Настройка ИБР+1'!$AG$3,1,HLOOKUP('Настройка ИБР+1'!BM$7,'Настройка ИБР+1'!$M$3:$AF$21,ROW('Настройка ИБР+1'!18:18)-ROW('Настройка ИБР+1'!$3:$3)+1,FALSE))*IF('Настройка ИБР+1'!BM$8='Настройка ИБР+1'!$AG$3,1,HLOOKUP('Настройка ИБР+1'!BM$8,'Настройка ИБР+1'!$M$3:$AF$21,ROW('Настройка ИБР+1'!18:18)-ROW('Настройка ИБР+1'!$3:$3)+1,FALSE))*'Настройка ИБР+1'!$D18) -> 0 | AH18: =IF(ROUNDUP('Настройка ИБР+1'!BN$4,0)=0,0,IF('Настройка ИБР+1'!BN$6='Настройка ИБР+1'!$AG$3,1,HLOOKUP('Настройка ИБР+1'!BN$6,'Настройка ИБР+1'!$M$3:$AF$21,ROW('Настройка ИБР+1'!18:18)-ROW('Настройка ИБР+1'!$3:$3)+1,FALSE))*IF('Настройка ИБР+1'!BN$7='Настройка ИБР+1'!$AG$3,1,HLOOKUP('Настройка ИБР+1'!BN$7,'Настройка ИБР+1'!$M$3:$AF$21,ROW('Настройка ИБР+1'!18:18)-ROW('Настройка ИБР+1'!$3:$3)+1,FALSE))*IF('Настройка ИБР+1'!BN$8='Настройка ИБР+1'!$AG$3,1,HLOOKUP('Настройка ИБР+1'!BN$8,'Настройка ИБР+1'!$M$3:$AF$21,ROW('Настройка ИБР+1'!18:18)-ROW('Настройка ИБР+1'!$3:$3)+1,FALSE))*'Настройка ИБР+1'!$D18) -> 0 | AI18: =IF(ROUNDUP('Настройка ИБР+1'!BO$4,0)=0,0,IF('Настройка ИБР+1'!BO$6='Настройка ИБР+1'!$AG$3,1,HLOOKUP('Настройка ИБР+1'!BO$6,'Настройка ИБР+1'!$M$3:$AF$21,ROW('Настройка ИБР+1'!18:18)-ROW('Настройка ИБР+1'!$3:$3)+1,FALSE))*IF('Настройка ИБР+1'!BO$7='Настройка ИБР+1'!$AG$3,1,HLOOKUP('Настройка ИБР+1'!BO$7,'Настройка ИБР+1'!$M$3:$AF$21,ROW('Настройка ИБР+1'!18:18)-ROW('Настройка ИБР+1'!$3:$3)+1,FALSE))*IF('Настройка ИБР+1'!BO$8='Настройка ИБР+1'!$AG$3,1,HLOOKUP('Настройка ИБР+1'!BO$8,'Настройка ИБР+1'!$M$3:$AF$21,ROW('Настройка ИБР+1'!18:18)-ROW('Настройка ИБР+1'!$3:$3)+1,FALSE))*'Настройка ИБР+1'!$D18) -> 1.005446082 | AL18: =CHOOSE($AK$11,HLOOKUP($AK$11,$C$2:$AI$21,ROW(18:18)-ROW($2:$2)+1,FALSE)*Данные!$F$11/HLOOKUP($AK$11,$C$2:$AI$21,ROW($11:$11)-ROW($2:$2)+1,FALSE),HLOOKUP($AK$11,#REF!,ROW(#REF!)-ROW(#REF!)+1,FALSE)*Данные!$F$11/HLOOKUP($AK$11,#REF!,ROW(#REF!)-ROW(#REF!)+1,FALSE),HLOOKUP($AK$11,#REF!,ROW(#REF!)-ROW(#REF!)+1,FALSE)*Данные!$F$11/HLOOKUP($AK$11,#REF!,ROW(#REF!)-ROW(#REF!)+1,FALSE)) -> 1.15487293 | AM18: =CHOOSE($AK$11,HLOOKUP($AK$11,'Настройка ИБР+1'!$AI$2:$BO$21,ROW('Настройка ИБР+1'!18:18)-ROW('Настройка ИБР+1'!$2:$2)+1,FALSE)/Данные!$F18/(HLOOKUP($AK$11,'Настройка ИБР+1'!$AI$2:$BO$21,ROW(Данные!$11:$11)-ROW('Настройка ИБР+1'!$2:$2)+1,FALSE)/Данные!$F$11),HLOOKUP($AK$11,#REF!,ROW(#REF!)-ROW(#REF!)+1,FALSE)/Данные!$F18/(HLOOKUP($AK$11,#REF!,ROW(Данные!$11:$11)-ROW(#REF!)+1,FALSE)/Данные!$F$11),HLOOKUP($AK$11,#REF!,ROW(#REF!)-ROW(#REF!)+1,FALSE)/Данные!$F18/(HLOOKUP($AK$11,#REF!,ROW(Данные!$11:$11)-ROW(#REF!)+1,FALSE)/Данные!$F$11)) -> 1.000012838
A19: =Данные!A19 -> 8 | B19: =Данные!D19 -> Тульское г/п | C19: =SUMPRODUCT('Настройка ИБР+1'!$AJ$4:$BO$4,D19:AI19)*Данные!$F$11/SUMPRODUCT($D$11:$AI$11,'Настройка ИБР+1'!$AJ$4:$BO$4) -> 0.8780886413 | D19: =IF(ROUNDUP('Настройка ИБР+1'!AJ$4,0)=0,0,IF('Настройка ИБР+1'!AJ$6='Настройка ИБР+1'!$AG$3,1,HLOOKUP('Настройка ИБР+1'!AJ$6,'Настройка ИБР+1'!$M$3:$AF$21,ROW('Настройка ИБР+1'!19:19)-ROW('Настройка ИБР+1'!$3:$3)+1,FALSE))*IF('Настройка ИБР+1'!AJ$7='Настройка ИБР+1'!$AG$3,1,HLOOKUP('Настройка ИБР+1'!AJ$7,'Настройка ИБР+1'!$M$3:$AF$21,ROW('Настройка ИБР+1'!19:19)-ROW('Настройка ИБР+1'!$3:$3)+1,FALSE))*IF('Настройка ИБР+1'!AJ$8='Настройка ИБР+1'!$AG$3,1,HLOOKUP('Настройка ИБР+1'!AJ$8,'Настройка ИБР+1'!$M$3:$AF$21,ROW('Настройка ИБР+1'!19:19)-ROW('Настройка ИБР+1'!$3:$3)+1,FALSE))*'Настройка ИБР+1'!$D19) -> 0.8252479551 | E19: =IF(ROUNDUP('Настройка ИБР+1'!AK$4,0)=0,0,IF('Настройка ИБР+1'!AK$6='Настройка ИБР+1'!$AG$3,1,HLOOKUP('Настройка ИБР+1'!AK$6,'Настройка ИБР+1'!$M$3:$AF$21,ROW('Настройка ИБР+1'!19:19)-ROW('Настройка ИБР+1'!$3:$3)+1,FALSE))*IF('Настройка ИБР+1'!AK$7='Настройка ИБР+1'!$AG$3,1,HLOOKUP('Настройка ИБР+1'!AK$7,'Настройка ИБР+1'!$M$3:$AF$21,ROW('Настройка ИБР+1'!19:19)-ROW('Настройка ИБР+1'!$3:$3)+1,FALSE))*IF('Настройка ИБР+1'!AK$8='Настройка ИБР+1'!$AG$3,1,HLOOKUP('Настройка ИБР+1'!AK$8,'Настройка ИБР+1'!$M$3:$AF$21,ROW('Настройка ИБР+1'!19:19)-ROW('Настройка ИБР+1'!$3:$3)+1,FALSE))*'Настройка ИБР+1'!$D19) -> 1.005446082 | F19: =IF(ROUNDUP('Настройка ИБР+1'!AL$4,0)=0,0,IF('Настройка ИБР+1'!AL$6='Настройка ИБР+1'!$AG$3,1,HLOOKUP('Настройка ИБР+1'!AL$6,'Настройка ИБР+1'!$M$3:$AF$21,ROW('Настройка ИБР+1'!19:19)-ROW('Настройка ИБР+1'!$3:$3)+1,FALSE))*IF('Настройка ИБР+1'!AL$7='Настройка ИБР+1'!$AG$3,1,HLOOKUP('Настройка ИБР+1'!AL$7,'Настройка ИБР+1'!$M$3:$AF$21,ROW('Настройка ИБР+1'!19:19)-ROW('Настройка ИБР+1'!$3:$3)+1,FALSE))*IF('Настройка ИБР+1'!AL$8='Настройка ИБР+1'!$AG$3,1,HLOOKUP('Настройка ИБР+1'!AL$8,'Настройка ИБР+1'!$M$3:$AF$21,ROW('Настройка ИБР+1'!19:19)-ROW('Настройка ИБР+1'!$3:$3)+1,FALSE))*'Настройка ИБР+1'!$D19) -> 0 | G19: =IF(ROUNDUP('Настройка ИБР+1'!AM$4,0)=0,0,IF('Настройка ИБР+1'!AM$6='Настройка ИБР+1'!$AG$3,1,HLOOKUP('Настройка ИБР+1'!AM$6,'Настройка ИБР+1'!$M$3:$AF$21,ROW('Настройка ИБР+1'!19:19)-ROW('Настройка ИБР+1'!$3:$3)+1,FALSE))*IF('Настройка ИБР+1'!AM$7='Настройка ИБР+1'!$AG$3,1,HLOOKUP('Настройка ИБР+1'!AM$7,'Настройка ИБР+1'!$M$3:$AF$21,ROW('Настройка ИБР+1'!19:19)-ROW('Настройка ИБР+1'!$3:$3)+1,FALSE))*IF('Настройка ИБР+1'!AM$8='Настройка ИБР+1'!$AG$3,1,HLOOKUP('Настройка ИБР+1'!AM$8,'Настройка ИБР+1'!$M$3:$AF$21,ROW('Настройка ИБР+1'!19:19)-ROW('Настройка ИБР+1'!$3:$3)+1,FALSE))*'Настройка ИБР+1'!$D19) -> 0 | H19: =IF(ROUNDUP('Настройка ИБР+1'!AN$4,0)=0,0,IF('Настройка ИБР+1'!AN$6='Настройка ИБР+1'!$AG$3,1,HLOOKUP('Настройка ИБР+1'!AN$6,'Настройка ИБР+1'!$M$3:$AF$21,ROW('Настройка ИБР+1'!19:19)-ROW('Настройка ИБР+1'!$3:$3)+1,FALSE))*IF('Настройка ИБР+1'!AN$7='Настройка ИБР+1'!$AG$3,1,HLOOKUP('Настройка ИБР+1'!AN$7,'Настройка ИБР+1'!$M$3:$AF$21,ROW('Настройка ИБР+1'!19:19)-ROW('Настройка ИБР+1'!$3:$3)+1,FALSE))*IF('Настройка ИБР+1'!AN$8='Настройка ИБР+1'!$AG$3,1,HLOOKUP('Настройка ИБР+1'!AN$8,'Настройка ИБР+1'!$M$3:$AF$21,ROW('Настройка ИБР+1'!19:19)-ROW('Настройка ИБР+1'!$3:$3)+1,FALSE))*'Настройка ИБР+1'!$D19) -> 0 | I19: =IF(ROUNDUP('Настройка ИБР+1'!AO$4,0)=0,0,IF('Настройка ИБР+1'!AO$6='Настройка ИБР+1'!$AG$3,1,HLOOKUP('Настройка ИБР+1'!AO$6,'Настройка ИБР+1'!$M$3:$AF$21,ROW('Настройка ИБР+1'!19:19)-ROW('Настройка ИБР+1'!$3:$3)+1,FALSE))*IF('Настройка ИБР+1'!AO$7='Настройка ИБР+1'!$AG$3,1,HLOOKUP('Настройка ИБР+1'!AO$7,'Настройка ИБР+1'!$M$3:$AF$21,ROW('Настройка ИБР+1'!19:19)-ROW('Настройка ИБР+1'!$3:$3)+1,FALSE))*IF('Настройка ИБР+1'!AO$8='Настройка ИБР+1'!$AG$3,1,HLOOKUP('Настройка ИБР+1'!AO$8,'Настройка ИБР+1'!$M$3:$AF$21,ROW('Настройка ИБР+1'!19:19)-ROW('Настройка ИБР+1'!$3:$3)+1,FALSE))*'Настройка ИБР+1'!$D19) -> 1.005446082 | J19: =IF(ROUNDUP('Настройка ИБР+1'!AP$4,0)=0,0,IF('Настройка ИБР+1'!AP$6='Настройка ИБР+1'!$AG$3,1,HLOOKUP('Настройка ИБР+1'!AP$6,'Настройка ИБР+1'!$M$3:$AF$21,ROW('Настройка ИБР+1'!19:19)-ROW('Настройка ИБР+1'!$3:$3)+1,FALSE))*IF('Настройка ИБР+1'!AP$7='Настройка ИБР+1'!$AG$3,1,HLOOKUP('Настройка ИБР+1'!AP$7,'Настройка ИБР+1'!$M$3:$AF$21,ROW('Настройка ИБР+1'!19:19)-ROW('Настройка ИБР+1'!$3:$3)+1,FALSE))*IF('Настройка ИБР+1'!AP$8='Настройка ИБР+1'!$AG$3,1,HLOOKUP('Настройка ИБР+1'!AP$8,'Настройка ИБР+1'!$M$3:$AF$21,ROW('Настройка ИБР+1'!19:19)-ROW('Настройка ИБР+1'!$3:$3)+1,FALSE))*'Настройка ИБР+1'!$D19) -> 1.005446082 | K19: =IF(ROUNDUP('Настройка ИБР+1'!AQ$4,0)=0,0,IF('Настройка ИБР+1'!AQ$6='Настройка ИБР+1'!$AG$3,1,HLOOKUP('Настройка ИБР+1'!AQ$6,'Настройка ИБР+1'!$M$3:$AF$21,ROW('Настройка ИБР+1'!19:19)-ROW('Настройка ИБР+1'!$3:$3)+1,FALSE))*IF('Настройка ИБР+1'!AQ$7='Настройка ИБР+1'!$AG$3,1,HLOOKUP('Настройка ИБР+1'!AQ$7,'Настройка ИБР+1'!$M$3:$AF$21,ROW('Настройка ИБР+1'!19:19)-ROW('Настройка ИБР+1'!$3:$3)+1,FALSE))*IF('Настройка ИБР+1'!AQ$8='Настройка ИБР+1'!$AG$3,1,HLOOKUP('Настройка ИБР+1'!AQ$8,'Настройка ИБР+1'!$M$3:$AF$21,ROW('Настройка ИБР+1'!19:19)-ROW('Настройка ИБР+1'!$3:$3)+1,FALSE))*'Настройка ИБР+1'!$D19) -> 1.005446082 | L19: =IF(ROUNDUP('Настройка ИБР+1'!AR$4,0)=0,0,IF('Настройка ИБР+1'!AR$6='Настройка ИБР+1'!$AG$3,1,HLOOKUP('Настройка ИБР+1'!AR$6,'Настройка ИБР+1'!$M$3:$AF$21,ROW('Настройка ИБР+1'!19:19)-ROW('Настройка ИБР+1'!$3:$3)+1,FALSE))*IF('Настройка ИБР+1'!AR$7='Настройка ИБР+1'!$AG$3,1,HLOOKUP('Настройка ИБР+1'!AR$7,'Настройка ИБР+1'!$M$3:$AF$21,ROW('Настройка ИБР+1'!19:19)-ROW('Настройка ИБР+1'!$3:$3)+1,FALSE))*IF('Настройка ИБР+1'!AR$8='Настройка ИБР+1'!$AG$3,1,HLOOKUP('Настройка ИБР+1'!AR$8,'Настройка ИБР+1'!$M$3:$AF$21,ROW('Настройка ИБР+1'!19:19)-ROW('Настройка ИБР+1'!$3:$3)+1,FALSE))*'Настройка ИБР+1'!$D19) -> 0 | M19: =IF(ROUNDUP('Настройка ИБР+1'!AS$4,0)=0,0,IF('Настройка ИБР+1'!AS$6='Настройка ИБР+1'!$AG$3,1,HLOOKUP('Настройка ИБР+1'!AS$6,'Настройка ИБР+1'!$M$3:$AF$21,ROW('Настройка ИБР+1'!19:19)-ROW('Настройка ИБР+1'!$3:$3)+1,FALSE))*IF('Настройка ИБР+1'!AS$7='Настройка ИБР+1'!$AG$3,1,HLOOKUP('Настройка ИБР+1'!AS$7,'Настройка ИБР+1'!$M$3:$AF$21,ROW('Настройка ИБР+1'!19:19)-ROW('Настройка ИБР+1'!$3:$3)+1,FALSE))*IF('Настройка ИБР+1'!AS$8='Настройка ИБР+1'!$AG$3,1,HLOOKUP('Настройка ИБР+1'!AS$8,'Настройка ИБР+1'!$M$3:$AF$21,ROW('Настройка ИБР+1'!19:19)-ROW('Настройка ИБР+1'!$3:$3)+1,FALSE))*'Настройка ИБР+1'!$D19) -> 0 | N19: =IF(ROUNDUP('Настройка ИБР+1'!AT$4,0)=0,0,IF('Настройка ИБР+1'!AT$6='Настройка ИБР+1'!$AG$3,1,HLOOKUP('Настройка ИБР+1'!AT$6,'Настройка ИБР+1'!$M$3:$AF$21,ROW('Настройка ИБР+1'!19:19)-ROW('Настройка ИБР+1'!$3:$3)+1,FALSE))*IF('Настройка ИБР+1'!AT$7='Настройка ИБР+1'!$AG$3,1,HLOOKUP('Настройка ИБР+1'!AT$7,'Настройка ИБР+1'!$M$3:$AF$21,ROW('Настройка ИБР+1'!19:19)-ROW('Настройка ИБР+1'!$3:$3)+1,FALSE))*IF('Настройка ИБР+1'!AT$8='Настройка ИБР+1'!$AG$3,1,HLOOKUP('Настройка ИБР+1'!AT$8,'Настройка ИБР+1'!$M$3:$AF$21,ROW('Настройка ИБР+1'!19:19)-ROW('Настройка ИБР+1'!$3:$3)+1,FALSE))*'Настройка ИБР+1'!$D19) -> 0.8252479551 | O19: =IF(ROUNDUP('Настройка ИБР+1'!AU$4,0)=0,0,IF('Настройка ИБР+1'!AU$6='Настройка ИБР+1'!$AG$3,1,HLOOKUP('Настройка ИБР+1'!AU$6,'Настройка ИБР+1'!$M$3:$AF$21,ROW('Настройка ИБР+1'!19:19)-ROW('Настройка ИБР+1'!$3:$3)+1,FALSE))*IF('Настройка ИБР+1'!AU$7='Настройка ИБР+1'!$AG$3,1,HLOOKUP('Настройка ИБР+1'!AU$7,'Настройка ИБР+1'!$M$3:$AF$21,ROW('Настройка ИБР+1'!19:19)-ROW('Настройка ИБР+1'!$3:$3)+1,FALSE))*IF('Настройка ИБР+1'!AU$8='Настройка ИБР+1'!$AG$3,1,HLOOKUP('Настройка ИБР+1'!AU$8,'Настройка ИБР+1'!$M$3:$AF$21,ROW('Настройка ИБР+1'!19:19)-ROW('Настройка ИБР+1'!$3:$3)+1,FALSE))*'Настройка ИБР+1'!$D19) -> 0 | P19: =IF(ROUNDUP('Настройка ИБР+1'!AV$4,0)=0,0,IF('Настройка ИБР+1'!AV$6='Настройка ИБР+1'!$AG$3,1,HLOOKUP('Настройка ИБР+1'!AV$6,'Настройка ИБР+1'!$M$3:$AF$21,ROW('Настройка ИБР+1'!19:19)-ROW('Настройка ИБР+1'!$3:$3)+1,FALSE))*IF('Настройка ИБР+1'!AV$7='Настройка ИБР+1'!$AG$3,1,HLOOKUP('Настройка ИБР+1'!AV$7,'Настройка ИБР+1'!$M$3:$AF$21,ROW('Настройка ИБР+1'!19:19)-ROW('Настройка ИБР+1'!$3:$3)+1,FALSE))*IF('Настройка ИБР+1'!AV$8='Настройка ИБР+1'!$AG$3,1,HLOOKUP('Настройка ИБР+1'!AV$8,'Настройка ИБР+1'!$M$3:$AF$21,ROW('Настройка ИБР+1'!19:19)-ROW('Настройка ИБР+1'!$3:$3)+1,FALSE))*'Настройка ИБР+1'!$D19) -> 0 | Q19: =IF(ROUNDUP('Настройка ИБР+1'!AW$4,0)=0,0,IF('Настройка ИБР+1'!AW$6='Настройка ИБР+1'!$AG$3,1,HLOOKUP('Настройка ИБР+1'!AW$6,'Настройка ИБР+1'!$M$3:$AF$21,ROW('Настройка ИБР+1'!19:19)-ROW('Настройка ИБР+1'!$3:$3)+1,FALSE))*IF('Настройка ИБР+1'!AW$7='Настройка ИБР+1'!$AG$3,1,HLOOKUP('Настройка ИБР+1'!AW$7,'Настройка ИБР+1'!$M$3:$AF$21,ROW('Настройка ИБР+1'!19:19)-ROW('Настройка ИБР+1'!$3:$3)+1,FALSE))*IF('Настройка ИБР+1'!AW$8='Настройка ИБР+1'!$AG$3,1,HLOOKUP('Настройка ИБР+1'!AW$8,'Настройка ИБР+1'!$M$3:$AF$21,ROW('Настройка ИБР+1'!19:19)-ROW('Настройка ИБР+1'!$3:$3)+1,FALSE))*'Настройка ИБР+1'!$D19) -> 1.005446082 | R19: =IF(ROUNDUP('Настройка ИБР+1'!AX$4,0)=0,0,IF('Настройка ИБР+1'!AX$6='Настройка ИБР+1'!$AG$3,1,HLOOKUP('Настройка ИБР+1'!AX$6,'Настройка ИБР+1'!$M$3:$AF$21,ROW('Настройка ИБР+1'!19:19)-ROW('Настройка ИБР+1'!$3:$3)+1,FALSE))*IF('Настройка ИБР+1'!AX$7='Настройка ИБР+1'!$AG$3,1,HLOOKUP('Настройка ИБР+1'!AX$7,'Настройка ИБР+1'!$M$3:$AF$21,ROW('Настройка ИБР+1'!19:19)-ROW('Настройка ИБР+1'!$3:$3)+1,FALSE))*IF('Настройка ИБР+1'!AX$8='Настройка ИБР+1'!$AG$3,1,HLOOKUP('Настройка ИБР+1'!AX$8,'Настройка ИБР+1'!$M$3:$AF$21,ROW('Настройка ИБР+1'!19:19)-ROW('Настройка ИБР+1'!$3:$3)+1,FALSE))*'Настройка ИБР+1'!$D19) -> 1.005446082 | S19: =IF(ROUNDUP('Настройка ИБР+1'!AY$4,0)=0,0,IF('Настройка ИБР+1'!AY$6='Настройка ИБР+1'!$AG$3,1,HLOOKUP('Настройка ИБР+1'!AY$6,'Настройка ИБР+1'!$M$3:$AF$21,ROW('Настройка ИБР+1'!19:19)-ROW('Настройка ИБР+1'!$3:$3)+1,FALSE))*IF('Настройка ИБР+1'!AY$7='Настройка ИБР+1'!$AG$3,1,HLOOKUP('Настройка ИБР+1'!AY$7,'Настройка ИБР+1'!$M$3:$AF$21,ROW('Настройка ИБР+1'!19:19)-ROW('Настройка ИБР+1'!$3:$3)+1,FALSE))*IF('Настройка ИБР+1'!AY$8='Настройка ИБР+1'!$AG$3,1,HLOOKUP('Настройка ИБР+1'!AY$8,'Настройка ИБР+1'!$M$3:$AF$21,ROW('Настройка ИБР+1'!19:19)-ROW('Настройка ИБР+1'!$3:$3)+1,FALSE))*'Настройка ИБР+1'!$D19) -> 0 | T19: =IF(ROUNDUP('Настройка ИБР+1'!AZ$4,0)=0,0,IF('Настройка ИБР+1'!AZ$6='Настройка ИБР+1'!$AG$3,1,HLOOKUP('Настройка ИБР+1'!AZ$6,'Настройка ИБР+1'!$M$3:$AF$21,ROW('Настройка ИБР+1'!19:19)-ROW('Настройка ИБР+1'!$3:$3)+1,FALSE))*IF('Настройка ИБР+1'!AZ$7='Настройка ИБР+1'!$AG$3,1,HLOOKUP('Настройка ИБР+1'!AZ$7,'Настройка ИБР+1'!$M$3:$AF$21,ROW('Настройка ИБР+1'!19:19)-ROW('Настройка ИБР+1'!$3:$3)+1,FALSE))*IF('Настройка ИБР+1'!AZ$8='Настройка ИБР+1'!$AG$3,1,HLOOKUP('Настройка ИБР+1'!AZ$8,'Настройка ИБР+1'!$M$3:$AF$21,ROW('Настройка ИБР+1'!19:19)-ROW('Настройка ИБР+1'!$3:$3)+1,FALSE))*'Настройка ИБР+1'!$D19) -> 0 | U19: =IF(ROUNDUP('Настройка ИБР+1'!BA$4,0)=0,0,IF('Настройка ИБР+1'!BA$6='Настройка ИБР+1'!$AG$3,1,HLOOKUP('Настройка ИБР+1'!BA$6,'Настройка ИБР+1'!$M$3:$AF$21,ROW('Настройка ИБР+1'!19:19)-ROW('Настройка ИБР+1'!$3:$3)+1,FALSE))*IF('Настройка ИБР+1'!BA$7='Настройка ИБР+1'!$AG$3,1,HLOOKUP('Настройка ИБР+1'!BA$7,'Настройка ИБР+1'!$M$3:$AF$21,ROW('Настройка ИБР+1'!19:19)-ROW('Настройка ИБР+1'!$3:$3)+1,FALSE))*IF('Настройка ИБР+1'!BA$8='Настройка ИБР+1'!$AG$3,1,HLOOKUP('Настройка ИБР+1'!BA$8,'Настройка ИБР+1'!$M$3:$AF$21,ROW('Настройка ИБР+1'!19:19)-ROW('Настройка ИБР+1'!$3:$3)+1,FALSE))*'Настройка ИБР+1'!$D19) -> 1.005446082 | V19: =IF(ROUNDUP('Настройка ИБР+1'!BB$4,0)=0,0,IF('Настройка ИБР+1'!BB$6='Настройка ИБР+1'!$AG$3,1,HLOOKUP('Настройка ИБР+1'!BB$6,'Настройка ИБР+1'!$M$3:$AF$21,ROW('Настройка ИБР+1'!19:19)-ROW('Настройка ИБР+1'!$3:$3)+1,FALSE))*IF('Настройка ИБР+1'!BB$7='Настройка ИБР+1'!$AG$3,1,HLOOKUP('Настройка ИБР+1'!BB$7,'Настройка ИБР+1'!$M$3:$AF$21,ROW('Настройка ИБР+1'!19:19)-ROW('Настройка ИБР+1'!$3:$3)+1,FALSE))*IF('Настройка ИБР+1'!BB$8='Настройка ИБР+1'!$AG$3,1,HLOOKUP('Настройка ИБР+1'!BB$8,'Настройка ИБР+1'!$M$3:$AF$21,ROW('Настройка ИБР+1'!19:19)-ROW('Настройка ИБР+1'!$3:$3)+1,FALSE))*'Настройка ИБР+1'!$D19) -> 0.9043999218 | W19: =IF(ROUNDUP('Настройка ИБР+1'!BC$4,0)=0,0,IF('Настройка ИБР+1'!BC$6='Настройка ИБР+1'!$AG$3,1,HLOOKUP('Настройка ИБР+1'!BC$6,'Настройка ИБР+1'!$M$3:$AF$21,ROW('Настройка ИБР+1'!19:19)-ROW('Настройка ИБР+1'!$3:$3)+1,FALSE))*IF('Настройка ИБР+1'!BC$7='Настройка ИБР+1'!$AG$3,1,HLOOKUP('Настройка ИБР+1'!BC$7,'Настройка ИБР+1'!$M$3:$AF$21,ROW('Настройка ИБР+1'!19:19)-ROW('Настройка ИБР+1'!$3:$3)+1,FALSE))*IF('Настройка ИБР+1'!BC$8='Настройка ИБР+1'!$AG$3,1,HLOOKUP('Настройка ИБР+1'!BC$8,'Настройка ИБР+1'!$M$3:$AF$21,ROW('Настройка ИБР+1'!19:19)-ROW('Настройка ИБР+1'!$3:$3)+1,FALSE))*'Настройка ИБР+1'!$D19) -> 0 | X19: =IF(ROUNDUP('Настройка ИБР+1'!BD$4,0)=0,0,IF('Настройка ИБР+1'!BD$6='Настройка ИБР+1'!$AG$3,1,HLOOKUP('Настройка ИБР+1'!BD$6,'Настройка ИБР+1'!$M$3:$AF$21,ROW('Настройка ИБР+1'!19:19)-ROW('Настройка ИБР+1'!$3:$3)+1,FALSE))*IF('Настройка ИБР+1'!BD$7='Настройка ИБР+1'!$AG$3,1,HLOOKUP('Настройка ИБР+1'!BD$7,'Настройка ИБР+1'!$M$3:$AF$21,ROW('Настройка ИБР+1'!19:19)-ROW('Настройка ИБР+1'!$3:$3)+1,FALSE))*IF('Настройка ИБР+1'!BD$8='Настройка ИБР+1'!$AG$3,1,HLOOKUP('Настройка ИБР+1'!BD$8,'Настройка ИБР+1'!$M$3:$AF$21,ROW('Настройка ИБР+1'!19:19)-ROW('Настройка ИБР+1'!$3:$3)+1,FALSE))*'Настройка ИБР+1'!$D19) -> 1.005446082 | Y19: =IF(ROUNDUP('Настройка ИБР+1'!BE$4,0)=0,0,IF('Настройка ИБР+1'!BE$6='Настройка ИБР+1'!$AG$3,1,HLOOKUP('Настройка ИБР+1'!BE$6,'Настройка ИБР+1'!$M$3:$AF$21,ROW('Настройка ИБР+1'!19:19)-ROW('Настройка ИБР+1'!$3:$3)+1,FALSE))*IF('Настройка ИБР+1'!BE$7='Настройка ИБР+1'!$AG$3,1,HLOOKUP('Настройка ИБР+1'!BE$7,'Настройка ИБР+1'!$M$3:$AF$21,ROW('Настройка ИБР+1'!19:19)-ROW('Настройка ИБР+1'!$3:$3)+1,FALSE))*IF('Настройка ИБР+1'!BE$8='Настройка ИБР+1'!$AG$3,1,HLOOKUP('Настройка ИБР+1'!BE$8,'Настройка ИБР+1'!$M$3:$AF$21,ROW('Настройка ИБР+1'!19:19)-ROW('Настройка ИБР+1'!$3:$3)+1,FALSE))*'Настройка ИБР+1'!$D19) -> 1.005446082 | Z19: =IF(ROUNDUP('Настройка ИБР+1'!BF$4,0)=0,0,IF('Настройка ИБР+1'!BF$6='Настройка ИБР+1'!$AG$3,1,HLOOKUP('Настройка ИБР+1'!BF$6,'Настройка ИБР+1'!$M$3:$AF$21,ROW('Настройка ИБР+1'!19:19)-ROW('Настройка ИБР+1'!$3:$3)+1,FALSE))*IF('Настройка ИБР+1'!BF$7='Настройка ИБР+1'!$AG$3,1,HLOOKUP('Настройка ИБР+1'!BF$7,'Настройка ИБР+1'!$M$3:$AF$21,ROW('Настройка ИБР+1'!19:19)-ROW('Настройка ИБР+1'!$3:$3)+1,FALSE))*IF('Настройка ИБР+1'!BF$8='Настройка ИБР+1'!$AG$3,1,HLOOKUP('Настройка ИБР+1'!BF$8,'Настройка ИБР+1'!$M$3:$AF$21,ROW('Настройка ИБР+1'!19:19)-ROW('Настройка ИБР+1'!$3:$3)+1,FALSE))*'Настройка ИБР+1'!$D19) -> 0 | AA19: =IF(ROUNDUP('Настройка ИБР+1'!BG$4,0)=0,0,IF('Настройка ИБР+1'!BG$6='Настройка ИБР+1'!$AG$3,1,HLOOKUP('Настройка ИБР+1'!BG$6,'Настройка ИБР+1'!$M$3:$AF$21,ROW('Настройка ИБР+1'!19:19)-ROW('Настройка ИБР+1'!$3:$3)+1,FALSE))*IF('Настройка ИБР+1'!BG$7='Настройка ИБР+1'!$AG$3,1,HLOOKUP('Настройка ИБР+1'!BG$7,'Настройка ИБР+1'!$M$3:$AF$21,ROW('Настройка ИБР+1'!19:19)-ROW('Настройка ИБР+1'!$3:$3)+1,FALSE))*IF('Настройка ИБР+1'!BG$8='Настройка ИБР+1'!$AG$3,1,HLOOKUP('Настройка ИБР+1'!BG$8,'Настройка ИБР+1'!$M$3:$AF$21,ROW('Настройка ИБР+1'!19:19)-ROW('Настройка ИБР+1'!$3:$3)+1,FALSE))*'Настройка ИБР+1'!$D19) -> 0 | AB19: =IF(ROUNDUP('Настройка ИБР+1'!BH$4,0)=0,0,IF('Настройка ИБР+1'!BH$6='Настройка ИБР+1'!$AG$3,1,HLOOKUP('Настройка ИБР+1'!BH$6,'Настройка ИБР+1'!$M$3:$AF$21,ROW('Настройка ИБР+1'!19:19)-ROW('Настройка ИБР+1'!$3:$3)+1,FALSE))*IF('Настройка ИБР+1'!BH$7='Настройка ИБР+1'!$AG$3,1,HLOOKUP('Настройка ИБР+1'!BH$7,'Настройка ИБР+1'!$M$3:$AF$21,ROW('Настройка ИБР+1'!19:19)-ROW('Настройка ИБР+1'!$3:$3)+1,FALSE))*IF('Настройка ИБР+1'!BH$8='Настройка ИБР+1'!$AG$3,1,HLOOKUP('Настройка ИБР+1'!BH$8,'Настройка ИБР+1'!$M$3:$AF$21,ROW('Настройка ИБР+1'!19:19)-ROW('Настройка ИБР+1'!$3:$3)+1,FALSE))*'Настройка ИБР+1'!$D19) -> 0 | AC19: =IF(ROUNDUP('Настройка ИБР+1'!BI$4,0)=0,0,IF('Настройка ИБР+1'!BI$6='Настройка ИБР+1'!$AG$3,1,HLOOKUP('Настройка ИБР+1'!BI$6,'Настройка ИБР+1'!$M$3:$AF$21,ROW('Настройка ИБР+1'!19:19)-ROW('Настройка ИБР+1'!$3:$3)+1,FALSE))*IF('Настройка ИБР+1'!BI$7='Настройка ИБР+1'!$AG$3,1,HLOOKUP('Настройка ИБР+1'!BI$7,'Настройка ИБР+1'!$M$3:$AF$21,ROW('Настройка ИБР+1'!19:19)-ROW('Настройка ИБР+1'!$3:$3)+1,FALSE))*IF('Настройка ИБР+1'!BI$8='Настройка ИБР+1'!$AG$3,1,HLOOKUP('Настройка ИБР+1'!BI$8,'Настройка ИБР+1'!$M$3:$AF$21,ROW('Настройка ИБР+1'!19:19)-ROW('Настройка ИБР+1'!$3:$3)+1,FALSE))*'Настройка ИБР+1'!$D19) -> 0 | AD19: =IF(ROUNDUP('Настройка ИБР+1'!BJ$4,0)=0,0,IF('Настройка ИБР+1'!BJ$6='Настройка ИБР+1'!$AG$3,1,HLOOKUP('Настройка ИБР+1'!BJ$6,'Настройка ИБР+1'!$M$3:$AF$21,ROW('Настройка ИБР+1'!19:19)-ROW('Настройка ИБР+1'!$3:$3)+1,FALSE))*IF('Настройка ИБР+1'!BJ$7='Настройка ИБР+1'!$AG$3,1,HLOOKUP('Настройка ИБР+1'!BJ$7,'Настройка ИБР+1'!$M$3:$AF$21,ROW('Настройка ИБР+1'!19:19)-ROW('Настройка ИБР+1'!$3:$3)+1,FALSE))*IF('Настройка ИБР+1'!BJ$8='Настройка ИБР+1'!$AG$3,1,HLOOKUP('Настройка ИБР+1'!BJ$8,'Настройка ИБР+1'!$M$3:$AF$21,ROW('Настройка ИБР+1'!19:19)-ROW('Настройка ИБР+1'!$3:$3)+1,FALSE))*'Настройка ИБР+1'!$D19) -> 0 | AE19: =IF(ROUNDUP('Настройка ИБР+1'!BK$4,0)=0,0,IF('Настройка ИБР+1'!BK$6='Настройка ИБР+1'!$AG$3,1,HLOOKUP('Настройка ИБР+1'!BK$6,'Настройка ИБР+1'!$M$3:$AF$21,ROW('Настройка ИБР+1'!19:19)-ROW('Настройка ИБР+1'!$3:$3)+1,FALSE))*IF('Настройка ИБР+1'!BK$7='Настройка ИБР+1'!$AG$3,1,HLOOKUP('Настройка ИБР+1'!BK$7,'Настройка ИБР+1'!$M$3:$AF$21,ROW('Настройка ИБР+1'!19:19)-ROW('Настройка ИБР+1'!$3:$3)+1,FALSE))*IF('Настройка ИБР+1'!BK$8='Настройка ИБР+1'!$AG$3,1,HLOOKUP('Настройка ИБР+1'!BK$8,'Настройка ИБР+1'!$M$3:$AF$21,ROW('Настройка ИБР+1'!19:19)-ROW('Настройка ИБР+1'!$3:$3)+1,FALSE))*'Настройка ИБР+1'!$D19) -> 0 | AF19: =IF(ROUNDUP('Настройка ИБР+1'!BL$4,0)=0,0,IF('Настройка ИБР+1'!BL$6='Настройка ИБР+1'!$AG$3,1,HLOOKUP('Настройка ИБР+1'!BL$6,'Настройка ИБР+1'!$M$3:$AF$21,ROW('Настройка ИБР+1'!19:19)-ROW('Настройка ИБР+1'!$3:$3)+1,FALSE))*IF('Настройка ИБР+1'!BL$7='Настройка ИБР+1'!$AG$3,1,HLOOKUP('Настройка ИБР+1'!BL$7,'Настройка ИБР+1'!$M$3:$AF$21,ROW('Настройка ИБР+1'!19:19)-ROW('Настройка ИБР+1'!$3:$3)+1,FALSE))*IF('Настройка ИБР+1'!BL$8='Настройка ИБР+1'!$AG$3,1,HLOOKUP('Настройка ИБР+1'!BL$8,'Настройка ИБР+1'!$M$3:$AF$21,ROW('Настройка ИБР+1'!19:19)-ROW('Настройка ИБР+1'!$3:$3)+1,FALSE))*'Настройка ИБР+1'!$D19) -> 1.005446082 | AG19: =IF(ROUNDUP('Настройка ИБР+1'!BM$4,0)=0,0,IF('Настройка ИБР+1'!BM$6='Настройка ИБР+1'!$AG$3,1,HLOOKUP('Настройка ИБР+1'!BM$6,'Настройка ИБР+1'!$M$3:$AF$21,ROW('Настройка ИБР+1'!19:19)-ROW('Настройка ИБР+1'!$3:$3)+1,FALSE))*IF('Настройка ИБР+1'!BM$7='Настройка ИБР+1'!$AG$3,1,HLOOKUP('Настройка ИБР+1'!BM$7,'Настройка ИБР+1'!$M$3:$AF$21,ROW('Настройка ИБР+1'!19:19)-ROW('Настройка ИБР+1'!$3:$3)+1,FALSE))*IF('Настройка ИБР+1'!BM$8='Настройка ИБР+1'!$AG$3,1,HLOOKUP('Настройка ИБР+1'!BM$8,'Настройка ИБР+1'!$M$3:$AF$21,ROW('Настройка ИБР+1'!19:19)-ROW('Настройка ИБР+1'!$3:$3)+1,FALSE))*'Настройка ИБР+1'!$D19) -> 0 | AH19: =IF(ROUNDUP('Настройка ИБР+1'!BN$4,0)=0,0,IF('Настройка ИБР+1'!BN$6='Настройка ИБР+1'!$AG$3,1,HLOOKUP('Настройка ИБР+1'!BN$6,'Настройка ИБР+1'!$M$3:$AF$21,ROW('Настройка ИБР+1'!19:19)-ROW('Настройка ИБР+1'!$3:$3)+1,FALSE))*IF('Настройка ИБР+1'!BN$7='Настройка ИБР+1'!$AG$3,1,HLOOKUP('Настройка ИБР+1'!BN$7,'Настройка ИБР+1'!$M$3:$AF$21,ROW('Настройка ИБР+1'!19:19)-ROW('Настройка ИБР+1'!$3:$3)+1,FALSE))*IF('Настройка ИБР+1'!BN$8='Настройка ИБР+1'!$AG$3,1,HLOOKUP('Настройка ИБР+1'!BN$8,'Настройка ИБР+1'!$M$3:$AF$21,ROW('Настройка ИБР+1'!19:19)-ROW('Настройка ИБР+1'!$3:$3)+1,FALSE))*'Настройка ИБР+1'!$D19) -> 0 | AI19: =IF(ROUNDUP('Настройка ИБР+1'!BO$4,0)=0,0,IF('Настройка ИБР+1'!BO$6='Настройка ИБР+1'!$AG$3,1,HLOOKUP('Настройка ИБР+1'!BO$6,'Настройка ИБР+1'!$M$3:$AF$21,ROW('Настройка ИБР+1'!19:19)-ROW('Настройка ИБР+1'!$3:$3)+1,FALSE))*IF('Настройка ИБР+1'!BO$7='Настройка ИБР+1'!$AG$3,1,HLOOKUP('Настройка ИБР+1'!BO$7,'Настройка ИБР+1'!$M$3:$AF$21,ROW('Настройка ИБР+1'!19:19)-ROW('Настройка ИБР+1'!$3:$3)+1,FALSE))*IF('Настройка ИБР+1'!BO$8='Настройка ИБР+1'!$AG$3,1,HLOOKUP('Настройка ИБР+1'!BO$8,'Настройка ИБР+1'!$M$3:$AF$21,ROW('Настройка ИБР+1'!19:19)-ROW('Настройка ИБР+1'!$3:$3)+1,FALSE))*'Настройка ИБР+1'!$D19) -> 1.005446082 | AL19: =CHOOSE($AK$11,HLOOKUP($AK$11,$C$2:$AI$21,ROW(19:19)-ROW($2:$2)+1,FALSE)*Данные!$F$11/HLOOKUP($AK$11,$C$2:$AI$21,ROW($11:$11)-ROW($2:$2)+1,FALSE),HLOOKUP($AK$11,#REF!,ROW(#REF!)-ROW(#REF!)+1,FALSE)*Данные!$F$11/HLOOKUP($AK$11,#REF!,ROW(#REF!)-ROW(#REF!)+1,FALSE),HLOOKUP($AK$11,#REF!,ROW(#REF!)-ROW(#REF!)+1,FALSE)*Данные!$F$11/HLOOKUP($AK$11,#REF!,ROW(#REF!)-ROW(#REF!)+1,FALSE)) -> 0.8780886413 | AM19: =CHOOSE($AK$11,HLOOKUP($AK$11,'Настройка ИБР+1'!$AI$2:$BO$21,ROW('Настройка ИБР+1'!19:19)-ROW('Настройка ИБР+1'!$2:$2)+1,FALSE)/Данные!$F19/(HLOOKUP($AK$11,'Настройка ИБР+1'!$AI$2:$BO$21,ROW(Данные!$11:$11)-ROW('Настройка ИБР+1'!$2:$2)+1,FALSE)/Данные!$F$11),HLOOKUP($AK$11,#REF!,ROW(#REF!)-ROW(#REF!)+1,FALSE)/Данные!$F19/(HLOOKUP($AK$11,#REF!,ROW(Данные!$11:$11)-ROW(#REF!)+1,FALSE)/Данные!$F$11),HLOOKUP($AK$11,#REF!,ROW(#REF!)-ROW(#REF!)+1,FALSE)/Данные!$F19/(HLOOKUP($AK$11,#REF!,ROW(Данные!$11:$11)-ROW(#REF!)+1,FALSE)/Данные!$F$11)) -> 1.019178477
A20: =Данные!A20 -> 9 | B20: =Данные!D20 -> Каменномостское г/п | C20: =SUMPRODUCT('Настройка ИБР+1'!$AJ$4:$BO$4,D20:AI20)*Данные!$F$11/SUMPRODUCT($D$11:$AI$11,'Настройка ИБР+1'!$AJ$4:$BO$4) -> 0.9505423903 | D20: =IF(ROUNDUP('Настройка ИБР+1'!AJ$4,0)=0,0,IF('Настройка ИБР+1'!AJ$6='Настройка ИБР+1'!$AG$3,1,HLOOKUP('Настройка ИБР+1'!AJ$6,'Настройка ИБР+1'!$M$3:$AF$21,ROW('Настройка ИБР+1'!20:20)-ROW('Настройка ИБР+1'!$3:$3)+1,FALSE))*IF('Настройка ИБР+1'!AJ$7='Настройка ИБР+1'!$AG$3,1,HLOOKUP('Настройка ИБР+1'!AJ$7,'Настройка ИБР+1'!$M$3:$AF$21,ROW('Настройка ИБР+1'!20:20)-ROW('Настройка ИБР+1'!$3:$3)+1,FALSE))*IF('Настройка ИБР+1'!AJ$8='Настройка ИБР+1'!$AG$3,1,HLOOKUP('Настройка ИБР+1'!AJ$8,'Настройка ИБР+1'!$M$3:$AF$21,ROW('Настройка ИБР+1'!20:20)-ROW('Настройка ИБР+1'!$3:$3)+1,FALSE))*'Настройка ИБР+1'!$D20) -> 0.9313953951 | E20: =IF(ROUNDUP('Настройка ИБР+1'!AK$4,0)=0,0,IF('Настройка ИБР+1'!AK$6='Настройка ИБР+1'!$AG$3,1,HLOOKUP('Настройка ИБР+1'!AK$6,'Настройка ИБР+1'!$M$3:$AF$21,ROW('Настройка ИБР+1'!20:20)-ROW('Настройка ИБР+1'!$3:$3)+1,FALSE))*IF('Настройка ИБР+1'!AK$7='Настройка ИБР+1'!$AG$3,1,HLOOKUP('Настройка ИБР+1'!AK$7,'Настройка ИБР+1'!$M$3:$AF$21,ROW('Настройка ИБР+1'!20:20)-ROW('Настройка ИБР+1'!$3:$3)+1,FALSE))*IF('Настройка ИБР+1'!AK$8='Настройка ИБР+1'!$AG$3,1,HLOOKUP('Настройка ИБР+1'!AK$8,'Настройка ИБР+1'!$M$3:$AF$21,ROW('Настройка ИБР+1'!20:20)-ROW('Настройка ИБР+1'!$3:$3)+1,FALSE))*'Настройка ИБР+1'!$D20) -> 1.005446082 | F20: =IF(ROUNDUP('Настройка ИБР+1'!AL$4,0)=0,0,IF('Настройка ИБР+1'!AL$6='Настройка ИБР+1'!$AG$3,1,HLOOKUP('Настройка ИБР+1'!AL$6,'Настройка ИБР+1'!$M$3:$AF$21,ROW('Настройка ИБР+1'!20:20)-ROW('Настройка ИБР+1'!$3:$3)+1,FALSE))*IF('Настройка ИБР+1'!AL$7='Настройка ИБР+1'!$AG$3,1,HLOOKUP('Настройка ИБР+1'!AL$7,'Настройка ИБР+1'!$M$3:$AF$21,ROW('Настройка ИБР+1'!20:20)-ROW('Настройка ИБР+1'!$3:$3)+1,FALSE))*IF('Настройка ИБР+1'!AL$8='Настройка ИБР+1'!$AG$3,1,HLOOKUP('Настройка ИБР+1'!AL$8,'Настройка ИБР+1'!$M$3:$AF$21,ROW('Настройка ИБР+1'!20:20)-ROW('Настройка ИБР+1'!$3:$3)+1,FALSE))*'Настройка ИБР+1'!$D20) -> 0 | G20: =IF(ROUNDUP('Настройка ИБР+1'!AM$4,0)=0,0,IF('Настройка ИБР+1'!AM$6='Настройка ИБР+1'!$AG$3,1,HLOOKUP('Настройка ИБР+1'!AM$6,'Настройка ИБР+1'!$M$3:$AF$21,ROW('Настройка ИБР+1'!20:20)-ROW('Настройка ИБР+1'!$3:$3)+1,FALSE))*IF('Настройка ИБР+1'!AM$7='Настройка ИБР+1'!$AG$3,1,HLOOKUP('Настройка ИБР+1'!AM$7,'Настройка ИБР+1'!$M$3:$AF$21,ROW('Настройка ИБР+1'!20:20)-ROW('Настройка ИБР+1'!$3:$3)+1,FALSE))*IF('Настройка ИБР+1'!AM$8='Настройка ИБР+1'!$AG$3,1,HLOOKUP('Настройка ИБР+1'!AM$8,'Настройка ИБР+1'!$M$3:$AF$21,ROW('Настройка ИБР+1'!20:20)-ROW('Настройка ИБР+1'!$3:$3)+1,FALSE))*'Настройка ИБР+1'!$D20) -> 0 | H20: =IF(ROUNDUP('Настройка ИБР+1'!AN$4,0)=0,0,IF('Настройка ИБР+1'!AN$6='Настройка ИБР+1'!$AG$3,1,HLOOKUP('Настройка ИБР+1'!AN$6,'Настройка ИБР+1'!$M$3:$AF$21,ROW('Настройка ИБР+1'!20:20)-ROW('Настройка ИБР+1'!$3:$3)+1,FALSE))*IF('Настройка ИБР+1'!AN$7='Настройка ИБР+1'!$AG$3,1,HLOOKUP('Настройка ИБР+1'!AN$7,'Настройка ИБР+1'!$M$3:$AF$21,ROW('Настройка ИБР+1'!20:20)-ROW('Настройка ИБР+1'!$3:$3)+1,FALSE))*IF('Настройка ИБР+1'!AN$8='Настройка ИБР+1'!$AG$3,1,HLOOKUP('Настройка ИБР+1'!AN$8,'Настройка ИБР+1'!$M$3:$AF$21,ROW('Настройка ИБР+1'!20:20)-ROW('Настройка ИБР+1'!$3:$3)+1,FALSE))*'Настройка ИБР+1'!$D20) -> 0 | I20: =IF(ROUNDUP('Настройка ИБР+1'!AO$4,0)=0,0,IF('Настройка ИБР+1'!AO$6='Настройка ИБР+1'!$AG$3,1,HLOOKUP('Настройка ИБР+1'!AO$6,'Настройка ИБР+1'!$M$3:$AF$21,ROW('Настройка ИБР+1'!20:20)-ROW('Настройка ИБР+1'!$3:$3)+1,FALSE))*IF('Настройка ИБР+1'!AO$7='Настройка ИБР+1'!$AG$3,1,HLOOKUP('Настройка ИБР+1'!AO$7,'Настройка ИБР+1'!$M$3:$AF$21,ROW('Настройка ИБР+1'!20:20)-ROW('Настройка ИБР+1'!$3:$3)+1,FALSE))*IF('Настройка ИБР+1'!AO$8='Настройка ИБР+1'!$AG$3,1,HLOOKUP('Настройка ИБР+1'!AO$8,'Настройка ИБР+1'!$M$3:$AF$21,ROW('Настройка ИБР+1'!20:20)-ROW('Настройка ИБР+1'!$3:$3)+1,FALSE))*'Настройка ИБР+1'!$D20) -> 1.005446082 | J20: =IF(ROUNDUP('Настройка ИБР+1'!AP$4,0)=0,0,IF('Настройка ИБР+1'!AP$6='Настройка ИБР+1'!$AG$3,1,HLOOKUP('Настройка ИБР+1'!AP$6,'Настройка ИБР+1'!$M$3:$AF$21,ROW('Настройка ИБР+1'!20:20)-ROW('Настройка ИБР+1'!$3:$3)+1,FALSE))*IF('Настройка ИБР+1'!AP$7='Настройка ИБР+1'!$AG$3,1,HLOOKUP('Настройка ИБР+1'!AP$7,'Настройка ИБР+1'!$M$3:$AF$21,ROW('Настройка ИБР+1'!20:20)-ROW('Настройка ИБР+1'!$3:$3)+1,FALSE))*IF('Настройка ИБР+1'!AP$8='Настройка ИБР+1'!$AG$3,1,HLOOKUP('Настройка ИБР+1'!AP$8,'Настройка ИБР+1'!$M$3:$AF$21,ROW('Настройка ИБР+1'!20:20)-ROW('Настройка ИБР+1'!$3:$3)+1,FALSE))*'Настройка ИБР+1'!$D20) -> 1.005446082 | K20: =IF(ROUNDUP('Настройка ИБР+1'!AQ$4,0)=0,0,IF('Настройка ИБР+1'!AQ$6='Настройка ИБР+1'!$AG$3,1,HLOOKUP('Настройка ИБР+1'!AQ$6,'Настройка ИБР+1'!$M$3:$AF$21,ROW('Настройка ИБР+1'!20:20)-ROW('Настройка ИБР+1'!$3:$3)+1,FALSE))*IF('Настройка ИБР+1'!AQ$7='Настройка ИБР+1'!$AG$3,1,HLOOKUP('Настройка ИБР+1'!AQ$7,'Настройка ИБР+1'!$M$3:$AF$21,ROW('Настройка ИБР+1'!20:20)-ROW('Настройка ИБР+1'!$3:$3)+1,FALSE))*IF('Настройка ИБР+1'!AQ$8='Настройка ИБР+1'!$AG$3,1,HLOOKUP('Настройка ИБР+1'!AQ$8,'Настройка ИБР+1'!$M$3:$AF$21,ROW('Настройка ИБР+1'!20:20)-ROW('Настройка ИБР+1'!$3:$3)+1,FALSE))*'Настройка ИБР+1'!$D20) -> 1.005446082 | L20: =IF(ROUNDUP('Настройка ИБР+1'!AR$4,0)=0,0,IF('Настройка ИБР+1'!AR$6='Настройка ИБР+1'!$AG$3,1,HLOOKUP('Настройка ИБР+1'!AR$6,'Настройка ИБР+1'!$M$3:$AF$21,ROW('Настройка ИБР+1'!20:20)-ROW('Настройка ИБР+1'!$3:$3)+1,FALSE))*IF('Настройка ИБР+1'!AR$7='Настройка ИБР+1'!$AG$3,1,HLOOKUP('Настройка ИБР+1'!AR$7,'Настройка ИБР+1'!$M$3:$AF$21,ROW('Настройка ИБР+1'!20:20)-ROW('Настройка ИБР+1'!$3:$3)+1,FALSE))*IF('Настройка ИБР+1'!AR$8='Настройка ИБР+1'!$AG$3,1,HLOOKUP('Настройка ИБР+1'!AR$8,'Настройка ИБР+1'!$M$3:$AF$21,ROW('Настройка ИБР+1'!20:20)-ROW('Настройка ИБР+1'!$3:$3)+1,FALSE))*'Настройка ИБР+1'!$D20) -> 0 | M20: =IF(ROUNDUP('Настройка ИБР+1'!AS$4,0)=0,0,IF('Настройка ИБР+1'!AS$6='Настройка ИБР+1'!$AG$3,1,HLOOKUP('Настройка ИБР+1'!AS$6,'Настройка ИБР+1'!$M$3:$AF$21,ROW('Настройка ИБР+1'!20:20)-ROW('Настройка ИБР+1'!$3:$3)+1,FALSE))*IF('Настройка ИБР+1'!AS$7='Настройка ИБР+1'!$AG$3,1,HLOOKUP('Настройка ИБР+1'!AS$7,'Настройка ИБР+1'!$M$3:$AF$21,ROW('Настройка ИБР+1'!20:20)-ROW('Настройка ИБР+1'!$3:$3)+1,FALSE))*IF('Настройка ИБР+1'!AS$8='Настройка ИБР+1'!$AG$3,1,HLOOKUP('Настройка ИБР+1'!AS$8,'Настройка ИБР+1'!$M$3:$AF$21,ROW('Настройка ИБР+1'!20:20)-ROW('Настройка ИБР+1'!$3:$3)+1,FALSE))*'Настройка ИБР+1'!$D20) -> 0 | N20: =IF(ROUNDUP('Настройка ИБР+1'!AT$4,0)=0,0,IF('Настройка ИБР+1'!AT$6='Настройка ИБР+1'!$AG$3,1,HLOOKUP('Настройка ИБР+1'!AT$6,'Настройка ИБР+1'!$M$3:$AF$21,ROW('Настройка ИБР+1'!20:20)-ROW('Настройка ИБР+1'!$3:$3)+1,FALSE))*IF('Настройка ИБР+1'!AT$7='Настройка ИБР+1'!$AG$3,1,HLOOKUP('Настройка ИБР+1'!AT$7,'Настройка ИБР+1'!$M$3:$AF$21,ROW('Настройка ИБР+1'!20:20)-ROW('Настройка ИБР+1'!$3:$3)+1,FALSE))*IF('Настройка ИБР+1'!AT$8='Настройка ИБР+1'!$AG$3,1,HLOOKUP('Настройка ИБР+1'!AT$8,'Настройка ИБР+1'!$M$3:$AF$21,ROW('Настройка ИБР+1'!20:20)-ROW('Настройка ИБР+1'!$3:$3)+1,FALSE))*'Настройка ИБР+1'!$D20) -> 0.9313953951 | O20: =IF(ROUNDUP('Настройка ИБР+1'!AU$4,0)=0,0,IF('Настройка ИБР+1'!AU$6='Настройка ИБР+1'!$AG$3,1,HLOOKUP('Настройка ИБР+1'!AU$6,'Настройка ИБР+1'!$M$3:$AF$21,ROW('Настройка ИБР+1'!20:20)-ROW('Настройка ИБР+1'!$3:$3)+1,FALSE))*IF('Настройка ИБР+1'!AU$7='Настройка ИБР+1'!$AG$3,1,HLOOKUP('Настройка ИБР+1'!AU$7,'Настройка ИБР+1'!$M$3:$AF$21,ROW('Настройка ИБР+1'!20:20)-ROW('Настройка ИБР+1'!$3:$3)+1,FALSE))*IF('Настройка ИБР+1'!AU$8='Настройка ИБР+1'!$AG$3,1,HLOOKUP('Настройка ИБР+1'!AU$8,'Настройка ИБР+1'!$M$3:$AF$21,ROW('Настройка ИБР+1'!20:20)-ROW('Настройка ИБР+1'!$3:$3)+1,FALSE))*'Настройка ИБР+1'!$D20) -> 0 | P20: =IF(ROUNDUP('Настройка ИБР+1'!AV$4,0)=0,0,IF('Настройка ИБР+1'!AV$6='Настройка ИБР+1'!$AG$3,1,HLOOKUP('Настройка ИБР+1'!AV$6,'Настройка ИБР+1'!$M$3:$AF$21,ROW('Настройка ИБР+1'!20:20)-ROW('Настройка ИБР+1'!$3:$3)+1,FALSE))*IF('Настройка ИБР+1'!AV$7='Настройка ИБР+1'!$AG$3,1,HLOOKUP('Настройка ИБР+1'!AV$7,'Настройка ИБР+1'!$M$3:$AF$21,ROW('Настройка ИБР+1'!20:20)-ROW('Настройка ИБР+1'!$3:$3)+1,FALSE))*IF('Настройка ИБР+1'!AV$8='Настройка ИБР+1'!$AG$3,1,HLOOKUP('Настройка ИБР+1'!AV$8,'Настройка ИБР+1'!$M$3:$AF$21,ROW('Настройка ИБР+1'!20:20)-ROW('Настройка ИБР+1'!$3:$3)+1,FALSE))*'Настройка ИБР+1'!$D20) -> 0 | Q20: =IF(ROUNDUP('Настройка ИБР+1'!AW$4,0)=0,0,IF('Настройка ИБР+1'!AW$6='Настройка ИБР+1'!$AG$3,1,HLOOKUP('Настройка ИБР+1'!AW$6,'Настройка ИБР+1'!$M$3:$AF$21,ROW('Настройка ИБР+1'!20:20)-ROW('Настройка ИБР+1'!$3:$3)+1,FALSE))*IF('Настройка ИБР+1'!AW$7='Настройка ИБР+1'!$AG$3,1,HLOOKUP('Настройка ИБР+1'!AW$7,'Настройка ИБР+1'!$M$3:$AF$21,ROW('Настройка ИБР+1'!20:20)-ROW('Настройка ИБР+1'!$3:$3)+1,FALSE))*IF('Настройка ИБР+1'!AW$8='Настройка ИБР+1'!$AG$3,1,HLOOKUP('Настройка ИБР+1'!AW$8,'Настройка ИБР+1'!$M$3:$AF$21,ROW('Настройка ИБР+1'!20:20)-ROW('Настройка ИБР+1'!$3:$3)+1,FALSE))*'Настройка ИБР+1'!$D20) -> 1.005446082 | R20: =IF(ROUNDUP('Настройка ИБР+1'!AX$4,0)=0,0,IF('Настройка ИБР+1'!AX$6='Настройка ИБР+1'!$AG$3,1,HLOOKUP('Настройка ИБР+1'!AX$6,'Настройка ИБР+1'!$M$3:$AF$21,ROW('Настройка ИБР+1'!20:20)-ROW('Настройка ИБР+1'!$3:$3)+1,FALSE))*IF('Настройка ИБР+1'!AX$7='Настройка ИБР+1'!$AG$3,1,HLOOKUP('Настройка ИБР+1'!AX$7,'Настройка ИБР+1'!$M$3:$AF$21,ROW('Настройка ИБР+1'!20:20)-ROW('Настройка ИБР+1'!$3:$3)+1,FALSE))*IF('Настройка ИБР+1'!AX$8='Настройка ИБР+1'!$AG$3,1,HLOOKUP('Настройка ИБР+1'!AX$8,'Настройка ИБР+1'!$M$3:$AF$21,ROW('Настройка ИБР+1'!20:20)-ROW('Настройка ИБР+1'!$3:$3)+1,FALSE))*'Настройка ИБР+1'!$D20) -> 1.005446082 | S20: =IF(ROUNDUP('Настройка ИБР+1'!AY$4,0)=0,0,IF('Настройка ИБР+1'!AY$6='Настройка ИБР+1'!$AG$3,1,HLOOKUP('Настройка ИБР+1'!AY$6,'Настройка ИБР+1'!$M$3:$AF$21,ROW('Настройка ИБР+1'!20:20)-ROW('Настройка ИБР+1'!$3:$3)+1,FALSE))*IF('Настройка ИБР+1'!AY$7='Настройка ИБР+1'!$AG$3,1,HLOOKUP('Настройка ИБР+1'!AY$7,'Настройка ИБР+1'!$M$3:$AF$21,ROW('Настройка ИБР+1'!20:20)-ROW('Настройка ИБР+1'!$3:$3)+1,FALSE))*IF('Настройка ИБР+1'!AY$8='Настройка ИБР+1'!$AG$3,1,HLOOKUP('Настройка ИБР+1'!AY$8,'Настройка ИБР+1'!$M$3:$AF$21,ROW('Настройка ИБР+1'!20:20)-ROW('Настройка ИБР+1'!$3:$3)+1,FALSE))*'Настройка ИБР+1'!$D20) -> 0 | T20: =IF(ROUNDUP('Настройка ИБР+1'!AZ$4,0)=0,0,IF('Настройка ИБР+1'!AZ$6='Настройка ИБР+1'!$AG$3,1,HLOOKUP('Настройка ИБР+1'!AZ$6,'Настройка ИБР+1'!$M$3:$AF$21,ROW('Настройка ИБР+1'!20:20)-ROW('Настройка ИБР+1'!$3:$3)+1,FALSE))*IF('Настройка ИБР+1'!AZ$7='Настройка ИБР+1'!$AG$3,1,HLOOKUP('Настройка ИБР+1'!AZ$7,'Настройка ИБР+1'!$M$3:$AF$21,ROW('Настройка ИБР+1'!20:20)-ROW('Настройка ИБР+1'!$3:$3)+1,FALSE))*IF('Настройка ИБР+1'!AZ$8='Настройка ИБР+1'!$AG$3,1,HLOOKUP('Настройка ИБР+1'!AZ$8,'Настройка ИБР+1'!$M$3:$AF$21,ROW('Настройка ИБР+1'!20:20)-ROW('Настройка ИБР+1'!$3:$3)+1,FALSE))*'Настройка ИБР+1'!$D20) -> 0 | U20: =IF(ROUNDUP('Настройка ИБР+1'!BA$4,0)=0,0,IF('Настройка ИБР+1'!BA$6='Настройка ИБР+1'!$AG$3,1,HLOOKUP('Настройка ИБР+1'!BA$6,'Настройка ИБР+1'!$M$3:$AF$21,ROW('Настройка ИБР+1'!20:20)-ROW('Настройка ИБР+1'!$3:$3)+1,FALSE))*IF('Настройка ИБР+1'!BA$7='Настройка ИБР+1'!$AG$3,1,HLOOKUP('Настройка ИБР+1'!BA$7,'Настройка ИБР+1'!$M$3:$AF$21,ROW('Настройка ИБР+1'!20:20)-ROW('Настройка ИБР+1'!$3:$3)+1,FALSE))*IF('Настройка ИБР+1'!BA$8='Настройка ИБР+1'!$AG$3,1,HLOOKUP('Настройка ИБР+1'!BA$8,'Настройка ИБР+1'!$M$3:$AF$21,ROW('Настройка ИБР+1'!20:20)-ROW('Настройка ИБР+1'!$3:$3)+1,FALSE))*'Настройка ИБР+1'!$D20) -> 1.005446082 | V20: =IF(ROUNDUP('Настройка ИБР+1'!BB$4,0)=0,0,IF('Настройка ИБР+1'!BB$6='Настройка ИБР+1'!$AG$3,1,HLOOKUP('Настройка ИБР+1'!BB$6,'Настройка ИБР+1'!$M$3:$AF$21,ROW('Настройка ИБР+1'!20:20)-ROW('Настройка ИБР+1'!$3:$3)+1,FALSE))*IF('Настройка ИБР+1'!BB$7='Настройка ИБР+1'!$AG$3,1,HLOOKUP('Настройка ИБР+1'!BB$7,'Настройка ИБР+1'!$M$3:$AF$21,ROW('Настройка ИБР+1'!20:20)-ROW('Настройка ИБР+1'!$3:$3)+1,FALSE))*IF('Настройка ИБР+1'!BB$8='Настройка ИБР+1'!$AG$3,1,HLOOKUP('Настройка ИБР+1'!BB$8,'Настройка ИБР+1'!$M$3:$AF$21,ROW('Настройка ИБР+1'!20:20)-ROW('Настройка ИБР+1'!$3:$3)+1,FALSE))*'Настройка ИБР+1'!$D20) -> 0.924012765 | W20: =IF(ROUNDUP('Настройка ИБР+1'!BC$4,0)=0,0,IF('Настройка ИБР+1'!BC$6='Настройка ИБР+1'!$AG$3,1,HLOOKUP('Настройка ИБР+1'!BC$6,'Настройка ИБР+1'!$M$3:$AF$21,ROW('Настройка ИБР+1'!20:20)-ROW('Настройка ИБР+1'!$3:$3)+1,FALSE))*IF('Настройка ИБР+1'!BC$7='Настройка ИБР+1'!$AG$3,1,HLOOKUP('Настройка ИБР+1'!BC$7,'Настройка ИБР+1'!$M$3:$AF$21,ROW('Настройка ИБР+1'!20:20)-ROW('Настройка ИБР+1'!$3:$3)+1,FALSE))*IF('Настройка ИБР+1'!BC$8='Настройка ИБР+1'!$AG$3,1,HLOOKUP('Настройка ИБР+1'!BC$8,'Настройка ИБР+1'!$M$3:$AF$21,ROW('Настройка ИБР+1'!20:20)-ROW('Настройка ИБР+1'!$3:$3)+1,FALSE))*'Настройка ИБР+1'!$D20) -> 0 | X20: =IF(ROUNDUP('Настройка ИБР+1'!BD$4,0)=0,0,IF('Настройка ИБР+1'!BD$6='Настройка ИБР+1'!$AG$3,1,HLOOKUP('Настройка ИБР+1'!BD$6,'Настройка ИБР+1'!$M$3:$AF$21,ROW('Настройка ИБР+1'!20:20)-ROW('Настройка ИБР+1'!$3:$3)+1,FALSE))*IF('Настройка ИБР+1'!BD$7='Настройка ИБР+1'!$AG$3,1,HLOOKUP('Настройка ИБР+1'!BD$7,'Настройка ИБР+1'!$M$3:$AF$21,ROW('Настройка ИБР+1'!20:20)-ROW('Настройка ИБР+1'!$3:$3)+1,FALSE))*IF('Настройка ИБР+1'!BD$8='Настройка ИБР+1'!$AG$3,1,HLOOKUP('Настройка ИБР+1'!BD$8,'Настройка ИБР+1'!$M$3:$AF$21,ROW('Настройка ИБР+1'!20:20)-ROW('Настройка ИБР+1'!$3:$3)+1,FALSE))*'Настройка ИБР+1'!$D20) -> 1.005446082 | Y20: =IF(ROUNDUP('Настройка ИБР+1'!BE$4,0)=0,0,IF('Настройка ИБР+1'!BE$6='Настройка ИБР+1'!$AG$3,1,HLOOKUP('Настройка ИБР+1'!BE$6,'Настройка ИБР+1'!$M$3:$AF$21,ROW('Настройка ИБР+1'!20:20)-ROW('Настройка ИБР+1'!$3:$3)+1,FALSE))*IF('Настройка ИБР+1'!BE$7='Настройка ИБР+1'!$AG$3,1,HLOOKUP('Настройка ИБР+1'!BE$7,'Настройка ИБР+1'!$M$3:$AF$21,ROW('Настройка ИБР+1'!20:20)-ROW('Настройка ИБР+1'!$3:$3)+1,FALSE))*IF('Настройка ИБР+1'!BE$8='Настройка ИБР+1'!$AG$3,1,HLOOKUP('Настройка ИБР+1'!BE$8,'Настройка ИБР+1'!$M$3:$AF$21,ROW('Настройка ИБР+1'!20:20)-ROW('Настройка ИБР+1'!$3:$3)+1,FALSE))*'Настройка ИБР+1'!$D20) -> 1.005446082 | Z20: =IF(ROUNDUP('Настройка ИБР+1'!BF$4,0)=0,0,IF('Настройка ИБР+1'!BF$6='Настройка ИБР+1'!$AG$3,1,HLOOKUP('Настройка ИБР+1'!BF$6,'Настройка ИБР+1'!$M$3:$AF$21,ROW('Настройка ИБР+1'!20:20)-ROW('Настройка ИБР+1'!$3:$3)+1,FALSE))*IF('Настройка ИБР+1'!BF$7='Настройка ИБР+1'!$AG$3,1,HLOOKUP('Настройка ИБР+1'!BF$7,'Настройка ИБР+1'!$M$3:$AF$21,ROW('Настройка ИБР+1'!20:20)-ROW('Настройка ИБР+1'!$3:$3)+1,FALSE))*IF('Настройка ИБР+1'!BF$8='Настройка ИБР+1'!$AG$3,1,HLOOKUP('Настройка ИБР+1'!BF$8,'Настройка ИБР+1'!$M$3:$AF$21,ROW('Настройка ИБР+1'!20:20)-ROW('Настройка ИБР+1'!$3:$3)+1,FALSE))*'Настройка ИБР+1'!$D20) -> 0 | AA20: =IF(ROUNDUP('Настройка ИБР+1'!BG$4,0)=0,0,IF('Настройка ИБР+1'!BG$6='Настройка ИБР+1'!$AG$3,1,HLOOKUP('Настройка ИБР+1'!BG$6,'Настройка ИБР+1'!$M$3:$AF$21,ROW('Настройка ИБР+1'!20:20)-ROW('Настройка ИБР+1'!$3:$3)+1,FALSE))*IF('Настройка ИБР+1'!BG$7='Настройка ИБР+1'!$AG$3,1,HLOOKUP('Настройка ИБР+1'!BG$7,'Настройка ИБР+1'!$M$3:$AF$21,ROW('Настройка ИБР+1'!20:20)-ROW('Настройка ИБР+1'!$3:$3)+1,FALSE))*IF('Настройка ИБР+1'!BG$8='Настройка ИБР+1'!$AG$3,1,HLOOKUP('Настройка ИБР+1'!BG$8,'Настройка ИБР+1'!$M$3:$AF$21,ROW('Настройка ИБР+1'!20:20)-ROW('Настройка ИБР+1'!$3:$3)+1,FALSE))*'Настройка ИБР+1'!$D20) -> 0 | AB20: =IF(ROUNDUP('Настройка ИБР+1'!BH$4,0)=0,0,IF('Настройка ИБР+1'!BH$6='Настройка ИБР+1'!$AG$3,1,HLOOKUP('Настройка ИБР+1'!BH$6,'Настройка ИБР+1'!$M$3:$AF$21,ROW('Настройка ИБР+1'!20:20)-ROW('Настройка ИБР+1'!$3:$3)+1,FALSE))*IF('Настройка ИБР+1'!BH$7='Настройка ИБР+1'!$AG$3,1,HLOOKUP('Настройка ИБР+1'!BH$7,'Настройка ИБР+1'!$M$3:$AF$21,ROW('Настройка ИБР+1'!20:20)-ROW('Настройка ИБР+1'!$3:$3)+1,FALSE))*IF('Настройка ИБР+1'!BH$8='Настройка ИБР+1'!$AG$3,1,HLOOKUP('Настройка ИБР+1'!BH$8,'Настройка ИБР+1'!$M$3:$AF$21,ROW('Настройка ИБР+1'!20:20)-ROW('Настройка ИБР+1'!$3:$3)+1,FALSE))*'Настройка ИБР+1'!$D20) -> 0 | AC20: =IF(ROUNDUP('Настройка ИБР+1'!BI$4,0)=0,0,IF('Настройка ИБР+1'!BI$6='Настройка ИБР+1'!$AG$3,1,HLOOKUP('Настройка ИБР+1'!BI$6,'Настройка ИБР+1'!$M$3:$AF$21,ROW('Настройка ИБР+1'!20:20)-ROW('Настройка ИБР+1'!$3:$3)+1,FALSE))*IF('Настройка ИБР+1'!BI$7='Настройка ИБР+1'!$AG$3,1,HLOOKUP('Настройка ИБР+1'!BI$7,'Настройка ИБР+1'!$M$3:$AF$21,ROW('Настройка ИБР+1'!20:20)-ROW('Настройка ИБР+1'!$3:$3)+1,FALSE))*IF('Настройка ИБР+1'!BI$8='Настройка ИБР+1'!$AG$3,1,HLOOKUP('Настройка ИБР+1'!BI$8,'Настройка ИБР+1'!$M$3:$AF$21,ROW('Настройка ИБР+1'!20:20)-ROW('Настройка ИБР+1'!$3:$3)+1,FALSE))*'Настройка ИБР+1'!$D20) -> 0 | AD20: =IF(ROUNDUP('Настройка ИБР+1'!BJ$4,0)=0,0,IF('Настройка ИБР+1'!BJ$6='Настройка ИБР+1'!$AG$3,1,HLOOKUP('Настройка ИБР+1'!BJ$6,'Настройка ИБР+1'!$M$3:$AF$21,ROW('Настройка ИБР+1'!20:20)-ROW('Настройка ИБР+1'!$3:$3)+1,FALSE))*IF('Настройка ИБР+1'!BJ$7='Настройка ИБР+1'!$AG$3,1,HLOOKUP('Настройка ИБР+1'!BJ$7,'Настройка ИБР+1'!$M$3:$AF$21,ROW('Настройка ИБР+1'!20:20)-ROW('Настройка ИБР+1'!$3:$3)+1,FALSE))*IF('Настройка ИБР+1'!BJ$8='Настройка ИБР+1'!$AG$3,1,HLOOKUP('Настройка ИБР+1'!BJ$8,'Настройка ИБР+1'!$M$3:$AF$21,ROW('Настройка ИБР+1'!20:20)-ROW('Настройка ИБР+1'!$3:$3)+1,FALSE))*'Настройка ИБР+1'!$D20) -> 0 | AE20: =IF(ROUNDUP('Настройка ИБР+1'!BK$4,0)=0,0,IF('Настройка ИБР+1'!BK$6='Настройка ИБР+1'!$AG$3,1,HLOOKUP('Настройка ИБР+1'!BK$6,'Настройка ИБР+1'!$M$3:$AF$21,ROW('Настройка ИБР+1'!20:20)-ROW('Настройка ИБР+1'!$3:$3)+1,FALSE))*IF('Настройка ИБР+1'!BK$7='Настройка ИБР+1'!$AG$3,1,HLOOKUP('Настройка ИБР+1'!BK$7,'Настройка ИБР+1'!$M$3:$AF$21,ROW('Настройка ИБР+1'!20:20)-ROW('Настройка ИБР+1'!$3:$3)+1,FALSE))*IF('Настройка ИБР+1'!BK$8='Настройка ИБР+1'!$AG$3,1,HLOOKUP('Настройка ИБР+1'!BK$8,'Настройка ИБР+1'!$M$3:$AF$21,ROW('Настройка ИБР+1'!20:20)-ROW('Настройка ИБР+1'!$3:$3)+1,FALSE))*'Настройка ИБР+1'!$D20) -> 0 | AF20: =IF(ROUNDUP('Настройка ИБР+1'!BL$4,0)=0,0,IF('Настройка ИБР+1'!BL$6='Настройка ИБР+1'!$AG$3,1,HLOOKUP('Настройка ИБР+1'!BL$6,'Настройка ИБР+1'!$M$3:$AF$21,ROW('Настройка ИБР+1'!20:20)-ROW('Настройка ИБР+1'!$3:$3)+1,FALSE))*IF('Настройка ИБР+1'!BL$7='Настройка ИБР+1'!$AG$3,1,HLOOKUP('Настройка ИБР+1'!BL$7,'Настройка ИБР+1'!$M$3:$AF$21,ROW('Настройка ИБР+1'!20:20)-ROW('Настройка ИБР+1'!$3:$3)+1,FALSE))*IF('Настройка ИБР+1'!BL$8='Настройка ИБР+1'!$AG$3,1,HLOOKUP('Настройка ИБР+1'!BL$8,'Настройка ИБР+1'!$M$3:$AF$21,ROW('Настройка ИБР+1'!20:20)-ROW('Настройка ИБР+1'!$3:$3)+1,FALSE))*'Настройка ИБР+1'!$D20) -> 1.005446082 | AG20: =IF(ROUNDUP('Настройка ИБР+1'!BM$4,0)=0,0,IF('Настройка ИБР+1'!BM$6='Настройка ИБР+1'!$AG$3,1,HLOOKUP('Настройка ИБР+1'!BM$6,'Настройка ИБР+1'!$M$3:$AF$21,ROW('Настройка ИБР+1'!20:20)-ROW('Настройка ИБР+1'!$3:$3)+1,FALSE))*IF('Настройка ИБР+1'!BM$7='Настройка ИБР+1'!$AG$3,1,HLOOKUP('Настройка ИБР+1'!BM$7,'Настройка ИБР+1'!$M$3:$AF$21,ROW('Настройка ИБР+1'!20:20)-ROW('Настройка ИБР+1'!$3:$3)+1,FALSE))*IF('Настройка ИБР+1'!BM$8='Настройка ИБР+1'!$AG$3,1,HLOOKUP('Настройка ИБР+1'!BM$8,'Настройка ИБР+1'!$M$3:$AF$21,ROW('Настройка ИБР+1'!20:20)-ROW('Настройка ИБР+1'!$3:$3)+1,FALSE))*'Настройка ИБР+1'!$D20) -> 0 | AH20: =IF(ROUNDUP('Настройка ИБР+1'!BN$4,0)=0,0,IF('Настройка ИБР+1'!BN$6='Настройка ИБР+1'!$AG$3,1,HLOOKUP('Настройка ИБР+1'!BN$6,'Настройка ИБР+1'!$M$3:$AF$21,ROW('Настройка ИБР+1'!20:20)-ROW('Настройка ИБР+1'!$3:$3)+1,FALSE))*IF('Настройка ИБР+1'!BN$7='Настройка ИБР+1'!$AG$3,1,HLOOKUP('Настройка ИБР+1'!BN$7,'Настройка ИБР+1'!$M$3:$AF$21,ROW('Настройка ИБР+1'!20:20)-ROW('Настройка ИБР+1'!$3:$3)+1,FALSE))*IF('Настройка ИБР+1'!BN$8='Настройка ИБР+1'!$AG$3,1,HLOOKUP('Настройка ИБР+1'!BN$8,'Настройка ИБР+1'!$M$3:$AF$21,ROW('Настройка ИБР+1'!20:20)-ROW('Настройка ИБР+1'!$3:$3)+1,FALSE))*'Настройка ИБР+1'!$D20) -> 0 | AI20: =IF(ROUNDUP('Настройка ИБР+1'!BO$4,0)=0,0,IF('Настройка ИБР+1'!BO$6='Настройка ИБР+1'!$AG$3,1,HLOOKUP('Настройка ИБР+1'!BO$6,'Настройка ИБР+1'!$M$3:$AF$21,ROW('Настройка ИБР+1'!20:20)-ROW('Настройка ИБР+1'!$3:$3)+1,FALSE))*IF('Настройка ИБР+1'!BO$7='Настройка ИБР+1'!$AG$3,1,HLOOKUP('Настройка ИБР+1'!BO$7,'Настройка ИБР+1'!$M$3:$AF$21,ROW('Настройка ИБР+1'!20:20)-ROW('Настройка ИБР+1'!$3:$3)+1,FALSE))*IF('Настройка ИБР+1'!BO$8='Настройка ИБР+1'!$AG$3,1,HLOOKUP('Настройка ИБР+1'!BO$8,'Настройка ИБР+1'!$M$3:$AF$21,ROW('Настройка ИБР+1'!20:20)-ROW('Настройка ИБР+1'!$3:$3)+1,FALSE))*'Настройка ИБР+1'!$D20) -> 1.005446082 | AL20: =CHOOSE($AK$11,HLOOKUP($AK$11,$C$2:$AI$21,ROW(20:20)-ROW($2:$2)+1,FALSE)*Данные!$F$11/HLOOKUP($AK$11,$C$2:$AI$21,ROW($11:$11)-ROW($2:$2)+1,FALSE),HLOOKUP($AK$11,#REF!,ROW(#REF!)-ROW(#REF!)+1,FALSE)*Данные!$F$11/HLOOKUP($AK$11,#REF!,ROW(#REF!)-ROW(#REF!)+1,FALSE),HLOOKUP($AK$11,#REF!,ROW(#REF!)-ROW(#REF!)+1,FALSE)*Данные!$F$11/HLOOKUP($AK$11,#REF!,ROW(#REF!)-ROW(#REF!)+1,FALSE)) -> 0.9505423903 | AM20: =CHOOSE($AK$11,HLOOKUP($AK$11,'Настройка ИБР+1'!$AI$2:$BO$21,ROW('Настройка ИБР+1'!20:20)-ROW('Настройка ИБР+1'!$2:$2)+1,FALSE)/Данные!$F20/(HLOOKUP($AK$11,'Настройка ИБР+1'!$AI$2:$BO$21,ROW(Данные!$11:$11)-ROW('Настройка ИБР+1'!$2:$2)+1,FALSE)/Данные!$F$11),HLOOKUP($AK$11,#REF!,ROW(#REF!)-ROW(#REF!)+1,FALSE)/Данные!$F20/(HLOOKUP($AK$11,#REF!,ROW(Данные!$11:$11)-ROW(#REF!)+1,FALSE)/Данные!$F$11),HLOOKUP($AK$11,#REF!,ROW(#REF!)-ROW(#REF!)+1,FALSE)/Данные!$F20/(HLOOKUP($AK$11,#REF!,ROW(Данные!$11:$11)-ROW(#REF!)+1,FALSE)/Данные!$F$11)) -> 1.000300977
A21: =Данные!A21 -> 10 | B21: =Данные!D21 -> Кировское с/п | C21: =SUMPRODUCT('Настройка ИБР+1'!$AJ$4:$BO$4,D21:AI21)*Данные!$F$11/SUMPRODUCT($D$11:$AI$11,'Настройка ИБР+1'!$AJ$4:$BO$4) -> 0.9925816191 | D21: =IF(ROUNDUP('Настройка ИБР+1'!AJ$4,0)=0,0,IF('Настройка ИБР+1'!AJ$6='Настройка ИБР+1'!$AG$3,1,HLOOKUP('Настройка ИБР+1'!AJ$6,'Настройка ИБР+1'!$M$3:$AF$21,ROW('Настройка ИБР+1'!21:21)-ROW('Настройка ИБР+1'!$3:$3)+1,FALSE))*IF('Настройка ИБР+1'!AJ$7='Настройка ИБР+1'!$AG$3,1,HLOOKUP('Настройка ИБР+1'!AJ$7,'Настройка ИБР+1'!$M$3:$AF$21,ROW('Настройка ИБР+1'!21:21)-ROW('Настройка ИБР+1'!$3:$3)+1,FALSE))*IF('Настройка ИБР+1'!AJ$8='Настройка ИБР+1'!$AG$3,1,HLOOKUP('Настройка ИБР+1'!AJ$8,'Настройка ИБР+1'!$M$3:$AF$21,ROW('Настройка ИБР+1'!21:21)-ROW('Настройка ИБР+1'!$3:$3)+1,FALSE))*'Настройка ИБР+1'!$D21) -> 0.9860382437 | E21: =IF(ROUNDUP('Настройка ИБР+1'!AK$4,0)=0,0,IF('Настройка ИБР+1'!AK$6='Настройка ИБР+1'!$AG$3,1,HLOOKUP('Настройка ИБР+1'!AK$6,'Настройка ИБР+1'!$M$3:$AF$21,ROW('Настройка ИБР+1'!21:21)-ROW('Настройка ИБР+1'!$3:$3)+1,FALSE))*IF('Настройка ИБР+1'!AK$7='Настройка ИБР+1'!$AG$3,1,HLOOKUP('Настройка ИБР+1'!AK$7,'Настройка ИБР+1'!$M$3:$AF$21,ROW('Настройка ИБР+1'!21:21)-ROW('Настройка ИБР+1'!$3:$3)+1,FALSE))*IF('Настройка ИБР+1'!AK$8='Настройка ИБР+1'!$AG$3,1,HLOOKUP('Настройка ИБР+1'!AK$8,'Настройка ИБР+1'!$M$3:$AF$21,ROW('Настройка ИБР+1'!21:21)-ROW('Настройка ИБР+1'!$3:$3)+1,FALSE))*'Настройка ИБР+1'!$D21) -> 0.9930333592 | F21: =IF(ROUNDUP('Настройка ИБР+1'!AL$4,0)=0,0,IF('Настройка ИБР+1'!AL$6='Настройка ИБР+1'!$AG$3,1,HLOOKUP('Настройка ИБР+1'!AL$6,'Настройка ИБР+1'!$M$3:$AF$21,ROW('Настройка ИБР+1'!21:21)-ROW('Настройка ИБР+1'!$3:$3)+1,FALSE))*IF('Настройка ИБР+1'!AL$7='Настройка ИБР+1'!$AG$3,1,HLOOKUP('Настройка ИБР+1'!AL$7,'Настройка ИБР+1'!$M$3:$AF$21,ROW('Настройка ИБР+1'!21:21)-ROW('Настройка ИБР+1'!$3:$3)+1,FALSE))*IF('Настройка ИБР+1'!AL$8='Настройка ИБР+1'!$AG$3,1,HLOOKUP('Настройка ИБР+1'!AL$8,'Настройка ИБР+1'!$M$3:$AF$21,ROW('Настройка ИБР+1'!21:21)-ROW('Настройка ИБР+1'!$3:$3)+1,FALSE))*'Настройка ИБР+1'!$D21) -> 0 | G21: =IF(ROUNDUP('Настройка ИБР+1'!AM$4,0)=0,0,IF('Настройка ИБР+1'!AM$6='Настройка ИБР+1'!$AG$3,1,HLOOKUP('Настройка ИБР+1'!AM$6,'Настройка ИБР+1'!$M$3:$AF$21,ROW('Настройка ИБР+1'!21:21)-ROW('Настройка ИБР+1'!$3:$3)+1,FALSE))*IF('Настройка ИБР+1'!AM$7='Настройка ИБР+1'!$AG$3,1,HLOOKUP('Настройка ИБР+1'!AM$7,'Настройка ИБР+1'!$M$3:$AF$21,ROW('Настройка ИБР+1'!21:21)-ROW('Настройка ИБР+1'!$3:$3)+1,FALSE))*IF('Настройка ИБР+1'!AM$8='Настройка ИБР+1'!$AG$3,1,HLOOKUP('Настройка ИБР+1'!AM$8,'Настройка ИБР+1'!$M$3:$AF$21,ROW('Настройка ИБР+1'!21:21)-ROW('Настройка ИБР+1'!$3:$3)+1,FALSE))*'Настройка ИБР+1'!$D21) -> 0 | H21: =IF(ROUNDUP('Настройка ИБР+1'!AN$4,0)=0,0,IF('Настройка ИБР+1'!AN$6='Настройка ИБР+1'!$AG$3,1,HLOOKUP('Настройка ИБР+1'!AN$6,'Настройка ИБР+1'!$M$3:$AF$21,ROW('Настройка ИБР+1'!21:21)-ROW('Настройка ИБР+1'!$3:$3)+1,FALSE))*IF('Настройка ИБР+1'!AN$7='Настройка ИБР+1'!$AG$3,1,HLOOKUP('Настройка ИБР+1'!AN$7,'Настройка ИБР+1'!$M$3:$AF$21,ROW('Настройка ИБР+1'!21:21)-ROW('Настройка ИБР+1'!$3:$3)+1,FALSE))*IF('Настройка ИБР+1'!AN$8='Настройка ИБР+1'!$AG$3,1,HLOOKUP('Настройка ИБР+1'!AN$8,'Настройка ИБР+1'!$M$3:$AF$21,ROW('Настройка ИБР+1'!21:21)-ROW('Настройка ИБР+1'!$3:$3)+1,FALSE))*'Настройка ИБР+1'!$D21) -> 0 | I21: =IF(ROUNDUP('Настройка ИБР+1'!AO$4,0)=0,0,IF('Настройка ИБР+1'!AO$6='Настройка ИБР+1'!$AG$3,1,HLOOKUP('Настройка ИБР+1'!AO$6,'Настройка ИБР+1'!$M$3:$AF$21,ROW('Настройка ИБР+1'!21:21)-ROW('Настройка ИБР+1'!$3:$3)+1,FALSE))*IF('Настройка ИБР+1'!AO$7='Настройка ИБР+1'!$AG$3,1,HLOOKUP('Настройка ИБР+1'!AO$7,'Настройка ИБР+1'!$M$3:$AF$21,ROW('Настройка ИБР+1'!21:21)-ROW('Настройка ИБР+1'!$3:$3)+1,FALSE))*IF('Настройка ИБР+1'!AO$8='Настройка ИБР+1'!$AG$3,1,HLOOKUP('Настройка ИБР+1'!AO$8,'Настройка ИБР+1'!$M$3:$AF$21,ROW('Настройка ИБР+1'!21:21)-ROW('Настройка ИБР+1'!$3:$3)+1,FALSE))*'Настройка ИБР+1'!$D21) -> 0.9930333592 | J21: =IF(ROUNDUP('Настройка ИБР+1'!AP$4,0)=0,0,IF('Настройка ИБР+1'!AP$6='Настройка ИБР+1'!$AG$3,1,HLOOKUP('Настройка ИБР+1'!AP$6,'Настройка ИБР+1'!$M$3:$AF$21,ROW('Настройка ИБР+1'!21:21)-ROW('Настройка ИБР+1'!$3:$3)+1,FALSE))*IF('Настройка ИБР+1'!AP$7='Настройка ИБР+1'!$AG$3,1,HLOOKUP('Настройка ИБР+1'!AP$7,'Настройка ИБР+1'!$M$3:$AF$21,ROW('Настройка ИБР+1'!21:21)-ROW('Настройка ИБР+1'!$3:$3)+1,FALSE))*IF('Настройка ИБР+1'!AP$8='Настройка ИБР+1'!$AG$3,1,HLOOKUP('Настройка ИБР+1'!AP$8,'Настройка ИБР+1'!$M$3:$AF$21,ROW('Настройка ИБР+1'!21:21)-ROW('Настройка ИБР+1'!$3:$3)+1,FALSE))*'Настройка ИБР+1'!$D21) -> 0.9930333592 | K21: =IF(ROUNDUP('Настройка ИБР+1'!AQ$4,0)=0,0,IF('Настройка ИБР+1'!AQ$6='Настройка ИБР+1'!$AG$3,1,HLOOKUP('Настройка ИБР+1'!AQ$6,'Настройка ИБР+1'!$M$3:$AF$21,ROW('Настройка ИБР+1'!21:21)-ROW('Настройка ИБР+1'!$3:$3)+1,FALSE))*IF('Настройка ИБР+1'!AQ$7='Настройка ИБР+1'!$AG$3,1,HLOOKUP('Настройка ИБР+1'!AQ$7,'Настройка ИБР+1'!$M$3:$AF$21,ROW('Настройка ИБР+1'!21:21)-ROW('Настройка ИБР+1'!$3:$3)+1,FALSE))*IF('Настройка ИБР+1'!AQ$8='Настройка ИБР+1'!$AG$3,1,HLOOKUP('Настройка ИБР+1'!AQ$8,'Настройка ИБР+1'!$M$3:$AF$21,ROW('Настройка ИБР+1'!21:21)-ROW('Настройка ИБР+1'!$3:$3)+1,FALSE))*'Настройка ИБР+1'!$D21) -> 0.9930333592 | L21: =IF(ROUNDUP('Настройка ИБР+1'!AR$4,0)=0,0,IF('Настройка ИБР+1'!AR$6='Настройка ИБР+1'!$AG$3,1,HLOOKUP('Настройка ИБР+1'!AR$6,'Настройка ИБР+1'!$M$3:$AF$21,ROW('Настройка ИБР+1'!21:21)-ROW('Настройка ИБР+1'!$3:$3)+1,FALSE))*IF('Настройка ИБР+1'!AR$7='Настройка ИБР+1'!$AG$3,1,HLOOKUP('Настройка ИБР+1'!AR$7,'Настройка ИБР+1'!$M$3:$AF$21,ROW('Настройка ИБР+1'!21:21)-ROW('Настройка ИБР+1'!$3:$3)+1,FALSE))*IF('Настройка ИБР+1'!AR$8='Настройка ИБР+1'!$AG$3,1,HLOOKUP('Настройка ИБР+1'!AR$8,'Настройка ИБР+1'!$M$3:$AF$21,ROW('Настройка ИБР+1'!21:21)-ROW('Настройка ИБР+1'!$3:$3)+1,FALSE))*'Настройка ИБР+1'!$D21) -> 0 | M21: =IF(ROUNDUP('Настройка ИБР+1'!AS$4,0)=0,0,IF('Настройка ИБР+1'!AS$6='Настройка ИБР+1'!$AG$3,1,HLOOKUP('Настройка ИБР+1'!AS$6,'Настройка ИБР+1'!$M$3:$AF$21,ROW('Настройка ИБР+1'!21:21)-ROW('Настройка ИБР+1'!$3:$3)+1,FALSE))*IF('Настройка ИБР+1'!AS$7='Настройка ИБР+1'!$AG$3,1,HLOOKUP('Настройка ИБР+1'!AS$7,'Настройка ИБР+1'!$M$3:$AF$21,ROW('Настройка ИБР+1'!21:21)-ROW('Настройка ИБР+1'!$3:$3)+1,FALSE))*IF('Настройка ИБР+1'!AS$8='Настройка ИБР+1'!$AG$3,1,HLOOKUP('Настройка ИБР+1'!AS$8,'Настройка ИБР+1'!$M$3:$AF$21,ROW('Настройка ИБР+1'!21:21)-ROW('Настройка ИБР+1'!$3:$3)+1,FALSE))*'Настройка ИБР+1'!$D21) -> 0 | N21: =IF(ROUNDUP('Настройка ИБР+1'!AT$4,0)=0,0,IF('Настройка ИБР+1'!AT$6='Настройка ИБР+1'!$AG$3,1,HLOOKUP('Настройка ИБР+1'!AT$6,'Настройка ИБР+1'!$M$3:$AF$21,ROW('Настройка ИБР+1'!21:21)-ROW('Настройка ИБР+1'!$3:$3)+1,FALSE))*IF('Настройка ИБР+1'!AT$7='Настройка ИБР+1'!$AG$3,1,HLOOKUP('Настройка ИБР+1'!AT$7,'Настройка ИБР+1'!$M$3:$AF$21,ROW('Настройка ИБР+1'!21:21)-ROW('Настройка ИБР+1'!$3:$3)+1,FALSE))*IF('Настройка ИБР+1'!AT$8='Настройка ИБР+1'!$AG$3,1,HLOOKUP('Настройка ИБР+1'!AT$8,'Настройка ИБР+1'!$M$3:$AF$21,ROW('Настройка ИБР+1'!21:21)-ROW('Настройка ИБР+1'!$3:$3)+1,FALSE))*'Настройка ИБР+1'!$D21) -> 0.9860382437 | O21: =IF(ROUNDUP('Настройка ИБР+1'!AU$4,0)=0,0,IF('Настройка ИБР+1'!AU$6='Настройка ИБР+1'!$AG$3,1,HLOOKUP('Настройка ИБР+1'!AU$6,'Настройка ИБР+1'!$M$3:$AF$21,ROW('Настройка ИБР+1'!21:21)-ROW('Настройка ИБР+1'!$3:$3)+1,FALSE))*IF('Настройка ИБР+1'!AU$7='Настройка ИБР+1'!$AG$3,1,HLOOKUP('Настройка ИБР+1'!AU$7,'Настройка ИБР+1'!$M$3:$AF$21,ROW('Настройка ИБР+1'!21:21)-ROW('Настройка ИБР+1'!$3:$3)+1,FALSE))*IF('Настройка ИБР+1'!AU$8='Настройка ИБР+1'!$AG$3,1,HLOOKUP('Настройка ИБР+1'!AU$8,'Настройка ИБР+1'!$M$3:$AF$21,ROW('Настройка ИБР+1'!21:21)-ROW('Настройка ИБР+1'!$3:$3)+1,FALSE))*'Настройка ИБР+1'!$D21) -> 0 | P21: =IF(ROUNDUP('Настройка ИБР+1'!AV$4,0)=0,0,IF('Настройка ИБР+1'!AV$6='Настройка ИБР+1'!$AG$3,1,HLOOKUP('Настройка ИБР+1'!AV$6,'Настройка ИБР+1'!$M$3:$AF$21,ROW('Настройка ИБР+1'!21:21)-ROW('Настройка ИБР+1'!$3:$3)+1,FALSE))*IF('Настройка ИБР+1'!AV$7='Настройка ИБР+1'!$AG$3,1,HLOOKUP('Настройка ИБР+1'!AV$7,'Настройка ИБР+1'!$M$3:$AF$21,ROW('Настройка ИБР+1'!21:21)-ROW('Настройка ИБР+1'!$3:$3)+1,FALSE))*IF('Настройка ИБР+1'!AV$8='Настройка ИБР+1'!$AG$3,1,HLOOKUP('Настройка ИБР+1'!AV$8,'Настройка ИБР+1'!$M$3:$AF$21,ROW('Настройка ИБР+1'!21:21)-ROW('Настройка ИБР+1'!$3:$3)+1,FALSE))*'Настройка ИБР+1'!$D21) -> 0 | Q21: =IF(ROUNDUP('Настройка ИБР+1'!AW$4,0)=0,0,IF('Настройка ИБР+1'!AW$6='Настройка ИБР+1'!$AG$3,1,HLOOKUP('Настройка ИБР+1'!AW$6,'Настройка ИБР+1'!$M$3:$AF$21,ROW('Настройка ИБР+1'!21:21)-ROW('Настройка ИБР+1'!$3:$3)+1,FALSE))*IF('Настройка ИБР+1'!AW$7='Настройка ИБР+1'!$AG$3,1,HLOOKUP('Настройка ИБР+1'!AW$7,'Настройка ИБР+1'!$M$3:$AF$21,ROW('Настройка ИБР+1'!21:21)-ROW('Настройка ИБР+1'!$3:$3)+1,FALSE))*IF('Настройка ИБР+1'!AW$8='Настройка ИБР+1'!$AG$3,1,HLOOKUP('Настройка ИБР+1'!AW$8,'Настройка ИБР+1'!$M$3:$AF$21,ROW('Настройка ИБР+1'!21:21)-ROW('Настройка ИБР+1'!$3:$3)+1,FALSE))*'Настройка ИБР+1'!$D21) -> 0.9930333592 | R21: =IF(ROUNDUP('Настройка ИБР+1'!AX$4,0)=0,0,IF('Настройка ИБР+1'!AX$6='Настройка ИБР+1'!$AG$3,1,HLOOKUP('Настройка ИБР+1'!AX$6,'Настройка ИБР+1'!$M$3:$AF$21,ROW('Настройка ИБР+1'!21:21)-ROW('Настройка ИБР+1'!$3:$3)+1,FALSE))*IF('Настройка ИБР+1'!AX$7='Настройка ИБР+1'!$AG$3,1,HLOOKUP('Настройка ИБР+1'!AX$7,'Настройка ИБР+1'!$M$3:$AF$21,ROW('Настройка ИБР+1'!21:21)-ROW('Настройка ИБР+1'!$3:$3)+1,FALSE))*IF('Настройка ИБР+1'!AX$8='Настройка ИБР+1'!$AG$3,1,HLOOKUP('Настройка ИБР+1'!AX$8,'Настройка ИБР+1'!$M$3:$AF$21,ROW('Настройка ИБР+1'!21:21)-ROW('Настройка ИБР+1'!$3:$3)+1,FALSE))*'Настройка ИБР+1'!$D21) -> 0.9930333592 | S21: =IF(ROUNDUP('Настройка ИБР+1'!AY$4,0)=0,0,IF('Настройка ИБР+1'!AY$6='Настройка ИБР+1'!$AG$3,1,HLOOKUP('Настройка ИБР+1'!AY$6,'Настройка ИБР+1'!$M$3:$AF$21,ROW('Настройка ИБР+1'!21:21)-ROW('Настройка ИБР+1'!$3:$3)+1,FALSE))*IF('Настройка ИБР+1'!AY$7='Настройка ИБР+1'!$AG$3,1,HLOOKUP('Настройка ИБР+1'!AY$7,'Настройка ИБР+1'!$M$3:$AF$21,ROW('Настройка ИБР+1'!21:21)-ROW('Настройка ИБР+1'!$3:$3)+1,FALSE))*IF('Настройка ИБР+1'!AY$8='Настройка ИБР+1'!$AG$3,1,HLOOKUP('Настройка ИБР+1'!AY$8,'Настройка ИБР+1'!$M$3:$AF$21,ROW('Настройка ИБР+1'!21:21)-ROW('Настройка ИБР+1'!$3:$3)+1,FALSE))*'Настройка ИБР+1'!$D21) -> 0 | T21: =IF(ROUNDUP('Настройка ИБР+1'!AZ$4,0)=0,0,IF('Настройка ИБР+1'!AZ$6='Настройка ИБР+1'!$AG$3,1,HLOOKUP('Настройка ИБР+1'!AZ$6,'Настройка ИБР+1'!$M$3:$AF$21,ROW('Настройка ИБР+1'!21:21)-ROW('Настройка ИБР+1'!$3:$3)+1,FALSE))*IF('Настройка ИБР+1'!AZ$7='Настройка ИБР+1'!$AG$3,1,HLOOKUP('Настройка ИБР+1'!AZ$7,'Настройка ИБР+1'!$M$3:$AF$21,ROW('Настройка ИБР+1'!21:21)-ROW('Настройка ИБР+1'!$3:$3)+1,FALSE))*IF('Настройка ИБР+1'!AZ$8='Настройка ИБР+1'!$AG$3,1,HLOOKUP('Настройка ИБР+1'!AZ$8,'Настройка ИБР+1'!$M$3:$AF$21,ROW('Настройка ИБР+1'!21:21)-ROW('Настройка ИБР+1'!$3:$3)+1,FALSE))*'Настройка ИБР+1'!$D21) -> 0 | U21: =IF(ROUNDUP('Настройка ИБР+1'!BA$4,0)=0,0,IF('Настройка ИБР+1'!BA$6='Настройка ИБР+1'!$AG$3,1,HLOOKUP('Настройка ИБР+1'!BA$6,'Настройка ИБР+1'!$M$3:$AF$21,ROW('Настройка ИБР+1'!21:21)-ROW('Настройка ИБР+1'!$3:$3)+1,FALSE))*IF('Настройка ИБР+1'!BA$7='Настройка ИБР+1'!$AG$3,1,HLOOKUP('Настройка ИБР+1'!BA$7,'Настройка ИБР+1'!$M$3:$AF$21,ROW('Настройка ИБР+1'!21:21)-ROW('Настройка ИБР+1'!$3:$3)+1,FALSE))*IF('Настройка ИБР+1'!BA$8='Настройка ИБР+1'!$AG$3,1,HLOOKUP('Настройка ИБР+1'!BA$8,'Настройка ИБР+1'!$M$3:$AF$21,ROW('Настройка ИБР+1'!21:21)-ROW('Настройка ИБР+1'!$3:$3)+1,FALSE))*'Настройка ИБР+1'!$D21) -> 0.9930333592 | V21: =IF(ROUNDUP('Настройка ИБР+1'!BB$4,0)=0,0,IF('Настройка ИБР+1'!BB$6='Настройка ИБР+1'!$AG$3,1,HLOOKUP('Настройка ИБР+1'!BB$6,'Настройка ИБР+1'!$M$3:$AF$21,ROW('Настройка ИБР+1'!21:21)-ROW('Настройка ИБР+1'!$3:$3)+1,FALSE))*IF('Настройка ИБР+1'!BB$7='Настройка ИБР+1'!$AG$3,1,HLOOKUP('Настройка ИБР+1'!BB$7,'Настройка ИБР+1'!$M$3:$AF$21,ROW('Настройка ИБР+1'!21:21)-ROW('Настройка ИБР+1'!$3:$3)+1,FALSE))*IF('Настройка ИБР+1'!BB$8='Настройка ИБР+1'!$AG$3,1,HLOOKUP('Настройка ИБР+1'!BB$8,'Настройка ИБР+1'!$M$3:$AF$21,ROW('Настройка ИБР+1'!21:21)-ROW('Настройка ИБР+1'!$3:$3)+1,FALSE))*'Настройка ИБР+1'!$D21) -> 1.09754539 | W21: =IF(ROUNDUP('Настройка ИБР+1'!BC$4,0)=0,0,IF('Настройка ИБР+1'!BC$6='Настройка ИБР+1'!$AG$3,1,HLOOKUP('Настройка ИБР+1'!BC$6,'Настройка ИБР+1'!$M$3:$AF$21,ROW('Настройка ИБР+1'!21:21)-ROW('Настройка ИБР+1'!$3:$3)+1,FALSE))*IF('Настройка ИБР+1'!BC$7='Настройка ИБР+1'!$AG$3,1,HLOOKUP('Настройка ИБР+1'!BC$7,'Настройка ИБР+1'!$M$3:$AF$21,ROW('Настройка ИБР+1'!21:21)-ROW('Настройка ИБР+1'!$3:$3)+1,FALSE))*IF('Настройка ИБР+1'!BC$8='Настройка ИБР+1'!$AG$3,1,HLOOKUP('Настройка ИБР+1'!BC$8,'Настройка ИБР+1'!$M$3:$AF$21,ROW('Настройка ИБР+1'!21:21)-ROW('Настройка ИБР+1'!$3:$3)+1,FALSE))*'Настройка ИБР+1'!$D21) -> 0 | X21: =IF(ROUNDUP('Настройка ИБР+1'!BD$4,0)=0,0,IF('Настройка ИБР+1'!BD$6='Настройка ИБР+1'!$AG$3,1,HLOOKUP('Настройка ИБР+1'!BD$6,'Настройка ИБР+1'!$M$3:$AF$21,ROW('Настройка ИБР+1'!21:21)-ROW('Настройка ИБР+1'!$3:$3)+1,FALSE))*IF('Настройка ИБР+1'!BD$7='Настройка ИБР+1'!$AG$3,1,HLOOKUP('Настройка ИБР+1'!BD$7,'Настройка ИБР+1'!$M$3:$AF$21,ROW('Настройка ИБР+1'!21:21)-ROW('Настройка ИБР+1'!$3:$3)+1,FALSE))*IF('Настройка ИБР+1'!BD$8='Настройка ИБР+1'!$AG$3,1,HLOOKUP('Настройка ИБР+1'!BD$8,'Настройка ИБР+1'!$M$3:$AF$21,ROW('Настройка ИБР+1'!21:21)-ROW('Настройка ИБР+1'!$3:$3)+1,FALSE))*'Настройка ИБР+1'!$D21) -> 0.9930333592 | Y21: =IF(ROUNDUP('Настройка ИБР+1'!BE$4,0)=0,0,IF('Настройка ИБР+1'!BE$6='Настройка ИБР+1'!$AG$3,1,HLOOKUP('Настройка ИБР+1'!BE$6,'Настройка ИБР+1'!$M$3:$AF$21,ROW('Настройка ИБР+1'!21:21)-ROW('Настройка ИБР+1'!$3:$3)+1,FALSE))*IF('Настройка ИБР+1'!BE$7='Настройка ИБР+1'!$AG$3,1,HLOOKUP('Настройка ИБР+1'!BE$7,'Настройка ИБР+1'!$M$3:$AF$21,ROW('Настройка ИБР+1'!21:21)-ROW('Настройка ИБР+1'!$3:$3)+1,FALSE))*IF('Настройка ИБР+1'!BE$8='Настройка ИБР+1'!$AG$3,1,HLOOKUP('Настройка ИБР+1'!BE$8,'Настройка ИБР+1'!$M$3:$AF$21,ROW('Настройка ИБР+1'!21:21)-ROW('Настройка ИБР+1'!$3:$3)+1,FALSE))*'Настройка ИБР+1'!$D21) -> 0.9930333592 | Z21: =IF(ROUNDUP('Настройка ИБР+1'!BF$4,0)=0,0,IF('Настройка ИБР+1'!BF$6='Настройка ИБР+1'!$AG$3,1,HLOOKUP('Настройка ИБР+1'!BF$6,'Настройка ИБР+1'!$M$3:$AF$21,ROW('Настройка ИБР+1'!21:21)-ROW('Настройка ИБР+1'!$3:$3)+1,FALSE))*IF('Настройка ИБР+1'!BF$7='Настройка ИБР+1'!$AG$3,1,HLOOKUP('Настройка ИБР+1'!BF$7,'Настройка ИБР+1'!$M$3:$AF$21,ROW('Настройка ИБР+1'!21:21)-ROW('Настройка ИБР+1'!$3:$3)+1,FALSE))*IF('Настройка ИБР+1'!BF$8='Настройка ИБР+1'!$AG$3,1,HLOOKUP('Настройка ИБР+1'!BF$8,'Настройка ИБР+1'!$M$3:$AF$21,ROW('Настройка ИБР+1'!21:21)-ROW('Настройка ИБР+1'!$3:$3)+1,FALSE))*'Настройка ИБР+1'!$D21) -> 0 | AA21: =IF(ROUNDUP('Настройка ИБР+1'!BG$4,0)=0,0,IF('Настройка ИБР+1'!BG$6='Настройка ИБР+1'!$AG$3,1,HLOOKUP('Настройка ИБР+1'!BG$6,'Настройка ИБР+1'!$M$3:$AF$21,ROW('Настройка ИБР+1'!21:21)-ROW('Настройка ИБР+1'!$3:$3)+1,FALSE))*IF('Настройка ИБР+1'!BG$7='Настройка ИБР+1'!$AG$3,1,HLOOKUP('Настройка ИБР+1'!BG$7,'Настройка ИБР+1'!$M$3:$AF$21,ROW('Настройка ИБР+1'!21:21)-ROW('Настройка ИБР+1'!$3:$3)+1,FALSE))*IF('Настройка ИБР+1'!BG$8='Настройка ИБР+1'!$AG$3,1,HLOOKUP('Настройка ИБР+1'!BG$8,'Настройка ИБР+1'!$M$3:$AF$21,ROW('Настройка ИБР+1'!21:21)-ROW('Настройка ИБР+1'!$3:$3)+1,FALSE))*'Настройка ИБР+1'!$D21) -> 0 | AB21: =IF(ROUNDUP('Настройка ИБР+1'!BH$4,0)=0,0,IF('Настройка ИБР+1'!BH$6='Настройка ИБР+1'!$AG$3,1,HLOOKUP('Настройка ИБР+1'!BH$6,'Настройка ИБР+1'!$M$3:$AF$21,ROW('Настройка ИБР+1'!21:21)-ROW('Настройка ИБР+1'!$3:$3)+1,FALSE))*IF('Настройка ИБР+1'!BH$7='Настройка ИБР+1'!$AG$3,1,HLOOKUP('Настройка ИБР+1'!BH$7,'Настройка ИБР+1'!$M$3:$AF$21,ROW('Настройка ИБР+1'!21:21)-ROW('Настройка ИБР+1'!$3:$3)+1,FALSE))*IF('Настройка ИБР+1'!BH$8='Настройка ИБР+1'!$AG$3,1,HLOOKUP('Настройка ИБР+1'!BH$8,'Настройка ИБР+1'!$M$3:$AF$21,ROW('Настройка ИБР+1'!21:21)-ROW('Настройка ИБР+1'!$3:$3)+1,FALSE))*'Настройка ИБР+1'!$D21) -> 0 | AC21: =IF(ROUNDUP('Настройка ИБР+1'!BI$4,0)=0,0,IF('Настройка ИБР+1'!BI$6='Настройка ИБР+1'!$AG$3,1,HLOOKUP('Настройка ИБР+1'!BI$6,'Настройка ИБР+1'!$M$3:$AF$21,ROW('Настройка ИБР+1'!21:21)-ROW('Настройка ИБР+1'!$3:$3)+1,FALSE))*IF('Настройка ИБР+1'!BI$7='Настройка ИБР+1'!$AG$3,1,HLOOKUP('Настройка ИБР+1'!BI$7,'Настройка ИБР+1'!$M$3:$AF$21,ROW('Настройка ИБР+1'!21:21)-ROW('Настройка ИБР+1'!$3:$3)+1,FALSE))*IF('Настройка ИБР+1'!BI$8='Настройка ИБР+1'!$AG$3,1,HLOOKUP('Настройка ИБР+1'!BI$8,'Настройка ИБР+1'!$M$3:$AF$21,ROW('Настройка ИБР+1'!21:21)-ROW('Настройка ИБР+1'!$3:$3)+1,FALSE))*'Настройка ИБР+1'!$D21) -> 0 | AD21: =IF(ROUNDUP('Настройка ИБР+1'!BJ$4,0)=0,0,IF('Настройка ИБР+1'!BJ$6='Настройка ИБР+1'!$AG$3,1,HLOOKUP('Настройка ИБР+1'!BJ$6,'Настройка ИБР+1'!$M$3:$AF$21,ROW('Настройка ИБР+1'!21:21)-ROW('Настройка ИБР+1'!$3:$3)+1,FALSE))*IF('Настройка ИБР+1'!BJ$7='Настройка ИБР+1'!$AG$3,1,HLOOKUP('Настройка ИБР+1'!BJ$7,'Настройка ИБР+1'!$M$3:$AF$21,ROW('Настройка ИБР+1'!21:21)-ROW('Настройка ИБР+1'!$3:$3)+1,FALSE))*IF('Настройка ИБР+1'!BJ$8='Настройка ИБР+1'!$AG$3,1,HLOOKUP('Настройка ИБР+1'!BJ$8,'Настройка ИБР+1'!$M$3:$AF$21,ROW('Настройка ИБР+1'!21:21)-ROW('Настройка ИБР+1'!$3:$3)+1,FALSE))*'Настройка ИБР+1'!$D21) -> 0 | AE21: =IF(ROUNDUP('Настройка ИБР+1'!BK$4,0)=0,0,IF('Настройка ИБР+1'!BK$6='Настройка ИБР+1'!$AG$3,1,HLOOKUP('Настройка ИБР+1'!BK$6,'Настройка ИБР+1'!$M$3:$AF$21,ROW('Настройка ИБР+1'!21:21)-ROW('Настройка ИБР+1'!$3:$3)+1,FALSE))*IF('Настройка ИБР+1'!BK$7='Настройка ИБР+1'!$AG$3,1,HLOOKUP('Настройка ИБР+1'!BK$7,'Настройка ИБР+1'!$M$3:$AF$21,ROW('Настройка ИБР+1'!21:21)-ROW('Настройка ИБР+1'!$3:$3)+1,FALSE))*IF('Настройка ИБР+1'!BK$8='Настройка ИБР+1'!$AG$3,1,HLOOKUP('Настройка ИБР+1'!BK$8,'Настройка ИБР+1'!$M$3:$AF$21,ROW('Настройка ИБР+1'!21:21)-ROW('Настройка ИБР+1'!$3:$3)+1,FALSE))*'Настройка ИБР+1'!$D21) -> 0 | AF21: =IF(ROUNDUP('Настройка ИБР+1'!BL$4,0)=0,0,IF('Настройка ИБР+1'!BL$6='Настройка ИБР+1'!$AG$3,1,HLOOKUP('Настройка ИБР+1'!BL$6,'Настройка ИБР+1'!$M$3:$AF$21,ROW('Настройка ИБР+1'!21:21)-ROW('Настройка ИБР+1'!$3:$3)+1,FALSE))*IF('Настройка ИБР+1'!BL$7='Настройка ИБР+1'!$AG$3,1,HLOOKUP('Настройка ИБР+1'!BL$7,'Настройка ИБР+1'!$M$3:$AF$21,ROW('Настройка ИБР+1'!21:21)-ROW('Настройка ИБР+1'!$3:$3)+1,FALSE))*IF('Настройка ИБР+1'!BL$8='Настройка ИБР+1'!$AG$3,1,HLOOKUP('Настройка ИБР+1'!BL$8,'Настройка ИБР+1'!$M$3:$AF$21,ROW('Настройка ИБР+1'!21:21)-ROW('Настройка ИБР+1'!$3:$3)+1,FALSE))*'Настройка ИБР+1'!$D21) -> 0.9930333592 | AG21: =IF(ROUNDUP('Настройка ИБР+1'!BM$4,0)=0,0,IF('Настройка ИБР+1'!BM$6='Настройка ИБР+1'!$AG$3,1,HLOOKUP('Настройка ИБР+1'!BM$6,'Настройка ИБР+1'!$M$3:$AF$21,ROW('Настройка ИБР+1'!21:21)-ROW('Настройка ИБР+1'!$3:$3)+1,FALSE))*IF('Настройка ИБР+1'!BM$7='Настройка ИБР+1'!$AG$3,1,HLOOKUP('Настройка ИБР+1'!BM$7,'Настройка ИБР+1'!$M$3:$AF$21,ROW('Настройка ИБР+1'!21:21)-ROW('Настройка ИБР+1'!$3:$3)+1,FALSE))*IF('Настройка ИБР+1'!BM$8='Настройка ИБР+1'!$AG$3,1,HLOOKUP('Настройка ИБР+1'!BM$8,'Настройка ИБР+1'!$M$3:$AF$21,ROW('Настройка ИБР+1'!21:21)-ROW('Настройка ИБР+1'!$3:$3)+1,FALSE))*'Настройка ИБР+1'!$D21) -> 0 | AH21: =IF(ROUNDUP('Настройка ИБР+1'!BN$4,0)=0,0,IF('Настройка ИБР+1'!BN$6='Настройка ИБР+1'!$AG$3,1,HLOOKUP('Настройка ИБР+1'!BN$6,'Настройка ИБР+1'!$M$3:$AF$21,ROW('Настройка ИБР+1'!21:21)-ROW('Настройка ИБР+1'!$3:$3)+1,FALSE))*IF('Настройка ИБР+1'!BN$7='Настройка ИБР+1'!$AG$3,1,HLOOKUP('Настройка ИБР+1'!BN$7,'Настройка ИБР+1'!$M$3:$AF$21,ROW('Настройка ИБР+1'!21:21)-ROW('Настройка ИБР+1'!$3:$3)+1,FALSE))*IF('Настройка ИБР+1'!BN$8='Настройка ИБР+1'!$AG$3,1,HLOOKUP('Настройка ИБР+1'!BN$8,'Настройка ИБР+1'!$M$3:$AF$21,ROW('Настройка ИБР+1'!21:21)-ROW('Настройка ИБР+1'!$3:$3)+1,FALSE))*'Настройка ИБР+1'!$D21) -> 0 | AI21: =IF(ROUNDUP('Настройка ИБР+1'!BO$4,0)=0,0,IF('Настройка ИБР+1'!BO$6='Настройка ИБР+1'!$AG$3,1,HLOOKUP('Настройка ИБР+1'!BO$6,'Настройка ИБР+1'!$M$3:$AF$21,ROW('Настройка ИБР+1'!21:21)-ROW('Настройка ИБР+1'!$3:$3)+1,FALSE))*IF('Настройка ИБР+1'!BO$7='Настройка ИБР+1'!$AG$3,1,HLOOKUP('Настройка ИБР+1'!BO$7,'Настройка ИБР+1'!$M$3:$AF$21,ROW('Настройка ИБР+1'!21:21)-ROW('Настройка ИБР+1'!$3:$3)+1,FALSE))*IF('Настройка ИБР+1'!BO$8='Настройка ИБР+1'!$AG$3,1,HLOOKUP('Настройка ИБР+1'!BO$8,'Настройка ИБР+1'!$M$3:$AF$21,ROW('Настройка ИБР+1'!21:21)-ROW('Настройка ИБР+1'!$3:$3)+1,FALSE))*'Настройка ИБР+1'!$D21) -> 0.9930333592 | AL21: =CHOOSE($AK$11,HLOOKUP($AK$11,$C$2:$AI$21,ROW(21:21)-ROW($2:$2)+1,FALSE)*Данные!$F$11/HLOOKUP($AK$11,$C$2:$AI$21,ROW($11:$11)-ROW($2:$2)+1,FALSE),HLOOKUP($AK$11,#REF!,ROW(#REF!)-ROW(#REF!)+1,FALSE)*Данные!$F$11/HLOOKUP($AK$11,#REF!,ROW(#REF!)-ROW(#REF!)+1,FALSE),HLOOKUP($AK$11,#REF!,ROW(#REF!)-ROW(#REF!)+1,FALSE)*Данные!$F$11/HLOOKUP($AK$11,#REF!,ROW(#REF!)-ROW(#REF!)+1,FALSE)) -> 0.9925816191 | AM21: =CHOOSE($AK$11,HLOOKUP($AK$11,'Настройка ИБР+1'!$AI$2:$BO$21,ROW('Настройка ИБР+1'!21:21)-ROW('Настройка ИБР+1'!$2:$2)+1,FALSE)/Данные!$F21/(HLOOKUP($AK$11,'Настройка ИБР+1'!$AI$2:$BO$21,ROW(Данные!$11:$11)-ROW('Настройка ИБР+1'!$2:$2)+1,FALSE)/Данные!$F$11),HLOOKUP($AK$11,#REF!,ROW(#REF!)-ROW(#REF!)+1,FALSE)/Данные!$F21/(HLOOKUP($AK$11,#REF!,ROW(Данные!$11:$11)-ROW(#REF!)+1,FALSE)/Данные!$F$11),HLOOKUP($AK$11,#REF!,ROW(#REF!)-ROW(#REF!)+1,FALSE)/Данные!$F21/(HLOOKUP($AK$11,#REF!,ROW(Данные!$11:$11)-ROW(#REF!)+1,FALSE)/Данные!$F$11)) -> 0.9969371054

Sheet ТРАНСФЕРТЫ+1
A1: =Параметры!$D$3 -> 2016 | I1: Исходные данные | O1: Распределение дотации в расчете на одного жителя за счет средств республиканского бюджета | R1: Расчетный размер дотации на выравнивание БО поселений в зависимости о критерия | X1: Итоговый размер дотаций | AA1: Расчет уровня БО, соответствующего выравниванию до максимально возможного уровня при заданном размере фонда
A2: =Данные!A2 -> № | B2: Место по бюджетной обеспеченности | C2: Место по бюджетной обеспеченности (без повторов) | F2: =A2 -> № | G2: =Данные!D2 -> Поселения | I2: =Данные!F2 -> Численность постоянного населения | J2: ИБР | K2: ИНП | L2: БО поселений до распределения МБТ | M2: Субсидии, перечисляемые в бюджет субъекта РФ | O2: Поселения, получающие дотацию | P2: Распределение первой части дотации | R2: ="Объем средств, необходимый для выравнивания до уровня БО, равного " & ROUND(Параметры!$D$24,2) -> Объем средств, необходимый для выравнивания до уровня БО, равного 1 | S2: Расчетный размер дотации на выравнивание БО поселений | T2: ="Утвержденное распределение ДВБОП на " &Параметры!$D$3&" год" -> Утвержденное распределение ДВБОП на 2016 год | U2: Объем средств, необходимый для доведения утвержденного распределения до расчетного уровня | V2: Общий размер дотации на выравнивание БО поселений | X2: Общая сумма доаций на выравнивание бюджетной обеспеченности поселений | AA2: Поселения, упорядоченные по возрастанию БО | AB2: =I2 -> Численность постоянного населения | AC2: =J2 -> ИБР | AD2: =L2 -> БО поселений до распределения МБТ | AE2: Прирост БО | AF2: Ск. средств понадобилось бы, чтобы подтянуть БО всех предыдущих МО до уровня данного, тыс. руб. | AG2: Пограничное МО (чтобы до него подтянуть средств достаточно, а до следующего - нет) | AH2: Уровень выравнивания БО
P9: =P10/SUMPRODUCT(I12:I21,O12:O21)*1000 -> 73.30067973
A10: Распределяемая сумма: | L10: =SUMPRODUCT(L12:L21,I12:I21)/I11 -> 1.022394888 | P10: =Параметры!D6 -> 4399.8 | S10: =Параметры!$D$16 -> 11328 | V10: =Параметры!$D$16-Данные!$AV$11 -> 11328 | AF10: =Параметры!D14 -> 11328
I11: =SUM(I12:I21) -> 60024 | J11: =SUMPRODUCT(J12:J21,I12:I21)/I11 -> 1 | K11: =SUMPRODUCT(K12:K21,I12:I21)/I11 -> 1 | L11: =K11/J11 -> 1 | M11: =SUM(M12:M21) -> 0 | P11: =SUM(P12:P21) -> 4399.8 | R11: =SUM(R12:R21) -> 11251.64231 | S11: =SUM(S12:S21) -> 11328 | T11: =SUM(T12:T21) -> 0 | U11: =SUM(U12:U21) -> 11328 | V11: =SUM(V12:V21) -> 11328 | X11: =SUM(X12:X1620) -> 15727.8 | AB11: =SUM(AB12:AB21) -> 60024 | AC11: =J11 -> 1 | AD11: =L11 -> 1 | AH11: =MAX(AH12:AH21) -> 1.001876067
A12: =Данные!A12 -> 1 | B12: =RANK(L12,$L$12:$L$21,1) -> 4 | C12: =IF(COUNTIF($B$12:B12,B12)=1,B12,B12+COUNTIF($B$12:B12,B12)-1) -> 4 | F12: =A12 -> 1 | G12: =Данные!D12 -> Абадзехское с/п | I12: =Данные!F12 -> 6489 | J12: ='ИБР+1'!C12 -> 0.9713045611 | K12: ='Доходы+1'!C12 -> 0.7636989703 | L12: =K12/J12 -> 0.786261077 | M12: =Данные!AX12 -> 0 | O12: =IF(M12=0,1,"") -> 1 | P12: =IF(M12=0,P$9*I12)/1000 -> 475.6481108 | R12: =MAX(Параметры!$D$23*(Параметры!$D$24-$L12)*$I12*$J12,0) -> 1709.862944 | S12: =IF($R$11=0,0,R12*$S$10/$R$11) -> 1721.466688 | T12: =Данные!AV12 -> 0 | U12: =MAX(S12-T12,0) -> 1721.466688 | V12: =T12+$V$10*U12/$U$11 -> 1721.466688 | X12: =P12+V12 -> 2197.114799 | Z12: =VLOOKUP(ROW(12:12)-ROW($11:$11),$C$12:$S$21,COLUMN(F:F)-COLUMN($C:$C)+1,FALSE) -> 7 | AA12: =VLOOKUP(ROW(12:12)-ROW($11:$11),$C$12:$S$21,COLUMN(G:G)-COLUMN($C:$C)+1,FALSE) -> Тимирязевское с/п | AB12: =VLOOKUP($Z12,$F$12:$S$21,COLUMN(I:I)-COLUMN($F:$F)+1,FALSE) -> 3852 | AC12: =VLOOKUP($Z12,$F$12:$S$21,COLUMN(J:J)-COLUMN($F:$F)+1,FALSE) -> 1.15487293 | AD12: =VLOOKUP($Z12,$F$12:$S$21,COLUMN(L:L)-COLUMN($F:$F)+1,FALSE) -> 0.5083279665 | AE12: 0 | AF12: 0 | AG12: =IF(AND(AF12<$AF$10,AF13>$AF$10),1,0) -> 0 | AH12: =AG12*(AD12+($AF$10-AF12)/Параметры!$D$23/SUMPRODUCT(AB$12:$AB12,AC$12:$AC12)) -> 0
A13: =Данные!A13 -> 2 | B13: 6 | C13: =IF(COUNTIF($B$12:B13,B13)=1,B13,B13+COUNTIF($B$12:B13,B13)-1) -> 6 | F13: 2 | G13: =Данные!D13 -> Даховское с/п | I13: =Данные!F13 -> 2796 | J13: ='ИБР+1'!C13 -> 1.303771539 | K13: ='Доходы+1'!C13 -> 1.164013361 | L13: 0.8928047021 | M13: =Данные!AX13 -> 0 | O13: =IF(M13=0,1,"") -> 1 | P13: =IF(M13=0,P$9*I13)/1000 -> 204.9487005 | R13: =MAX(Параметры!$D$23*(Параметры!$D$24-$L13)*$I13*$J13,0) -> 495.9739655 | S13: 499.3398232 | T13: =Данные!AV13 -> 0 | U13: 499.3398232 | V13: 499.3398232 | X13: =P13+V13 -> 704.2885237 | Z13: 5 | AA13: Кужорское с/п | AB13: 4162 | AC13: 1.108263691 | AD13: 0.611895341 | AE13: =AD13-AD12 -> 0.1035673745 | AF13: =AF12+AE13*Параметры!$D$23*SUMPRODUCT(AB$12:$AB12,AC$12:$AC12) -> 584.7738296 | AG13: 0 | AH13: =AG13*(AD13+($AF$10-AF13)/Параметры!$D$23/SUMPRODUCT(AB$12:$AB13,AC$12:$AC13)) -> 0
A14: =Данные!A14 -> 3 | B14: 8 | C14: =IF(COUNTIF($B$12:B14,B14)=1,B14,B14+COUNTIF($B$12:B14,B14)-1) -> 8 | F14: 3 | G14: =Данные!D14 -> Краснооктябрьское с/п | I14: =Данные!F14 -> 11278 | J14: ='ИБР+1'!C14 -> 0.8763383071 | K14: ='Доходы+1'!C14 -> 0.9993955171 | L14: 1.140422037 | M14: =Данные!AX14 -> 0 | O14: =IF(M14=0,1,"") -> 1 | P14: =IF(M14=0,P$9*I14)/1000 -> 826.685066 | R14: =MAX(Параметры!$D$23*(Параметры!$D$24-$L14)*$I14*$J14,0) -> 0 | S14: 0 | T14: =Данные!AV14 -> 0 | U14: 0 | V14: 0 | X14: =P14+V14 -> 826.685066 | Z14: 10 | AA14: Кировское с/п | AB14: 6110 | AC14: 0.9925816191 | AD14: 0.6645053167 | AE14: 0.05260997572 | AF14: =AF13+AE14*Параметры!$D$23*SUMPRODUCT(AB$12:$AB13,AC$12:$AC13) -> 1189.831226 | AG14: 0 | AH14: =AG14*(AD14+($AF$10-AF14)/Параметры!$D$23/SUMPRODUCT(AB$12:$AB14,AC$12:$AC14)) -> 0
A15: =Данные!A15 -> 4 | B15: 9 | C15: =IF(COUNTIF($B$12:B15,B15)=1,B15,B15+COUNTIF($B$12:B15,B15)-1) -> 9 | F15: 4 | G15: =Данные!D15 -> Красноульское с/п | I15: =Данные!F15 -> 1844 | J15: ='ИБР+1'!C15 -> 1.643076042 | K15: ='Доходы+1'!C15 -> 1.907550819 | L15: 1.1609632 | M15: =Данные!AX15 -> 0 | O15: =IF(M15=0,1,"") -> 1 | P15: =IF(M15=0,P$9*I15)/1000 -> 135.1664534 | R15: =MAX(Параметры!$D$23*(Параметры!$D$24-$L15)*$I15*$J15,0) -> 0 | S15: 0 | T15: =Данные!AV15 -> 0 | U15: 0 | V15: 0 | X15: =P15+V15 -> 135.1664534 | Z15: 1 | AA15: Абадзехское с/п | AB15: 6489 | AC15: 0.9713045611 | AD15: 0.786261077 | AE15: 0.1217557603 | AF15: =AF14+AE15*Параметры!$D$23*SUMPRODUCT(AB$12:$AB14,AC$12:$AC14) -> 3527.340995 | AG15: 0 | AH15: =AG15*(AD15+($AF$10-AF15)/Параметры!$D$23/SUMPRODUCT(AB$12:$AB15,AC$12:$AC15)) -> 0
A16: =Данные!A16 -> 5 | B16: 2 | C16: =IF(COUNTIF($B$12:B16,B16)=1,B16,B16+COUNTIF($B$12:B16,B16)-1) -> 2 | F16: 5 | G16: =Данные!D16 -> Кужорское с/п | I16: =Данные!F16 -> 4162 | J16: ='ИБР+1'!C16 -> 1.108263691 | K16: ='Доходы+1'!C16 -> 0.6781413893 | L16: 0.611895341 | M16: =Данные!AX16 -> 0 | O16: =IF(M16=0,1,"") -> 1 | P16: =IF(M16=0,P$9*I16)/1000 -> 305.077429 | R16: =MAX(Параметры!$D$23*(Параметры!$D$24-$L16)*$I16*$J16,0) -> 2272.157953 | S16: 2287.577633 | T16: =Данные!AV16 -> 0 | U16: 2287.577633 | V16: 2287.577633 | X16: =P16+V16 -> 2592.655062 | Z16: 9 | AA16: Каменномостское г/п | AB16: 7357 | AC16: 0.9505423903 | AD16: 0.8405777962 | AE16: 0.0543167192 | AF16: =AF15+AE16*Параметры!$D$23*SUMPRODUCT(AB$12:$AB15,AC$12:$AC15) -> 5004.653855 | AG16: 0 | AH16: =AG16*(AD16+($AF$10-AF16)/Параметры!$D$23/SUMPRODUCT(AB$12:$AB16,AC$12:$AC16)) -> 0
A17: =Данные!A17 -> 6 | B17: 7 | C17: =IF(COUNTIF($B$12:B17,B17)=1,B17,B17+COUNTIF($B$12:B17,B17)-1) -> 7 | F17: 6 | G17: =Данные!D17 -> Побединское с/п | I17: =Данные!F17 -> 5261 | J17: ='ИБР+1'!C17 -> 1.044381636 | K17: ='Доходы+1'!C17 -> 1.125450476 | L17: 1.077623769 | M17: =Данные!AX17 -> 0 | O17: =IF(M17=0,1,"") -> 1 | P17: =IF(M17=0,P$9*I17)/1000 -> 385.634876 | R17: =MAX(Параметры!$D$23*(Параметры!$D$24-$L17)*$I17*$J17,0) -> 0 | S17: 0 | T17: =Данные!AV17 -> 0 | U17: 0 | V17: 0 | X17: =P17+V17 -> 385.634876 | Z17: 2 | AA17: Даховское с/п | AB17: 2796 | AC17: 1.303771539 | AD17: 0.8928047021 | AE17: 0.05222690592 | AF17: =AF16+AE17*Параметры!$D$23*SUMPRODUCT(AB$12:$AB16,AC$12:$AC16) -> 6888.693127 | AG17: 1 | AH17: =AG17*(AD17+($AF$10-AF17)/Параметры!$D$23/SUMPRODUCT(AB$12:$AB17,AC$12:$AC17)) -> 1.001876067
A18: =Данные!A18 -> 7 | B18: 1 | C18: =IF(COUNTIF($B$12:B18,B18)=1,B18,B18+COUNTIF($B$12:B18,B18)-1) -> 1 | F18: 7 | G18: =Данные!D18 -> Тимирязевское с/п | I18: =Данные!F18 -> 3852 | J18: ='ИБР+1'!C18 -> 1.15487293 | K18: ='Доходы+1'!C18 -> 0.587054208 | L18: 0.5083279665 | M18: =Данные!AX18 -> 0 | O18: 1 | P18: 282.3542183 | R18: =MAX(Параметры!$D$23*(Параметры!$D$24-$L18)*$I18*$J18,0) -> 2776.134273 | S18: 2794.974118 | T18: =Данные!AV18 -> 0 | U18: 2794.974118 | V18: 2794.974118 | X18: 3077.328336 | Z18: 6 | AA18: Побединское с/п | AB18: 5261 | AC18: 1.044381636 | AD18: 1.077623769 | AE18: 0.1848190673 | AF18: =AF17+AE18*Параметры!$D$23*SUMPRODUCT(AB$12:$AB17,AC$12:$AC17) -> 14411.00255 | AG18: 0 | AH18: =AG18*(AD18+($AF$10-AF18)/Параметры!$D$23/SUMPRODUCT(AB$12:$AB18,AC$12:$AC18)) -> 0
A19: =Данные!A19 -> 8 | B19: 10 | C19: =IF(COUNTIF($B$12:B19,B19)=1,B19,B19+COUNTIF($B$12:B19,B19)-1) -> 10 | F19: 8 | G19: =Данные!D19 -> Тульское г/п | I19: =Данные!F19 -> 10875 | J19: ='ИБР+1'!C19 -> 0.8780886413 | K19: ='Доходы+1'!C19 -> 1.481566071 | L19: 1.687262539 | M19: =Данные!AX19 -> 0 | O19: 1 | P19: 797.144892 | R19: =MAX(Параметры!$D$23*(Параметры!$D$24-$L19)*$I19*$J19,0) -> 0 | S19: 0 | T19: =Данные!AV19 -> 0 | U19: 0 | V19: 0 | X19: 797.144892 | Z19: 3 | AA19: Краснооктябрьское с/п | AB19: 11278 | AC19: 0.8763383071 | AD19: 1.140422037 | AE19: 0.06279826738 | AF19: =AF18+AE19*Параметры!$D$23*SUMPRODUCT(AB$12:$AB18,AC$12:$AC18) -> 17404.89604 | AG19: 0 | AH19: =AG19*(AD19+($AF$10-AF19)/Параметры!$D$23/SUMPRODUCT(AB$12:$AB19,AC$12:$AC19)) -> 0
A20: =Данные!A20 -> 9 | B20: 5 | C20: =IF(COUNTIF($B$12:B20,B20)=1,B20,B20+COUNTIF($B$12:B20,B20)-1) -> 5 | F20: 9 | G20: =Данные!D20 -> Каменномостское г/п | I20: =Данные!F20 -> 7357 | J20: ='ИБР+1'!C20 -> 0.9505423903 | K20: ='Доходы+1'!C20 -> 0.7990048276 | L20: 0.8405777962 | M20: =Данные!AX20 -> 0 | O20: 1 | P20: 539.2731008 | R20: =MAX(Параметры!$D$23*(Параметры!$D$24-$L20)*$I20*$J20,0) -> 1415.029634 | S20: 1424.632534 | T20: =Данные!AV20 -> 0 | U20: 1424.632534 | V20: 1424.632534 | X20: 1963.905635 | Z20: 4 | AA20: Красноульское с/п | AB20: 1844 | AC20: 1.643076042 | AD20: 1.1609632 | AE20: 0.02054116292 | AF20: =AF19+AE20*Параметры!$D$23*SUMPRODUCT(AB$12:$AB19,AC$12:$AC19) -> 18641.86709 | AG20: 0 | AH20: =AG20*(AD20+($AF$10-AF20)/Параметры!$D$23/SUMPRODUCT(AB$12:$AB20,AC$12:$AC20)) -> 0
A21: =Данные!A21 -> 10 | B21: 3 | C21: =IF(COUNTIF($B$12:B21,B21)=1,B21,B21+COUNTIF($B$12:B21,B21)-1) -> 3 | F21: 10 | G21: =Данные!D21 -> Кировское с/п | I21: =Данные!F21 -> 6110 | J21: ='ИБР+1'!C21 -> 0.9925816191 | K21: ='Доходы+1'!C21 -> 0.6595757631 | L21: 0.6645053167 | M21: =Данные!AX21 -> 0 | O21: 1 | P21: 447.8671531 | R21: =MAX(Параметры!$D$23*(Параметры!$D$24-$L21)*$I21*$J21,0) -> 2582.483541 | S21: 2600.009203 | T21: =Данные!AV21 -> 0 | U21: 2600.009203 | V21: 2600.009203 | X21: 3047.876356 | Z21: 8 | AA21: Тульское г/п | AB21: 10875 | AC21: 0.8780886413 | AD21: 1.687262539 | AE21: 0.5262993396 | AF21: =AF20+AE21*Параметры!$D$23*SUMPRODUCT(AB$12:$AB20,AC$12:$AC20) -> 52359.08969 | AG21: =IF(AND(AF21<$AF$10,AF21>$AF$10),1,0) -> 0 | AH21: =AG21*(AD21+($AF$10-AF21)/Параметры!$D$23/SUMPRODUCT(AB$12:$AB21,AC$12:$AC21)) -> 0

Sheet Доходы+1
A1: Расчет индекса налогового потенциала | C1: =Параметры!$D$3 -> 2016
A2: =Данные!A2 -> № | B2: Поселения | C2: Расчетный ИНП | D2: Бюджетная обеспеченность | F2: =Q2 -> НАЛОГОВЫЕ ДОХОДЫ | G2: =R2 -> Налог на доходы физических лиц | H2: Единый сельскохозяйственный налог | I2: Налог на имущество физических лиц | J2: Земельный налог | L2: =W2 -> ЗАДОЛЖЕННОСТЬ И ПЕРЕРАСЧЕТЫ ПО ОТМЕНЕННЫМ НАЛОГАМ, СБОРАМ И ИНЫМ ОБЯЗАТЕЛЬНЫМ ПЛАТЕЖАМ | M2: Доходы от аренды | N2: ИНП | O2: Прогноз налоговых доходов | Q2: НАЛОГОВЫЕ ДОХОДЫ | R2: Налог на доходы физических лиц | S2: Единый сельскохозяйственный налог | T2: Налог на имущество физических лиц | U2: Земельный налог | V2: ГОСУДАРСТВЕННАЯ ПОШЛИНА | W2: ЗАДОЛЖЕННОСТЬ И ПЕРЕРАСЧЕТЫ ПО ОТМЕНЕННЫМ НАЛОГАМ, СБОРАМ И ИНЫМ ОБЯЗАТЕЛЬНЫМ ПЛАТЕЖАМ | X2: Доходы от аренды | Y2: НЕНАЛОГОВЫЕ ДОХОДЫ (за исключением доходов от аренды) | Z2: ДОХОДЫ ОТ ПРИНОСЯЩЕЙ ДОХОД ДЕЯТЕЛЬНОСТИ
B3: Код бюджетной классификации | G3: 1 01 02000 01 0000 110 | H3: 1 05 03000 00 0000 110 | I3: 1 06 01000 03 0000 110 | J3: 1 06 06000 03 0000 110 | L3: 010 000 109 00000 00 0000 000 | P3: =Параметры!$D$3 -> 2016 | R3: 1 01 02000 01 0000 110 | S3: 1 05 03000 00 0000 110 | T3: 1 06 01000 03 0000 110 | U3: 1 06 06000 03 0000 110 | V3: 010 000 108 00000 00 0000 000 | W3: 010 000 109 00000 00 0000 000
B4: Норматив отчислений в КБР | G4: 1 | H4: 1 | I4: 1 | J4: 1 | L4: 1
B5: Нормативы отчислений от налогов в бюджеты поселений | G5: 0.1 | H5: 0.3 | I5: 1 | J5: 1 | L5: 1
B6: Доля контингента, поступающая в бюджеты поселений | G6: =IF(G$4=0,0,G5/G$4) -> 0.1 | H6: 0.3 | I6: 1 | J6: 1 | L6: 1 | O6: ="Прогноз поступлений в КБР в " & Параметры!$D$3 & " году МО" -> Прогноз поступлений в КБР в 2016 году МО | P6: =SUMPRODUCT($R6:$W6,$G$6:$L$6) -> 76184.99 | Q6: =SUM(R6:W6) -> 329551.3 | R6: =R11 -> 279552 | S6: 2319.3 | T6: 4963 | U6: 42571 | V6: 146 | W6: 0 | X6: 0 | Y6: 1108 | Z6: 0
B10: Показатель, определяющий налоговый потенциал поселений | G10: Фонд начисленной зар. платы (без СМП) | H10: ЕСХН: налоговая база единого сельскохозяйственного налога (форма 5-есхн) (тыс.руб.) | I10: Налог на имущесво физических лиц: общая инвентаризационная стоимость строений, помещений и сооружений, по которым предъявлен налог к уплате (форма 5-МН) (тыс.руб.) | J10: Земельный налог: кадастровая стоимость земли (форма 5-МН) (тыс.руб.) | L10: Прогноз поступлений
B11: Итого | C11: =(F11/Данные!F11)/($F$11/Данные!$F$11) -> 1 | F11: =SUM(F12:F21) -> 76184.99 | G11: =SUM(G12:G21) -> 2008632.5 | H11: =SUM(H12:H21) -> 34854 | I11: =SUM(I12:I21) -> 2534491 | J11: =SUM(J12:J21) -> 16418565 | L11: =SUM(L12:L21) -> 0 | O11: =B11 -> Итого | P11: =SUM(P12:P21) -> 76184.99 | Q11: =SUM(R11:W11) -> 329551.3 | R11: =SUM(R12:R21) -> 279552 | S11: =SUM(S12:S21) -> 2319.3 | T11: 4963 | U11: 42571 | V11: 146 | W11: 0 | Y11: =SUM(Y12:Y21) -> 1108 | Z11: =SUM(Z12:Z21) -> 0
A12: =Данные!A12 -> 1 | B12: =Данные!D12 -> Абадзехское с/п | C12: =(F12/Данные!F12)/($F$11/Данные!$F$11) -> 0.7636989703 | D12: =C12/'ИБР+1'!C12 -> 0.786261077 | F12: =SUM(IF($G$11:$L$11=0,0,G12:L12/$G$11:$L$11*$R$6:$W$6*$G$6:$L$6)) -> 6289.910425 | G12: =IF(G$10='Базы НО'!$D$2,R12,MAX(0,HLOOKUP(G$10,'Базы НО'!$D$2:$X$266,ROW('Базы НО'!12:12)-ROW('Базы НО'!$2:$2)+1,FALSE))) -> 74124.5 | H12: =IF(H$10='Базы НО'!$D$2,S12,MAX(0,HLOOKUP(H$10,'Базы НО'!$D$2:$X$266,ROW('Базы НО'!12:12)-ROW('Базы НО'!$2:$2)+1,FALSE))) -> 195 | I12: =IF(I$10='Базы НО'!$D$2,T12,MAX(0,HLOOKUP(I$10,'Базы НО'!$D$2:$X$266,ROW('Базы НО'!12:12)-ROW('Базы НО'!$2:$2)+1,FALSE))) -> 216681 | J12: =IF(J$10='Базы НО'!$D$2,U12,MAX(0,HLOOKUP(J$10,'Базы НО'!$D$2:$X$266,ROW('Базы НО'!12:12)-ROW('Базы НО'!$2:$2)+1,FALSE))) -> 1862843 | K12: =IF(K$10='Базы НО'!$D$2,V12,MAX(0,HLOOKUP(K$10,'Базы НО'!$D$2:$X$266,ROW('Базы НО'!12:12)-ROW('Базы НО'!$2:$2)+1,FALSE))) ->  | L12: =IF(L$10='Базы НО'!$D$2,W12,MAX(0,HLOOKUP(L$10,'Базы НО'!$D$2:$X$266,ROW('Базы НО'!12:12)-ROW('Базы НО'!$2:$2)+1,FALSE))) -> 0 | N12: =(P12/Данные!F12)/($P$11/Данные!$F$11) -> 0.7139897855 | O12: Абадзехское с/п | P12: =SUMPRODUCT(R12:W12,$G$6:$L$6) -> 5880.5 | Q12: =SUM(R12:W12) -> 16629 | R12: 11904 | S12: 7 | T12: 263 | U12: 4425 | V12: 30 | Y12: 110
A13: =Данные!A13 -> 2 | B13: =Данные!D13 -> Даховское с/п | C13: =(F13/Данные!F13)/($F$11/Данные!$F$11) -> 1.164013361 | D13: =C13/'ИБР+1'!C13 -> 0.8928047021 | F13: =SUM(IF($G$11:$L$11=0,0,G13:L13/$G$11:$L$11*$R$6:$W$6*$G$6:$L$6)) -> 4130.851795 | G13: =IF(G$10='Базы НО'!$D$2,R13,MAX(0,HLOOKUP(G$10,'Базы НО'!$D$2:$X$266,ROW('Базы НО'!13:13)-ROW('Базы НО'!$2:$2)+1,FALSE))) -> 28765.6 | H13: =IF(H$10='Базы НО'!$D$2,S13,MAX(0,HLOOKUP(H$10,'Базы НО'!$D$2:$X$266,ROW('Базы НО'!13:13)-ROW('Базы НО'!$2:$2)+1,FALSE))) -> 5 | I13: =IF(I$10='Базы НО'!$D$2,T13,MAX(0,HLOOKUP(I$10,'Базы НО'!$D$2:$X$266,ROW('Базы НО'!13:13)-ROW('Базы НО'!$2:$2)+1,FALSE))) -> 114043 | J13: =IF(J$10='Базы НО'!$D$2,U13,MAX(0,HLOOKUP(J$10,'Базы НО'!$D$2:$X$266,ROW('Базы НО'!13:13)-ROW('Базы НО'!$2:$2)+1,FALSE))) -> 1352596 | K13: =IF(K$10='Базы НО'!$D$2,V13,MAX(0,HLOOKUP(K$10,'Базы НО'!$D$2:$X$266,ROW('Базы НО'!13:13)-ROW('Базы НО'!$2:$2)+1,FALSE))) ->  | L13: =IF(L$10='Базы НО'!$D$2,W13,MAX(0,HLOOKUP(L$10,'Базы НО'!$D$2:$X$266,ROW('Базы НО'!13:13)-ROW('Базы НО'!$2:$2)+1,FALSE))) -> 0 | N13: =(P13/Данные!F13)/($P$11/Данные!$F$11) -> 1.170984224 | O13: Даховское с/п | P13: =SUMPRODUCT(R13:W13,$G$6:$L$6) -> 4155.59 | Q13: 11082.3 | R13: 7685 | S13: 0.3 | T13: 254 | U13: 3133 | V13: 10 | Y13: 47
A14: =Данные!A14 -> 3 | B14: =Данные!D14 -> Краснооктябрьское с/п | C14: =(F14/Данные!F14)/($F$11/Данные!$F$11) -> 0.9993955171 | D14: =C14/'ИБР+1'!C14 -> 1.140422037 | F14: =SUM(IF($G$11:$L$11=0,0,G14:L14/$G$11:$L$11*$R$6:$W$6*$G$6:$L$6)) -> 14305.85994 | G14: =IF(G$10='Базы НО'!$D$2,R14,MAX(0,HLOOKUP(G$10,'Базы НО'!$D$2:$X$266,ROW('Базы НО'!14:14)-ROW('Базы НО'!$2:$2)+1,FALSE))) -> 418776.9 | H14: =IF(H$10='Базы НО'!$D$2,S14,MAX(0,HLOOKUP(H$10,'Базы НО'!$D$2:$X$266,ROW('Базы НО'!14:14)-ROW('Базы НО'!$2:$2)+1,FALSE))) -> 224 | I14: =IF(I$10='Базы НО'!$D$2,T14,MAX(0,HLOOKUP(I$10,'Базы НО'!$D$2:$X$266,ROW('Базы НО'!14:14)-ROW('Базы НО'!$2:$2)+1,FALSE))) -> 481151 | J14: =IF(J$10='Базы НО'!$D$2,U14,MAX(0,HLOOKUP(J$10,'Базы НО'!$D$2:$X$266,ROW('Базы НО'!14:14)-ROW('Базы НО'!$2:$2)+1,FALSE))) -> 2904466 | K14: =IF(K$10='Базы НО'!$D$2,V14,MAX(0,HLOOKUP(K$10,'Базы НО'!$D$2:$X$266,ROW('Базы НО'!14:14)-ROW('Базы НО'!$2:$2)+1,FALSE))) ->  | L14: =IF(L$10='Базы НО'!$D$2,W14,MAX(0,HLOOKUP(L$10,'Базы НО'!$D$2:$X$266,ROW('Базы НО'!14:14)-ROW('Базы НО'!$2:$2)+1,FALSE))) -> 0 | N14: =(P14/Данные!F14)/($P$11/Данные!$F$11) -> 0.9824574669 | O14: Краснооктябрьское с/п | P14: 14063.4 | Q14: 56376 | R14: 46946 | S14: 16 | T14: 1014 | U14: 8350 | V14: 50 | Y14: 246
A15: =Данные!A15 -> 4 | B15: =Данные!D15 -> Красноульское с/п | C15: =(F15/Данные!F15)/($F$11/Данные!$F$11) -> 1.907550819 | D15: =C15/'ИБР+1'!C15 -> 1.1609632 | F15: =SUM(IF($G$11:$L$11=0,0,G15:L15/$G$11:$L$11*$R$6:$W$6*$G$6:$L$6)) -> 4464.58931 | G15: =IF(G$10='Базы НО'!$D$2,R15,MAX(0,HLOOKUP(G$10,'Базы НО'!$D$2:$X$266,ROW('Базы НО'!15:15)-ROW('Базы НО'!$2:$2)+1,FALSE))) -> 195486.3 | H15: =IF(H$10='Базы НО'!$D$2,S15,MAX(0,HLOOKUP(H$10,'Базы НО'!$D$2:$X$266,ROW('Базы НО'!15:15)-ROW('Базы НО'!$2:$2)+1,FALSE))) -> 3341 | I15: =IF(I$10='Базы НО'!$D$2,T15,MAX(0,HLOOKUP(I$10,'Базы НО'!$D$2:$X$266,ROW('Базы НО'!15:15)-ROW('Базы НО'!$2:$2)+1,FALSE))) -> 78130 | J15: =IF(J$10='Базы НО'!$D$2,U15,MAX(0,HLOOKUP(J$10,'Базы НО'!$D$2:$X$266,ROW('Базы НО'!15:15)-ROW('Базы НО'!$2:$2)+1,FALSE))) -> 587851 | K15: =IF(K$10='Базы НО'!$D$2,V15,MAX(0,HLOOKUP(K$10,'Базы НО'!$D$2:$X$266,ROW('Базы НО'!15:15)-ROW('Базы НО'!$2:$2)+1,FALSE))) ->  | L15: =IF(L$10='Базы НО'!$D$2,W15,MAX(0,HLOOKUP(L$10,'Базы НО'!$D$2:$X$266,ROW('Базы НО'!15:15)-ROW('Базы НО'!$2:$2)+1,FALSE))) -> 0 | N15: =(P15/Данные!F15)/($P$11/Данные!$F$11) -> 1.870939005 | O15: Красноульское с/п | P15: 4378.9 | Q15: 34502 | R15: 33310 | S15: 183 | T15: 142 | U15: 851 | V15: 16 | Y15: 43
A16: =Данные!A16 -> 5 | B16: =Данные!D16 -> Кужорское с/п | C16: =(F16/Данные!F16)/($F$11/Данные!$F$11) -> 0.6781413893 | D16: =C16/'ИБР+1'!C16 -> 0.611895341 | F16: =SUM(IF($G$11:$L$11=0,0,G16:L16/$G$11:$L$11*$R$6:$W$6*$G$6:$L$6)) -> 3582.340054 | G16: =IF(G$10='Базы НО'!$D$2,R16,MAX(0,HLOOKUP(G$10,'Базы НО'!$D$2:$X$266,ROW('Базы НО'!16:16)-ROW('Базы НО'!$2:$2)+1,FALSE))) -> 33988.5 | H16: =IF(H$10='Базы НО'!$D$2,S16,MAX(0,HLOOKUP(H$10,'Базы НО'!$D$2:$X$266,ROW('Базы НО'!16:16)-ROW('Базы НО'!$2:$2)+1,FALSE))) -> 7154 | I16: =IF(I$10='Базы НО'!$D$2,T16,MAX(0,HLOOKUP(I$10,'Базы НО'!$D$2:$X$266,ROW('Базы НО'!16:16)-ROW('Базы НО'!$2:$2)+1,FALSE))) -> 145907 | J16: =IF(J$10='Базы НО'!$D$2,U16,MAX(0,HLOOKUP(J$10,'Базы НО'!$D$2:$X$266,ROW('Базы НО'!16:16)-ROW('Базы НО'!$2:$2)+1,FALSE))) -> 1033908 | K16: =IF(K$10='Базы НО'!$D$2,V16,MAX(0,HLOOKUP(K$10,'Базы НО'!$D$2:$X$266,ROW('Базы НО'!16:16)-ROW('Базы НО'!$2:$2)+1,FALSE))) ->  | L16: =IF(L$10='Базы НО'!$D$2,W16,MAX(0,HLOOKUP(L$10,'Базы НО'!$D$2:$X$266,ROW('Базы НО'!16:16)-ROW('Базы НО'!$2:$2)+1,FALSE))) -> 0 | N16: =(P16/Данные!F16)/($P$11/Данные!$F$11) -> 0.5861144776 | O16: Кужорское с/п | P16: 3096.2 | Q16: 8732 | R16: 5882 | S16: 460 | T16: 279 | U16: 2091 | V16: 20 | Y16: 10
A17: =Данные!A17 -> 6 | B17: =Данные!D17 -> Побединское с/п | C17: =(F17/Данные!F17)/($F$11/Данные!$F$11) -> 1.125450476 | D17: =C17/'ИБР+1'!C17 -> 1.077623769 | F17: =SUM(IF($G$11:$L$11=0,0,G17:L17/$G$11:$L$11*$R$6:$W$6*$G$6:$L$6)) -> 7515.176284 | G17: =IF(G$10='Базы НО'!$D$2,R17,MAX(0,HLOOKUP(G$10,'Базы НО'!$D$2:$X$266,ROW('Базы НО'!17:17)-ROW('Базы НО'!$2:$2)+1,FALSE))) -> 229242.5 | H17: =IF(H$10='Базы НО'!$D$2,S17,MAX(0,HLOOKUP(H$10,'Базы НО'!$D$2:$X$266,ROW('Базы НО'!17:17)-ROW('Базы НО'!$2:$2)+1,FALSE))) -> 13267 | I17: =IF(I$10='Базы НО'!$D$2,T17,MAX(0,HLOOKUP(I$10,'Базы НО'!$D$2:$X$266,ROW('Базы НО'!17:17)-ROW('Базы НО'!$2:$2)+1,FALSE))) -> 245216 | J17: =IF(J$10='Базы НО'!$D$2,U17,MAX(0,HLOOKUP(J$10,'Базы НО'!$D$2:$X$266,ROW('Базы НО'!17:17)-ROW('Базы НО'!$2:$2)+1,FALSE))) -> 1380585 | K17: =IF(K$10='Базы НО'!$D$2,V17,MAX(0,HLOOKUP(K$10,'Базы НО'!$D$2:$X$266,ROW('Базы НО'!17:17)-ROW('Базы НО'!$2:$2)+1,FALSE))) ->  | L17: =IF(L$10='Базы НО'!$D$2,W17,MAX(0,HLOOKUP(L$10,'Базы НО'!$D$2:$X$266,ROW('Базы НО'!17:17)-ROW('Базы НО'!$2:$2)+1,FALSE))) -> 0 | N17: =(P17/Данные!F17)/($P$11/Данные!$F$11) -> 0.7799046577 | O17: Побединское с/п | P17: 5207.8 | Q17: 25846 | R17: 22271 | S17: 849 | T17: 555 | U17: 2171 | V17: 0 | Y17: 10
A18: =Данные!A18 -> 7 | B18: =Данные!D18 -> Тимирязевское с/п | C18: =(F18/Данные!F18)/($F$11/Данные!$F$11) -> 0.587054208 | D18: =C18/'ИБР+1'!C18 -> 0.5083279665 | F18: =SUM(IF($G$11:$L$11=0,0,G18:L18/$G$11:$L$11*$R$6:$W$6*$G$6:$L$6)) -> 2870.178886 | G18: =IF(G$10='Базы НО'!$D$2,R18,MAX(0,HLOOKUP(G$10,'Базы НО'!$D$2:$X$266,ROW('Базы НО'!18:18)-ROW('Базы НО'!$2:$2)+1,FALSE))) -> 42073 | H18: =IF(H$10='Базы НО'!$D$2,S18,MAX(0,HLOOKUP(H$10,'Базы НО'!$D$2:$X$266,ROW('Базы НО'!18:18)-ROW('Базы НО'!$2:$2)+1,FALSE))) -> 183 | I18: =IF(I$10='Базы НО'!$D$2,T18,MAX(0,HLOOKUP(I$10,'Базы НО'!$D$2:$X$266,ROW('Базы НО'!18:18)-ROW('Базы НО'!$2:$2)+1,FALSE))) -> 148142 | J18: =IF(J$10='Базы НО'!$D$2,U18,MAX(0,HLOOKUP(J$10,'Базы НО'!$D$2:$X$266,ROW('Базы НО'!18:18)-ROW('Базы НО'!$2:$2)+1,FALSE))) -> 767834 | K18: =IF(K$10='Базы НО'!$D$2,V18,MAX(0,HLOOKUP(K$10,'Базы НО'!$D$2:$X$266,ROW('Базы НО'!18:18)-ROW('Базы НО'!$2:$2)+1,FALSE))) ->  | L18: =IF(L$10='Базы НО'!$D$2,W18,MAX(0,HLOOKUP(L$10,'Базы НО'!$D$2:$X$266,ROW('Базы НО'!18:18)-ROW('Базы НО'!$2:$2)+1,FALSE))) -> 0 | N18: =(P18/Данные!F18)/($P$11/Данные!$F$11) -> 0.6430808701 | O18: Тимирязевское с/п | P18: 3144.1 | Q18: 10346 | R18: 7992 | S18: 13 | T18: 241 | U18: 2100 | V18: 0 | Y18: 76
A19: =Данные!A19 -> 8 | B19: =Данные!D19 -> Тульское г/п | C19: =(F19/Данные!F19)/($F$11/Данные!$F$11) -> 1.481566071 | D19: =C19/'ИБР+1'!C19 -> 1.687262539 | F19: =SUM(IF($G$11:$L$11=0,0,G19:L19/$G$11:$L$11*$R$6:$W$6*$G$6:$L$6)) -> 20450.06867 | G19: =IF(G$10='Базы НО'!$D$2,R19,MAX(0,HLOOKUP(G$10,'Базы НО'!$D$2:$X$266,ROW('Базы НО'!19:19)-ROW('Базы НО'!$2:$2)+1,FALSE))) -> 777149.5 | H19: =IF(H$10='Базы НО'!$D$2,S19,MAX(0,HLOOKUP(H$10,'Базы НО'!$D$2:$X$266,ROW('Базы НО'!19:19)-ROW('Базы НО'!$2:$2)+1,FALSE))) -> 9357 | I19: =IF(I$10='Базы НО'!$D$2,T19,MAX(0,HLOOKUP(I$10,'Базы НО'!$D$2:$X$266,ROW('Базы НО'!19:19)-ROW('Базы НО'!$2:$2)+1,FALSE))) -> 573053 | J19: =IF(J$10='Базы НО'!$D$2,U19,MAX(0,HLOOKUP(J$10,'Базы НО'!$D$2:$X$266,ROW('Базы НО'!19:19)-ROW('Базы НО'!$2:$2)+1,FALSE))) -> 3210794 | K19: =IF(K$10='Базы НО'!$D$2,V19,MAX(0,HLOOKUP(K$10,'Базы НО'!$D$2:$X$266,ROW('Базы НО'!19:19)-ROW('Базы НО'!$2:$2)+1,FALSE))) ->  | L19: =IF(L$10='Базы НО'!$D$2,W19,MAX(0,HLOOKUP(L$10,'Базы НО'!$D$2:$X$266,ROW('Базы НО'!19:19)-ROW('Базы НО'!$2:$2)+1,FALSE))) -> 0 | N19: =(P19/Данные!F19)/($P$11/Данные!$F$11) -> 1.629623023 | O19: Тульское г/п | P19: 22493.7 | Q19: 118886 | R19: 106548 | S19: 713 | T19: 1271 | U19: 10354 | V19: 0 | Y19: 197
A20: =Данные!A20 -> 9 | B20: =Данные!D20 -> Каменномостское г/п | C20: =(F20/Данные!F20)/($F$11/Данные!$F$11) -> 0.7990048276 | D20: =C20/'ИБР+1'!C20 -> 0.8405777962 | F20: =SUM(IF($G$11:$L$11=0,0,G20:L20/$G$11:$L$11*$R$6:$W$6*$G$6:$L$6)) -> 7460.958784 | G20: =IF(G$10='Базы НО'!$D$2,R20,MAX(0,HLOOKUP(G$10,'Базы НО'!$D$2:$X$266,ROW('Базы НО'!20:20)-ROW('Базы НО'!$2:$2)+1,FALSE))) -> 181388 | H20: =IF(H$10='Базы НО'!$D$2,S20,MAX(0,HLOOKUP(H$10,'Базы НО'!$D$2:$X$266,ROW('Базы НО'!20:20)-ROW('Базы НО'!$2:$2)+1,FALSE))) -> 421 | I20: =IF(I$10='Базы НО'!$D$2,T20,MAX(0,HLOOKUP(I$10,'Базы НО'!$D$2:$X$266,ROW('Базы НО'!20:20)-ROW('Базы НО'!$2:$2)+1,FALSE))) -> 279763 | J20: =IF(J$10='Базы НО'!$D$2,U20,MAX(0,HLOOKUP(J$10,'Базы НО'!$D$2:$X$266,ROW('Базы НО'!20:20)-ROW('Базы НО'!$2:$2)+1,FALSE))) -> 1689354 | K20: =IF(K$10='Базы НО'!$D$2,V20,MAX(0,HLOOKUP(K$10,'Базы НО'!$D$2:$X$266,ROW('Базы НО'!20:20)-ROW('Базы НО'!$2:$2)+1,FALSE))) ->  | L20: =IF(L$10='Базы НО'!$D$2,W20,MAX(0,HLOOKUP(L$10,'Базы НО'!$D$2:$X$266,ROW('Базы НО'!20:20)-ROW('Базы НО'!$2:$2)+1,FALSE))) -> 0 | N20: =(P20/Данные!F20)/($P$11/Данные!$F$11) -> 0.9990774717 | O20: Каменномостское г/п | P20: 9329.2 | Q20: 38577 | R20: 32475 | S20: 29 | T20: 426 | U20: 5647 | V20: 0 | Y20: 225
A21: =Данные!A21 -> 10 | B21: =Данные!D21 -> Кировское с/п | C21: =(F21/Данные!F21)/($F$11/Данные!$F$11) -> 0.6595757631 | D21: =C21/'ИБР+1'!C21 -> 0.6645053167 | F21: =SUM(IF($G$11:$L$11=0,0,G21:L21/$G$11:$L$11*$R$6:$W$6*$G$6:$L$6)) -> 5115.055853 | G21: =IF(G$10='Базы НО'!$D$2,R21,MAX(0,HLOOKUP(G$10,'Базы НО'!$D$2:$X$266,ROW('Базы НО'!21:21)-ROW('Базы НО'!$2:$2)+1,FALSE))) -> 27637.7 | H21: =IF(H$10='Базы НО'!$D$2,S21,MAX(0,HLOOKUP(H$10,'Базы НО'!$D$2:$X$266,ROW('Базы НО'!21:21)-ROW('Базы НО'!$2:$2)+1,FALSE))) -> 707 | I21: =IF(I$10='Базы НО'!$D$2,T21,MAX(0,HLOOKUP(I$10,'Базы НО'!$D$2:$X$266,ROW('Базы НО'!21:21)-ROW('Базы НО'!$2:$2)+1,FALSE))) -> 252405 | J21: =IF(J$10='Базы НО'!$D$2,U21,MAX(0,HLOOKUP(J$10,'Базы НО'!$D$2:$X$266,ROW('Базы НО'!21:21)-ROW('Базы НО'!$2:$2)+1,FALSE))) -> 1628334 | K21: =IF(K$10='Базы НО'!$D$2,V21,MAX(0,HLOOKUP(K$10,'Базы НО'!$D$2:$X$266,ROW('Базы НО'!21:21)-ROW('Базы НО'!$2:$2)+1,FALSE))) ->  | L21: =IF(L$10='Базы НО'!$D$2,W21,MAX(0,HLOOKUP(L$10,'Базы НО'!$D$2:$X$266,ROW('Базы НО'!21:21)-ROW('Базы НО'!$2:$2)+1,FALSE))) -> 0 | N21: =(P21/Данные!F21)/($P$11/Данные!$F$11) -> 0.5719613507 | O21: Кировское с/п | P21: 4435.6 | Q21: 8575 | R21: 4539 | S21: 49 | T21: 518 | U21: 3449 | V21: 20 | Y21: 144

Sheet Базы НО
A1: Экономические показатели
A2: =Данные!A2 -> № | B2: =Данные!C2 -> Район | C2: =Данные!D2 -> Поселения | D2: Прогноз поступлений | E2: Фонд начисленной зар. платы (без СМП) | F2: НДФЛ поселения: ставка 13%, формы 5-НДФЛ и 5-ДДК, руб. | G2: НДФЛ поселения: все ставки, формы 5-НДФЛ и 5-ДДК, руб. | H2: НДФЛ поселения: облагаемая сумма дохода по ставке 13% (форма 5-НДФЛ), руб. | I2: НДФЛ поселения: облагаемая сумма дохода все ставки (форма 5-НДФЛ), руб. | J2: НДФЛ поселения: облагаемая сумма дохода по ставке 13% (форма 5-ДДК), руб. | K2: НДФЛ поселения: облагаемая сумма дохода все ставки (форма 5-ДДК), руб. | L2: ЕНВД: сумма исчисленного вмененного дохода (форма 5-енвд) (тыс.руб.) | M2: ЕНВД: сумма исчисленного единого налога на вмененный доход (форма 5-енвд) (тыс.руб.) | N2: ЕНВД: сумма единого налога на вмененный доход, подлежащая уплате в местные бюджеты и бюджеты государственных внебюджетных фондов (форма 5-енвд) (тыс.руб.) | O2: ЕСХН: налоговая база единого сельскохозяйственного налога (форма 5-есхн) (тыс.руб.) | P2: ЕСХН: сумма исчисленного единого сельскохозяйственного налога (форма 5-есхн) (тыс.руб.) | Q2: Налог на имущесво физических лиц: общая инвентаризационная стоимость строений, помещений и сооружений, по которым предъявлен налог к уплате (форма 5-МН) (тыс.руб.) | R2: Земельный налог: кадастровая стоимость земли (форма 5-МН) (тыс.руб.) | S2: Акцизы на пиво: пиво с нормативным (стандартизированным) содержанием объемной доли этилового спирта свыше 0,5 до 8,6 процента включительно (форма № 5-ПВ) | T2: Единый налог: cумма исчисленного за налоговый период налога с доходов (форма 5-УСН) (тыс.руб.) | U2: Единый налог: cумма исчисленного за налоговый период налога с доходов, уменьшенных на величину расходов (форма 5-УСН) (тыс.руб.) | V2: Единый налог: сумма налога с доходов, подлежащая уплате за налоговый период (форма 5-УСН) (тыс.руб.) | W2: Единый налог: сумма налога с доходов, уменьшенных на величину расходов, подлежащая уплате за налоговый период (форма 5-УСН) (тыс.руб.) | X2: УСН: Налоговая база: доходы | Y2: УСН: Налоговая база: доходы, уменьшенные на величину расходов
C3: Ед. изм. | E3: тыс. руб. | F3: тыс. руб. | G3: тыс. руб. | H3: тыс. руб. | I3: тыс. руб. | J3: тыс. руб. | K3: тыс. руб. | L3: тыс. руб. | M3: тыс. руб. | N3: тыс. руб. | O3: тыс. руб. | P3: тыс. руб. | Q3: тыс. руб. | R3: тыс. руб. | S3: Литры | T3: тыс. руб. | U3: тыс. руб. | V3: тыс. руб. | W3: тыс. руб. | X3: тыс. руб. | Y3: тыс. руб.
C4: Год | E4: 2015 | F4: 2012 | G4: 2012 | H4: 2012 | I4: 2012 | J4: 2012 | K4: 2012 | L4: 2012 | M4: 2012 | N4: 2012 | O4: 2014 | P4: 2012 | Q4: 2014 | R4: 2014 | S4: 2012 | T4: 2012 | U4: 2012 | V4: 2012 | W4: 2012 | X4: 2012 | Y4: 2012
C5: Параметры | H5: 0.13 | I5: 0.13 | J5: 0.3 | K5: 0.3
C11: Итого | E11: =SUM(E12:E21) -> 2008632.5 | F11: 0 | G11: 0 | H11: 0 | I11: 0 | J11: 0 | K11: 0 | L11: 0 | M11: 0 | N11: 0 | O11: 34854 | P11: 0 | Q11: 2534491 | R11: 16418565 | S11: 0 | T11: 0 | U11: 0 | V11: 0 | W11: 0 | X11: 0 | Y11: 0
A12: =Данные!A12 -> 1 | B12: =Данные!C12 -> Майкопский | C12: =Данные!D12 -> Абадзехское с/п | E12: 74124.5 | F12: 0 | G12: 0 | O12: 195 | Q12: 216681 | R12: 1862843
A13: =Данные!A13 -> 2 | B13: =Данные!C13 -> Майкопский | C13: =Данные!D13 -> Даховское с/п | E13: 28765.6 | F13: 0 | G13: 0 | O13: 5 | Q13: 114043 | R13: 1352596
A14: =Данные!A14 -> 3 | B14: =Данные!C14 -> Майкопский | C14: =Данные!D14 -> Краснооктябрьское с/п | E14: 418776.9 | F14: 0 | G14: 0 | O14: 224 | Q14: 481151 | R14: 2904466
A15: =Данные!A15 -> 4 | B15: =Данные!C15 -> Майкопский | C15: =Данные!D15 -> Красноульское с/п | E15: 195486.3 | F15: 0 | G15: 0 | O15: 3341 | Q15: 78130 | R15: 587851
A16: =Данные!A16 -> 5 | B16: =Данные!C16 -> Майкопский | C16: =Данные!D16 -> Кужорское с/п | E16: 33988.5 | F16: 0 | G16: 0 | O16: 7154 | Q16: 145907 | R16: 1033908
A17: =Данные!A17 -> 6 | B17: =Данные!C17 -> Майкопский | C17: =Данные!D17 -> Побединское с/п | E17: 229242.5 | F17: 0 | G17: 0 | O17: 13267 | Q17: 245216 | R17: 1380585
A18: =Данные!A18 -> 7 | B18: =Данные!C18 -> Майкопский | C18: =Данные!D18 -> Тимирязевское с/п | E18: 42073 | F18: 0 | G18: 0 | O18: 183 | Q18: 148142 | R18: 767834
A19: =Данные!A19 -> 8 | B19: =Данные!C19 -> Майкопский | C19: =Данные!D19 -> Тульское г/п | E19: 777149.5 | F19: 0 | G19: 0 | O19: 9357 | Q19: 573053 | R19: 3210794
A20: =Данные!A20 -> 9 | B20: =Данные!C20 -> Майкопский | C20: =Данные!D20 -> Каменномостское г/п | E20: 181388 | F20: 0 | G20: 0 | O20: 421 | Q20: 279763 | R20: 1689354
A21: =Данные!A21 -> 10 | B21: =Данные!C21 -> Майкопский | C21: =Данные!D21 -> Кировское с/п | E21: 27637.7 | F21: 0 | G21: 0 | O21: 707 | Q21: 252405 | R21: 1628334

Sheet Диаграммы
A1: Ранг МО до трансфертов и субвенций | C1: =VLOOKUP($C$2,Вспомогательный!$I$27:$J$29,2,FALSE) -> 2016 | D1: население*ИБР накопленным итогом | E1: БО до трансфертов | F1: БО после ДВБОП | I1: БО после дотации в расчете на одного жителя | J1: население накопленным итогом | K1: Итого доходов до трансфертов | L1: Итого доходов | M1: Итого расходов | R1: =VLOOKUP(S2,B12:C21,2,FALSE) ->  | S1: x11 | V1: Уровень 1 пропорционального подтягивания | W1: Уровень 2 пропорционального подтягивания
C2: 1 | E2: 1 | F2: 2 | G2: 3 | H2: 4 | I2: 5 | J2: 6 | K2: 7 | L2: 8 | M2: 9 | R2: 5 | S2: 11
R3: 0 | S3: =VLOOKUP($S$2-1,$B$11:$M$21,COLUMN(D:D)-COLUMN(B:B)+1,FALSE) -> 60024 | T3: =VLOOKUP($S$2-1,$B$11:$M$21,COLUMN(J:J)-COLUMN(B:B)+1,FALSE) -> 60024 | U3: 0 | V3: =CHOOSE($C$2,Параметры!$D$24,Параметры!#REF!,Параметры!#REF!) -> 1
R4: =CHOOSE($R$2,VLOOKUP($S$2,$B$12:$M$21,COLUMN(E:E)-COLUMN(B:B)+1,FALSE),VLOOKUP($S$2,$B$12:$M$21,COLUMN(F:F)-COLUMN(B:B)+1,FALSE),VLOOKUP($S$2,$B$12:$M$21,COLUMN(I:I)-COLUMN(B:B)+1,FALSE),VLOOKUP($S$2,$B$12:$M$21,COLUMN(K:K)-COLUMN(B:B)+1,FALSE),VLOOKUP($S$2,$B$12:$M$21,COLUMN(L:L)-COLUMN(B:B)+1,FALSE)) ->  | S4: =S3 -> 60024 | T4: =T3 -> 60024 | U4: =MAX($D$26:$D$56) -> 60024 | V4: =V3 -> 1
R5: =R4 ->  | S5: =IF(ISERROR(VLOOKUP($S$2,$B$11:$M$21,COLUMN(D:D)-COLUMN(B:B)+1,FALSE)),0,VLOOKUP($S$2,$B$11:$M$21,COLUMN(D:D)-COLUMN(B:B)+1,FALSE)) -> 0 | T5: =IF(ISERROR(VLOOKUP($S$2,$B$11:$M$21,COLUMN(J:J)-COLUMN(B:B)+1,FALSE)),0,VLOOKUP($S$2,$B$11:$M$21,COLUMN(J:J)-COLUMN(B:B)+1,FALSE)) -> 0
R6: 0 | S6: =S5 -> 0 | T6: =T5 -> 0
B11: 0
A12: =RANK(E12,$E$12:$E$21,1) -> 4 | B12: =Данные!A12 -> 1 | C12: =Данные!D12 -> Абадзехское с/п | D12: =IF(AND($B12>=Параметры!$D$28,$B12<=Параметры!$D$29),D11+CHOOSE($C$2,'ТРАНСФЕРТЫ+1'!I12*'ТРАНСФЕРТЫ+1'!J12,#REF!*#REF!,#REF!*#REF!),0) -> 6302.795297 | E12: =IF(AND($B12>=Параметры!$D$28,$B12<=Параметры!$D$29),CHOOSE($C$2,'ТРАНСФЕРТЫ+1'!L12,#REF!,#REF!),0) -> 0.786261077 | F12: =IF(AND($B12>=Параметры!$D$28,$B12<=Параметры!$D$29),E12+CHOOSE($C$2,'РЕЗУЛЬТАТ+1'!I12/Параметры!$D$23,#REF!/Параметры!#REF!,#REF!/Параметры!#REF!)/($D12-D11),0) -> 1.001450509 | I12: =IF(AND($B12>=Параметры!$D$28,$B12<=Параметры!$D$29),F12+CHOOSE($C$2,'РЕЗУЛЬТАТ+1'!H12/Параметры!$D$23,#REF!/Параметры!#REF!,#REF!/Параметры!#REF!)/($D12-D11),0) -> 1.060908207 | J12: =IF(AND($B12>=Параметры!$D$28,$B12<=Параметры!$D$29),J11+Данные!F12,0) -> 6489 | K12: =IF(AND($B12>=Параметры!$D$28,$B12<=Параметры!$D$29),CHOOSE($C$2,('РЕЗУЛЬТАТ+1'!F12+'РЕЗУЛЬТАТ+1'!G12+'РЕЗУЛЬТАТ+1'!H12)/Параметры!$D$23,(#REF!+#REF!+#REF!)/Параметры!#REF!,(#REF!+#REF!+#REF!)/Параметры!#REF!)/Данные!$F12,0) ->  | L12: =IF(AND($B12>=Параметры!$D$28,$B12<=Параметры!$D$29),K12+CHOOSE($C$2,'РЕЗУЛЬТАТ+1'!J12/Параметры!$D$23,#REF!/Параметры!#REF!,#REF!/Параметры!#REF!)/Данные!$F12,0) ->  | M12: =IF(AND($B12>=Параметры!$D$28,$B12<=Параметры!$D$29),CHOOSE($C$2,'РЕЗУЛЬТАТ+1'!L12/Параметры!$D$23,#REF!/Параметры!#REF!,#REF!/Параметры!#REF!)/Данные!$F12,0) -> 0.791514227
A13: 6 | B13: =Данные!A13 -> 2 | C13: =Данные!D13 -> Даховское с/п | D13: =IF(AND($B13>=Параметры!$D$28,$B13<=Параметры!$D$29),D12+CHOOSE($C$2,'ТРАНСФЕРТЫ+1'!I13*'ТРАНСФЕРТЫ+1'!J13,#REF!*#REF!,#REF!*#REF!),0) -> 9948.140521 | E13: =IF(AND($B13>=Параметры!$D$28,$B13<=Параметры!$D$29),CHOOSE($C$2,'ТРАНСФЕРТЫ+1'!L13,#REF!,#REF!),0) -> 0.8928047021 | F13: =IF(AND($B13>=Параметры!$D$28,$B13<=Параметры!$D$29),E13+CHOOSE($C$2,'РЕЗУЛЬТАТ+1'!I13/Параметры!$D$23,#REF!/Параметры!#REF!,#REF!/Параметры!#REF!)/($D13-D12),0) -> 1.000727466 | I13: =IF(AND($B13>=Параметры!$D$28,$B13<=Параметры!$D$29),F13+CHOOSE($C$2,'РЕЗУЛЬТАТ+1'!H13/Параметры!$D$23,#REF!/Параметры!#REF!,#REF!/Параметры!#REF!)/($D13-D12),0) -> 1.045023212 | J13: =IF(AND($B13>=Параметры!$D$28,$B13<=Параметры!$D$29),J12+Данные!F13,0) -> 9285 | K13: =IF(AND($B13>=Параметры!$D$28,$B13<=Параметры!$D$29),CHOOSE($C$2,('РЕЗУЛЬТАТ+1'!F13+'РЕЗУЛЬТАТ+1'!G13+'РЕЗУЛЬТАТ+1'!H13)/Параметры!$D$23,(#REF!+#REF!+#REF!)/Параметры!#REF!,(#REF!+#REF!+#REF!)/Параметры!#REF!)/Данные!$F13,0) ->  | L13: =IF(AND($B13>=Параметры!$D$28,$B13<=Параметры!$D$29),K13+CHOOSE($C$2,'РЕЗУЛЬТАТ+1'!J13/Параметры!$D$23,#REF!/Параметры!#REF!,#REF!/Параметры!#REF!)/Данные!$F13,0) ->  | M13: =IF(AND($B13>=Параметры!$D$28,$B13<=Параметры!$D$29),CHOOSE($C$2,'РЕЗУЛЬТАТ+1'!L13/Параметры!$D$23,#REF!/Параметры!#REF!,#REF!/Параметры!#REF!)/Данные!$F13,0) -> 0.7867445904
A14: 8 | B14: =Данные!A14 -> 3 | C14: =Данные!D14 -> Краснооктябрьское с/п | D14: =IF(AND($B14>=Параметры!$D$28,$B14<=Параметры!$D$29),D13+CHOOSE($C$2,'ТРАНСФЕРТЫ+1'!I14*'ТРАНСФЕРТЫ+1'!J14,#REF!*#REF!,#REF!*#REF!),0) -> 19831.48395 | E14: =IF(AND($B14>=Параметры!$D$28,$B14<=Параметры!$D$29),CHOOSE($C$2,'ТРАНСФЕРТЫ+1'!L14,#REF!,#REF!),0) -> 1.140422037 | F14: =IF(AND($B14>=Параметры!$D$28,$B14<=Параметры!$D$29),E14+CHOOSE($C$2,'РЕЗУЛЬТАТ+1'!I14/Параметры!$D$23,#REF!/Параметры!#REF!,#REF!/Параметры!#REF!)/($D14-D13),0) -> 1.140422037 | I14: =IF(AND($B14>=Параметры!$D$28,$B14<=Параметры!$D$29),F14+CHOOSE($C$2,'РЕЗУЛЬТАТ+1'!H14/Параметры!$D$23,#REF!/Параметры!#REF!,#REF!/Параметры!#REF!)/($D14-D13),0) -> 1.206322994 | J14: =IF(AND($B14>=Параметры!$D$28,$B14<=Параметры!$D$29),J13+Данные!F14,0) -> 20563 | K14: =IF(AND($B14>=Параметры!$D$28,$B14<=Параметры!$D$29),CHOOSE($C$2,('РЕЗУЛЬТАТ+1'!F14+'РЕЗУЛЬТАТ+1'!G14+'РЕЗУЛЬТАТ+1'!H14)/Параметры!$D$23,(#REF!+#REF!+#REF!)/Параметры!#REF!,(#REF!+#REF!+#REF!)/Параметры!#REF!)/Данные!$F14,0) ->  | L14: =IF(AND($B14>=Параметры!$D$28,$B14<=Параметры!$D$29),K14+CHOOSE($C$2,'РЕЗУЛЬТАТ+1'!J14/Параметры!$D$23,#REF!/Параметры!#REF!,#REF!/Параметры!#REF!)/Данные!$F14,0) ->  | M14: =IF(AND($B14>=Параметры!$D$28,$B14<=Параметры!$D$29),CHOOSE($C$2,'РЕЗУЛЬТАТ+1'!L14/Параметры!$D$23,#REF!/Параметры!#REF!,#REF!/Параметры!#REF!)/Данные!$F14,0) -> 0.7687303188
A15: 9 | B15: =Данные!A15 -> 4 | C15: =Данные!D15 -> Красноульское с/п | D15: =IF(AND($B15>=Параметры!$D$28,$B15<=Параметры!$D$29),D14+CHOOSE($C$2,'ТРАНСФЕРТЫ+1'!I15*'ТРАНСФЕРТЫ+1'!J15,#REF!*#REF!,#REF!*#REF!),0) -> 22861.31617 | E15: =IF(AND($B15>=Параметры!$D$28,$B15<=Параметры!$D$29),CHOOSE($C$2,'ТРАНСФЕРТЫ+1'!L15,#REF!,#REF!),0) -> 1.1609632 | F15: =IF(AND($B15>=Параметры!$D$28,$B15<=Параметры!$D$29),E15+CHOOSE($C$2,'РЕЗУЛЬТАТ+1'!I15/Параметры!$D$23,#REF!/Параметры!#REF!,#REF!/Параметры!#REF!)/($D15-D14),0) -> 1.1609632 | I15: =IF(AND($B15>=Параметры!$D$28,$B15<=Параметры!$D$29),F15+CHOOSE($C$2,'РЕЗУЛЬТАТ+1'!H15/Параметры!$D$23,#REF!/Параметры!#REF!,#REF!/Параметры!#REF!)/($D15-D14),0) -> 1.196111624 | J15: =IF(AND($B15>=Параметры!$D$28,$B15<=Параметры!$D$29),J14+Данные!F15,0) -> 22407 | K15: =IF(AND($B15>=Параметры!$D$28,$B15<=Параметры!$D$29),CHOOSE($C$2,('РЕЗУЛЬТАТ+1'!F15+'РЕЗУЛЬТАТ+1'!G15+'РЕЗУЛЬТАТ+1'!H15)/Параметры!$D$23,(#REF!+#REF!+#REF!)/Параметры!#REF!,(#REF!+#REF!+#REF!)/Параметры!#REF!)/Данные!$F15,0) ->  | L15: =IF(AND($B15>=Параметры!$D$28,$B15<=Параметры!$D$29),K15+CHOOSE($C$2,'РЕЗУЛЬТАТ+1'!J15/Параметры!$D$23,#REF!/Параметры!#REF!,#REF!/Параметры!#REF!)/Данные!$F15,0) ->  | M15: =IF(AND($B15>=Параметры!$D$28,$B15<=Параметры!$D$29),CHOOSE($C$2,'РЕЗУЛЬТАТ+1'!L15/Параметры!$D$23,#REF!/Параметры!#REF!,#REF!/Параметры!#REF!)/Данные!$F15,0) -> 0.7827445838
A16: 2 | B16: =Данные!A16 -> 5 | C16: =Данные!D16 -> Кужорское с/п | D16: =IF(AND($B16>=Параметры!$D$28,$B16<=Параметры!$D$29),D15+CHOOSE($C$2,'ТРАНСФЕРТЫ+1'!I16*'ТРАНСФЕРТЫ+1'!J16,#REF!*#REF!,#REF!*#REF!),0) -> 27473.90965 | E16: =IF(AND($B16>=Параметры!$D$28,$B16<=Параметры!$D$29),CHOOSE($C$2,'ТРАНСФЕРТЫ+1'!L16,#REF!,#REF!),0) -> 0.611895341 | F16: =IF(AND($B16>=Параметры!$D$28,$B16<=Параметры!$D$29),E16+CHOOSE($C$2,'РЕЗУЛЬТАТ+1'!I16/Параметры!$D$23,#REF!/Параметры!#REF!,#REF!/Параметры!#REF!)/($D16-D15),0) -> 1.002633818 | I16: =IF(AND($B16>=Параметры!$D$28,$B16<=Параметры!$D$29),F16+CHOOSE($C$2,'РЕЗУЛЬТАТ+1'!H16/Параметры!$D$23,#REF!/Параметры!#REF!,#REF!/Параметры!#REF!)/($D16-D15),0) -> 1.054743739 | J16: =IF(AND($B16>=Параметры!$D$28,$B16<=Параметры!$D$29),J15+Данные!F16,0) -> 26569 | K16: =IF(AND($B16>=Параметры!$D$28,$B16<=Параметры!$D$29),CHOOSE($C$2,('РЕЗУЛЬТАТ+1'!F16+'РЕЗУЛЬТАТ+1'!G16+'РЕЗУЛЬТАТ+1'!H16)/Параметры!$D$23,(#REF!+#REF!+#REF!)/Параметры!#REF!,(#REF!+#REF!+#REF!)/Параметры!#REF!)/Данные!$F16,0) ->  | L16: =IF(AND($B16>=Параметры!$D$28,$B16<=Параметры!$D$29),K16+CHOOSE($C$2,'РЕЗУЛЬТАТ+1'!J16/Параметры!$D$23,#REF!/Параметры!#REF!,#REF!/Параметры!#REF!)/Данные!$F16,0) ->  | M16: =IF(AND($B16>=Параметры!$D$28,$B16<=Параметры!$D$29),CHOOSE($C$2,'РЕЗУЛЬТАТ+1'!L16/Параметры!$D$23,#REF!/Параметры!#REF!,#REF!/Параметры!#REF!)/Данные!$F16,0) -> 0.7876824305
A17: 7 | B17: =Данные!A17 -> 6 | C17: =Данные!D17 -> Побединское с/п | D17: =IF(AND($B17>=Параметры!$D$28,$B17<=Параметры!$D$29),D16+CHOOSE($C$2,'ТРАНСФЕРТЫ+1'!I17*'ТРАНСФЕРТЫ+1'!J17,#REF!*#REF!,#REF!*#REF!),0) -> 32968.40144 | E17: =IF(AND($B17>=Параметры!$D$28,$B17<=Параметры!$D$29),CHOOSE($C$2,'ТРАНСФЕРТЫ+1'!L17,#REF!,#REF!),0) -> 1.077623769 | F17: =IF(AND($B17>=Параметры!$D$28,$B17<=Параметры!$D$29),E17+CHOOSE($C$2,'РЕЗУЛЬТАТ+1'!I17/Параметры!$D$23,#REF!/Параметры!#REF!,#REF!/Параметры!#REF!)/($D17-D16),0) -> 1.077623769 | I17: =IF(AND($B17>=Параметры!$D$28,$B17<=Параметры!$D$29),F17+CHOOSE($C$2,'РЕЗУЛЬТАТ+1'!H17/Параметры!$D$23,#REF!/Параметры!#REF!,#REF!/Параметры!#REF!)/($D17-D16),0) -> 1.132921116 | J17: =IF(AND($B17>=Параметры!$D$28,$B17<=Параметры!$D$29),J16+Данные!F17,0) -> 31830 | K17: =IF(AND($B17>=Параметры!$D$28,$B17<=Параметры!$D$29),CHOOSE($C$2,('РЕЗУЛЬТАТ+1'!F17+'РЕЗУЛЬТАТ+1'!G17+'РЕЗУЛЬТАТ+1'!H17)/Параметры!$D$23,(#REF!+#REF!+#REF!)/Параметры!#REF!,(#REF!+#REF!+#REF!)/Параметры!#REF!)/Данные!$F17,0) ->  | L17: =IF(AND($B17>=Параметры!$D$28,$B17<=Параметры!$D$29),K17+CHOOSE($C$2,'РЕЗУЛЬТАТ+1'!J17/Параметры!$D$23,#REF!/Параметры!#REF!,#REF!/Параметры!#REF!)/Данные!$F17,0) ->  | M17: =IF(AND($B17>=Параметры!$D$28,$B17<=Параметры!$D$29),CHOOSE($C$2,'РЕЗУЛЬТАТ+1'!L17/Параметры!$D$23,#REF!/Параметры!#REF!,#REF!/Параметры!#REF!)/Данные!$F17,0) -> 0.7722970006
